Workbook

Sheet Introduction

Sheet Read Stocks
M1: Final Applied | N1: Final Applied | O1: Column | P1: Source | S1: Finance.yahoo Index | X1: FRED Index | AF1: Google Index | AN1: FRED Commodities | AV1: Yahoo Stock Prices | BD1: Google Stock Prices | BL1: FRED Exonomic Data
G2: Start Row | H2: Number | I2: Column | J2: Source | M2: Sheet Name | N2: Stock or Index Name | Q2: Counter | R2: Accum | S2: Sheet | T2: Name | U2: Column | V2: Source | X2: Counter | Y2: Counter 1 | Z2: Sheet | AA2: Re-ordered | AB2: Name | AC2: Re-ordered | AD2: Column | AE2: Source | AF2: Counter | AG2: Counter | AH2: Sheet | AI2: Re-ordered | AJ2: Name | AK2: Re-ordered | AL2: Column | AM2: Source | AN2: counter | AO2: Accum | AP2: Sheet | AQ2: Re-ordered | AR2: Name | AS2: Re-ordered | AT2: Column | AU2: Source | AV2: Counter | AW2: Counter 1 | AX2: Sheet | AY2: Re-ordered | AZ2: Name | BA2: Re-ordered | BB2: Column | BC2: Source | BD2: Counter | BE2: Counter 1 | BF2: Sheet | BG2: Re-ordered | BH2: Name | BI2: Re-ordered | BJ2: Column | BK2: Source | BL2: Counter | BM2: Counter 1 | BN2: Sheet | BO2: Re-ordered | BP2: Name | BQ2: Re-ordered | BR2: Column | BS2: Source
F3: TRUE | G3: 1 | H3: ='Yahoo Index'!Total_Tickers*F3 -> 5 | I3: F | J3: yahoo | L3: 1 | M3: =S3&AA3&AI3&AQ3&AY3&BG3&BO3 -> S&P 500 | N3: =T3&AC3&AK3&AS3&BA3&BI3&BQ3 -> US S&P 500 | O3: =U3&AD3&AL3&AT3&BB3&BJ3&BR3 -> F | P3: =V3&AE3&AM3&AU3&BC3&BK3&BS3 -> yahoo | Q3: =G3 -> 1 | R3: =IF(AND($F$3,Q3<=$H$3),Q3,0) -> 1 | S3: =IF(R3,'Yahoo Index'!E55,"") -> S&P 500 | T3: =IF(R3,'Yahoo Index'!F55,"") -> US S&P 500 | U3: =IF(R3,$I$3,"") -> F | V3: =IF(R3,$J$3,"") -> yahoo | X3: =G6 -> 6 | Y3: =IF(AND($F$6,X3<=$H$6),X3) -> 6 | Z3: =IF($F$6,'FRED Indicies'!E16) -> NASDAQ100 | AA3: =IFERROR(INDEX(Z:Z,MATCH(L3,Y:Y,0)),"") ->  | AB3: =IF($F$6,'FRED Indicies'!D16) -> Nasdaq 100 Index | AC3: =IFERROR(INDEX(AB:AB,MATCH(L3,Y:Y,0)),"") ->  | AD3: =IF(AA3<>"",$I$6,"") ->  | AE3: =IF(AA3<>"",$J$6,"") ->  | AF3: =G9 -> 7 | AG3: =IF(AND($F$9,AF3<=$H$9),AF3) -> FALSE | AH3: =IF(AG3,'Google Index'!E30) -> FALSE | AI3: =IFERROR(INDEX(AH:AH,MATCH(Q3,AG:AG,0)),"") ->  | AJ3: =IF(AF3,'Google Index'!F30) -> HT Media | AK3: =IFERROR(INDEX(AJ:AJ,MATCH(Q3,AG:AG,0)),"") ->  | AL3: =IF(AI3<>"",$I$6,"") ->  | AM3: =IF(AK3<>"",$J$6,"") ->  | AN3: =G12 -> 7 | AO3: =IF(AND($F$12,AN3<=$H$12),AN3) -> 7 | AP3: =IF(AO3,'Commodity Prices'!C16) -> DCOILBRENTEU | AQ3: =IFERROR(INDEX(AP:AP,MATCH(L3,AO:AO,0)),"") ->  | AR3: =IF(AO3,'Commodity Prices'!D16) -> Crude Oil Prices: Brent - Europe (DCOILBRENTEU) | AS3: =IFERROR(INDEX(AR:AR,MATCH(L3,AO:AO,0)),"") ->  | AT3: =IF(AQ3<>"",$I$12,"") ->  | AU3: =IF(AS3<>"",$J$12,"") ->  | AV3: =G15 -> 10 | AW3: =IF(AND($F$15,AV3<=$H$15),AV3) -> 10 | AX3: =IF(AW3,'Yahoo Stocks'!D30) -> HTMEDIA.NS | AY3: =IFERROR(INDEX(AX:AX,MATCH(L3,AW:AW,0)),"") ->  | AZ3: =IF(AW3,'Yahoo Stocks'!E30) -> HT Media | BA3: =IFERROR(INDEX(AZ:AZ,MATCH(L3,AW:AW,0)),"") ->  | BB3: =IF(AY3<>"",$I$15,"") ->  | BC3: =IF(BA3<>"",$J$15,"") ->  | BD3: =G18 -> 76 | BE3: =IF(AND($F$18,BD3<=$H$18),BD3) -> FALSE | BF3: =IF(BE3,'Google Finance Stocks'!D27) -> FALSE | BG3: =IFERROR(INDEX(BF:BF,MATCH(Q3,BE:BE,0)),"") ->  | BH3: =IF(BE3,'Google Finance Stocks'!E27) -> FALSE | BI3: =IFERROR(INDEX(BH:BH,MATCH(Q3,BE:BE,0)),"") ->  | BJ3: =IF(BI3<>"",$I$18,"") ->  | BK3: =IF(BI3<>"",$J$18,"") ->  | BL3: =G21 -> 76 | BM3: =IF(AND($F$21,BL3<=$H$21),BL3) -> 76 | BN3: ='Exchange Rates'!D13 -> GDP Inf | BO3: =IFERROR(INDEX(BN:BN,MATCH(L3,BM:BM,0)),"") ->  | BP3: =IF(BM3,'Exchange Rates'!E13) -> Implicit Price Deflator | BQ3: =IFERROR(INDEX(BP:BP,MATCH(L3,BM:BM,0)),"") ->  | BR3: =IF(BQ3<>"",$I$21,"") ->  | BS3: =IF(BQ3<>"",$J$21,"") -> 
L4: 2 | M4: =S4&AA4&AI4&AQ4&AY4&BG4&BO4 -> DAX | N4: =T4&AC4&AK4&AS4&BA4&BI4&BQ4 -> DAX in Euro | O4: =U4&AD4&AL4&AT4&BB4&BJ4&BR4 -> F | P4: =V4&AE4&AM4&AU4&BC4&BK4&BS4 -> yahoo | Q4: =Q3+1 -> 2 | R4: =IF(AND($F$3,Q4<=$H$3),Q4) -> 2 | S4: =IF(R4,'Yahoo Index'!E56,"") -> DAX | T4: =IF(R4,'Yahoo Index'!F56,"") -> DAX in Euro | U4: =IF(R4,$I$3,"") -> F | V4: =IF(R4,$J$3,"") -> yahoo | X4: =X3+1 -> 7 | Y4: FALSE | Z4: =IF($F$6,'FRED Indicies'!E17) -> 0 | AB4: =IF($F$6,'FRED Indicies'!D17) -> 0 | AD4: =IF(AA4<>"",$I$6,"") ->  | AE4: =IF(AA4<>"",$J$6,"") ->  | AF4: =AF3+1 -> 8 | AG4: =IF(AND($F$9,AF4<=$H$9),AF4) -> FALSE | AH4: =IF(AG4,'Google Index'!E31) -> FALSE | AJ4: =IF(AF4,'Google Index'!F31) -> 0 | AL4: =IF(AI4<>"",$I$6,"") ->  | AM4: =IF(AK4<>"",$J$6,"") ->  | AN4: =AN3+1 -> 8 | AO4: =IF(AND($F$12,AN4<=$H$12),AN4) -> 8 | AP4: =IF(AO4,'Commodity Prices'!C17) -> PCOPPUSDM | AQ4: =IFERROR(INDEX(AP:AP,MATCH(L4,AO:AO,0)),"") ->  | AR4: =IF(AO4,'Commodity Prices'!D17) -> Global price of Copper© (PCOPPUSDM) | AT4: =IF(AQ4<>"",$I$12,"") ->  | AU4: =IF(AS4<>"",$J$12,"") ->  | AV4: =AV3+1 -> 11 | AW4: =IF(AND($F$15,AV4<=$H$15),AV4) -> 11 | AX4: =IF(AW4,'Yahoo Stocks'!D31) -> AAPL | AY4: =IFERROR(INDEX(AX:AX,MATCH(L4,AW:AW,0)),"") ->  | AZ4: =IF(AW4,'Yahoo Stocks'!E31) -> Apple | BA4: =IFERROR(INDEX(AZ:AZ,MATCH(L4,AW:AW,0)),"") ->  | BB4: =IF(AY4<>"",$I$15,"") ->  | BC4: =IF(BA4<>"",$J$15,"") ->  | BD4: =BD3+1 -> 77 | BE4: =IF(AND($F$18,BD4<=$H$18),BD4) -> FALSE | BF4: =IF(BE4,'Google Finance Stocks'!D28) -> FALSE | BG4: =IFERROR(INDEX(BF:BF,MATCH(Q4,BE:BE,0)),"") ->  | BH4: =IF(BE4,'Google Finance Stocks'!E28) -> FALSE | BI4: =IFERROR(INDEX(BH:BH,MATCH(Q4,BE:BE,0)),"") ->  | BJ4: =IF(BI4<>"",$I$18,"") ->  | BK4: =IF(BI4<>"",$J$18,"") ->  | BL4: =BL3+1 -> 77 | BM4: =IF(AND($F$21,BL4<=$H$21),BL4) -> 77 | BN4: ='Exchange Rates'!D14 -> CPI US | BO4: =IFERROR(INDEX(BN:BN,MATCH(L4,BM:BM,0)),"") ->  | BP4: =IF(BM4,'Exchange Rates'!E14) -> Consumer Price Inflation | BQ4: =IFERROR(INDEX(BP:BP,MATCH(L4,BM:BM,0)),"") ->  | BR4: =IF(BQ4<>"",$I$21,"") ->  | BS4: =IF(BQ4<>"",$J$21,"") -> 
L5: 3 | M5: Nifty Fifty | N5: =T5&AC5&AK5&AS5&BA5&BI5&BQ5 -> Nifty Fifty | O5: F | P5: yahoo | Q5: =Q4+1 -> 3 | R5: 3 | S5: =IF(R5,'Yahoo Index'!E57,"") -> Nifty Fifty | T5: =IF(R5,'Yahoo Index'!F57,"") -> Nifty Fifty | U5: F | V5: yahoo | X5: =X4+1 -> 8 | Y5: FALSE | Z5: =IF($F$6,'FRED Indicies'!E18) -> 0 | AB5: =IF($F$6,'FRED Indicies'!D18) -> 0 | AF5: =AF4+1 -> 9 | AG5: FALSE | AH5: =IF(AG5,'Google Index'!E32) -> FALSE | AJ5: =IF(AF5,'Google Index'!F32) -> 0 | AN5: =AN4+1 -> 9 | AO5: 9 | AP5: =IF(AO5,'Commodity Prices'!C18) -> MHHNGSP | AR5: =IF(AO5,'Commodity Prices'!D18) -> Henry Hub Natural Gas Spot Price (MHHNGSP) | AV5: =AV4+1 -> 12 | AW5: 12 | AX5: =IF(AW5,'Yahoo Stocks'!D32) -> GOOG | AZ5: =IF(AW5,'Yahoo Stocks'!E32) -> Google | BD5: =BD4+1 -> 78 | BE5: FALSE | BF5: =IF(BE5,'Google Finance Stocks'!D29) -> FALSE | BH5: =IF(BE5,'Google Finance Stocks'!E29) -> FALSE | BL5: =BL4+1 -> 78 | BM5: 78 | BN5: ='Exchange Rates'!D15 -> Euro | BP5: =IF(BM5,'Exchange Rates'!E15) -> U.S. / Euro Foreign Exchange Rate (EXUSEU)
F6: TRUE | G6: =H3+1 -> 6 | H6: ='FRED Indicies'!Total_Index*F6+G6-1 -> 6 | I6: B | J6: FRED | L6: 4 | M6: BSESN Index | N6: BSESN Index | O6: F | P6: yahoo | Q6: 4 | R6: 4 | S6: =IF(R6,'Yahoo Index'!E58,"") -> BSESN Index | T6: =IF(R6,'Yahoo Index'!F58,"") -> BSESN Index | U6: F | V6: yahoo | X6: 9 | Y6: FALSE | Z6: =IF($F$6,'FRED Indicies'!E19) -> 0 | AB6: =IF($F$6,'FRED Indicies'!D19) -> 0 | AF6: 10 | AG6: FALSE | AH6: =IF(AG6,'Google Index'!E33) -> FALSE | AJ6: =IF(AF6,'Google Index'!F33) -> 0 | AN6: 10 | AO6: FALSE | AP6: =IF(AO6,'Commodity Prices'!C19) -> FALSE | AR6: =IF(AO6,'Commodity Prices'!D19) -> FALSE | AV6: 13 | AW6: 13 | AX6: =IF(AW6,'Yahoo Stocks'!D33) -> AMZN | AZ6: =IF(AW6,'Yahoo Stocks'!E33) -> Amazon | BD6: 79 | BE6: FALSE | BF6: =IF(BE6,'Google Finance Stocks'!D30) -> FALSE | BH6: =IF(BE6,'Google Finance Stocks'!E30) -> FALSE | BL6: 79 | BM6: 79 | BN6: ='Exchange Rates'!D16 -> INR | BP6: =IF(BM6,'Exchange Rates'!E16) -> India / U.S. Foreign Exchange Rate (DEXINUS)
L7: 5 | M7: Nasdaq 100 | N7: Nasdaq 100 | O7: F | P7: yahoo | Q7: 5 | R7: 5 | S7: =IF(R7,'Yahoo Index'!E59,"") -> Nasdaq 100 | T7: =IF(R7,'Yahoo Index'!F59,"") -> Nasdaq 100 | U7: F | V7: yahoo | X7: 10 | Y7: FALSE | Z7: =IF($F$6,'FRED Indicies'!E20) -> 0 | AB7: =IF($F$6,'FRED Indicies'!D20) -> 0 | AF7: 11 | AG7: FALSE | AH7: =IF(AG7,'Google Index'!E34) -> FALSE | AJ7: =IF(AF7,'Google Index'!F34) -> 0 | AN7: 11 | AO7: FALSE | AP7: =IF(AO7,'Commodity Prices'!C20) -> FALSE | AR7: =IF(AO7,'Commodity Prices'!D20) -> FALSE | AV7: 14 | AW7: 14 | AX7: =IF(AW7,'Yahoo Stocks'!D34) -> FB | AZ7: =IF(AW7,'Yahoo Stocks'!E34) -> Facebook | BD7: 80 | BE7: FALSE | BF7: =IF(BE7,'Google Finance Stocks'!D31) -> FALSE | BH7: =IF(BE7,'Google Finance Stocks'!E31) -> FALSE | BL7: 80 | BM7: 80 | BN7: ='Exchange Rates'!D17 -> UK | BP7: =IF(BM7,'Exchange Rates'!E17) -> U.S. / U.K. Foreign Exchange Rate (EXUSUK)
L8: 6 | M8: NASDAQ100 | N8: Nasdaq 100 Index | O8: B | P8: FRED | Q8: 6 | R8: FALSE | S8: =IF(R8,'Yahoo Index'!E60,"") ->  | T8: =IF(R8,'Yahoo Index'!F60,"") ->  | X8: 11 | Y8: FALSE | Z8: =IF($F$6,'FRED Indicies'!E21) -> 0 | AA8: NASDAQ100 | AB8: =IF($F$6,'FRED Indicies'!D21) -> 0 | AC8: Nasdaq 100 Index | AD8: B | AE8: FRED | AF8: 12 | AG8: FALSE | AH8: =IF(AG8,'Google Index'!E35) -> FALSE | AJ8: =IF(AF8,'Google Index'!F35) -> 0 | AN8: 12 | AO8: FALSE | AP8: =IF(AO8,'Commodity Prices'!C21) -> FALSE | AR8: =IF(AO8,'Commodity Prices'!D21) -> FALSE | AV8: 15 | AW8: 15 | AX8: =IF(AW8,'Yahoo Stocks'!D35) -> DTE.DE | AZ8: =IF(AW8,'Yahoo Stocks'!E35) -> Deutsche Telekom AG (ADR) | BD8: 81 | BE8: FALSE | BF8: =IF(BE8,'Google Finance Stocks'!D32) -> FALSE | BH8: =IF(BE8,'Google Finance Stocks'!E32) -> FALSE | BL8: 81 | BM8: 81 | BN8: ='Exchange Rates'!D18 -> CFH | BP8: =IF(BM8,'Exchange Rates'!E18) -> Switzerland / U.S. Foreign Exchange Rate (DEXSZUS)
F9: FALSE | G9: =H6+1 -> 7 | H9: ='Google Index'!D20*F9+G9-1 -> 6 | I9: D | J9: Google | L9: 7 | M9: DCOILBRENTEU | N9: Crude Oil Prices: Brent - Europe (DCOILBRENTEU) | O9: B | P9: FRED | Q9: 7 | R9: FALSE | S9: =IF(R9,'Yahoo Index'!E61,"") ->  | T9: =IF(R9,'Yahoo Index'!F61,"") ->  | X9: 12 | Y9: FALSE | Z9: =IF($F$6,'FRED Indicies'!E22) -> 0 | AB9: =IF($F$6,'FRED Indicies'!D22) -> 0 | AF9: 13 | AG9: FALSE | AH9: =IF(AG9,'Google Index'!E36) -> FALSE | AJ9: =IF(AF9,'Google Index'!F36) -> 0 | AN9: 13 | AO9: FALSE | AP9: =IF(AO9,'Commodity Prices'!C22) -> FALSE | AQ9: DCOILBRENTEU | AR9: =IF(AO9,'Commodity Prices'!D22) -> FALSE | AS9: Crude Oil Prices: Brent - Europe (DCOILBRENTEU) | AT9: B | AU9: FRED | AV9: 16 | AW9: 16 | AX9: =IF(AW9,'Yahoo Stocks'!D36) -> FTE | AZ9: =IF(AW9,'Yahoo Stocks'!E36) -> France Telecom SA (ADR) | BD9: 82 | BE9: FALSE | BF9: =IF(BE9,'Google Finance Stocks'!D33) -> FALSE | BH9: =IF(BE9,'Google Finance Stocks'!E33) -> FALSE | BL9: 82 | BM9: 82 | BN9: ='Exchange Rates'!D19 -> US NOM GNP | BP9: =IF(BM9,'Exchange Rates'!E19) -> Gross National Product (GNP)
A10: s | L10: 8 | M10: PCOPPUSDM | N10: Global price of Copper© (PCOPPUSDM) | O10: B | P10: FRED | Q10: 8 | R10: FALSE | S10: =IF(R10,'Yahoo Index'!E62,"") ->  | T10: =IF(R10,'Yahoo Index'!F62,"") ->  | X10: 13 | Y10: FALSE | Z10: =IF($F$6,'FRED Indicies'!E23) -> 0 | AB10: =IF($F$6,'FRED Indicies'!D23) -> 0 | AF10: 14 | AG10: FALSE | AH10: =IF(AG10,'Google Index'!E37) -> FALSE | AJ10: =IF(AF10,'Google Index'!F37) -> 0 | AN10: 14 | AO10: FALSE | AP10: =IF(AO10,'Commodity Prices'!C23) -> FALSE | AQ10: PCOPPUSDM | AR10: =IF(AO10,'Commodity Prices'!D23) -> FALSE | AS10: Global price of Copper© (PCOPPUSDM) | AT10: B | AU10: FRED | AV10: 17 | AW10: 17 | AX10: =IF(AW10,'Yahoo Stocks'!D37) -> BT | AZ10: =IF(AW10,'Yahoo Stocks'!E37) -> BT Group plc (ADR) (BT) | BD10: 83 | BE10: FALSE | BF10: =IF(BE10,'Google Finance Stocks'!D34) -> FALSE | BH10: =IF(BE10,'Google Finance Stocks'!E34) -> FALSE | BL10: 83 | BM10: 83 | BN10: ='Exchange Rates'!D20 -> India Disc Rate | BP10: =IF(BM10,'Exchange Rates'!E20) -> Interest Rates, Discount Rate for India (INTDSRINM193N)
L11: 9 | M11: MHHNGSP | N11: Henry Hub Natural Gas Spot Price (MHHNGSP) | O11: B | P11: FRED | Q11: 9 | R11: FALSE | S11: =IF(R11,'Yahoo Index'!E63,"") ->  | T11: =IF(R11,'Yahoo Index'!F63,"") ->  | X11: 14 | Y11: FALSE | Z11: =IF($F$6,'FRED Indicies'!E24) -> 0 | AB11: =IF($F$6,'FRED Indicies'!D24) -> 0 | AF11: 15 | AG11: FALSE | AH11: =IF(AG11,'Google Index'!E38) -> FALSE | AJ11: =IF(AF11,'Google Index'!F38) -> 0 | AN11: 15 | AO11: FALSE | AP11: =IF(AO11,'Commodity Prices'!C24) -> FALSE | AQ11: MHHNGSP | AR11: =IF(AO11,'Commodity Prices'!D24) -> FALSE | AS11: Henry Hub Natural Gas Spot Price (MHHNGSP) | AT11: B | AU11: FRED | AV11: 18 | AW11: 18 | AX11: =IF(AW11,'Yahoo Stocks'!D38) -> VOD | AZ11: =IF(AW11,'Yahoo Stocks'!E38) -> Vodafone Group plc | BD11: 84 | BE11: FALSE | BF11: =IF(BE11,'Google Finance Stocks'!D35) -> FALSE | BH11: =IF(BE11,'Google Finance Stocks'!E35) -> FALSE | BL11: 84 | BM11: 84 | BN11: ='Exchange Rates'!D21 -> India Gvt Bonds | BP11: =IF(BM11,'Exchange Rates'!E21) -> Interest Rates, Government Securities, Government Bonds for India (INTGSBINM193N)
F12: TRUE | G12: =H9+1 -> 7 | H12: =Total_Com*F12+G12-1 -> 9 | I12: B | J12: FRED | L12: 10 | M12: HTMEDIA.NS | N12: HT Media | O12: F | P12: Yahoo | Q12: 10 | R12: FALSE | S12: =IF(R12,'Yahoo Index'!E64,"") ->  | T12: =IF(R12,'Yahoo Index'!F64,"") ->  | X12: 15 | Y12: FALSE | Z12: =IF($F$6,'FRED Indicies'!E25) -> 0 | AB12: =IF($F$6,'FRED Indicies'!D25) -> 0 | AF12: 16 | AG12: FALSE | AH12: =IF(AG12,'Google Index'!E39) -> FALSE | AJ12: =IF(AF12,'Google Index'!F39) -> 0 | AN12: 16 | AO12: FALSE | AP12: =IF(AO12,'Commodity Prices'!C25) -> FALSE | AR12: =IF(AO12,'Commodity Prices'!D25) -> FALSE | AV12: 19 | AW12: 19 | AX12: =IF(AW12,'Yahoo Stocks'!D39) -> VZ | AY12: HTMEDIA.NS | AZ12: =IF(AW12,'Yahoo Stocks'!E39) -> Verizon Communications... | BA12: HT Media | BB12: F | BC12: Yahoo | BD12: 85 | BE12: FALSE | BF12: =IF(BE12,'Google Finance Stocks'!D36) -> FALSE | BH12: =IF(BE12,'Google Finance Stocks'!E36) -> FALSE | BL12: 85 | BM12: 85 | BN12: ='Exchange Rates'!D22 -> India 10 Yr Main | BP12: =IF(BM12,'Exchange Rates'!E22) -> Interest Rates: Long-term government bond yields: 10-year: Main including benchmark for India (INDIRLTLT01STM)
L13: 11 | M13: AAPL | N13: Apple | O13: F | P13: Yahoo | Q13: 11 | R13: FALSE | S13: =IF(R13,'Yahoo Index'!E65,"") ->  | T13: =IF(R13,'Yahoo Index'!F65,"") ->  | X13: 16 | Y13: FALSE | Z13: =IF($F$6,'FRED Indicies'!E26) -> 0 | AB13: =IF($F$6,'FRED Indicies'!D26) -> 0 | AF13: 17 | AG13: FALSE | AH13: =IF(AG13,'Google Index'!E40) -> FALSE | AJ13: =IF(AF13,'Google Index'!F40) -> 0 | AN13: 17 | AO13: FALSE | AP13: =IF(AO13,'Commodity Prices'!C26) -> FALSE | AR13: =IF(AO13,'Commodity Prices'!D26) -> FALSE | AV13: 20 | AW13: 20 | AX13: =IF(AW13,'Yahoo Stocks'!D40) -> S | AY13: AAPL | AZ13: =IF(AW13,'Yahoo Stocks'!E40) -> Sprint | BA13: Apple | BB13: F | BC13: Yahoo | BD13: 86 | BE13: FALSE | BF13: =IF(BE13,'Google Finance Stocks'!D37) -> FALSE | BH13: =IF(BE13,'Google Finance Stocks'!E37) -> FALSE | BL13: 86 | BM13: 86 | BN13: ='Exchange Rates'!D23 -> India Inflation | BP13: =IF(BM13,'Exchange Rates'!E23) -> Consumer Price Index: Total All Items for India (CPALTT01INM659N)
L14: 12 | M14: GOOG | N14: Google | O14: F | P14: Yahoo | Q14: 12 | R14: FALSE | S14: =IF(R14,'Yahoo Index'!E66,"") ->  | T14: =IF(R14,'Yahoo Index'!F66,"") ->  | X14: 17 | Y14: FALSE | Z14: =IF($F$6,'FRED Indicies'!E27) -> 0 | AB14: =IF($F$6,'FRED Indicies'!D27) -> 0 | AF14: 18 | AG14: FALSE | AH14: =IF(AG14,'Google Index'!E41) -> FALSE | AJ14: =IF(AF14,'Google Index'!F41) -> 0 | AN14: 18 | AO14: FALSE | AP14: =IF(AO14,'Commodity Prices'!C27) -> FALSE | AR14: =IF(AO14,'Commodity Prices'!D27) -> FALSE | AV14: 21 | AW14: 21 | AX14: =IF(AW14,'Yahoo Stocks'!D41) -> PHI | AY14: GOOG | AZ14: =IF(AW14,'Yahoo Stocks'!E41) -> Philippine Long Distance (PHI) | BA14: Google | BB14: F | BC14: Yahoo | BD14: 87 | BE14: FALSE | BF14: =IF(BE14,'Google Finance Stocks'!D38) -> FALSE | BH14: =IF(BE14,'Google Finance Stocks'!E38) -> FALSE | BL14: 87 | BM14: 87 | BN14: ='Exchange Rates'!D24 -> 5 yr treasury | BP14: =IF(BM14,'Exchange Rates'!E24) -> 5-Year Treasury Constant Maturity Rate (GS5)
F15: TRUE | G15: =H12+1 -> 10 | H15: =Yahoo_Stock_Tickers*F15+G15-1 -> 75 | I15: F | J15: Yahoo | L15: 13 | M15: AMZN | N15: Amazon | O15: F | P15: Yahoo | Q15: 13 | R15: FALSE | S15: =IF(R15,'Yahoo Index'!E67,"") ->  | T15: =IF(R15,'Yahoo Index'!F67,"") ->  | X15: 18 | Y15: FALSE | Z15: =IF($F$6,'FRED Indicies'!E28) -> 0 | AB15: =IF($F$6,'FRED Indicies'!D28) -> 0 | AF15: 19 | AG15: FALSE | AH15: =IF(AG15,'Google Index'!E42) -> FALSE | AJ15: =IF(AF15,'Google Index'!F42) -> 0 | AN15: 19 | AO15: FALSE | AP15: =IF(AO15,'Commodity Prices'!C28) -> FALSE | AR15: =IF(AO15,'Commodity Prices'!D28) -> FALSE | AV15: 22 | AW15: 22 | AX15: =IF(AW15,'Yahoo Stocks'!D42) -> TKC | AY15: AMZN | AZ15: =IF(AW15,'Yahoo Stocks'!E42) -> Turkcell Iletisim Hizm... | BA15: Amazon | BB15: F | BC15: Yahoo | BD15: 88 | BE15: FALSE | BF15: =IF(BE15,'Google Finance Stocks'!D39) -> FALSE | BH15: =IF(BE15,'Google Finance Stocks'!E39) -> FALSE | BL15: 88 | BM15: 88 | BN15: ='Exchange Rates'!D25 -> 10 year treasury | BP15: =IF(BM15,'Exchange Rates'!E25) -> 10-Year Treasury Constant Maturity Rate (GS10)
L16: 14 | M16: FB | N16: Facebook | O16: F | P16: Yahoo | Q16: 14 | R16: FALSE | S16: =IF(R16,'Yahoo Index'!E68,"") ->  | T16: =IF(R16,'Yahoo Index'!F68,"") ->  | X16: 19 | Y16: FALSE | Z16: =IF($F$6,'FRED Indicies'!E29) -> 0 | AB16: =IF($F$6,'FRED Indicies'!D29) -> 0 | AF16: 20 | AG16: FALSE | AH16: =IF(AG16,'Google Index'!E43) -> FALSE | AJ16: =IF(AF16,'Google Index'!F43) -> 0 | AN16: 20 | AO16: FALSE | AP16: =IF(AO16,'Commodity Prices'!C29) -> FALSE | AR16: =IF(AO16,'Commodity Prices'!D29) -> FALSE | AV16: 23 | AW16: 23 | AX16: =IF(AW16,'Yahoo Stocks'!D43) -> JPM | AY16: FB | AZ16: =IF(AW16,'Yahoo Stocks'!E43) -> JP Morgan | BA16: Facebook | BB16: F | BC16: Yahoo | BD16: 89 | BE16: FALSE | BF16: =IF(BE16,'Google Finance Stocks'!D40) -> FALSE | BH16: =IF(BE16,'Google Finance Stocks'!E40) -> FALSE | BL16: 89 | BM16: 89 | BN16: ='Exchange Rates'!D26 -> US Med Inc Nom | BP16: =IF(BM16,'Exchange Rates'!E26) -> Median Household Income in the United States (MEHOINUSA646N)
L17: 15 | M17: DTE.DE | N17: Deutsche Telekom AG (ADR) | O17: F | P17: Yahoo | Q17: 15 | R17: FALSE | S17: =IF(R17,'Yahoo Index'!E69,"") ->  | T17: =IF(R17,'Yahoo Index'!F69,"") ->  | X17: 20 | Y17: FALSE | Z17: =IF($F$6,'FRED Indicies'!E30) -> 0 | AB17: =IF($F$6,'FRED Indicies'!D30) -> 0 | AF17: 21 | AG17: FALSE | AH17: =IF(AG17,'Google Index'!E44) -> FALSE | AJ17: =IF(AF17,'Google Index'!F44) -> 0 | AN17: 21 | AO17: FALSE | AP17: =IF(AO17,'Commodity Prices'!C30) -> FALSE | AR17: =IF(AO17,'Commodity Prices'!D30) -> FALSE | AV17: 24 | AW17: 24 | AX17: =IF(AW17,'Yahoo Stocks'!D44) -> MCD | AY17: DTE.DE | AZ17: =IF(AW17,'Yahoo Stocks'!E44) -> McDonalds | BA17: Deutsche Telekom AG (ADR) | BB17: F | BC17: Yahoo | BD17: 90 | BE17: FALSE | BF17: =IF(BE17,'Google Finance Stocks'!D41) -> FALSE | BH17: =IF(BE17,'Google Finance Stocks'!E41) -> FALSE | BL17: 90 | BM17: 90 | BN17: ='Exchange Rates'!D27 -> Median Income | BP17: =IF(BM17,'Exchange Rates'!E27) -> Employed full time: Median usual weekly real earnings: d over (LES1252881600Q)
F18: FALSE | G18: =H15+1 -> 76 | H18: =Google_Tickers*F18+G18-1 -> 75 | I18: D | J18: Google | L18: 16 | M18: FTE | N18: France Telecom SA (ADR) | O18: F | P18: Yahoo | Q18: 16 | R18: FALSE | S18: =IF(R18,'Yahoo Index'!E70,"") ->  | T18: =IF(R18,'Yahoo Index'!F70,"") ->  | X18: 21 | Y18: FALSE | Z18: =IF($F$6,'FRED Indicies'!E31) -> 0 | AB18: =IF($F$6,'FRED Indicies'!D31) -> 0 | AF18: 22 | AG18: FALSE | AH18: =IF(AG18,'Google Index'!E45) -> FALSE | AJ18: =IF(AF18,'Google Index'!F45) -> 0 | AN18: 22 | AO18: FALSE | AP18: =IF(AO18,'Commodity Prices'!C31) -> FALSE | AR18: =IF(AO18,'Commodity Prices'!D31) -> FALSE | AV18: 25 | AW18: 25 | AX18: =IF(AW18,'Yahoo Stocks'!D45) -> WMT | AY18: FTE | AZ18: =IF(AW18,'Yahoo Stocks'!E45) -> Wall Mart | BA18: France Telecom SA (ADR) | BB18: F | BC18: Yahoo | BD18: 91 | BE18: FALSE | BF18: =IF(BE18,'Google Finance Stocks'!D42) -> FALSE | BH18: =IF(BE18,'Google Finance Stocks'!E42) -> FALSE | BL18: 91 | BM18: 91 | BN18: ='Exchange Rates'!D28 -> Corp Profit | BP18: =IF(BM18,'Exchange Rates'!E28) -> Corporate Profits
L19: 17 | M19: BT | N19: BT Group plc (ADR) (BT) | O19: F | P19: Yahoo | Q19: 17 | R19: FALSE | S19: =IF(R19,'Yahoo Index'!E71,"") ->  | T19: =IF(R19,'Yahoo Index'!F71,"") ->  | X19: 22 | Y19: FALSE | Z19: =IF($F$6,'FRED Indicies'!E32) -> 0 | AB19: =IF($F$6,'FRED Indicies'!D32) -> 0 | AF19: 23 | AG19: FALSE | AH19: =IF(AG19,'Google Index'!E46) -> FALSE | AJ19: =IF(AF19,'Google Index'!F46) -> 0 | AN19: 23 | AO19: FALSE | AP19: =IF(AO19,'Commodity Prices'!C32) -> FALSE | AR19: =IF(AO19,'Commodity Prices'!D32) -> FALSE | AV19: 26 | AW19: 26 | AX19: =IF(AW19,'Yahoo Stocks'!D46) -> NG.L | AY19: BT | AZ19: =IF(AW19,'Yahoo Stocks'!E46) -> National Grid | BA19: BT Group plc (ADR) (BT) | BB19: F | BC19: Yahoo | BD19: 92 | BE19: FALSE | BF19: =IF(BE19,'Google Finance Stocks'!D43) -> FALSE | BH19: =IF(BE19,'Google Finance Stocks'!E43) -> FALSE | BL19: 92 | BM19: 92 | BN19: ='Exchange Rates'!D29 -> Corp Nonfin | BP19: =IF(BM19,'Exchange Rates'!E29) -> Non Financial Corporate Profits
L20: 18 | M20: VOD | N20: Vodafone Group plc | O20: F | P20: Yahoo | Q20: 18 | R20: FALSE | S20: =IF(R20,'Yahoo Index'!E72,"") ->  | T20: =IF(R20,'Yahoo Index'!F72,"") ->  | X20: 23 | Y20: FALSE | Z20: =IF($F$6,'FRED Indicies'!E33) -> 0 | AB20: =IF($F$6,'FRED Indicies'!D33) -> 0 | AF20: 24 | AG20: FALSE | AH20: =IF(AG20,'Google Index'!E47) -> FALSE | AJ20: =IF(AF20,'Google Index'!F47) -> 0 | AN20: 24 | AO20: FALSE | AP20: =IF(AO20,'Commodity Prices'!C33) -> FALSE | AR20: =IF(AO20,'Commodity Prices'!D33) -> FALSE | AV20: 27 | AW20: 27 | AX20: =IF(AW20,'Yahoo Stocks'!D47) -> EXC | AY20: VOD | AZ20: =IF(AW20,'Yahoo Stocks'!E47) -> Exelon | BA20: Vodafone Group plc | BB20: F | BC20: Yahoo | BD20: 93 | BE20: FALSE | BF20: =IF(BE20,'Google Finance Stocks'!D44) -> FALSE | BH20: =IF(BE20,'Google Finance Stocks'!E44) -> FALSE | BL20: 93 | BM20: 93 | BN20: ='Exchange Rates'!D30 -> Corp Aft Tax | BP20: =IF(BM20,'Exchange Rates'!E30) -> Corporate Profits After Tax
F21: TRUE | G21: =H18+1 -> 76 | H21: ='Exchange Rates'!D5*'Read Stocks'!F21+G21-1 -> 98 | I21: B | J21: FRED | L21: 19 | M21: VZ | N21: Verizon Communications... | O21: F | P21: Yahoo | Q21: 19 | R21: FALSE | S21: =IF(R21,'Yahoo Index'!E73,"") ->  | T21: =IF(R21,'Yahoo Index'!F73,"") ->  | X21: 24 | Y21: FALSE | Z21: =IF($F$6,'FRED Indicies'!E34) -> 0 | AB21: =IF($F$6,'FRED Indicies'!D34) -> 0 | AF21: 25 | AG21: FALSE | AH21: =IF(AG21,'Google Index'!E48) -> FALSE | AJ21: =IF(AF21,'Google Index'!F48) -> 0 | AN21: 25 | AO21: FALSE | AP21: =IF(AO21,'Commodity Prices'!C34) -> FALSE | AR21: =IF(AO21,'Commodity Prices'!D34) -> FALSE | AV21: 28 | AW21: 28 | AX21: =IF(AW21,'Yahoo Stocks'!D48) -> ENGI.PA | AY21: VZ | AZ21: =IF(AW21,'Yahoo Stocks'!E48) -> GDF Suez | BA21: Verizon Communications... | BB21: F | BC21: Yahoo | BD21: 94 | BE21: FALSE | BF21: =IF(BE21,'Google Finance Stocks'!D45) -> FALSE | BH21: =IF(BE21,'Google Finance Stocks'!E45) -> FALSE | BL21: 94 | BM21: 94 | BN21: ='Exchange Rates'!D31 -> Corp Inf Adjusted | BP21: =IF(BM21,'Exchange Rates'!E31) -> Corporate Profits with Inflation Adj
L22: 20 | M22: S | N22: Sprint | O22: F | P22: Yahoo | Q22: 20 | R22: FALSE | S22: =IF(R22,'Yahoo Index'!E74,"") ->  | T22: =IF(R22,'Yahoo Index'!F74,"") ->  | X22: 25 | Y22: FALSE | Z22: =IF($F$6,'FRED Indicies'!E35) -> 0 | AB22: =IF($F$6,'FRED Indicies'!D35) -> 0 | AF22: 26 | AG22: FALSE | AH22: =IF(AG22,'Google Index'!E49) -> FALSE | AJ22: =IF(AF22,'Google Index'!F49) -> 0 | AN22: 26 | AO22: FALSE | AP22: =IF(AO22,'Commodity Prices'!C35) -> FALSE | AR22: =IF(AO22,'Commodity Prices'!D35) -> FALSE | AV22: 29 | AW22: 29 | AX22: =IF(AW22,'Yahoo Stocks'!D49) -> EDF.PA | AY22: S | AZ22: =IF(AW22,'Yahoo Stocks'!E49) -> EDF | BA22: Sprint | BB22: F | BC22: Yahoo | BD22: 95 | BE22: FALSE | BF22: =IF(BE22,'Google Finance Stocks'!D46) -> FALSE | BH22: =IF(BE22,'Google Finance Stocks'!E46) -> FALSE | BL22: 95 | BM22: 95 | BN22: ='Exchange Rates'!D32 -> GDP Inflation Index | BP22: =IF(BM22,'Exchange Rates'!E32) -> GDP Inflation Index
L23: 21 | M23: PHI | N23: Philippine Long Distance (PHI) | O23: F | P23: Yahoo | Q23: 21 | R23: FALSE | S23: =IF(R23,'Yahoo Index'!E75,"") ->  | T23: =IF(R23,'Yahoo Index'!F75,"") ->  | X23: 26 | Y23: FALSE | Z23: =IF($F$6,'FRED Indicies'!E36) -> 0 | AB23: =IF($F$6,'FRED Indicies'!D36) -> 0 | AF23: 27 | AG23: FALSE | AH23: =IF(AG23,'Google Index'!E50) -> FALSE | AJ23: =IF(AF23,'Google Index'!F50) -> 0 | AN23: 27 | AO23: FALSE | AP23: =IF(AO23,'Commodity Prices'!C36) -> FALSE | AR23: =IF(AO23,'Commodity Prices'!D36) -> FALSE | AV23: 30 | AW23: 30 | AX23: =IF(AW23,'Yahoo Stocks'!D50) -> ED | AY23: PHI | AZ23: =IF(AW23,'Yahoo Stocks'!E50) -> Consolidated Edison | BA23: Philippine Long Distance (PHI) | BB23: F | BC23: Yahoo | BD23: 96 | BE23: FALSE | BF23: =IF(BE23,'Google Finance Stocks'!D47) -> FALSE | BH23: =IF(BE23,'Google Finance Stocks'!E47) -> FALSE | BL23: 96 | BM23: 96 | BN23: ='Exchange Rates'!D33 -> CPI US Index | BP23: =IF(BM23,'Exchange Rates'!E33) -> CPI US Index
L24: 22 | M24: TKC | N24: Turkcell Iletisim Hizm... | O24: F | P24: Yahoo | Q24: 22 | R24: FALSE | S24: =IF(R24,'Yahoo Index'!E76,"") ->  | T24: =IF(R24,'Yahoo Index'!F76,"") ->  | X24: 27 | Y24: FALSE | Z24: =IF($F$6,'FRED Indicies'!E37) -> 0 | AB24: =IF($F$6,'FRED Indicies'!D37) -> 0 | AF24: 28 | AG24: FALSE | AH24: =IF(AG24,'Google Index'!E51) -> FALSE | AJ24: =IF(AF24,'Google Index'!F51) -> 0 | AN24: 28 | AO24: FALSE | AP24: =IF(AO24,'Commodity Prices'!C37) -> FALSE | AR24: =IF(AO24,'Commodity Prices'!D37) -> FALSE | AV24: 31 | AW24: 31 | AX24: =IF(AW24,'Yahoo Stocks'!D51) -> 5347.KL | AY24: TKC | AZ24: =IF(AW24,'Yahoo Stocks'!E51) -> Tenaga | BA24: Turkcell Iletisim Hizm... | BB24: F | BC24: Yahoo | BD24: 97 | BE24: FALSE | BF24: =IF(BE24,'Google Finance Stocks'!D48) -> FALSE | BH24: =IF(BE24,'Google Finance Stocks'!E48) -> FALSE | BL24: 97 | BM24: 97 | BN24: ='Exchange Rates'!D34 -> US GDP | BP24: =IF(BM24,'Exchange Rates'!E34) -> Gross Domestic Product (GDP)
L25: 23 | M25: JPM | N25: JP Morgan | O25: F | P25: Yahoo | Q25: 23 | R25: FALSE | S25: =IF(R25,'Yahoo Index'!E77,"") ->  | T25: =IF(R25,'Yahoo Index'!F77,"") ->  | X25: 28 | Y25: FALSE | Z25: =IF($F$6,'FRED Indicies'!E38) -> 0 | AB25: =IF($F$6,'FRED Indicies'!D38) -> 0 | AF25: 29 | AG25: FALSE | AH25: =IF(AG25,'Google Index'!E52) -> FALSE | AJ25: =IF(AF25,'Google Index'!F52) -> 0 | AN25: 29 | AO25: FALSE | AP25: =IF(AO25,'Commodity Prices'!C38) -> FALSE | AR25: =IF(AO25,'Commodity Prices'!D38) -> FALSE | AV25: 32 | AW25: 32 | AX25: =IF(AW25,'Yahoo Stocks'!D52) -> MAEOY | AY25: JPM | AZ25: =IF(AW25,'Yahoo Stocks'!E52) -> Meralco | BA25: JP Morgan | BB25: F | BC25: Yahoo | BD25: 98 | BE25: FALSE | BF25: =IF(BE25,'Google Finance Stocks'!D49) -> FALSE | BH25: =IF(BE25,'Google Finance Stocks'!E49) -> FALSE | BL25: 98 | BM25: 98 | BN25: ='Exchange Rates'!D35 -> Median Family Income | BP25: =IF(BM25,'Exchange Rates'!E35) -> Median Family Income in the United States (MEFAINUSA646N)
L26: 24 | M26: MCD | N26: McDonalds | O26: F | P26: Yahoo | Q26: 24 | R26: FALSE | S26: =IF(R26,'Yahoo Index'!E78,"") ->  | T26: =IF(R26,'Yahoo Index'!F78,"") ->  | X26: 29 | Y26: FALSE | Z26: =IF($F$6,'FRED Indicies'!E39) -> 0 | AB26: =IF($F$6,'FRED Indicies'!D39) -> 0 | AF26: 30 | AG26: FALSE | AH26: =IF(AG26,'Google Index'!E53) -> FALSE | AJ26: =IF(AF26,'Google Index'!F53) -> 0 | AN26: 30 | AO26: FALSE | AP26: =IF(AO26,'Commodity Prices'!C39) -> FALSE | AR26: =IF(AO26,'Commodity Prices'!D39) -> FALSE | AV26: 33 | AW26: 33 | AX26: =IF(AW26,'Yahoo Stocks'!D53) -> VWDRY | AY26: MCD | AZ26: =IF(AW26,'Yahoo Stocks'!E53) -> Vestas ADR | BA26: McDonalds | BB26: F | BC26: Yahoo | BD26: 99 | BE26: FALSE | BF26: =IF(BE26,'Google Finance Stocks'!D50) -> FALSE | BH26: =IF(BE26,'Google Finance Stocks'!E50) -> FALSE | BL26: 99 | BM26: FALSE | BN26: ='Exchange Rates'!D36 -> 0 | BP26: =IF(BM26,'Exchange Rates'!E36) -> FALSE
L27: 25 | M27: WMT | N27: Wall Mart | O27: F | P27: Yahoo | Q27: 25 | R27: FALSE | S27: =IF(R27,'Yahoo Index'!E79,"") ->  | T27: =IF(R27,'Yahoo Index'!F79,"") ->  | X27: 30 | Y27: FALSE | Z27: =IF($F$6,'FRED Indicies'!E40) -> 0 | AB27: =IF($F$6,'FRED Indicies'!D40) -> 0 | AF27: 31 | AG27: FALSE | AH27: =IF(AG27,'Google Index'!E54) -> FALSE | AJ27: =IF(AF27,'Google Index'!F54) -> 0 | AN27: 31 | AO27: FALSE | AP27: =IF(AO27,'Commodity Prices'!C40) -> FALSE | AR27: =IF(AO27,'Commodity Prices'!D40) -> FALSE | AV27: 34 | AW27: =IF(AND($F$15,AV27<=$H$15),AV27) -> 34 | AX27: =IF(AW27,'Yahoo Stocks'!D54) -> VWS.CO | AY27: =IFERROR(INDEX(AX:AX,MATCH(L27,AW:AW,0)),"") -> WMT | AZ27: =IF(AW27,'Yahoo Stocks'!E54) -> Vestas (Denmark) | BA27: =IFERROR(INDEX(AZ:AZ,MATCH(L27,AW:AW,0)),"") -> Wall Mart | BB27: =IF(AY27<>"",$I$15,"") -> F | BC27: Yahoo | BD27: 100 | BE27: FALSE | BF27: =IF(BE27,'Google Finance Stocks'!D51) -> FALSE | BH27: =IF(BE27,'Google Finance Stocks'!E51) -> FALSE | BL27: 100 | BM27: FALSE | BN27: ='Exchange Rates'!D37 -> 0 | BP27: =IF(BM27,'Exchange Rates'!E37) -> FALSE
L28: 26 | M28: NG.L | N28: National Grid | O28: F | P28: Yahoo | Q28: 26 | R28: FALSE | S28: =IF(R28,'Yahoo Index'!E80,"") ->  | T28: =IF(R28,'Yahoo Index'!F80,"") ->  | X28: 31 | Y28: FALSE | Z28: =IF($F$6,'FRED Indicies'!E41) -> 0 | AB28: =IF($F$6,'FRED Indicies'!D41) -> 0 | AF28: 32 | AG28: FALSE | AH28: =IF(AG28,'Google Index'!E55) -> FALSE | AJ28: =IF(AF28,'Google Index'!F55) -> 0 | AN28: 32 | AO28: FALSE | AP28: =IF(AO28,'Commodity Prices'!C41) -> FALSE | AR28: =IF(AO28,'Commodity Prices'!D41) -> FALSE | AV28: 35 | AW28: 35 | AX28: =IF(AW28,'Yahoo Stocks'!D55) -> GE | AY28: NG.L | AZ28: =IF(AW28,'Yahoo Stocks'!E55) -> General Electric | BA28: National Grid | BB28: F | BC28: Yahoo | BD28: 101 | BE28: FALSE | BF28: =IF(BE28,'Google Finance Stocks'!D52) -> FALSE | BH28: =IF(BE28,'Google Finance Stocks'!E52) -> FALSE | BL28: 101 | BM28: FALSE | BN28: ='Exchange Rates'!D38 -> 0 | BP28: =IF(BM28,'Exchange Rates'!E38) -> FALSE
L29: 27 | M29: EXC | N29: Exelon | O29: F | P29: Yahoo | Q29: 27 | R29: FALSE | S29: =IF(R29,'Yahoo Index'!E81,"") ->  | T29: =IF(R29,'Yahoo Index'!F81,"") ->  | X29: 32 | Y29: FALSE | Z29: =IF($F$6,'FRED Indicies'!E42) -> 0 | AB29: =IF($F$6,'FRED Indicies'!D42) -> 0 | AF29: 33 | AG29: FALSE | AH29: =IF(AG29,'Google Index'!E56) -> FALSE | AJ29: =IF(AF29,'Google Index'!F56) -> 0 | AN29: 33 | AO29: FALSE | AP29: =IF(AO29,'Commodity Prices'!C42) -> FALSE | AR29: =IF(AO29,'Commodity Prices'!D42) -> FALSE | AV29: 36 | AW29: 36 | AX29: =IF(AW29,'Yahoo Stocks'!D56) -> NDX1.DE | AY29: EXC | AZ29: =IF(AW29,'Yahoo Stocks'!E56) -> Nordex Wind SE: German On-Shore Wind | BA29: Exelon | BB29: F | BC29: Yahoo | BD29: 102 | BE29: FALSE | BF29: =IF(BE29,'Google Finance Stocks'!D53) -> FALSE | BH29: =IF(BE29,'Google Finance Stocks'!E53) -> FALSE | BL29: 102 | BM29: FALSE | BN29: ='Exchange Rates'!D39 -> 0 | BP29: =IF(BM29,'Exchange Rates'!E39) -> FALSE
L30: 28 | M30: ENGI.PA | N30: GDF Suez | O30: F | P30: Yahoo | Q30: 28 | R30: FALSE | S30: =IF(R30,'Yahoo Index'!E82,"") ->  | T30: =IF(R30,'Yahoo Index'!F82,"") ->  | X30: 33 | Y30: FALSE | Z30: =IF($F$6,'FRED Indicies'!E43) -> 0 | AB30: =IF($F$6,'FRED Indicies'!D43) -> 0 | AF30: 34 | AG30: FALSE | AH30: =IF(AG30,'Google Index'!E57) -> FALSE | AJ30: =IF(AF30,'Google Index'!F57) -> 0 | AN30: 34 | AO30: FALSE | AP30: =IF(AO30,'Commodity Prices'!C43) -> FALSE | AR30: =IF(AO30,'Commodity Prices'!D43) -> FALSE | AV30: 37 | AW30: 37 | AX30: =IF(AW30,'Yahoo Stocks'!D57) -> 601558.SS | AY30: ENGI.PA | AZ30: =IF(AW30,'Yahoo Stocks'!E57) -> Sinovel Wind: Chinese Wind Manufactrer | BA30: GDF Suez | BB30: F | BC30: Yahoo | BD30: 103 | BE30: FALSE | BF30: =IF(BE30,'Google Finance Stocks'!D54) -> FALSE | BH30: =IF(BE30,'Google Finance Stocks'!E54) -> FALSE | BL30: 103 | BM30: FALSE | BN30: ='Exchange Rates'!D40 -> 0 | BP30: =IF(BM30,'Exchange Rates'!E40) -> FALSE
L31: 29 | M31: EDF.PA | N31: EDF | O31: F | P31: Yahoo | Q31: 29 | R31: FALSE | S31: =IF(R31,'Yahoo Index'!E83,"") ->  | T31: =IF(R31,'Yahoo Index'!F83,"") ->  | X31: 34 | Y31: FALSE | Z31: =IF($F$6,'FRED Indicies'!E44) -> 0 | AB31: =IF($F$6,'FRED Indicies'!D44) -> 0 | AF31: 35 | AG31: FALSE | AH31: =IF(AG31,'Google Index'!E58) -> FALSE | AJ31: =IF(AF31,'Google Index'!F58) -> 0 | AN31: 35 | AO31: FALSE | AP31: =IF(AO31,'Commodity Prices'!C44) -> FALSE | AR31: =IF(AO31,'Commodity Prices'!D44) -> FALSE | AV31: 38 | AW31: 38 | AX31: =IF(AW31,'Yahoo Stocks'!D58) -> SUZLON.NS | AY31: EDF.PA | AZ31: =IF(AW31,'Yahoo Stocks'!E58) -> Suzlon: Indian Wind Manufacturer | BA31: EDF | BB31: F | BC31: Yahoo | BD31: 104 | BE31: FALSE | BF31: =IF(BE31,'Google Finance Stocks'!D55) -> FALSE | BH31: =IF(BE31,'Google Finance Stocks'!E55) -> FALSE | BL31: 104 | BM31: FALSE | BN31: ='Exchange Rates'!D41 -> 0 | BP31: =IF(BM31,'Exchange Rates'!E41) -> FALSE
L32: 30 | M32: ED | N32: Consolidated Edison | O32: F | P32: Yahoo | Q32: 30 | R32: FALSE | S32: =IF(R32,'Yahoo Index'!E84,"") ->  | T32: =IF(R32,'Yahoo Index'!F84,"") ->  | X32: 35 | Y32: FALSE | Z32: =IF($F$6,'FRED Indicies'!E45) -> 0 | AB32: =IF($F$6,'FRED Indicies'!D45) -> 0 | AF32: 36 | AG32: FALSE | AH32: =IF(AG32,'Google Index'!E59) -> FALSE | AJ32: =IF(AF32,'Google Index'!F59) -> 0 | AN32: 36 | AO32: FALSE | AP32: =IF(AO32,'Commodity Prices'!C45) -> FALSE | AR32: =IF(AO32,'Commodity Prices'!D45) -> FALSE | AV32: 39 | AW32: 39 | AX32: =IF(AW32,'Yahoo Stocks'!D59) -> 002202.SZ | AY32: ED | AZ32: =IF(AW32,'Yahoo Stocks'!E59) -> Goldwind: Chinese Wind Manufacturer | BA32: Consolidated Edison | BB32: F | BC32: Yahoo | BD32: 105 | BE32: FALSE | BF32: =IF(BE32,'Google Finance Stocks'!D56) -> FALSE | BH32: =IF(BE32,'Google Finance Stocks'!E56) -> FALSE | BL32: 105 | BM32: FALSE | BN32: ='Exchange Rates'!D42 -> 0 | BP32: =IF(BM32,'Exchange Rates'!E42) -> FALSE
L33: 31 | M33: 5347.KL | N33: Tenaga | O33: F | P33: Yahoo | Q33: 31 | R33: FALSE | S33: =IF(R33,'Yahoo Index'!E85,"") ->  | T33: =IF(R33,'Yahoo Index'!F85,"") ->  | X33: 36 | Y33: FALSE | Z33: =IF($F$6,'FRED Indicies'!E46) -> 0 | AB33: =IF($F$6,'FRED Indicies'!D46) -> 0 | AF33: 37 | AG33: FALSE | AH33: =IF(AG33,'Google Index'!E60) -> FALSE | AJ33: =IF(AF33,'Google Index'!F60) -> 0 | AN33: 37 | AO33: FALSE | AP33: =IF(AO33,'Commodity Prices'!C46) -> FALSE | AR33: =IF(AO33,'Commodity Prices'!D46) -> FALSE | AV33: 40 | AW33: 40 | AX33: =IF(AW33,'Yahoo Stocks'!D60) -> LB | AY33: 5347.KL | AZ33: =IF(AW33,'Yahoo Stocks'!E60) -> Victoria Secret | BA33: Tenaga | BB33: F | BC33: Yahoo | BD33: 106 | BE33: FALSE | BF33: =IF(BE33,'Google Finance Stocks'!D57) -> FALSE | BH33: =IF(BE33,'Google Finance Stocks'!E57) -> FALSE | BL33: 106 | BM33: FALSE | BN33: ='Exchange Rates'!D43 -> 0 | BP33: =IF(BM33,'Exchange Rates'!E43) -> FALSE
L34: 32 | M34: MAEOY | N34: Meralco | O34: F | P34: Yahoo | Q34: 32 | R34: FALSE | S34: =IF(R34,'Yahoo Index'!E86,"") ->  | T34: =IF(R34,'Yahoo Index'!F86,"") ->  | X34: 37 | Y34: FALSE | Z34: =IF($F$6,'FRED Indicies'!E47) -> 0 | AB34: =IF($F$6,'FRED Indicies'!D47) -> 0 | AF34: 38 | AG34: FALSE | AH34: =IF(AG34,'Google Index'!E61) -> FALSE | AJ34: =IF(AF34,'Google Index'!F61) -> 0 | AN34: 38 | AO34: FALSE | AP34: =IF(AO34,'Commodity Prices'!C47) -> FALSE | AR34: =IF(AO34,'Commodity Prices'!D47) -> FALSE | AV34: 41 | AW34: 41 | AX34: =IF(AW34,'Yahoo Stocks'!D61) -> MY | AY34: MAEOY | AZ34: =IF(AW34,'Yahoo Stocks'!E61) -> Ming Yang: Chinese Wind Manufacturer | BA34: Meralco | BB34: F | BC34: Yahoo | BD34: 107 | BE34: FALSE | BF34: =IF(BE34,'Google Finance Stocks'!D58) -> FALSE | BH34: =IF(BE34,'Google Finance Stocks'!E58) -> FALSE | BL34: 107 | BM34: FALSE | BN34: ='Exchange Rates'!D44 -> 0 | BP34: =IF(BM34,'Exchange Rates'!E44) -> FALSE
L35: 33 | M35: VWDRY | N35: Vestas ADR | O35: F | P35: Yahoo | Q35: 33 | R35: FALSE | S35: =IF(R35,'Yahoo Index'!E87,"") ->  | T35: =IF(R35,'Yahoo Index'!F87,"") ->  | X35: 38 | Y35: =IF(AND($F$6,X35<=$H$6),X35) -> FALSE | Z35: =IF($F$6,'FRED Indicies'!E48) -> 0 | AA35: =IFERROR(INDEX(Z:Z,MATCH(L35,Y:Y,0)),"") ->  | AB35: =IF($F$6,'FRED Indicies'!D48) -> 0 | AC35: =IFERROR(INDEX(AB:AB,MATCH(L35,Y:Y,0)),"") ->  | AF35: 39 | AG35: FALSE | AH35: =IF(AG35,'Google Index'!E62) -> FALSE | AI35: =IFERROR(INDEX(AH:AH,MATCH(Q35,AG:AG,0)),"") ->  | AJ35: =IF(AF35,'Google Index'!F62) -> 0 | AK35: =IFERROR(INDEX(AJ:AJ,MATCH(Q35,AG:AG,0)),"") ->  | AN35: 39 | AO35: FALSE | AP35: =IF(AO35,'Commodity Prices'!C48) -> FALSE | AQ35: =IFERROR(INDEX(AP:AP,MATCH(L35,AO:AO,0)),"") ->  | AR35: =IF(AO35,'Commodity Prices'!D48) -> FALSE | AS35: =IFERROR(INDEX(AR:AR,MATCH(L35,AO:AO,0)),"") ->  | AV35: 42 | AW35: 42 | AX35: =IF(AW35,'Yahoo Stocks'!D62) -> FSLR | AY35: VWDRY | AZ35: =IF(AW35,'Yahoo Stocks'!E62) -> First Solar (U.S.) | BA35: Vestas ADR | BB35: F | BC35: Yahoo | BD35: 108 | BE35: FALSE | BF35: =IF(BE35,'Google Finance Stocks'!D59) -> FALSE | BH35: =IF(BE35,'Google Finance Stocks'!E59) -> FALSE | BL35: 108 | BM35: FALSE | BN35: ='Exchange Rates'!D45 -> 0 | BP35: =IF(BM35,'Exchange Rates'!E45) -> FALSE
L36: 34 | M36: VWS.CO | N36: Vestas (Denmark) | O36: F | P36: Yahoo | Q36: 34 | R36: FALSE | S36: =IF(R36,'Yahoo Index'!E88,"") ->  | T36: =IF(R36,'Yahoo Index'!F88,"") ->  | X36: 39 | Y36: FALSE | Z36: =IF($F$6,'FRED Indicies'!E49) -> 0 | AB36: =IF($F$6,'FRED Indicies'!D49) -> 0 | AF36: 40 | AG36: FALSE | AH36: =IF(AG36,'Google Index'!E63) -> FALSE | AJ36: =IF(AF36,'Google Index'!F63) -> 0 | AN36: 40 | AO36: FALSE | AP36: =IF(AO36,'Commodity Prices'!C49) -> FALSE | AR36: =IF(AO36,'Commodity Prices'!D49) -> FALSE | AV36: 43 | AW36: 43 | AX36: =IF(AW36,'Yahoo Stocks'!D63) -> RECSOL.OL | AY36: VWS.CO | AZ36: =IF(AW36,'Yahoo Stocks'!E63) -> REC: Solar Manufacturer Norway | BA36: Vestas (Denmark) | BB36: F | BC36: Yahoo | BD36: 109 | BE36: FALSE | BF36: =IF(BE36,'Google Finance Stocks'!D60) -> FALSE | BH36: =IF(BE36,'Google Finance Stocks'!E60) -> FALSE | BL36: 109 | BM36: FALSE | BN36: ='Exchange Rates'!D46 -> 0 | BP36: =IF(BM36,'Exchange Rates'!E46) -> FALSE
L37: 35 | M37: GE | N37: General Electric | O37: F | P37: Yahoo | Q37: 35 | R37: FALSE | S37: =IF(R37,'Yahoo Index'!E89,"") ->  | T37: =IF(R37,'Yahoo Index'!F89,"") ->  | X37: 40 | Y37: FALSE | Z37: =IF($F$6,'FRED Indicies'!E50) -> 0 | AB37: =IF($F$6,'FRED Indicies'!D50) -> 0 | AF37: 41 | AG37: FALSE | AH37: =IF(AG37,'Google Index'!E64) -> FALSE | AJ37: =IF(AF37,'Google Index'!F64) -> 0 | AN37: 41 | AO37: FALSE | AP37: =IF(AO37,'Commodity Prices'!C50) -> FALSE | AR37: =IF(AO37,'Commodity Prices'!D50) -> FALSE | AV37: 44 | AW37: 44 | AX37: =IF(AW37,'Yahoo Stocks'!D64) -> SPWR | AY37: GE | AZ37: =IF(AW37,'Yahoo Stocks'!E64) -> SunPower Corporation (U.S.) | BA37: General Electric | BB37: F | BC37: Yahoo | BD37: 110 | BE37: FALSE | BF37: =IF(BE37,'Google Finance Stocks'!D61) -> FALSE | BH37: =IF(BE37,'Google Finance Stocks'!E61) -> FALSE | BL37: 110 | BM37: FALSE | BN37: ='Exchange Rates'!D47 -> 0 | BP37: =IF(BM37,'Exchange Rates'!E47) -> FALSE
L38: 36 | M38: NDX1.DE | N38: Nordex Wind SE: German On-Shore Wind | O38: F | P38: Yahoo | Q38: 36 | R38: FALSE | S38: =IF(R38,'Yahoo Index'!E90,"") ->  | T38: =IF(R38,'Yahoo Index'!F90,"") ->  | X38: 41 | Y38: FALSE | Z38: =IF($F$6,'FRED Indicies'!E51) -> 0 | AB38: =IF($F$6,'FRED Indicies'!D51) -> 0 | AF38: 42 | AG38: FALSE | AH38: =IF(AG38,'Google Index'!E65) -> FALSE | AJ38: =IF(AF38,'Google Index'!F65) -> 0 | AN38: 42 | AO38: FALSE | AP38: =IF(AO38,'Commodity Prices'!C51) -> FALSE | AR38: =IF(AO38,'Commodity Prices'!D51) -> FALSE | AV38: 45 | AW38: 45 | AX38: =IF(AW38,'Yahoo Stocks'!D65) -> TSL | AY38: NDX1.DE | AZ38: =IF(AW38,'Yahoo Stocks'!E65) -> Trina Solar Limited (China) | BA38: Nordex Wind SE: German On-Shore Wind | BB38: F | BC38: Yahoo | BD38: 111 | BE38: FALSE | BF38: =IF(BE38,'Google Finance Stocks'!D62) -> FALSE | BH38: =IF(BE38,'Google Finance Stocks'!E62) -> FALSE | BL38: 111 | BM38: FALSE | BN38: ='Exchange Rates'!D48 -> 0 | BP38: =IF(BM38,'Exchange Rates'!E48) -> FALSE
L39: 37 | M39: 601558.SS | N39: Sinovel Wind: Chinese Wind Manufactrer | O39: F | P39: Yahoo | Q39: 37 | R39: FALSE | S39: =IF(R39,'Yahoo Index'!E91,"") ->  | T39: =IF(R39,'Yahoo Index'!F91,"") ->  | X39: 42 | Y39: FALSE | Z39: =IF($F$6,'FRED Indicies'!E52) -> 0 | AB39: =IF($F$6,'FRED Indicies'!D52) -> 0 | AF39: 43 | AG39: FALSE | AH39: =IF(AG39,'Google Index'!E66) -> FALSE | AJ39: =IF(AF39,'Google Index'!F66) -> 0 | AN39: 43 | AO39: FALSE | AP39: =IF(AO39,'Commodity Prices'!C52) -> FALSE | AR39: =IF(AO39,'Commodity Prices'!D52) -> FALSE | AV39: 46 | AW39: 46 | AX39: =IF(AW39,'Yahoo Stocks'!D66) -> SCTY | AY39: 601558.SS | AZ39: =IF(AW39,'Yahoo Stocks'!E66) -> Solar City | BA39: Sinovel Wind: Chinese Wind Manufactrer | BB39: F | BC39: Yahoo | BD39: 112 | BE39: FALSE | BF39: =IF(BE39,'Google Finance Stocks'!D63) -> FALSE | BH39: =IF(BE39,'Google Finance Stocks'!E63) -> FALSE | BL39: 112 | BM39: FALSE | BN39: ='Exchange Rates'!D49 -> 0 | BP39: =IF(BM39,'Exchange Rates'!E49) -> FALSE
L40: 38 | M40: SUZLON.NS | N40: Suzlon: Indian Wind Manufacturer | O40: F | P40: Yahoo | Q40: 38 | R40: FALSE | S40: =IF(R40,'Yahoo Index'!E92,"") ->  | T40: =IF(R40,'Yahoo Index'!F92,"") ->  | X40: 43 | Y40: FALSE | Z40: =IF($F$6,'FRED Indicies'!E53) -> 0 | AB40: =IF($F$6,'FRED Indicies'!D53) -> 0 | AF40: 44 | AG40: FALSE | AH40: =IF(AG40,'Google Index'!E67) -> FALSE | AJ40: =IF(AF40,'Google Index'!F67) -> 0 | AN40: 44 | AO40: FALSE | AP40: =IF(AO40,'Commodity Prices'!C53) -> FALSE | AR40: =IF(AO40,'Commodity Prices'!D53) -> FALSE | AV40: 47 | AW40: 47 | AX40: =IF(AW40,'Yahoo Stocks'!D67) -> RELIANCE.NS | AY40: SUZLON.NS | AZ40: =IF(AW40,'Yahoo Stocks'!E67) -> Reliance | BA40: Suzlon: Indian Wind Manufacturer | BB40: F | BC40: Yahoo | BD40: 113 | BE40: FALSE | BF40: =IF(BE40,'Google Finance Stocks'!D64) -> FALSE | BH40: =IF(BE40,'Google Finance Stocks'!E64) -> FALSE | BL40: 113 | BM40: FALSE | BN40: ='Exchange Rates'!D50 -> 0 | BP40: =IF(BM40,'Exchange Rates'!E50) -> FALSE
L41: 39 | M41: 002202.SZ | N41: Goldwind: Chinese Wind Manufacturer | O41: F | P41: Yahoo | Q41: 39 | R41: FALSE | S41: =IF(R41,'Yahoo Index'!E93,"") ->  | T41: =IF(R41,'Yahoo Index'!F93,"") ->  | X41: 44 | Y41: FALSE | Z41: =IF($F$6,'FRED Indicies'!E54) -> 0 | AB41: =IF($F$6,'FRED Indicies'!D54) -> 0 | AF41: 45 | AG41: FALSE | AH41: =IF(AG41,'Google Index'!E68) -> FALSE | AJ41: =IF(AF41,'Google Index'!F68) -> 0 | AN41: 45 | AO41: FALSE | AP41: =IF(AO41,'Commodity Prices'!C54) -> FALSE | AR41: =IF(AO41,'Commodity Prices'!D54) -> FALSE | AV41: 48 | AW41: 48 | AX41: =IF(AW41,'Yahoo Stocks'!D68) -> INFY.NS | AY41: 002202.SZ | AZ41: =IF(AW41,'Yahoo Stocks'!E68) -> Infosys | BA41: Goldwind: Chinese Wind Manufacturer | BB41: F | BC41: Yahoo | BD41: 114 | BE41: FALSE | BF41: =IF(BE41,'Google Finance Stocks'!D65) -> FALSE | BH41: =IF(BE41,'Google Finance Stocks'!E65) -> FALSE | BL41: 114 | BM41: FALSE | BN41: ='Exchange Rates'!D51 -> 0 | BP41: =IF(BM41,'Exchange Rates'!E51) -> FALSE
L42: 40 | M42: LB | N42: Victoria Secret | O42: F | P42: Yahoo | Q42: 40 | R42: FALSE | S42: =IF(R42,'Yahoo Index'!E94,"") ->  | T42: =IF(R42,'Yahoo Index'!F94,"") ->  | X42: 45 | Y42: FALSE | Z42: =IF($F$6,'FRED Indicies'!E55) -> 0 | AB42: =IF($F$6,'FRED Indicies'!D55) -> 0 | AF42: 46 | AG42: FALSE | AH42: =IF(AG42,'Google Index'!E69) -> FALSE | AJ42: =IF(AF42,'Google Index'!F69) -> 0 | AN42: 46 | AO42: FALSE | AP42: =IF(AO42,'Commodity Prices'!C55) -> FALSE | AR42: =IF(AO42,'Commodity Prices'!D55) -> FALSE | AV42: 49 | AW42: 49 | AX42: =IF(AW42,'Yahoo Stocks'!D69) -> HDFC.NS | AY42: LB | AZ42: =IF(AW42,'Yahoo Stocks'!E69) -> HDFC | BA42: Victoria Secret | BB42: F | BC42: Yahoo | BD42: 115 | BE42: FALSE | BF42: =IF(BE42,'Google Finance Stocks'!D66) -> FALSE | BH42: =IF(BE42,'Google Finance Stocks'!E66) -> FALSE | BL42: 115 | BM42: FALSE | BN42: ='Exchange Rates'!D52 -> 0 | BP42: =IF(BM42,'Exchange Rates'!E52) -> FALSE
L43: 41 | M43: MY | N43: Ming Yang: Chinese Wind Manufacturer | O43: F | P43: Yahoo | Q43: 41 | R43: FALSE | S43: =IF(R43,'Yahoo Index'!E95,"") ->  | T43: =IF(R43,'Yahoo Index'!F95,"") ->  | X43: 46 | Y43: FALSE | Z43: =IF($F$6,'FRED Indicies'!E56) -> 0 | AB43: =IF($F$6,'FRED Indicies'!D56) -> 0 | AF43: 47 | AG43: FALSE | AH43: =IF(AG43,'Google Index'!E70) -> FALSE | AJ43: =IF(AF43,'Google Index'!F70) -> 0 | AN43: 47 | AO43: FALSE | AP43: =IF(AO43,'Commodity Prices'!C56) -> FALSE | AR43: =IF(AO43,'Commodity Prices'!D56) -> FALSE | AV43: 50 | AW43: 50 | AX43: =IF(AW43,'Yahoo Stocks'!D70) -> ICICIBANK.NS | AY43: MY | AZ43: =IF(AW43,'Yahoo Stocks'!E70) -> ICIC Bank | BA43: Ming Yang: Chinese Wind Manufacturer | BB43: F | BC43: Yahoo | BD43: 116 | BE43: FALSE | BF43: =IF(BE43,'Google Finance Stocks'!D67) -> FALSE | BH43: =IF(BE43,'Google Finance Stocks'!E67) -> FALSE | BL43: 116 | BM43: FALSE | BN43: ='Exchange Rates'!D53 -> 0 | BP43: =IF(BM43,'Exchange Rates'!E53) -> FALSE
L44: 42 | M44: FSLR | N44: First Solar (U.S.) | O44: F | P44: Yahoo | Q44: 42 | R44: FALSE | S44: =IF(R44,'Yahoo Index'!E96,"") ->  | T44: =IF(R44,'Yahoo Index'!F96,"") ->  | X44: 47 | Y44: FALSE | Z44: =IF($F$6,'FRED Indicies'!E57) -> 0 | AB44: =IF($F$6,'FRED Indicies'!D57) -> 0 | AF44: 48 | AG44: FALSE | AH44: =IF(AG44,'Google Index'!E71) -> FALSE | AJ44: =IF(AF44,'Google Index'!F71) -> 0 | AN44: 48 | AO44: FALSE | AP44: =IF(AO44,'Commodity Prices'!C57) -> FALSE | AR44: =IF(AO44,'Commodity Prices'!D57) -> FALSE | AV44: 51 | AW44: 51 | AX44: =IF(AW44,'Yahoo Stocks'!D71) -> TATAMOTORS.NS | AY44: FSLR | AZ44: =IF(AW44,'Yahoo Stocks'!E71) -> Tata Motors | BA44: First Solar (U.S.) | BB44: F | BC44: Yahoo | BD44: 117 | BE44: FALSE | BF44: =IF(BE44,'Google Finance Stocks'!D68) -> FALSE | BH44: =IF(BE44,'Google Finance Stocks'!E68) -> FALSE | BL44: 117 | BM44: FALSE | BN44: ='Exchange Rates'!D54 -> 0 | BP44: =IF(BM44,'Exchange Rates'!E54) -> FALSE
L45: 43 | M45: RECSOL.OL | N45: REC: Solar Manufacturer Norway | O45: F | P45: Yahoo | Q45: 43 | R45: FALSE | S45: =IF(R45,'Yahoo Index'!E97,"") ->  | T45: =IF(R45,'Yahoo Index'!F97,"") ->  | X45: 48 | Y45: FALSE | Z45: =IF($F$6,'FRED Indicies'!E58) -> 0 | AB45: =IF($F$6,'FRED Indicies'!D58) -> 0 | AF45: 49 | AG45: FALSE | AH45: =IF(AG45,'Google Index'!E72) -> FALSE | AJ45: =IF(AF45,'Google Index'!F72) -> 0 | AN45: 49 | AO45: FALSE | AP45: =IF(AO45,'Commodity Prices'!C58) -> FALSE | AR45: =IF(AO45,'Commodity Prices'!D58) -> FALSE | AV45: 52 | AW45: 52 | AX45: =IF(AW45,'Yahoo Stocks'!D72) -> WIPRO.NS | AY45: RECSOL.OL | AZ45: =IF(AW45,'Yahoo Stocks'!E72) -> Wipro, Ltd. | BA45: REC: Solar Manufacturer Norway | BB45: F | BC45: Yahoo | BD45: 118 | BE45: FALSE | BF45: =IF(BE45,'Google Finance Stocks'!D69) -> FALSE | BH45: =IF(BE45,'Google Finance Stocks'!E69) -> FALSE | BL45: 118 | BM45: FALSE | BN45: ='Exchange Rates'!D55 -> 0 | BP45: =IF(BM45,'Exchange Rates'!E55) -> FALSE
L46: 44 | M46: SPWR | N46: SunPower Corporation (U.S.) | O46: F | P46: Yahoo | Q46: 44 | R46: FALSE | S46: =IF(R46,'Yahoo Index'!E98,"") ->  | T46: =IF(R46,'Yahoo Index'!F98,"") ->  | X46: 49 | Y46: FALSE | Z46: =IF($F$6,'FRED Indicies'!E59) -> 0 | AB46: =IF($F$6,'FRED Indicies'!D59) -> 0 | AF46: 50 | AG46: FALSE | AH46: =IF(AG46,'Google Index'!E73) -> FALSE | AJ46: =IF(AF46,'Google Index'!F73) -> 0 | AN46: 50 | AO46: FALSE | AP46: =IF(AO46,'Commodity Prices'!C59) -> FALSE | AR46: =IF(AO46,'Commodity Prices'!D59) -> FALSE | AV46: 53 | AW46: 53 | AX46: =IF(AW46,'Yahoo Stocks'!D73) -> DRREDDY.NS | AY46: SPWR | AZ46: =IF(AW46,'Yahoo Stocks'!E73) -> Dr. Reddy's Laboratories | BA46: SunPower Corporation (U.S.) | BB46: F | BC46: Yahoo | BD46: 119 | BE46: FALSE | BF46: =IF(BE46,'Google Finance Stocks'!D70) -> FALSE | BH46: =IF(BE46,'Google Finance Stocks'!E70) -> FALSE | BL46: 119 | BM46: FALSE | BN46: ='Exchange Rates'!D56 -> 0 | BP46: =IF(BM46,'Exchange Rates'!E56) -> FALSE
L47: 45 | M47: TSL | N47: Trina Solar Limited (China) | O47: F | P47: Yahoo | Q47: 45 | R47: FALSE | S47: =IF(R47,'Yahoo Index'!E99,"") ->  | T47: =IF(R47,'Yahoo Index'!F99,"") ->  | X47: 50 | Y47: FALSE | Z47: =IF($F$6,'FRED Indicies'!E60) -> 0 | AB47: =IF($F$6,'FRED Indicies'!D60) -> 0 | AF47: 51 | AG47: FALSE | AH47: =IF(AG47,'Google Index'!E74) -> FALSE | AJ47: =IF(AF47,'Google Index'!F74) -> 0 | AN47: 51 | AO47: FALSE | AP47: =IF(AO47,'Commodity Prices'!C60) -> FALSE | AR47: =IF(AO47,'Commodity Prices'!D60) -> FALSE | AV47: 54 | AW47: 54 | AX47: =IF(AW47,'Yahoo Stocks'!D74) -> WNS | AY47: TSL | AZ47: =IF(AW47,'Yahoo Stocks'!E74) -> WNS Holdings | BA47: Trina Solar Limited (China) | BB47: F | BC47: Yahoo | BD47: 120 | BE47: FALSE | BF47: =IF(BE47,'Google Finance Stocks'!D71) -> FALSE | BH47: =IF(BE47,'Google Finance Stocks'!E71) -> FALSE | BL47: 120 | BM47: FALSE | BN47: ='Exchange Rates'!D57 -> 0 | BP47: =IF(BM47,'Exchange Rates'!E57) -> FALSE
L48: 46 | M48: SCTY | N48: Solar City | O48: F | P48: Yahoo | Q48: 46 | R48: FALSE | S48: =IF(R48,'Yahoo Index'!E100,"") ->  | T48: =IF(R48,'Yahoo Index'!F100,"") ->  | X48: 51 | Y48: FALSE | Z48: =IF($F$6,'FRED Indicies'!E61) -> 0 | AB48: =IF($F$6,'FRED Indicies'!D61) -> 0 | AF48: 52 | AG48: FALSE | AH48: =IF(AG48,'Google Index'!E75) -> FALSE | AJ48: =IF(AF48,'Google Index'!F75) -> 0 | AN48: 52 | AO48: FALSE | AP48: =IF(AO48,'Commodity Prices'!C61) -> FALSE | AR48: =IF(AO48,'Commodity Prices'!D61) -> FALSE | AV48: 55 | AW48: 55 | AX48: =IF(AW48,'Yahoo Stocks'!D75) -> SIFY | AY48: SCTY | AZ48: =IF(AW48,'Yahoo Stocks'!E75) -> Sify Technologies | BA48: Solar City | BB48: F | BC48: Yahoo | BD48: 121 | BE48: FALSE | BF48: =IF(BE48,'Google Finance Stocks'!D72) -> FALSE | BH48: =IF(BE48,'Google Finance Stocks'!E72) -> FALSE | BL48: 121 | BM48: FALSE | BN48: ='Exchange Rates'!D58 -> 0 | BP48: =IF(BM48,'Exchange Rates'!E58) -> FALSE
L49: 47 | M49: RELIANCE.NS | N49: Reliance | O49: F | P49: Yahoo | Q49: 47 | R49: FALSE | S49: =IF(R49,'Yahoo Index'!E101,"") ->  | T49: =IF(R49,'Yahoo Index'!F101,"") ->  | X49: 52 | Y49: FALSE | Z49: =IF($F$6,'FRED Indicies'!E62) -> 0 | AB49: =IF($F$6,'FRED Indicies'!D62) -> 0 | AF49: 53 | AG49: FALSE | AH49: =IF(AG49,'Google Index'!E76) -> FALSE | AJ49: =IF(AF49,'Google Index'!F76) -> 0 | AN49: 53 | AO49: FALSE | AP49: =IF(AO49,'Commodity Prices'!C62) -> FALSE | AR49: =IF(AO49,'Commodity Prices'!D62) -> FALSE | AV49: 56 | AW49: 56 | AX49: =IF(AW49,'Yahoo Stocks'!D76) -> REDFY | AY49: RELIANCE.NS | AZ49: =IF(AW49,'Yahoo Stocks'!E76) -> Rediff | BA49: Reliance | BB49: F | BC49: Yahoo | BD49: 122 | BE49: FALSE | BF49: =IF(BE49,'Google Finance Stocks'!D73) -> FALSE | BH49: =IF(BE49,'Google Finance Stocks'!E73) -> FALSE | BL49: 122 | BM49: FALSE | BN49: ='Exchange Rates'!D59 -> 0 | BP49: =IF(BM49,'Exchange Rates'!E59) -> FALSE
L50: 48 | M50: INFY.NS | N50: Infosys | O50: F | P50: Yahoo | Q50: 48 | R50: FALSE | S50: =IF(R50,'Yahoo Index'!E102,"") ->  | T50: =IF(R50,'Yahoo Index'!F102,"") ->  | X50: 53 | Y50: FALSE | Z50: =IF($F$6,'FRED Indicies'!E63) -> 0 | AB50: =IF($F$6,'FRED Indicies'!D63) -> 0 | AF50: 54 | AG50: FALSE | AH50: =IF(AG50,'Google Index'!E77) -> FALSE | AJ50: =IF(AF50,'Google Index'!F77) -> 0 | AN50: 54 | AO50: FALSE | AP50: =IF(AO50,'Commodity Prices'!C63) -> FALSE | AR50: =IF(AO50,'Commodity Prices'!D63) -> FALSE | AV50: 57 | AW50: 57 | AX50: =IF(AW50,'Yahoo Stocks'!D77) -> VEDL.NS | AY50: INFY.NS | AZ50: =IF(AW50,'Yahoo Stocks'!E77) -> Vedanta | BA50: Infosys | BB50: F | BC50: Yahoo | BD50: 123 | BE50: FALSE | BF50: =IF(BE50,'Google Finance Stocks'!D74) -> FALSE | BH50: =IF(BE50,'Google Finance Stocks'!E74) -> FALSE | BL50: 123 | BM50: FALSE | BN50: ='Exchange Rates'!D60 -> 0 | BP50: =IF(BM50,'Exchange Rates'!E60) -> FALSE
L51: 49 | M51: HDFC.NS | N51: HDFC | O51: F | P51: Yahoo | Q51: 49 | R51: FALSE | S51: =IF(R51,'Yahoo Index'!E103,"") ->  | T51: =IF(R51,'Yahoo Index'!F103,"") ->  | X51: 54 | Y51: FALSE | Z51: =IF($F$6,'FRED Indicies'!E64) -> 0 | AB51: =IF($F$6,'FRED Indicies'!D64) -> 0 | AF51: 55 | AG51: FALSE | AH51: =IF(AG51,'Google Index'!E78) -> FALSE | AJ51: =IF(AF51,'Google Index'!F78) -> 0 | AN51: 55 | AO51: FALSE | AP51: =IF(AO51,'Commodity Prices'!C64) -> FALSE | AR51: =IF(AO51,'Commodity Prices'!D64) -> FALSE | AV51: 58 | AW51: 58 | AX51: =IF(AW51,'Yahoo Stocks'!D78) -> AZRE | AY51: HDFC.NS | AZ51: =IF(AW51,'Yahoo Stocks'!E78) -> Azure | BA51: HDFC | BB51: F | BC51: Yahoo | BD51: 124 | BE51: FALSE | BF51: =IF(BE51,'Google Finance Stocks'!D75) -> FALSE | BH51: =IF(BE51,'Google Finance Stocks'!E75) -> FALSE | BL51: 124 | BM51: FALSE | BN51: ='Exchange Rates'!D61 -> 0 | BP51: =IF(BM51,'Exchange Rates'!E61) -> FALSE
L52: 50 | M52: ICICIBANK.NS | N52: ICIC Bank | O52: F | P52: Yahoo | Q52: 50 | R52: FALSE | S52: =IF(R52,'Yahoo Index'!E104,"") ->  | T52: =IF(R52,'Yahoo Index'!F104,"") ->  | X52: 55 | Y52: FALSE | Z52: =IF($F$6,'FRED Indicies'!E65) -> 0 | AB52: =IF($F$6,'FRED Indicies'!D65) -> 0 | AF52: 56 | AG52: FALSE | AH52: =IF(AG52,'Google Index'!E79) -> FALSE | AJ52: =IF(AF52,'Google Index'!F79) -> 0 | AN52: 56 | AO52: FALSE | AP52: =IF(AO52,'Commodity Prices'!C65) -> FALSE | AR52: =IF(AO52,'Commodity Prices'!D65) -> FALSE | AV52: 59 | AW52: 59 | AX52: =IF(AW52,'Yahoo Stocks'!D79) -> GRSXY | AY52: ICICIBANK.NS | AZ52: =IF(AW52,'Yahoo Stocks'!E79) -> Grasim | BA52: ICIC Bank | BB52: F | BC52: Yahoo | BD52: 125 | BE52: FALSE | BF52: =IF(BE52,'Google Finance Stocks'!D76) -> FALSE | BH52: =IF(BE52,'Google Finance Stocks'!E76) -> FALSE | BL52: 125 | BM52: FALSE | BN52: ='Exchange Rates'!D62 -> 0 | BP52: =IF(BM52,'Exchange Rates'!E62) -> FALSE
L53: 51 | M53: =S53&AA53&AI53&AQ53&AY53&BG53&BO53 -> TATAMOTORS.NS | N53: =T53&AC53&AK53&AS53&BA53&BI53&BQ53 -> Tata Motors | O53: =U53&AD53&AL53&AT53&BB53&BJ53&BR53 -> F | P53: =V53&AE53&AM53&AU53&BC53&BK53&BS53 -> Yahoo | Q53: 51 | R53: =IF(AND($F$3,Q53<=$H$3),Q53) -> FALSE | S53: =IF(R53,'Yahoo Index'!E105,"") ->  | T53: =IF(R53,'Yahoo Index'!F105,"") ->  | U53: =IF(R53,$I$3,"") ->  | V53: =IF(R53,$J$3,"") ->  | X53: 56 | Y53: =IF(AND($F$6,X53<=$H$6),X53) -> FALSE | Z53: =IF($F$6,'FRED Indicies'!E66) -> 0 | AA53: =IFERROR(INDEX(Z:Z,MATCH(L53,Y:Y,0)),"") ->  | AB53: =IF($F$6,'FRED Indicies'!D66) -> 0 | AC53: =IFERROR(INDEX(AB:AB,MATCH(L53,Y:Y,0)),"") ->  | AD53: =IF(AA53<>"",$I$6,"") ->  | AE53: =IF(AA53<>"",$J$6,"") ->  | AF53: 57 | AG53: =IF(AND($F$9,AF53<=$H$9),AF53) -> FALSE | AH53: =IF(AG53,'Google Index'!E80) -> FALSE | AI53: =IFERROR(INDEX(AH:AH,MATCH(Q53,AG:AG,0)),"") ->  | AJ53: =IF(AF53,'Google Index'!F80) -> 0 | AK53: =IFERROR(INDEX(AJ:AJ,MATCH(Q53,AG:AG,0)),"") ->  | AL53: =IF(AI53<>"",$I$6,"") ->  | AM53: =IF(AK53<>"",$J$6,"") ->  | AN53: 57 | AO53: =IF(AND($F$12,AN53<=$H$12),AN53) -> FALSE | AP53: =IF(AO53,'Commodity Prices'!C66) -> FALSE | AQ53: =IFERROR(INDEX(AP:AP,MATCH(L53,AO:AO,0)),"") ->  | AR53: =IF(AO53,'Commodity Prices'!D66) -> FALSE | AS53: =IFERROR(INDEX(AR:AR,MATCH(L53,AO:AO,0)),"") ->  | AT53: =IF(AQ53<>"",$I$12,"") ->  | AU53: =IF(AS53<>"",$J$12,"") ->  | AV53: 60 | AW53: 60 | AX53: =IF(AW53,'Yahoo Stocks'!D80) -> MTENY | AY53: TATAMOTORS.NS | AZ53: =IF(AW53,'Yahoo Stocks'!E80) -> Mahanagar | BA53: Tata Motors | BB53: F | BC53: Yahoo | BD53: 126 | BE53: =IF(AND($F$18,BD53<=$H$18),BD53) -> FALSE | BF53: =IF(BE53,'Google Finance Stocks'!D77) -> FALSE | BG53: =IFERROR(INDEX(BF:BF,MATCH(Q53,BE:BE,0)),"") ->  | BH53: =IF(BE53,'Google Finance Stocks'!E77) -> FALSE | BI53: =IFERROR(INDEX(BH:BH,MATCH(Q53,BE:BE,0)),"") ->  | BJ53: =IF(BI53<>"",$I$18,"") ->  | BK53: =IF(BI53<>"",$J$18,"") ->  | BL53: 126 | BM53: =IF(AND($F$21,BL53<=$H$21),BL53) -> FALSE | BN53: ='Exchange Rates'!D63 -> 0 | BO53: =IFERROR(INDEX(BN:BN,MATCH(L53,BM:BM,0)),"") ->  | BP53: =IF(BM53,'Exchange Rates'!E63) -> FALSE | BQ53: =IFERROR(INDEX(BP:BP,MATCH(L53,BM:BM,0)),"") ->  | BR53: =IF(BQ53<>"",$I$21,"") ->  | BS53: =IF(BQ53<>"",$J$21,"") -> 
L54: 52 | M54: WIPRO.NS | N54: Wipro, Ltd. | O54: F | P54: Yahoo | Q54: 52 | R54: FALSE | S54: =IF(R54,'Yahoo Index'!E106,"") ->  | T54: =IF(R54,'Yahoo Index'!F106,"") ->  | X54: 57 | Y54: FALSE | Z54: =IF($F$6,'FRED Indicies'!E67) -> 0 | AB54: =IF($F$6,'FRED Indicies'!D67) -> 0 | AF54: 58 | AG54: FALSE | AH54: =IF(AG54,'Google Index'!E81) -> FALSE | AJ54: =IF(AF54,'Google Index'!F81) -> 0 | AN54: 58 | AO54: FALSE | AP54: =IF(AO54,'Commodity Prices'!C67) -> FALSE | AR54: =IF(AO54,'Commodity Prices'!D67) -> FALSE | AV54: 61 | AW54: 61 | AX54: =IF(AW54,'Yahoo Stocks'!D81) -> MMYT | AY54: WIPRO.NS | AZ54: =IF(AW54,'Yahoo Stocks'!E81) -> MakeMyTrip | BA54: Wipro, Ltd. | BB54: F | BC54: Yahoo | BD54: 127 | BE54: FALSE | BF54: =IF(BE54,'Google Finance Stocks'!D78) -> FALSE | BH54: =IF(BE54,'Google Finance Stocks'!E78) -> FALSE | BL54: 127 | BM54: FALSE | BN54: ='Exchange Rates'!D64 -> 0 | BP54: =IF(BM54,'Exchange Rates'!E64) -> FALSE
L55: 53 | M55: DRREDDY.NS | N55: Dr. Reddy's Laboratories | O55: F | P55: Yahoo | Q55: 53 | R55: FALSE | S55: =IF(R55,'Yahoo Index'!E107,"") ->  | T55: =IF(R55,'Yahoo Index'!F107,"") ->  | X55: 58 | Y55: FALSE | Z55: =IF($F$6,'FRED Indicies'!E68) -> 0 | AB55: =IF($F$6,'FRED Indicies'!D68) -> 0 | AF55: 59 | AG55: FALSE | AH55: =IF(AG55,'Google Index'!E82) -> FALSE | AJ55: =IF(AF55,'Google Index'!F82) -> 0 | AN55: 59 | AO55: FALSE | AP55: =IF(AO55,'Commodity Prices'!C68) -> FALSE | AR55: =IF(AO55,'Commodity Prices'!D68) -> FALSE | AV55: 62 | AW55: 62 | AX55: =IF(AW55,'Yahoo Stocks'!D82) -> YTRA | AY55: DRREDDY.NS | AZ55: =IF(AW55,'Yahoo Stocks'!E82) -> Yatra | BA55: Dr. Reddy's Laboratories | BB55: F | BC55: Yahoo | BD55: 128 | BE55: FALSE | BF55: =IF(BE55,'Google Finance Stocks'!D79) -> FALSE | BH55: =IF(BE55,'Google Finance Stocks'!E79) -> FALSE | BL55: 128 | BM55: FALSE | BN55: ='Exchange Rates'!D65 -> 0 | BP55: =IF(BM55,'Exchange Rates'!E65) -> FALSE
L56: 54 | M56: WNS | N56: WNS Holdings | O56: F | P56: Yahoo | Q56: 54 | R56: FALSE | S56: =IF(R56,'Yahoo Index'!E108,"") ->  | T56: =IF(R56,'Yahoo Index'!F108,"") ->  | X56: 59 | Y56: FALSE | Z56: =IF($F$6,'FRED Indicies'!E69) -> 0 | AB56: =IF($F$6,'FRED Indicies'!D69) -> 0 | AF56: 60 | AG56: FALSE | AH56: =IF(AG56,'Google Index'!E83) -> FALSE | AJ56: =IF(AF56,'Google Index'!F83) -> 0 | AN56: 60 | AO56: FALSE | AP56: =IF(AO56,'Commodity Prices'!C69) -> FALSE | AR56: =IF(AO56,'Commodity Prices'!D69) -> FALSE | AV56: 63 | AW56: 63 | AX56: =IF(AW56,'Yahoo Stocks'!D83) -> TCS.NS | AY56: WNS | AZ56: =IF(AW56,'Yahoo Stocks'!E83) -> TCS | BA56: WNS Holdings | BB56: F | BC56: Yahoo | BD56: 129 | BE56: FALSE | BF56: =IF(BE56,'Google Finance Stocks'!D80) -> FALSE | BH56: =IF(BE56,'Google Finance Stocks'!E80) -> FALSE | BL56: 129 | BM56: FALSE | BN56: ='Exchange Rates'!D74 -> 0 | BP56: =IF(BM56,'Exchange Rates'!E74) -> FALSE
L57: 55 | M57: SIFY | N57: Sify Technologies | O57: F | P57: Yahoo | Q57: 55 | R57: FALSE | S57: =IF(R57,'Yahoo Index'!E109,"") ->  | T57: =IF(R57,'Yahoo Index'!F109,"") ->  | X57: 60 | Y57: FALSE | Z57: =IF($F$6,'FRED Indicies'!E70) -> 0 | AB57: =IF($F$6,'FRED Indicies'!D70) -> 0 | AF57: 61 | AG57: FALSE | AH57: =IF(AG57,'Google Index'!E84) -> FALSE | AJ57: =IF(AF57,'Google Index'!F84) -> 0 | AN57: 61 | AO57: FALSE | AP57: =IF(AO57,'Commodity Prices'!C70) -> FALSE | AR57: =IF(AO57,'Commodity Prices'!D70) -> FALSE | AV57: 64 | AW57: 64 | AX57: =IF(AW57,'Yahoo Stocks'!D84) -> HDFCBANK.NS | AY57: SIFY | AZ57: =IF(AW57,'Yahoo Stocks'!E84) -> HDFC Bank | BA57: Sify Technologies | BB57: F | BC57: Yahoo | BD57: 130 | BE57: FALSE | BF57: =IF(BE57,'Google Finance Stocks'!D81) -> FALSE | BH57: =IF(BE57,'Google Finance Stocks'!E81) -> FALSE | BL57: 130 | BM57: FALSE | BN57: ='Exchange Rates'!D75 -> 0 | BP57: =IF(BM57,'Exchange Rates'!E75) -> FALSE
L58: 56 | M58: REDFY | N58: Rediff | O58: F | P58: Yahoo | Q58: 56 | R58: FALSE | S58: =IF(R58,'Yahoo Index'!E110,"") ->  | T58: =IF(R58,'Yahoo Index'!F110,"") ->  | X58: 61 | Y58: FALSE | Z58: =IF($F$6,'FRED Indicies'!E71) -> 0 | AB58: =IF($F$6,'FRED Indicies'!D71) -> 0 | AF58: 62 | AG58: FALSE | AH58: =IF(AG58,'Google Index'!E85) -> FALSE | AJ58: =IF(AF58,'Google Index'!F85) -> 0 | AN58: 62 | AO58: FALSE | AP58: =IF(AO58,'Commodity Prices'!C71) -> FALSE | AR58: =IF(AO58,'Commodity Prices'!D71) -> FALSE | AV58: 65 | AW58: 65 | AX58: =IF(AW58,'Yahoo Stocks'!D85) -> HINDUNILVR.NS | AY58: REDFY | AZ58: =IF(AW58,'Yahoo Stocks'!E85) -> HUL | BA58: Rediff | BB58: F | BC58: Yahoo | BD58: 131 | BE58: FALSE | BF58: =IF(BE58,'Google Finance Stocks'!D82) -> FALSE | BH58: =IF(BE58,'Google Finance Stocks'!E82) -> FALSE | BL58: 131 | BM58: FALSE | BN58: ='Exchange Rates'!D76 -> 0 | BP58: =IF(BM58,'Exchange Rates'!E76) -> FALSE
L59: 57 | M59: VEDL.NS | N59: Vedanta | O59: F | P59: Yahoo | Q59: 57 | R59: FALSE | S59: =IF(R59,'Yahoo Index'!E111,"") ->  | T59: =IF(R59,'Yahoo Index'!F111,"") ->  | X59: 62 | Y59: FALSE | Z59: =IF($F$6,'FRED Indicies'!E72) -> 0 | AB59: =IF($F$6,'FRED Indicies'!D72) -> 0 | AF59: 63 | AG59: FALSE | AH59: =IF(AG59,'Google Index'!E86) -> FALSE | AJ59: =IF(AF59,'Google Index'!F86) -> 0 | AN59: 63 | AO59: FALSE | AP59: =IF(AO59,'Commodity Prices'!C72) -> FALSE | AR59: =IF(AO59,'Commodity Prices'!D72) -> FALSE | AV59: 66 | AW59: 66 | AX59: =IF(AW59,'Yahoo Stocks'!D86) -> ITC.NS | AY59: VEDL.NS | AZ59: =IF(AW59,'Yahoo Stocks'!E86) -> ITC | BA59: Vedanta | BB59: F | BC59: Yahoo | BD59: 132 | BE59: FALSE | BF59: =IF(BE59,'Google Finance Stocks'!D83) -> FALSE | BH59: =IF(BE59,'Google Finance Stocks'!E83) -> FALSE | BL59: 132 | BM59: FALSE | BN59: ='Exchange Rates'!D77 -> 0 | BP59: =IF(BM59,'Exchange Rates'!E77) -> FALSE
L60: 58 | M60: AZRE | N60: Azure | O60: F | P60: Yahoo | Q60: 58 | R60: FALSE | S60: =IF(R60,'Yahoo Index'!E112,"") ->  | T60: =IF(R60,'Yahoo Index'!F112,"") ->  | X60: 63 | Y60: FALSE | Z60: =IF($F$6,'FRED Indicies'!E73) -> 0 | AB60: =IF($F$6,'FRED Indicies'!D73) -> 0 | AF60: 64 | AG60: FALSE | AH60: =IF(AG60,'Google Index'!E87) -> FALSE | AJ60: =IF(AF60,'Google Index'!F87) -> 0 | AN60: 64 | AO60: FALSE | AP60: =IF(AO60,'Commodity Prices'!C73) -> FALSE | AR60: =IF(AO60,'Commodity Prices'!D73) -> FALSE | AV60: 67 | AW60: 67 | AX60: =IF(AW60,'Yahoo Stocks'!D87) -> HDFC.NS | AY60: AZRE | AZ60: =IF(AW60,'Yahoo Stocks'!E87) -> HDFC | BA60: Azure | BB60: F | BC60: Yahoo | BD60: 133 | BE60: FALSE | BF60: =IF(BE60,'Google Finance Stocks'!D84) -> FALSE | BH60: =IF(BE60,'Google Finance Stocks'!E84) -> FALSE | BL60: 133 | BM60: FALSE | BN60: ='Exchange Rates'!D78 -> 0 | BP60: =IF(BM60,'Exchange Rates'!E78) -> FALSE
L61: 59 | M61: GRSXY | N61: Grasim | O61: F | P61: Yahoo | Q61: 59 | R61: FALSE | S61: =IF(R61,'Yahoo Index'!E113,"") ->  | T61: =IF(R61,'Yahoo Index'!F113,"") ->  | X61: 64 | Y61: FALSE | Z61: =IF($F$6,'FRED Indicies'!E74) -> 0 | AB61: =IF($F$6,'FRED Indicies'!D74) -> 0 | AF61: 65 | AG61: FALSE | AH61: =IF(AG61,'Google Index'!E88) -> FALSE | AJ61: =IF(AF61,'Google Index'!F88) -> 0 | AN61: 65 | AO61: FALSE | AP61: =IF(AO61,'Commodity Prices'!C74) -> FALSE | AR61: =IF(AO61,'Commodity Prices'!D74) -> FALSE | AV61: 68 | AW61: 68 | AX61: =IF(AW61,'Yahoo Stocks'!D88) -> INFY.NS | AY61: GRSXY | AZ61: =IF(AW61,'Yahoo Stocks'!E88) -> Infosys | BA61: Grasim | BB61: F | BC61: Yahoo | BD61: 134 | BE61: FALSE | BF61: =IF(BE61,'Google Finance Stocks'!D85) -> FALSE | BH61: =IF(BE61,'Google Finance Stocks'!E85) -> FALSE | BL61: 134 | BM61: FALSE | BN61: ='Exchange Rates'!D79 -> 0 | BP61: =IF(BM61,'Exchange Rates'!E79) -> FALSE
L62: 60 | M62: MTENY | N62: Mahanagar | O62: F | P62: Yahoo | Q62: 60 | R62: FALSE | S62: =IF(R62,'Yahoo Index'!E114,"") ->  | T62: =IF(R62,'Yahoo Index'!F114,"") ->  | X62: 65 | Y62: FALSE | Z62: =IF($F$6,'FRED Indicies'!E75) -> 0 | AB62: =IF($F$6,'FRED Indicies'!D75) -> 0 | AF62: 66 | AG62: FALSE | AH62: =IF(AG62,'Google Index'!E89) -> FALSE | AJ62: =IF(AF62,'Google Index'!F89) -> 0 | AN62: 66 | AO62: FALSE | AP62: =IF(AO62,'Commodity Prices'!C75) -> FALSE | AR62: =IF(AO62,'Commodity Prices'!D75) -> FALSE | AV62: 69 | AW62: 69 | AX62: =IF(AW62,'Yahoo Stocks'!D89) -> SBIN.NS | AY62: MTENY | AZ62: =IF(AW62,'Yahoo Stocks'!E89) -> SBI | BA62: Mahanagar | BB62: F | BC62: Yahoo | BD62: 135 | BE62: FALSE | BF62: =IF(BE62,'Google Finance Stocks'!D86) -> FALSE | BH62: =IF(BE62,'Google Finance Stocks'!E86) -> FALSE | BL62: 135 | BM62: FALSE | BN62: ='Exchange Rates'!D80 -> 0 | BP62: =IF(BM62,'Exchange Rates'!E80) -> FALSE
L63: 61 | M63: MMYT | N63: MakeMyTrip | O63: F | P63: Yahoo | Q63: 61 | R63: FALSE | S63: =IF(R63,'Yahoo Index'!E115,"") ->  | T63: =IF(R63,'Yahoo Index'!F115,"") ->  | X63: 66 | Y63: FALSE | Z63: =IF($F$6,'FRED Indicies'!E76) -> 0 | AB63: =IF($F$6,'FRED Indicies'!D76) -> 0 | AF63: 67 | AG63: FALSE | AH63: =IF(AG63,'Google Index'!E90) -> FALSE | AJ63: =IF(AF63,'Google Index'!F90) -> 0 | AN63: 67 | AO63: FALSE | AP63: =IF(AO63,'Commodity Prices'!C76) -> FALSE | AR63: =IF(AO63,'Commodity Prices'!D76) -> FALSE | AV63: 70 | AW63: 70 | AX63: =IF(AW63,'Yahoo Stocks'!D90) -> HEINY | AY63: MMYT | AZ63: =IF(AW63,'Yahoo Stocks'!E90) -> Heineken | BA63: MakeMyTrip | BB63: F | BC63: Yahoo | BD63: 136 | BE63: FALSE | BF63: =IF(BE63,'Google Finance Stocks'!D87) -> FALSE | BH63: =IF(BE63,'Google Finance Stocks'!E87) -> FALSE | BL63: 136 | BM63: FALSE | BN63: ='Exchange Rates'!D81 -> 0 | BP63: =IF(BM63,'Exchange Rates'!E81) -> FALSE
L64: 62 | M64: YTRA | N64: Yatra | O64: F | P64: Yahoo | Q64: 62 | R64: FALSE | S64: =IF(R64,'Yahoo Index'!E116,"") ->  | T64: =IF(R64,'Yahoo Index'!F116,"") ->  | X64: 67 | Y64: FALSE | Z64: =IF($F$6,'FRED Indicies'!E77) -> 0 | AB64: =IF($F$6,'FRED Indicies'!D77) -> 0 | AF64: 68 | AG64: FALSE | AH64: =IF(AG64,'Google Index'!E91) -> FALSE | AJ64: =IF(AF64,'Google Index'!F91) -> 0 | AN64: 68 | AO64: FALSE | AP64: =IF(AO64,'Commodity Prices'!C77) -> FALSE | AR64: =IF(AO64,'Commodity Prices'!D77) -> FALSE | AV64: 71 | AW64: 71 | AX64: =IF(AW64,'Yahoo Stocks'!D91) -> NYT | AY64: YTRA | AZ64: =IF(AW64,'Yahoo Stocks'!E91) -> New York Times | BA64: Yatra | BB64: F | BC64: Yahoo | BD64: 137 | BE64: FALSE | BF64: =IF(BE64,'Google Finance Stocks'!D88) -> FALSE | BH64: =IF(BE64,'Google Finance Stocks'!E88) -> FALSE | BL64: 137 | BM64: FALSE | BN64: ='Exchange Rates'!D82 -> 0 | BP64: =IF(BM64,'Exchange Rates'!E82) -> FALSE
L65: 63 | M65: TCS.NS | N65: TCS | O65: F | P65: Yahoo | Q65: 63 | R65: FALSE | S65: =IF(R65,'Yahoo Index'!E117,"") ->  | T65: =IF(R65,'Yahoo Index'!F117,"") ->  | X65: 68 | Y65: FALSE | Z65: =IF($F$6,'FRED Indicies'!E78) -> 0 | AB65: =IF($F$6,'FRED Indicies'!D78) -> 0 | AF65: 69 | AG65: FALSE | AH65: =IF(AG65,'Google Index'!E92) -> FALSE | AJ65: =IF(AF65,'Google Index'!F92) -> 0 | AN65: 69 | AO65: FALSE | AP65: =IF(AO65,'Commodity Prices'!C78) -> FALSE | AR65: =IF(AO65,'Commodity Prices'!D78) -> FALSE | AV65: 72 | AW65: 72 | AX65: =IF(AW65,'Yahoo Stocks'!D92) -> BUD | AY65: TCS.NS | AZ65: =IF(AW65,'Yahoo Stocks'!E92) -> Anheuser-Busch Inbev SA (USD) | BA65: TCS | BB65: F | BC65: Yahoo | BD65: 138 | BE65: FALSE | BF65: =IF(BE65,'Google Finance Stocks'!D89) -> FALSE | BH65: =IF(BE65,'Google Finance Stocks'!E89) -> FALSE | BL65: 138 | BM65: FALSE | BN65: ='Exchange Rates'!D83 -> 0 | BP65: =IF(BM65,'Exchange Rates'!E83) -> FALSE
L66: 64 | M66: HDFCBANK.NS | N66: HDFC Bank | O66: F | P66: Yahoo | Q66: 64 | R66: FALSE | S66: =IF(R66,'Yahoo Index'!E118,"") ->  | T66: =IF(R66,'Yahoo Index'!F118,"") ->  | X66: 69 | Y66: FALSE | Z66: =IF($F$6,'FRED Indicies'!E79) -> 0 | AB66: =IF($F$6,'FRED Indicies'!D79) -> 0 | AF66: 70 | AG66: FALSE | AH66: =IF(AG66,'Google Index'!E93) -> FALSE | AJ66: =IF(AF66,'Google Index'!F93) -> 0 | AN66: 70 | AO66: FALSE | AP66: =IF(AO66,'Commodity Prices'!C79) -> FALSE | AR66: =IF(AO66,'Commodity Prices'!D79) -> FALSE | AV66: 73 | AW66: 73 | AX66: =IF(AW66,'Yahoo Stocks'!D93) -> KOF | AY66: HDFCBANK.NS | AZ66: =IF(AW66,'Yahoo Stocks'!E93) -> Coca Cola | BA66: HDFC Bank | BB66: F | BC66: Yahoo | BD66: 139 | BE66: FALSE | BF66: =IF(BE66,'Google Finance Stocks'!D90) -> FALSE | BH66: =IF(BE66,'Google Finance Stocks'!E90) -> FALSE | BL66: 139 | BM66: FALSE | BN66: ='Exchange Rates'!D84 -> 0 | BP66: =IF(BM66,'Exchange Rates'!E84) -> FALSE
L67: 65 | M67: HINDUNILVR.NS | N67: HUL | O67: F | P67: Yahoo | Q67: 65 | R67: FALSE | S67: =IF(R67,'Yahoo Index'!E119,"") ->  | T67: =IF(R67,'Yahoo Index'!F119,"") ->  | X67: 70 | Y67: FALSE | Z67: =IF($F$6,'FRED Indicies'!E80) -> 0 | AB67: =IF($F$6,'FRED Indicies'!D80) -> 0 | AF67: 71 | AG67: FALSE | AH67: =IF(AG67,'Google Index'!E94) -> FALSE | AJ67: =IF(AF67,'Google Index'!F94) -> 0 | AN67: 71 | AO67: FALSE | AP67: =IF(AO67,'Commodity Prices'!C80) -> FALSE | AR67: =IF(AO67,'Commodity Prices'!D80) -> FALSE | AV67: 74 | AW67: 74 | AX67: =IF(AW67,'Yahoo Stocks'!D94) -> DEO | AY67: HINDUNILVR.NS | AZ67: =IF(AW67,'Yahoo Stocks'!E94) -> Diageo | BA67: HUL | BB67: F | BC67: Yahoo | BD67: 140 | BE67: FALSE | BF67: =IF(BE67,'Google Finance Stocks'!D91) -> FALSE | BH67: =IF(BE67,'Google Finance Stocks'!E91) -> FALSE | BL67: 140 | BM67: FALSE | BN67: ='Exchange Rates'!D85 -> 0 | BP67: =IF(BM67,'Exchange Rates'!E85) -> FALSE
L68: 66 | M68: ITC.NS | N68: ITC | O68: F | P68: Yahoo | Q68: 66 | R68: FALSE | S68: =IF(R68,'Yahoo Index'!E120,"") ->  | T68: =IF(R68,'Yahoo Index'!F120,"") ->  | X68: 71 | Y68: FALSE | Z68: =IF($F$6,'FRED Indicies'!E81) -> 0 | AB68: =IF($F$6,'FRED Indicies'!D81) -> 0 | AF68: 72 | AG68: FALSE | AH68: =IF(AG68,'Google Index'!E95) -> FALSE | AJ68: =IF(AF68,'Google Index'!F95) -> 0 | AN68: 72 | AO68: FALSE | AP68: =IF(AO68,'Commodity Prices'!C81) -> FALSE | AR68: =IF(AO68,'Commodity Prices'!D81) -> FALSE | AV68: 75 | AW68: 75 | AX68: =IF(AW68,'Yahoo Stocks'!D95) -> ECL | AY68: ITC.NS | AZ68: =IF(AW68,'Yahoo Stocks'!E95) -> Eco Lab | BA68: ITC | BB68: F | BC68: =IF(BA68<>"",$J$15,"") -> Yahoo | BD68: 141 | BE68: FALSE | BF68: =IF(BE68,'Google Finance Stocks'!D92) -> FALSE | BH68: =IF(BE68,'Google Finance Stocks'!E92) -> FALSE | BL68: 141 | BM68: FALSE | BN68: ='Exchange Rates'!D86 -> 0 | BP68: =IF(BM68,'Exchange Rates'!E86) -> FALSE
L69: 67 | M69: HDFC.NS | N69: HDFC | O69: F | P69: Yahoo | Q69: =Q68+1 -> 67 | R69: FALSE | S69: =IF(R69,'Yahoo Index'!E121,"") ->  | T69: =IF(R69,'Yahoo Index'!F121,"") ->  | X69: =X68+1 -> 72 | Y69: FALSE | Z69: =IF($F$6,'FRED Indicies'!E82) -> 0 | AB69: =IF($F$6,'FRED Indicies'!D82) -> 0 | AF69: =AF68+1 -> 73 | AG69: FALSE | AH69: =IF(AG69,'Google Index'!E96) -> FALSE | AJ69: =IF(AF69,'Google Index'!F96) -> 0 | AN69: =AN68+1 -> 73 | AO69: FALSE | AP69: =IF(AO69,'Commodity Prices'!C82) -> FALSE | AR69: =IF(AO69,'Commodity Prices'!D82) -> FALSE | AV69: =AV68+1 -> 76 | AW69: FALSE | AX69: =IF(AW69,'Yahoo Stocks'!D96) -> FALSE | AY69: HDFC.NS | AZ69: =IF(AW69,'Yahoo Stocks'!E96) -> FALSE | BA69: HDFC | BB69: F | BC69: Yahoo | BD69: =BD68+1 -> 142 | BE69: FALSE | BF69: =IF(BE69,'Google Finance Stocks'!D93) -> FALSE | BH69: =IF(BE69,'Google Finance Stocks'!E93) -> FALSE | BL69: =BL68+1 -> 142 | BM69: FALSE | BN69: ='Exchange Rates'!D87 -> 0 | BP69: =IF(BM69,'Exchange Rates'!E87) -> FALSE
L70: 68 | M70: INFY.NS | N70: Infosys | O70: F | P70: Yahoo | Q70: 68 | R70: FALSE | S70: =IF(R70,'Yahoo Index'!E122,"") ->  | T70: =IF(R70,'Yahoo Index'!F122,"") ->  | X70: 73 | Y70: FALSE | Z70: =IF($F$6,'FRED Indicies'!E83) -> 0 | AB70: =IF($F$6,'FRED Indicies'!D83) -> 0 | AF70: 74 | AG70: FALSE | AH70: =IF(AG70,'Google Index'!E97) -> FALSE | AJ70: =IF(AF70,'Google Index'!F97) -> 0 | AN70: 74 | AO70: FALSE | AP70: =IF(AO70,'Commodity Prices'!C83) -> FALSE | AR70: =IF(AO70,'Commodity Prices'!D83) -> FALSE | AV70: 77 | AW70: FALSE | AX70: =IF(AW70,'Yahoo Stocks'!D97) -> FALSE | AY70: INFY.NS | AZ70: =IF(AW70,'Yahoo Stocks'!E97) -> FALSE | BA70: Infosys | BB70: F | BC70: Yahoo | BD70: 143 | BE70: FALSE | BF70: =IF(BE70,'Google Finance Stocks'!D94) -> FALSE | BH70: =IF(BE70,'Google Finance Stocks'!E94) -> FALSE | BL70: 143 | BM70: FALSE | BN70: ='Exchange Rates'!D88 -> 0 | BP70: =IF(BM70,'Exchange Rates'!E88) -> FALSE
L71: 69 | M71: SBIN.NS | N71: SBI | O71: F | P71: Yahoo | Q71: 69 | R71: FALSE | S71: =IF(R71,'Yahoo Index'!E123,"") ->  | T71: =IF(R71,'Yahoo Index'!F123,"") ->  | X71: 74 | Y71: FALSE | Z71: =IF($F$6,'FRED Indicies'!E84) -> 0 | AB71: =IF($F$6,'FRED Indicies'!D84) -> 0 | AF71: 75 | AG71: FALSE | AH71: =IF(AG71,'Google Index'!E98) -> FALSE | AJ71: =IF(AF71,'Google Index'!F98) -> 0 | AN71: 75 | AO71: FALSE | AP71: =IF(AO71,'Commodity Prices'!C84) -> FALSE | AR71: =IF(AO71,'Commodity Prices'!D84) -> FALSE | AV71: 78 | AW71: FALSE | AX71: =IF(AW71,'Yahoo Stocks'!D98) -> FALSE | AY71: SBIN.NS | AZ71: =IF(AW71,'Yahoo Stocks'!E98) -> FALSE | BA71: SBI | BB71: F | BC71: Yahoo | BD71: 144 | BE71: FALSE | BF71: =IF(BE71,'Google Finance Stocks'!D95) -> FALSE | BH71: =IF(BE71,'Google Finance Stocks'!E95) -> FALSE | BL71: 144 | BM71: FALSE | BN71: ='Exchange Rates'!D89 -> 0 | BP71: =IF(BM71,'Exchange Rates'!E89) -> FALSE
L72: 70 | M72: HEINY | N72: Heineken | O72: F | P72: Yahoo | Q72: 70 | R72: FALSE | S72: =IF(R72,'Yahoo Index'!E124,"") ->  | T72: =IF(R72,'Yahoo Index'!F124,"") ->  | X72: 75 | Y72: FALSE | Z72: =IF($F$6,'FRED Indicies'!E85) -> 0 | AB72: =IF($F$6,'FRED Indicies'!D85) -> 0 | AF72: 76 | AG72: FALSE | AH72: =IF(AG72,'Google Index'!E99) -> FALSE | AJ72: =IF(AF72,'Google Index'!F99) -> 0 | AN72: 76 | AO72: FALSE | AP72: =IF(AO72,'Commodity Prices'!C85) -> FALSE | AR72: =IF(AO72,'Commodity Prices'!D85) -> FALSE | AV72: 79 | AW72: FALSE | AX72: =IF(AW72,'Yahoo Stocks'!D99) -> FALSE | AY72: HEINY | AZ72: =IF(AW72,'Yahoo Stocks'!E99) -> FALSE | BA72: Heineken | BB72: F | BC72: Yahoo | BD72: 145 | BE72: FALSE | BF72: =IF(BE72,'Google Finance Stocks'!D96) -> FALSE | BH72: =IF(BE72,'Google Finance Stocks'!E96) -> FALSE | BL72: 145 | BM72: FALSE | BN72: ='Exchange Rates'!D90 -> 0 | BP72: =IF(BM72,'Exchange Rates'!E90) -> FALSE
L73: 71 | M73: NYT | N73: New York Times | O73: F | P73: Yahoo | Q73: 71 | R73: FALSE | S73: =IF(R73,'Yahoo Index'!E125,"") ->  | T73: =IF(R73,'Yahoo Index'!F125,"") ->  | X73: 76 | Y73: FALSE | Z73: =IF($F$6,'FRED Indicies'!E86) -> 0 | AB73: =IF($F$6,'FRED Indicies'!D86) -> 0 | AF73: 77 | AG73: FALSE | AH73: =IF(AG73,'Google Index'!E100) -> FALSE | AJ73: =IF(AF73,'Google Index'!F100) -> 0 | AN73: 77 | AO73: FALSE | AP73: =IF(AO73,'Commodity Prices'!C86) -> FALSE | AR73: =IF(AO73,'Commodity Prices'!D86) -> FALSE | AV73: 80 | AW73: FALSE | AX73: =IF(AW73,'Yahoo Stocks'!D100) -> FALSE | AY73: NYT | AZ73: =IF(AW73,'Yahoo Stocks'!E100) -> FALSE | BA73: New York Times | BB73: F | BC73: Yahoo | BD73: 146 | BE73: FALSE | BF73: =IF(BE73,'Google Finance Stocks'!D97) -> FALSE | BH73: =IF(BE73,'Google Finance Stocks'!E97) -> FALSE | BL73: 146 | BM73: FALSE | BN73: ='Exchange Rates'!D91 -> 0 | BP73: =IF(BM73,'Exchange Rates'!E91) -> FALSE
L74: 72 | M74: BUD | N74: Anheuser-Busch Inbev SA (USD) | O74: F | P74: Yahoo | Q74: 72 | R74: FALSE | S74: =IF(R74,'Yahoo Index'!E126,"") ->  | T74: =IF(R74,'Yahoo Index'!F126,"") ->  | X74: 77 | Y74: FALSE | Z74: =IF($F$6,'FRED Indicies'!E87) -> 0 | AB74: =IF($F$6,'FRED Indicies'!D87) -> 0 | AF74: 78 | AG74: FALSE | AH74: =IF(AG74,'Google Index'!E101) -> FALSE | AJ74: =IF(AF74,'Google Index'!F101) -> 0 | AN74: 78 | AO74: FALSE | AP74: =IF(AO74,'Commodity Prices'!C87) -> FALSE | AR74: =IF(AO74,'Commodity Prices'!D87) -> FALSE | AV74: 81 | AW74: FALSE | AX74: =IF(AW74,'Yahoo Stocks'!D101) -> FALSE | AY74: BUD | AZ74: =IF(AW74,'Yahoo Stocks'!E101) -> FALSE | BA74: Anheuser-Busch Inbev SA (USD) | BB74: F | BC74: Yahoo | BD74: 147 | BE74: FALSE | BF74: =IF(BE74,'Google Finance Stocks'!D98) -> FALSE | BH74: =IF(BE74,'Google Finance Stocks'!E98) -> FALSE | BL74: 147 | BM74: FALSE | BN74: ='Exchange Rates'!D92 -> 0 | BP74: =IF(BM74,'Exchange Rates'!E92) -> FALSE
L75: 73 | M75: KOF | N75: Coca Cola | O75: F | P75: Yahoo | Q75: 73 | R75: FALSE | S75: =IF(R75,'Yahoo Index'!E127,"") ->  | T75: =IF(R75,'Yahoo Index'!F127,"") ->  | X75: 78 | Y75: FALSE | Z75: =IF($F$6,'FRED Indicies'!E88) -> 0 | AB75: =IF($F$6,'FRED Indicies'!D88) -> 0 | AF75: 79 | AG75: FALSE | AH75: =IF(AG75,'Google Index'!E102) -> FALSE | AJ75: =IF(AF75,'Google Index'!F102) -> 0 | AN75: 79 | AO75: FALSE | AP75: =IF(AO75,'Commodity Prices'!C88) -> FALSE | AR75: =IF(AO75,'Commodity Prices'!D88) -> FALSE | AV75: 82 | AW75: FALSE | AX75: =IF(AW75,'Yahoo Stocks'!D102) -> FALSE | AY75: KOF | AZ75: =IF(AW75,'Yahoo Stocks'!E102) -> FALSE | BA75: Coca Cola | BB75: F | BC75: Yahoo | BD75: 148 | BE75: FALSE | BF75: =IF(BE75,'Google Finance Stocks'!D99) -> FALSE | BH75: =IF(BE75,'Google Finance Stocks'!E99) -> FALSE | BL75: 148 | BM75: FALSE | BN75: ='Exchange Rates'!D93 -> 0 | BP75: =IF(BM75,'Exchange Rates'!E93) -> FALSE
L76: 74 | M76: DEO | N76: Diageo | O76: F | P76: Yahoo | Q76: 74 | R76: FALSE | S76: =IF(R76,'Yahoo Index'!E128,"") ->  | T76: =IF(R76,'Yahoo Index'!F128,"") ->  | X76: 79 | Y76: FALSE | Z76: =IF($F$6,'FRED Indicies'!E89) -> 0 | AB76: =IF($F$6,'FRED Indicies'!D89) -> 0 | AF76: 80 | AG76: FALSE | AH76: =IF(AG76,'Google Index'!E103) -> FALSE | AJ76: =IF(AF76,'Google Index'!F103) -> 0 | AN76: 80 | AO76: FALSE | AP76: =IF(AO76,'Commodity Prices'!C89) -> FALSE | AR76: =IF(AO76,'Commodity Prices'!D89) -> FALSE | AV76: 83 | AW76: FALSE | AX76: =IF(AW76,'Yahoo Stocks'!D103) -> FALSE | AY76: DEO | AZ76: =IF(AW76,'Yahoo Stocks'!E103) -> FALSE | BA76: Diageo | BB76: F | BC76: Yahoo | BD76: 149 | BE76: FALSE | BF76: =IF(BE76,'Google Finance Stocks'!D100) -> FALSE | BH76: =IF(BE76,'Google Finance Stocks'!E100) -> FALSE | BL76: 149 | BM76: FALSE | BN76: ='Exchange Rates'!D94 -> 0 | BP76: =IF(BM76,'Exchange Rates'!E94) -> FALSE
L77: 75 | M77: ECL | N77: Eco Lab | O77: F | P77: Yahoo | Q77: 75 | R77: FALSE | S77: =IF(R77,'Yahoo Index'!E129,"") ->  | T77: =IF(R77,'Yahoo Index'!F129,"") ->  | X77: 80 | Y77: FALSE | Z77: =IF($F$6,'FRED Indicies'!E90) -> 0 | AB77: =IF($F$6,'FRED Indicies'!D90) -> 0 | AF77: 81 | AG77: FALSE | AH77: =IF(AG77,'Google Index'!E104) -> FALSE | AJ77: =IF(AF77,'Google Index'!F104) -> 0 | AN77: 81 | AO77: FALSE | AP77: =IF(AO77,'Commodity Prices'!C90) -> FALSE | AR77: =IF(AO77,'Commodity Prices'!D90) -> FALSE | AV77: 84 | AW77: FALSE | AX77: =IF(AW77,'Yahoo Stocks'!D104) -> FALSE | AY77: ECL | AZ77: =IF(AW77,'Yahoo Stocks'!E104) -> FALSE | BA77: Eco Lab | BB77: F | BC77: Yahoo | BD77: 150 | BE77: FALSE | BF77: =IF(BE77,'Google Finance Stocks'!D101) -> FALSE | BH77: =IF(BE77,'Google Finance Stocks'!E101) -> FALSE | BL77: 150 | BM77: FALSE | BN77: ='Exchange Rates'!D95 -> 0 | BP77: =IF(BM77,'Exchange Rates'!E95) -> FALSE
L78: 76 | M78: GDP Inf | N78: Implicit Price Deflator | O78: B | P78: FRED | Q78: 76 | R78: FALSE | S78: =IF(R78,'Yahoo Index'!E130,"") ->  | T78: =IF(R78,'Yahoo Index'!F130,"") ->  | X78: 81 | Y78: FALSE | Z78: =IF($F$6,'FRED Indicies'!E91) -> 0 | AB78: =IF($F$6,'FRED Indicies'!D91) -> 0 | AF78: 82 | AG78: FALSE | AH78: =IF(AG78,'Google Index'!E105) -> FALSE | AJ78: =IF(AF78,'Google Index'!F105) -> 0 | AN78: 82 | AO78: FALSE | AP78: =IF(AO78,'Commodity Prices'!C91) -> FALSE | AR78: =IF(AO78,'Commodity Prices'!D91) -> FALSE | AV78: 85 | AW78: FALSE | AX78: =IF(AW78,'Yahoo Stocks'!D105) -> FALSE | AZ78: =IF(AW78,'Yahoo Stocks'!E105) -> FALSE | BD78: 151 | BE78: FALSE | BF78: =IF(BE78,'Google Finance Stocks'!D102) -> FALSE | BH78: =IF(BE78,'Google Finance Stocks'!E102) -> FALSE | BL78: 151 | BM78: FALSE | BN78: ='Exchange Rates'!D96 -> 0 | BO78: GDP Inf | BP78: =IF(BM78,'Exchange Rates'!E96) -> FALSE | BQ78: Implicit Price Deflator | BR78: B | BS78: FRED
L79: 77 | M79: CPI US | N79: Consumer Price Inflation | O79: B | P79: FRED | Q79: 77 | R79: FALSE | S79: =IF(R79,'Yahoo Index'!E131,"") ->  | T79: =IF(R79,'Yahoo Index'!F131,"") ->  | X79: 82 | Y79: FALSE | Z79: =IF($F$6,'FRED Indicies'!E92) -> 0 | AB79: =IF($F$6,'FRED Indicies'!D92) -> 0 | AF79: 83 | AG79: FALSE | AH79: =IF(AG79,'Google Index'!E106) -> FALSE | AJ79: =IF(AF79,'Google Index'!F106) -> 0 | AN79: 83 | AO79: FALSE | AP79: =IF(AO79,'Commodity Prices'!C92) -> FALSE | AR79: =IF(AO79,'Commodity Prices'!D92) -> FALSE | AV79: 86 | AW79: FALSE | AX79: =IF(AW79,'Yahoo Stocks'!D106) -> FALSE | AZ79: =IF(AW79,'Yahoo Stocks'!E106) -> FALSE | BD79: 152 | BE79: FALSE | BF79: =IF(BE79,'Google Finance Stocks'!D103) -> FALSE | BH79: =IF(BE79,'Google Finance Stocks'!E103) -> FALSE | BL79: 152 | BM79: FALSE | BN79: ='Exchange Rates'!D97 -> 0 | BO79: CPI US | BP79: =IF(BM79,'Exchange Rates'!E97) -> FALSE | BQ79: Consumer Price Inflation | BR79: B | BS79: FRED
L80: 78 | M80: Euro | N80: U.S. / Euro Foreign Exchange Rate (EXUSEU) | O80: B | P80: FRED | Q80: 78 | R80: FALSE | S80: =IF(R80,'Yahoo Index'!E132,"") ->  | T80: =IF(R80,'Yahoo Index'!F132,"") ->  | X80: 83 | Y80: FALSE | Z80: =IF($F$6,'FRED Indicies'!E93) -> 0 | AB80: =IF($F$6,'FRED Indicies'!D93) -> 0 | AF80: 84 | AG80: FALSE | AH80: =IF(AG80,'Google Index'!E107) -> FALSE | AJ80: =IF(AF80,'Google Index'!F107) -> 0 | AN80: 84 | AO80: FALSE | AP80: =IF(AO80,'Commodity Prices'!C93) -> FALSE | AR80: =IF(AO80,'Commodity Prices'!D93) -> FALSE | AV80: 87 | AW80: FALSE | AX80: =IF(AW80,'Yahoo Stocks'!D107) -> FALSE | AZ80: =IF(AW80,'Yahoo Stocks'!E107) -> FALSE | BD80: 153 | BE80: FALSE | BF80: =IF(BE80,'Google Finance Stocks'!D104) -> FALSE | BH80: =IF(BE80,'Google Finance Stocks'!E104) -> FALSE | BL80: 153 | BM80: FALSE | BN80: ='Exchange Rates'!D98 -> 0 | BO80: Euro | BP80: =IF(BM80,'Exchange Rates'!E98) -> FALSE | BQ80: U.S. / Euro Foreign Exchange Rate (EXUSEU) | BR80: B | BS80: FRED
L81: 79 | M81: INR | N81: India / U.S. Foreign Exchange Rate (DEXINUS) | O81: B | P81: FRED | Q81: 79 | R81: FALSE | S81: =IF(R81,'Yahoo Index'!E133,"") ->  | T81: =IF(R81,'Yahoo Index'!F133,"") ->  | X81: 84 | Y81: FALSE | Z81: =IF($F$6,'FRED Indicies'!E94) -> 0 | AB81: =IF($F$6,'FRED Indicies'!D94) -> 0 | AF81: 85 | AG81: FALSE | AH81: =IF(AG81,'Google Index'!E108) -> FALSE | AJ81: =IF(AF81,'Google Index'!F108) -> 0 | AN81: 85 | AO81: FALSE | AP81: =IF(AO81,'Commodity Prices'!C94) -> FALSE | AR81: =IF(AO81,'Commodity Prices'!D94) -> FALSE | AV81: 88 | AW81: FALSE | AX81: =IF(AW81,'Yahoo Stocks'!D108) -> FALSE | AZ81: =IF(AW81,'Yahoo Stocks'!E108) -> FALSE | BD81: 154 | BE81: FALSE | BF81: =IF(BE81,'Google Finance Stocks'!D105) -> FALSE | BH81: =IF(BE81,'Google Finance Stocks'!E105) -> FALSE | BL81: 154 | BM81: FALSE | BN81: ='Exchange Rates'!D99 -> 0 | BO81: INR | BP81: =IF(BM81,'Exchange Rates'!E99) -> FALSE | BQ81: India / U.S. Foreign Exchange Rate (DEXINUS) | BR81: B | BS81: FRED
L82: 80 | M82: UK | N82: U.S. / U.K. Foreign Exchange Rate (EXUSUK) | O82: B | P82: FRED | Q82: 80 | R82: FALSE | S82: =IF(R82,'Yahoo Index'!E134,"") ->  | T82: =IF(R82,'Yahoo Index'!F134,"") ->  | X82: 85 | Y82: FALSE | Z82: =IF($F$6,'FRED Indicies'!E95) -> 0 | AB82: =IF($F$6,'FRED Indicies'!D95) -> 0 | AF82: 86 | AG82: FALSE | AH82: =IF(AG82,'Google Index'!E109) -> FALSE | AJ82: =IF(AF82,'Google Index'!F109) -> 0 | AN82: 86 | AO82: FALSE | AP82: =IF(AO82,'Commodity Prices'!C95) -> FALSE | AR82: =IF(AO82,'Commodity Prices'!D95) -> FALSE | AV82: 89 | AW82: FALSE | AX82: =IF(AW82,'Yahoo Stocks'!D109) -> FALSE | AZ82: =IF(AW82,'Yahoo Stocks'!E109) -> FALSE | BD82: 155 | BE82: FALSE | BF82: =IF(BE82,'Google Finance Stocks'!D106) -> FALSE | BH82: =IF(BE82,'Google Finance Stocks'!E106) -> FALSE | BL82: 155 | BM82: FALSE | BN82: ='Exchange Rates'!D100 -> 0 | BO82: UK | BP82: =IF(BM82,'Exchange Rates'!E100) -> FALSE | BQ82: U.S. / U.K. Foreign Exchange Rate (EXUSUK) | BR82: B | BS82: FRED
L83: 81 | M83: CFH | N83: Switzerland / U.S. Foreign Exchange Rate (DEXSZUS) | O83: B | P83: FRED | Q83: 81 | R83: FALSE | S83: =IF(R83,'Yahoo Index'!E135,"") ->  | T83: =IF(R83,'Yahoo Index'!F135,"") ->  | X83: 86 | Y83: FALSE | Z83: =IF($F$6,'FRED Indicies'!E96) -> 0 | AB83: =IF($F$6,'FRED Indicies'!D96) -> 0 | AF83: 87 | AG83: FALSE | AH83: =IF(AG83,'Google Index'!E110) -> FALSE | AJ83: =IF(AF83,'Google Index'!F110) -> 0 | AN83: 87 | AO83: FALSE | AP83: =IF(AO83,'Commodity Prices'!C96) -> FALSE | AR83: =IF(AO83,'Commodity Prices'!D96) -> FALSE | AV83: 90 | AW83: FALSE | AX83: =IF(AW83,'Yahoo Stocks'!D110) -> FALSE | AZ83: =IF(AW83,'Yahoo Stocks'!E110) -> FALSE | BD83: 156 | BE83: FALSE | BF83: =IF(BE83,'Google Finance Stocks'!D107) -> FALSE | BH83: =IF(BE83,'Google Finance Stocks'!E107) -> FALSE | BL83: 156 | BM83: FALSE | BN83: ='Exchange Rates'!D101 -> 0 | BO83: CFH | BP83: =IF(BM83,'Exchange Rates'!E101) -> FALSE | BQ83: Switzerland / U.S. Foreign Exchange Rate (DEXSZUS) | BR83: B | BS83: FRED
L84: 82 | M84: US NOM GNP | N84: Gross National Product (GNP) | O84: B | P84: FRED | Q84: 82 | R84: FALSE | S84: =IF(R84,'Yahoo Index'!E136,"") ->  | T84: =IF(R84,'Yahoo Index'!F136,"") ->  | X84: 87 | Y84: FALSE | Z84: =IF($F$6,'FRED Indicies'!E97) -> 0 | AB84: =IF($F$6,'FRED Indicies'!D97) -> 0 | AF84: 88 | AG84: FALSE | AH84: =IF(AG84,'Google Index'!E111) -> FALSE | AJ84: =IF(AF84,'Google Index'!F111) -> 0 | AN84: 88 | AO84: FALSE | AP84: =IF(AO84,'Commodity Prices'!C97) -> FALSE | AR84: =IF(AO84,'Commodity Prices'!D97) -> FALSE | AV84: 91 | AW84: FALSE | AX84: =IF(AW84,'Yahoo Stocks'!D111) -> FALSE | AZ84: =IF(AW84,'Yahoo Stocks'!E111) -> FALSE | BD84: 157 | BE84: FALSE | BF84: =IF(BE84,'Google Finance Stocks'!D108) -> FALSE | BH84: =IF(BE84,'Google Finance Stocks'!E108) -> FALSE | BL84: 157 | BM84: FALSE | BN84: ='Exchange Rates'!D102 -> 0 | BO84: US NOM GNP | BP84: =IF(BM84,'Exchange Rates'!E102) -> FALSE | BQ84: Gross National Product (GNP) | BR84: B | BS84: FRED
L85: 83 | M85: India Disc Rate | N85: Interest Rates, Discount Rate for India (INTDSRINM193N) | O85: B | P85: FRED | Q85: 83 | R85: FALSE | S85: =IF(R85,'Yahoo Index'!E137,"") ->  | T85: =IF(R85,'Yahoo Index'!F137,"") ->  | X85: 88 | Y85: FALSE | Z85: =IF($F$6,'FRED Indicies'!E98) -> 0 | AB85: =IF($F$6,'FRED Indicies'!D98) -> 0 | AF85: 89 | AG85: FALSE | AH85: =IF(AG85,'Google Index'!E112) -> FALSE | AJ85: =IF(AF85,'Google Index'!F112) -> 0 | AN85: 89 | AO85: FALSE | AP85: =IF(AO85,'Commodity Prices'!C98) -> FALSE | AR85: =IF(AO85,'Commodity Prices'!D98) -> FALSE | AV85: 92 | AW85: FALSE | AX85: =IF(AW85,'Yahoo Stocks'!D112) -> FALSE | AZ85: =IF(AW85,'Yahoo Stocks'!E112) -> FALSE | BD85: 158 | BE85: FALSE | BF85: =IF(BE85,'Google Finance Stocks'!D109) -> FALSE | BH85: =IF(BE85,'Google Finance Stocks'!E109) -> FALSE | BL85: 158 | BM85: FALSE | BN85: ='Exchange Rates'!D103 -> 0 | BO85: India Disc Rate | BP85: =IF(BM85,'Exchange Rates'!E103) -> FALSE | BQ85: Interest Rates, Discount Rate for India (INTDSRINM193N) | BR85: B | BS85: FRED
L86: 84 | M86: India Gvt Bonds | N86: Interest Rates, Government Securities, Government Bonds for India (INTGSBINM193N) | O86: B | P86: FRED | Q86: 84 | R86: FALSE | S86: =IF(R86,'Yahoo Index'!E138,"") ->  | T86: =IF(R86,'Yahoo Index'!F138,"") ->  | X86: 89 | Y86: FALSE | Z86: =IF($F$6,'FRED Indicies'!E99) -> 0 | AB86: =IF($F$6,'FRED Indicies'!D99) -> 0 | AF86: 90 | AG86: FALSE | AH86: =IF(AG86,'Google Index'!E113) -> FALSE | AJ86: =IF(AF86,'Google Index'!F113) -> 0 | AN86: 90 | AO86: FALSE | AP86: =IF(AO86,'Commodity Prices'!C99) -> FALSE | AR86: =IF(AO86,'Commodity Prices'!D99) -> FALSE | AV86: 93 | AW86: FALSE | AX86: =IF(AW86,'Yahoo Stocks'!D113) -> FALSE | AZ86: =IF(AW86,'Yahoo Stocks'!E113) -> FALSE | BD86: 159 | BE86: FALSE | BF86: =IF(BE86,'Google Finance Stocks'!D110) -> FALSE | BH86: =IF(BE86,'Google Finance Stocks'!E110) -> FALSE | BL86: 159 | BM86: FALSE | BN86: ='Exchange Rates'!D104 -> 0 | BO86: India Gvt Bonds | BP86: =IF(BM86,'Exchange Rates'!E104) -> FALSE | BQ86: Interest Rates, Government Securities, Government Bonds for India (INTGSBINM193N) | BR86: B | BS86: FRED
L87: 85 | M87: India 10 Yr Main | N87: Interest Rates: Long-term government bond yields: 10-year: Main including benchmark for India (INDIRLTLT01STM) | O87: B | P87: FRED | Q87: 85 | R87: FALSE | S87: =IF(R87,'Yahoo Index'!E139,"") ->  | T87: =IF(R87,'Yahoo Index'!F139,"") ->  | X87: 90 | Y87: FALSE | Z87: =IF($F$6,'FRED Indicies'!E100) -> 0 | AB87: =IF($F$6,'FRED Indicies'!D100) -> 0 | AF87: 91 | AG87: FALSE | AH87: =IF(AG87,'Google Index'!E114) -> FALSE | AJ87: =IF(AF87,'Google Index'!F114) -> 0 | AN87: 91 | AO87: FALSE | AP87: =IF(AO87,'Commodity Prices'!C100) -> FALSE | AR87: =IF(AO87,'Commodity Prices'!D100) -> FALSE | AV87: 94 | AW87: FALSE | AX87: =IF(AW87,'Yahoo Stocks'!D114) -> FALSE | AZ87: =IF(AW87,'Yahoo Stocks'!E114) -> FALSE | BD87: 160 | BE87: FALSE | BF87: =IF(BE87,'Google Finance Stocks'!D111) -> FALSE | BH87: =IF(BE87,'Google Finance Stocks'!E111) -> FALSE | BL87: 160 | BM87: FALSE | BN87: ='Exchange Rates'!D105 -> 0 | BO87: India 10 Yr Main | BP87: =IF(BM87,'Exchange Rates'!E105) -> FALSE | BQ87: Interest Rates: Long-term government bond yields: 10-year: Main including benchmark for India (INDIRLTLT01STM) | BR87: B | BS87: FRED
L88: 86 | M88: India Inflation | N88: Consumer Price Index: Total All Items for India (CPALTT01INM659N) | O88: B | P88: FRED | Q88: 86 | R88: FALSE | S88: =IF(R88,'Yahoo Index'!E140,"") ->  | T88: =IF(R88,'Yahoo Index'!F140,"") ->  | X88: 91 | Y88: FALSE | Z88: =IF($F$6,'FRED Indicies'!E101) -> 0 | AB88: =IF($F$6,'FRED Indicies'!D101) -> 0 | AF88: 92 | AG88: FALSE | AH88: =IF(AG88,'Google Index'!E115) -> FALSE | AJ88: =IF(AF88,'Google Index'!F115) -> 0 | AN88: 92 | AO88: FALSE | AP88: =IF(AO88,'Commodity Prices'!C101) -> FALSE | AR88: =IF(AO88,'Commodity Prices'!D101) -> FALSE | AV88: 95 | AW88: FALSE | AX88: =IF(AW88,'Yahoo Stocks'!D115) -> FALSE | AZ88: =IF(AW88,'Yahoo Stocks'!E115) -> FALSE | BD88: 161 | BE88: FALSE | BF88: =IF(BE88,'Google Finance Stocks'!D112) -> FALSE | BH88: =IF(BE88,'Google Finance Stocks'!E112) -> FALSE | BL88: 161 | BM88: FALSE | BN88: ='Exchange Rates'!D106 -> 0 | BO88: India Inflation | BP88: =IF(BM88,'Exchange Rates'!E106) -> FALSE | BQ88: Consumer Price Index: Total All Items for India (CPALTT01INM659N) | BR88: B | BS88: FRED
L89: 87 | M89: 5 yr treasury | N89: 5-Year Treasury Constant Maturity Rate (GS5) | O89: B | P89: FRED | Q89: 87 | R89: FALSE | S89: =IF(R89,'Yahoo Index'!E141,"") ->  | T89: =IF(R89,'Yahoo Index'!F141,"") ->  | X89: 92 | Y89: FALSE | Z89: =IF($F$6,'FRED Indicies'!E102) -> 0 | AB89: =IF($F$6,'FRED Indicies'!D102) -> 0 | AF89: 93 | AG89: FALSE | AH89: =IF(AG89,'Google Index'!E116) -> FALSE | AJ89: =IF(AF89,'Google Index'!F116) -> 0 | AN89: 93 | AO89: FALSE | AP89: =IF(AO89,'Commodity Prices'!C102) -> FALSE | AR89: =IF(AO89,'Commodity Prices'!D102) -> FALSE | AV89: 96 | AW89: FALSE | AX89: =IF(AW89,'Yahoo Stocks'!D116) -> FALSE | AZ89: =IF(AW89,'Yahoo Stocks'!E116) -> FALSE | BD89: 162 | BE89: FALSE | BF89: =IF(BE89,'Google Finance Stocks'!D113) -> FALSE | BH89: =IF(BE89,'Google Finance Stocks'!E113) -> FALSE | BL89: 162 | BM89: FALSE | BN89: ='Exchange Rates'!D107 -> 0 | BO89: 5 yr treasury | BP89: =IF(BM89,'Exchange Rates'!E107) -> FALSE | BQ89: 5-Year Treasury Constant Maturity Rate (GS5) | BR89: B | BS89: FRED
L90: 88 | M90: 10 year treasury | N90: 10-Year Treasury Constant Maturity Rate (GS10) | O90: B | P90: FRED | Q90: 88 | R90: FALSE | S90: =IF(R90,'Yahoo Index'!E142,"") ->  | T90: =IF(R90,'Yahoo Index'!F142,"") ->  | X90: 93 | Y90: FALSE | Z90: =IF($F$6,'FRED Indicies'!E103) -> 0 | AB90: =IF($F$6,'FRED Indicies'!D103) -> 0 | AF90: 94 | AG90: FALSE | AH90: =IF(AG90,'Google Index'!E117) -> FALSE | AJ90: =IF(AF90,'Google Index'!F117) -> 0 | AN90: 94 | AO90: FALSE | AP90: =IF(AO90,'Commodity Prices'!C103) -> FALSE | AR90: =IF(AO90,'Commodity Prices'!D103) -> FALSE | AV90: 97 | AW90: FALSE | AX90: =IF(AW90,'Yahoo Stocks'!D117) -> FALSE | AZ90: =IF(AW90,'Yahoo Stocks'!E117) -> FALSE | BD90: 163 | BE90: FALSE | BF90: =IF(BE90,'Google Finance Stocks'!D114) -> FALSE | BH90: =IF(BE90,'Google Finance Stocks'!E114) -> FALSE | BL90: 163 | BM90: FALSE | BN90: ='Exchange Rates'!D108 -> 0 | BO90: 10 year treasury | BP90: =IF(BM90,'Exchange Rates'!E108) -> FALSE | BQ90: 10-Year Treasury Constant Maturity Rate (GS10) | BR90: B | BS90: FRED
L91: 89 | M91: US Med Inc Nom | N91: Median Household Income in the United States (MEHOINUSA646N) | O91: B | P91: FRED | Q91: 89 | R91: FALSE | S91: =IF(R91,'Yahoo Index'!E143,"") ->  | T91: =IF(R91,'Yahoo Index'!F143,"") ->  | X91: 94 | Y91: FALSE | Z91: =IF($F$6,'FRED Indicies'!E104) -> 0 | AB91: =IF($F$6,'FRED Indicies'!D104) -> 0 | AF91: 95 | AG91: FALSE | AH91: =IF(AG91,'Google Index'!E118) -> FALSE | AJ91: =IF(AF91,'Google Index'!F118) -> 0 | AN91: 95 | AO91: FALSE | AP91: =IF(AO91,'Commodity Prices'!C104) -> FALSE | AR91: =IF(AO91,'Commodity Prices'!D104) -> FALSE | AV91: 98 | AW91: =IF(AND($F$15,AV91<=$H$15),AV91) -> FALSE | AX91: =IF(AW91,'Yahoo Stocks'!D118) -> FALSE | AY91: =IFERROR(INDEX(AX:AX,MATCH(L91,AW:AW,0)),"") ->  | AZ91: =IF(AW91,'Yahoo Stocks'!E118) -> FALSE | BA91: =IFERROR(INDEX(AZ:AZ,MATCH(L91,AW:AW,0)),"") ->  | BB91: =IF(AY91<>"",$I$15,"") ->  | BD91: 164 | BE91: FALSE | BF91: =IF(BE91,'Google Finance Stocks'!D115) -> FALSE | BH91: =IF(BE91,'Google Finance Stocks'!E115) -> FALSE | BL91: 164 | BM91: FALSE | BN91: ='Exchange Rates'!D109 -> 0 | BO91: US Med Inc Nom | BP91: =IF(BM91,'Exchange Rates'!E109) -> FALSE | BQ91: Median Household Income in the United States (MEHOINUSA646N) | BR91: B | BS91: FRED
L92: 90 | M92: Median Income | N92: Employed full time: Median usual weekly real earnings: d over (LES1252881600Q) | O92: B | P92: FRED | Q92: 90 | R92: FALSE | S92: =IF(R92,'Yahoo Index'!E144,"") ->  | T92: =IF(R92,'Yahoo Index'!F144,"") ->  | X92: 95 | Y92: FALSE | Z92: =IF($F$6,'FRED Indicies'!E105) -> 0 | AB92: =IF($F$6,'FRED Indicies'!D105) -> 0 | AF92: 96 | AG92: FALSE | AH92: =IF(AG92,'Google Index'!E119) -> FALSE | AJ92: =IF(AF92,'Google Index'!F119) -> 0 | AN92: 96 | AO92: FALSE | AP92: =IF(AO92,'Commodity Prices'!C105) -> FALSE | AR92: =IF(AO92,'Commodity Prices'!D105) -> FALSE | AV92: 99 | AW92: FALSE | AX92: =IF(AW92,'Yahoo Stocks'!D119) -> FALSE | AZ92: =IF(AW92,'Yahoo Stocks'!E119) -> FALSE | BD92: 165 | BE92: FALSE | BF92: =IF(BE92,'Google Finance Stocks'!D116) -> FALSE | BH92: =IF(BE92,'Google Finance Stocks'!E116) -> FALSE | BL92: 165 | BM92: FALSE | BN92: ='Exchange Rates'!D110 -> 0 | BO92: Median Income | BP92: =IF(BM92,'Exchange Rates'!E110) -> FALSE | BQ92: Employed full time: Median usual weekly real earnings: d over (LES1252881600Q) | BR92: B | BS92: FRED
L93: 91 | M93: Corp Profit | N93: Corporate Profits | O93: B | P93: FRED | Q93: 91 | R93: FALSE | S93: =IF(R93,'Yahoo Index'!E145,"") ->  | T93: =IF(R93,'Yahoo Index'!F145,"") ->  | X93: 96 | Y93: FALSE | Z93: =IF($F$6,'FRED Indicies'!E106) -> 0 | AB93: =IF($F$6,'FRED Indicies'!D106) -> 0 | AF93: 97 | AG93: FALSE | AH93: =IF(AG93,'Google Index'!E120) -> FALSE | AJ93: =IF(AF93,'Google Index'!F120) -> 0 | AN93: 97 | AO93: FALSE | AP93: =IF(AO93,'Commodity Prices'!C106) -> FALSE | AR93: =IF(AO93,'Commodity Prices'!D106) -> FALSE | AV93: 100 | AW93: FALSE | AX93: =IF(AW93,'Yahoo Stocks'!D120) -> FALSE | AZ93: =IF(AW93,'Yahoo Stocks'!E120) -> FALSE | BD93: 166 | BE93: FALSE | BF93: =IF(BE93,'Google Finance Stocks'!D117) -> FALSE | BH93: =IF(BE93,'Google Finance Stocks'!E117) -> FALSE | BL93: 166 | BM93: FALSE | BN93: ='Exchange Rates'!D111 -> 0 | BO93: Corp Profit | BP93: =IF(BM93,'Exchange Rates'!E111) -> FALSE | BQ93: Corporate Profits | BR93: B | BS93: FRED
L94: 92 | M94: Corp Nonfin | N94: Non Financial Corporate Profits | O94: B | P94: FRED | Q94: 92 | R94: FALSE | S94: =IF(R94,'Yahoo Index'!E146,"") ->  | T94: =IF(R94,'Yahoo Index'!F146,"") ->  | X94: 97 | Y94: FALSE | Z94: =IF($F$6,'FRED Indicies'!E107) -> 0 | AB94: =IF($F$6,'FRED Indicies'!D107) -> 0 | AF94: 98 | AG94: FALSE | AH94: =IF(AG94,'Google Index'!E121) -> FALSE | AJ94: =IF(AF94,'Google Index'!F121) -> 0 | AN94: 98 | AO94: FALSE | AP94: =IF(AO94,'Commodity Prices'!C107) -> FALSE | AR94: =IF(AO94,'Commodity Prices'!D107) -> FALSE | AV94: 101 | AW94: FALSE | AX94: =IF(AW94,'Yahoo Stocks'!D121) -> FALSE | AZ94: =IF(AW94,'Yahoo Stocks'!E121) -> FALSE | BD94: 167 | BE94: FALSE | BF94: =IF(BE94,'Google Finance Stocks'!D118) -> FALSE | BH94: =IF(BE94,'Google Finance Stocks'!E118) -> FALSE | BL94: 167 | BM94: FALSE | BN94: ='Exchange Rates'!D112 -> 0 | BO94: Corp Nonfin | BP94: =IF(BM94,'Exchange Rates'!E112) -> FALSE | BQ94: Non Financial Corporate Profits | BR94: B | BS94: FRED
L95: 93 | M95: Corp Aft Tax | N95: Corporate Profits After Tax | O95: B | P95: FRED | Q95: 93 | R95: FALSE | S95: =IF(R95,'Yahoo Index'!E147,"") ->  | T95: =IF(R95,'Yahoo Index'!F147,"") ->  | X95: 98 | Y95: FALSE | Z95: =IF($F$6,'FRED Indicies'!E108) -> 0 | AB95: =IF($F$6,'FRED Indicies'!D108) -> 0 | AF95: 99 | AG95: FALSE | AH95: =IF(AG95,'Google Index'!E122) -> FALSE | AJ95: =IF(AF95,'Google Index'!F122) -> 0 | AN95: 99 | AO95: FALSE | AP95: =IF(AO95,'Commodity Prices'!C108) -> FALSE | AR95: =IF(AO95,'Commodity Prices'!D108) -> FALSE | AV95: 102 | AW95: FALSE | AX95: =IF(AW95,'Yahoo Stocks'!D122) -> FALSE | AZ95: =IF(AW95,'Yahoo Stocks'!E122) -> FALSE | BD95: 168 | BE95: FALSE | BF95: =IF(BE95,'Google Finance Stocks'!D119) -> FALSE | BH95: =IF(BE95,'Google Finance Stocks'!E119) -> FALSE | BL95: 168 | BM95: FALSE | BN95: ='Exchange Rates'!D113 -> 0 | BO95: Corp Aft Tax | BP95: =IF(BM95,'Exchange Rates'!E113) -> FALSE | BQ95: Corporate Profits After Tax | BR95: B | BS95: FRED
L96: 94 | M96: Corp Inf Adjusted | N96: Corporate Profits with Inflation Adj | O96: B | P96: FRED | Q96: 94 | R96: FALSE | S96: =IF(R96,'Yahoo Index'!E148,"") ->  | T96: =IF(R96,'Yahoo Index'!F148,"") ->  | X96: 99 | Y96: FALSE | Z96: =IF($F$6,'FRED Indicies'!E109) -> 0 | AB96: =IF($F$6,'FRED Indicies'!D109) -> 0 | AF96: 100 | AG96: FALSE | AH96: =IF(AG96,'Google Index'!E123) -> FALSE | AJ96: =IF(AF96,'Google Index'!F123) -> 0 | AN96: 100 | AO96: FALSE | AP96: =IF(AO96,'Commodity Prices'!C109) -> FALSE | AR96: =IF(AO96,'Commodity Prices'!D109) -> FALSE | AV96: 103 | AW96: FALSE | AX96: =IF(AW96,'Yahoo Stocks'!D123) -> FALSE | AZ96: =IF(AW96,'Yahoo Stocks'!E123) -> FALSE | BD96: 169 | BE96: FALSE | BF96: =IF(BE96,'Google Finance Stocks'!D120) -> FALSE | BH96: =IF(BE96,'Google Finance Stocks'!E120) -> FALSE | BL96: 169 | BM96: FALSE | BN96: ='Exchange Rates'!D114 -> 0 | BO96: Corp Inf Adjusted | BP96: =IF(BM96,'Exchange Rates'!E114) -> FALSE | BQ96: Corporate Profits with Inflation Adj | BR96: B | BS96: FRED
L97: 95 | M97: GDP Inflation Index | N97: GDP Inflation Index | O97: B | P97: FRED | Q97: 95 | R97: FALSE | S97: =IF(R97,'Yahoo Index'!E149,"") ->  | T97: =IF(R97,'Yahoo Index'!F149,"") ->  | X97: 100 | Y97: FALSE | Z97: =IF($F$6,'FRED Indicies'!E110) -> 0 | AB97: =IF($F$6,'FRED Indicies'!D110) -> 0 | AF97: 101 | AG97: FALSE | AH97: =IF(AG97,'Google Index'!E124) -> FALSE | AJ97: =IF(AF97,'Google Index'!F124) -> 0 | AN97: 101 | AO97: FALSE | AP97: =IF(AO97,'Commodity Prices'!C110) -> FALSE | AR97: =IF(AO97,'Commodity Prices'!D110) -> FALSE | AV97: 104 | AW97: FALSE | AX97: =IF(AW97,'Yahoo Stocks'!D124) -> FALSE | AZ97: =IF(AW97,'Yahoo Stocks'!E124) -> FALSE | BD97: 170 | BE97: FALSE | BF97: =IF(BE97,'Google Finance Stocks'!D121) -> FALSE | BH97: =IF(BE97,'Google Finance Stocks'!E121) -> FALSE | BL97: 170 | BM97: FALSE | BN97: ='Exchange Rates'!D115 -> 0 | BO97: GDP Inflation Index | BP97: =IF(BM97,'Exchange Rates'!E115) -> FALSE | BQ97: GDP Inflation Index | BR97: B | BS97: FRED
L98: 96 | M98: CPI US Index | N98: CPI US Index | O98: B | P98: FRED | Q98: 96 | R98: FALSE | S98: =IF(R98,'Yahoo Index'!E150,"") ->  | T98: =IF(R98,'Yahoo Index'!F150,"") ->  | X98: 101 | Y98: FALSE | Z98: =IF($F$6,'FRED Indicies'!E111) -> 0 | AB98: =IF($F$6,'FRED Indicies'!D111) -> 0 | AF98: 102 | AG98: FALSE | AH98: =IF(AG98,'Google Index'!E125) -> FALSE | AJ98: =IF(AF98,'Google Index'!F125) -> 0 | AN98: 102 | AO98: FALSE | AP98: =IF(AO98,'Commodity Prices'!C111) -> FALSE | AR98: =IF(AO98,'Commodity Prices'!D111) -> FALSE | AV98: 105 | AW98: FALSE | AX98: =IF(AW98,'Yahoo Stocks'!D125) -> FALSE | AZ98: =IF(AW98,'Yahoo Stocks'!E125) -> FALSE | BD98: 171 | BE98: FALSE | BF98: =IF(BE98,'Google Finance Stocks'!D122) -> FALSE | BH98: =IF(BE98,'Google Finance Stocks'!E122) -> FALSE | BL98: 171 | BM98: FALSE | BN98: ='Exchange Rates'!D116 -> 0 | BO98: CPI US Index | BP98: =IF(BM98,'Exchange Rates'!E116) -> FALSE | BQ98: CPI US Index | BR98: B | BS98: FRED
L99: 97 | M99: US GDP | N99: Gross Domestic Product (GDP) | O99: B | P99: FRED | Q99: 97 | R99: FALSE | S99: =IF(R99,'Yahoo Index'!E151,"") ->  | T99: =IF(R99,'Yahoo Index'!F151,"") ->  | X99: 102 | Y99: FALSE | Z99: =IF($F$6,'FRED Indicies'!E112) -> 0 | AB99: =IF($F$6,'FRED Indicies'!D112) -> 0 | AF99: 103 | AG99: FALSE | AH99: =IF(AG99,'Google Index'!E126) -> FALSE | AJ99: =IF(AF99,'Google Index'!F126) -> 0 | AN99: 103 | AO99: FALSE | AP99: =IF(AO99,'Commodity Prices'!C112) -> FALSE | AR99: =IF(AO99,'Commodity Prices'!D112) -> FALSE | AV99: 106 | AW99: FALSE | AX99: =IF(AW99,'Yahoo Stocks'!D126) -> FALSE | AZ99: =IF(AW99,'Yahoo Stocks'!E126) -> FALSE | BD99: 172 | BE99: FALSE | BF99: =IF(BE99,'Google Finance Stocks'!D123) -> FALSE | BH99: =IF(BE99,'Google Finance Stocks'!E123) -> FALSE | BL99: 172 | BM99: FALSE | BN99: ='Exchange Rates'!D117 -> 0 | BO99: US GDP | BP99: =IF(BM99,'Exchange Rates'!E117) -> FALSE | BQ99: Gross Domestic Product (GDP) | BR99: B | BS99: FRED
L100: 98 | M100: Median Family Income | N100: Median Family Income in the United States (MEFAINUSA646N) | O100: B | P100: FRED | Q100: 98 | R100: FALSE | S100: =IF(R100,'Yahoo Index'!E152,"") ->  | T100: =IF(R100,'Yahoo Index'!F152,"") ->  | X100: 103 | Y100: FALSE | Z100: =IF($F$6,'FRED Indicies'!E113) -> 0 | AB100: =IF($F$6,'FRED Indicies'!D113) -> 0 | AF100: 104 | AG100: FALSE | AH100: =IF(AG100,'Google Index'!E127) -> FALSE | AJ100: =IF(AF100,'Google Index'!F127) -> 0 | AN100: 104 | AO100: FALSE | AP100: =IF(AO100,'Commodity Prices'!C113) -> FALSE | AR100: =IF(AO100,'Commodity Prices'!D113) -> FALSE | AV100: 107 | AW100: FALSE | AX100: =IF(AW100,'Yahoo Stocks'!D127) -> FALSE | AZ100: =IF(AW100,'Yahoo Stocks'!E127) -> FALSE | BD100: 173 | BE100: FALSE | BF100: =IF(BE100,'Google Finance Stocks'!D124) -> FALSE | BH100: =IF(BE100,'Google Finance Stocks'!E124) -> FALSE | BL100: 173 | BM100: FALSE | BN100: ='Exchange Rates'!D118 -> 0 | BO100: Median Family Income | BP100: =IF(BM100,'Exchange Rates'!E118) -> FALSE | BQ100: Median Family Income in the United States (MEFAINUSA646N) | BR100: B | BS100: FRED
L101: 99 | Q101: 99 | R101: FALSE | S101: =IF(R101,'Yahoo Index'!E153,"") ->  | T101: =IF(R101,'Yahoo Index'!F153,"") ->  | X101: 104 | Y101: FALSE | Z101: =IF($F$6,'FRED Indicies'!E114) -> 0 | AB101: =IF($F$6,'FRED Indicies'!D114) -> 0 | AF101: 105 | AG101: FALSE | AH101: =IF(AG101,'Google Index'!E128) -> FALSE | AJ101: =IF(AF101,'Google Index'!F128) -> 0 | AN101: 105 | AO101: FALSE | AP101: =IF(AO101,'Commodity Prices'!C114) -> FALSE | AR101: =IF(AO101,'Commodity Prices'!D114) -> FALSE | AV101: 108 | AW101: FALSE | AX101: =IF(AW101,'Yahoo Stocks'!D128) -> FALSE | AZ101: =IF(AW101,'Yahoo Stocks'!E128) -> FALSE | BD101: 174 | BE101: FALSE | BF101: =IF(BE101,'Google Finance Stocks'!D125) -> FALSE | BH101: =IF(BE101,'Google Finance Stocks'!E125) -> FALSE | BL101: 174 | BM101: FALSE | BN101: ='Exchange Rates'!D119 -> 0 | BP101: =IF(BM101,'Exchange Rates'!E119) -> FALSE
L102: 100 | Q102: 100 | R102: FALSE | S102: =IF(R102,'Yahoo Index'!E154,"") ->  | T102: =IF(R102,'Yahoo Index'!F154,"") ->  | X102: 105 | Y102: FALSE | Z102: =IF($F$6,'FRED Indicies'!E115) -> 0 | AB102: =IF($F$6,'FRED Indicies'!D115) -> 0 | AF102: 106 | AG102: FALSE | AH102: =IF(AG102,'Google Index'!E129) -> FALSE | AJ102: =IF(AF102,'Google Index'!F129) -> 0 | AN102: 106 | AO102: FALSE | AP102: =IF(AO102,'Commodity Prices'!C115) -> FALSE | AR102: =IF(AO102,'Commodity Prices'!D115) -> FALSE | AV102: 109 | AW102: FALSE | AX102: =IF(AW102,'Yahoo Stocks'!D129) -> FALSE | AZ102: =IF(AW102,'Yahoo Stocks'!E129) -> FALSE | BD102: 175 | BE102: FALSE | BF102: =IF(BE102,'Google Finance Stocks'!D126) -> FALSE | BH102: =IF(BE102,'Google Finance Stocks'!E126) -> FALSE | BL102: 175 | BM102: FALSE | BN102: ='Exchange Rates'!D120 -> 0 | BP102: =IF(BM102,'Exchange Rates'!E120) -> FALSE
L103: 101 | Q103: 101 | R103: FALSE | S103: =IF(R103,'Yahoo Index'!E155,"") ->  | T103: =IF(R103,'Yahoo Index'!F155,"") ->  | X103: 106 | Y103: FALSE | Z103: =IF($F$6,'FRED Indicies'!E116) -> 0 | AB103: =IF($F$6,'FRED Indicies'!D116) -> 0 | AF103: 107 | AG103: FALSE | AH103: =IF(AG103,'Google Index'!E130) -> FALSE | AJ103: =IF(AF103,'Google Index'!F130) -> 0 | AN103: 107 | AO103: FALSE | AP103: =IF(AO103,'Commodity Prices'!C116) -> FALSE | AR103: =IF(AO103,'Commodity Prices'!D116) -> FALSE | AV103: 110 | AW103: FALSE | AX103: =IF(AW103,'Yahoo Stocks'!D130) -> FALSE | AZ103: =IF(AW103,'Yahoo Stocks'!E130) -> FALSE | BD103: 176 | BE103: FALSE | BF103: =IF(BE103,'Google Finance Stocks'!D127) -> FALSE | BH103: =IF(BE103,'Google Finance Stocks'!E127) -> FALSE | BL103: 176 | BM103: FALSE | BN103: ='Exchange Rates'!D121 -> 0 | BP103: =IF(BM103,'Exchange Rates'!E121) -> FALSE
L104: 102 | Q104: 102 | R104: FALSE | S104: =IF(R104,'Yahoo Index'!E156,"") ->  | T104: =IF(R104,'Yahoo Index'!F156,"") ->  | X104: 107 | Y104: FALSE | Z104: =IF($F$6,'FRED Indicies'!E117) -> 0 | AB104: =IF($F$6,'FRED Indicies'!D117) -> 0 | AF104: 108 | AG104: FALSE | AH104: =IF(AG104,'Google Index'!E131) -> FALSE | AJ104: =IF(AF104,'Google Index'!F131) -> 0 | AN104: 108 | AO104: FALSE | AP104: =IF(AO104,'Commodity Prices'!C117) -> FALSE | AR104: =IF(AO104,'Commodity Prices'!D117) -> FALSE | AV104: 111 | AW104: FALSE | AX104: =IF(AW104,'Yahoo Stocks'!D131) -> FALSE | AZ104: =IF(AW104,'Yahoo Stocks'!E131) -> FALSE | BD104: 177 | BE104: FALSE | BF104: =IF(BE104,'Google Finance Stocks'!D128) -> FALSE | BH104: =IF(BE104,'Google Finance Stocks'!E128) -> FALSE | BL104: 177 | BM104: FALSE | BN104: ='Exchange Rates'!D122 -> 0 | BP104: =IF(BM104,'Exchange Rates'!E122) -> FALSE
L105: 103 | Q105: 103 | R105: FALSE | S105: =IF(R105,'Yahoo Index'!E157,"") ->  | T105: =IF(R105,'Yahoo Index'!F157,"") ->  | X105: 108 | Y105: FALSE | Z105: =IF($F$6,'FRED Indicies'!E118) -> 0 | AB105: =IF($F$6,'FRED Indicies'!D118) -> 0 | AF105: 109 | AG105: FALSE | AH105: =IF(AG105,'Google Index'!E132) -> FALSE | AJ105: =IF(AF105,'Google Index'!F132) -> 0 | AN105: 109 | AO105: FALSE | AP105: =IF(AO105,'Commodity Prices'!C118) -> FALSE | AR105: =IF(AO105,'Commodity Prices'!D118) -> FALSE | AV105: 112 | AW105: FALSE | AX105: =IF(AW105,'Yahoo Stocks'!D132) -> FALSE | AZ105: =IF(AW105,'Yahoo Stocks'!E132) -> FALSE | BD105: 178 | BE105: FALSE | BF105: =IF(BE105,'Google Finance Stocks'!D129) -> FALSE | BH105: =IF(BE105,'Google Finance Stocks'!E129) -> FALSE | BL105: 178 | BM105: FALSE | BN105: ='Exchange Rates'!D123 -> 0 | BP105: =IF(BM105,'Exchange Rates'!E123) -> FALSE
L106: 104 | Q106: 104 | R106: FALSE | S106: =IF(R106,'Yahoo Index'!E158,"") ->  | T106: =IF(R106,'Yahoo Index'!F158,"") ->  | X106: 109 | Y106: FALSE | Z106: =IF($F$6,'FRED Indicies'!E119) -> 0 | AB106: =IF($F$6,'FRED Indicies'!D119) -> 0 | AF106: 110 | AG106: FALSE | AH106: =IF(AG106,'Google Index'!E133) -> FALSE | AJ106: =IF(AF106,'Google Index'!F133) -> 0 | AN106: 110 | AO106: FALSE | AP106: =IF(AO106,'Commodity Prices'!C119) -> FALSE | AR106: =IF(AO106,'Commodity Prices'!D119) -> FALSE | AV106: 113 | AW106: FALSE | AX106: =IF(AW106,'Yahoo Stocks'!D133) -> FALSE | AZ106: =IF(AW106,'Yahoo Stocks'!E133) -> FALSE | BD106: 179 | BE106: FALSE | BF106: =IF(BE106,'Google Finance Stocks'!D130) -> FALSE | BH106: =IF(BE106,'Google Finance Stocks'!E130) -> FALSE | BL106: 179 | BM106: FALSE | BN106: ='Exchange Rates'!D124 -> 0 | BP106: =IF(BM106,'Exchange Rates'!E124) -> FALSE
L107: 105 | Q107: 105 | R107: FALSE | S107: =IF(R107,'Yahoo Index'!E159,"") ->  | T107: =IF(R107,'Yahoo Index'!F159,"") ->  | X107: 110 | Y107: FALSE | Z107: =IF($F$6,'FRED Indicies'!E120) -> 0 | AB107: =IF($F$6,'FRED Indicies'!D120) -> 0 | AF107: 111 | AG107: FALSE | AH107: =IF(AG107,'Google Index'!E134) -> FALSE | AJ107: =IF(AF107,'Google Index'!F134) -> 0 | AN107: 111 | AO107: FALSE | AP107: =IF(AO107,'Commodity Prices'!C120) -> FALSE | AR107: =IF(AO107,'Commodity Prices'!D120) -> FALSE | AV107: 114 | AW107: FALSE | AX107: =IF(AW107,'Yahoo Stocks'!D134) -> FALSE | AZ107: =IF(AW107,'Yahoo Stocks'!E134) -> FALSE | BD107: 180 | BE107: FALSE | BF107: =IF(BE107,'Google Finance Stocks'!D131) -> FALSE | BH107: =IF(BE107,'Google Finance Stocks'!E131) -> FALSE | BL107: 180 | BM107: FALSE | BN107: ='Exchange Rates'!D125 -> 0 | BP107: =IF(BM107,'Exchange Rates'!E125) -> FALSE
L108: 106 | Q108: 106 | R108: FALSE | S108: =IF(R108,'Yahoo Index'!E160,"") ->  | T108: =IF(R108,'Yahoo Index'!F160,"") ->  | X108: 111 | Y108: FALSE | Z108: =IF($F$6,'FRED Indicies'!E121) -> 0 | AB108: =IF($F$6,'FRED Indicies'!D121) -> 0 | AF108: 112 | AG108: FALSE | AH108: =IF(AG108,'Google Index'!E135) -> FALSE | AJ108: =IF(AF108,'Google Index'!F135) -> 0 | AN108: 112 | AO108: FALSE | AP108: =IF(AO108,'Commodity Prices'!C121) -> FALSE | AR108: =IF(AO108,'Commodity Prices'!D121) -> FALSE | AV108: 115 | AW108: FALSE | AX108: =IF(AW108,'Yahoo Stocks'!D135) -> FALSE | AZ108: =IF(AW108,'Yahoo Stocks'!E135) -> FALSE | BD108: 181 | BE108: FALSE | BF108: =IF(BE108,'Google Finance Stocks'!D132) -> FALSE | BH108: =IF(BE108,'Google Finance Stocks'!E132) -> FALSE | BL108: 181 | BM108: FALSE | BN108: ='Exchange Rates'!D126 -> 0 | BP108: =IF(BM108,'Exchange Rates'!E126) -> FALSE
L109: 107 | Q109: 107 | R109: FALSE | S109: =IF(R109,'Yahoo Index'!E161,"") ->  | T109: =IF(R109,'Yahoo Index'!F161,"") ->  | X109: 112 | Y109: FALSE | Z109: =IF($F$6,'FRED Indicies'!E122) -> 0 | AB109: =IF($F$6,'FRED Indicies'!D122) -> 0 | AF109: 113 | AG109: FALSE | AH109: =IF(AG109,'Google Index'!E136) -> FALSE | AJ109: =IF(AF109,'Google Index'!F136) -> 0 | AN109: 113 | AO109: FALSE | AP109: =IF(AO109,'Commodity Prices'!C122) -> FALSE | AR109: =IF(AO109,'Commodity Prices'!D122) -> FALSE | AV109: 116 | AW109: FALSE | AX109: =IF(AW109,'Yahoo Stocks'!D136) -> FALSE | AZ109: =IF(AW109,'Yahoo Stocks'!E136) -> FALSE | BD109: 182 | BE109: FALSE | BF109: =IF(BE109,'Google Finance Stocks'!D133) -> FALSE | BH109: =IF(BE109,'Google Finance Stocks'!E133) -> FALSE | BL109: 182 | BM109: FALSE | BN109: ='Exchange Rates'!D127 -> 0 | BP109: =IF(BM109,'Exchange Rates'!E127) -> FALSE
L110: 108 | Q110: 108 | R110: FALSE | S110: =IF(R110,'Yahoo Index'!E162,"") ->  | T110: =IF(R110,'Yahoo Index'!F162,"") ->  | X110: 113 | Y110: FALSE | Z110: =IF($F$6,'FRED Indicies'!E123) -> 0 | AB110: =IF($F$6,'FRED Indicies'!D123) -> 0 | AF110: 114 | AG110: FALSE | AH110: =IF(AG110,'Google Index'!E137) -> FALSE | AJ110: =IF(AF110,'Google Index'!F137) -> 0 | AN110: 114 | AO110: FALSE | AP110: =IF(AO110,'Commodity Prices'!C123) -> FALSE | AR110: =IF(AO110,'Commodity Prices'!D123) -> FALSE | AV110: 117 | AW110: FALSE | AX110: =IF(AW110,'Yahoo Stocks'!D137) -> FALSE | AZ110: =IF(AW110,'Yahoo Stocks'!E137) -> FALSE | BD110: 183 | BE110: FALSE | BF110: =IF(BE110,'Google Finance Stocks'!D134) -> FALSE | BH110: =IF(BE110,'Google Finance Stocks'!E134) -> FALSE | BL110: 183 | BM110: FALSE | BN110: ='Exchange Rates'!D128 -> 0 | BP110: =IF(BM110,'Exchange Rates'!E128) -> FALSE
L111: 109 | Q111: 109 | R111: FALSE | S111: =IF(R111,'Yahoo Index'!E163,"") ->  | T111: =IF(R111,'Yahoo Index'!F163,"") ->  | X111: 114 | Y111: FALSE | Z111: =IF($F$6,'FRED Indicies'!E124) -> 0 | AB111: =IF($F$6,'FRED Indicies'!D124) -> 0 | AF111: 115 | AG111: FALSE | AH111: =IF(AG111,'Google Index'!E138) -> FALSE | AJ111: =IF(AF111,'Google Index'!F138) -> 0 | AN111: 115 | AO111: FALSE | AP111: =IF(AO111,'Commodity Prices'!C124) -> FALSE | AR111: =IF(AO111,'Commodity Prices'!D124) -> FALSE | AV111: 118 | AW111: FALSE | AX111: =IF(AW111,'Yahoo Stocks'!D138) -> FALSE | AZ111: =IF(AW111,'Yahoo Stocks'!E138) -> FALSE | BD111: 184 | BE111: FALSE | BF111: =IF(BE111,'Google Finance Stocks'!D135) -> FALSE | BH111: =IF(BE111,'Google Finance Stocks'!E135) -> FALSE | BL111: 184 | BM111: FALSE | BN111: ='Exchange Rates'!D129 -> 0 | BP111: =IF(BM111,'Exchange Rates'!E129) -> FALSE
L112: 110 | Q112: 110 | R112: FALSE | S112: =IF(R112,'Yahoo Index'!E164,"") ->  | T112: =IF(R112,'Yahoo Index'!F164,"") ->  | X112: 115 | Y112: FALSE | Z112: =IF($F$6,'FRED Indicies'!E125) -> 0 | AB112: =IF($F$6,'FRED Indicies'!D125) -> 0 | AF112: 116 | AG112: FALSE | AH112: =IF(AG112,'Google Index'!E139) -> FALSE | AJ112: =IF(AF112,'Google Index'!F139) -> 0 | AN112: 116 | AO112: FALSE | AP112: =IF(AO112,'Commodity Prices'!C125) -> FALSE | AR112: =IF(AO112,'Commodity Prices'!D125) -> FALSE | AV112: 119 | AW112: FALSE | AX112: =IF(AW112,'Yahoo Stocks'!D139) -> FALSE | AZ112: =IF(AW112,'Yahoo Stocks'!E139) -> FALSE | BD112: 185 | BE112: FALSE | BF112: =IF(BE112,'Google Finance Stocks'!D136) -> FALSE | BH112: =IF(BE112,'Google Finance Stocks'!E136) -> FALSE | BL112: 185 | BM112: FALSE | BN112: ='Exchange Rates'!D130 -> 0 | BP112: =IF(BM112,'Exchange Rates'!E130) -> FALSE
L113: 111 | Q113: 111 | R113: FALSE | S113: =IF(R113,'Yahoo Index'!E165,"") ->  | T113: =IF(R113,'Yahoo Index'!F165,"") ->  | X113: 116 | Y113: FALSE | Z113: =IF($F$6,'FRED Indicies'!E126) -> 0 | AB113: =IF($F$6,'FRED Indicies'!D126) -> 0 | AF113: 117 | AG113: FALSE | AH113: =IF(AG113,'Google Index'!E140) -> FALSE | AJ113: =IF(AF113,'Google Index'!F140) -> 0 | AN113: 117 | AO113: FALSE | AP113: =IF(AO113,'Commodity Prices'!C126) -> FALSE | AR113: =IF(AO113,'Commodity Prices'!D126) -> FALSE | AV113: 120 | AW113: FALSE | AX113: =IF(AW113,'Yahoo Stocks'!D140) -> FALSE | AZ113: =IF(AW113,'Yahoo Stocks'!E140) -> FALSE | BD113: 186 | BE113: FALSE | BF113: =IF(BE113,'Google Finance Stocks'!D137) -> FALSE | BH113: =IF(BE113,'Google Finance Stocks'!E137) -> FALSE | BL113: 186 | BM113: FALSE | BN113: ='Exchange Rates'!D131 -> 0 | BP113: =IF(BM113,'Exchange Rates'!E131) -> FALSE
L114: 112 | Q114: 112 | R114: FALSE | S114: =IF(R114,'Yahoo Index'!E166,"") ->  | T114: =IF(R114,'Yahoo Index'!F166,"") ->  | X114: 117 | Y114: FALSE | Z114: =IF($F$6,'FRED Indicies'!E127) -> 0 | AB114: =IF($F$6,'FRED Indicies'!D127) -> 0 | AF114: 118 | AG114: FALSE | AH114: =IF(AG114,'Google Index'!E141) -> FALSE | AJ114: =IF(AF114,'Google Index'!F141) -> 0 | AN114: 118 | AO114: FALSE | AP114: =IF(AO114,'Commodity Prices'!C127) -> FALSE | AR114: =IF(AO114,'Commodity Prices'!D127) -> FALSE | AV114: 121 | AW114: FALSE | AX114: =IF(AW114,'Yahoo Stocks'!D141) -> FALSE | AZ114: =IF(AW114,'Yahoo Stocks'!E141) -> FALSE | BD114: 187 | BE114: FALSE | BF114: =IF(BE114,'Google Finance Stocks'!D138) -> FALSE | BH114: =IF(BE114,'Google Finance Stocks'!E138) -> FALSE | BL114: 187 | BM114: FALSE | BN114: ='Exchange Rates'!D132 -> 0 | BP114: =IF(BM114,'Exchange Rates'!E132) -> FALSE
L115: 113 | Q115: 113 | R115: FALSE | S115: =IF(R115,'Yahoo Index'!E167,"") ->  | T115: =IF(R115,'Yahoo Index'!F167,"") ->  | X115: 118 | Y115: FALSE | Z115: =IF($F$6,'FRED Indicies'!E128) -> 0 | AB115: =IF($F$6,'FRED Indicies'!D128) -> 0 | AF115: 119 | AG115: FALSE | AH115: =IF(AG115,'Google Index'!E142) -> FALSE | AJ115: =IF(AF115,'Google Index'!F142) -> 0 | AN115: 119 | AO115: FALSE | AP115: =IF(AO115,'Commodity Prices'!C128) -> FALSE | AR115: =IF(AO115,'Commodity Prices'!D128) -> FALSE | AV115: 122 | AW115: FALSE | AX115: =IF(AW115,'Yahoo Stocks'!D142) -> FALSE | AZ115: =IF(AW115,'Yahoo Stocks'!E142) -> FALSE | BD115: 188 | BE115: FALSE | BF115: =IF(BE115,'Google Finance Stocks'!D139) -> FALSE | BH115: =IF(BE115,'Google Finance Stocks'!E139) -> FALSE | BL115: 188 | BM115: FALSE | BN115: ='Exchange Rates'!D133 -> 0 | BP115: =IF(BM115,'Exchange Rates'!E133) -> FALSE
L116: 114 | Q116: 114 | R116: FALSE | S116: =IF(R116,'Yahoo Index'!E168,"") ->  | T116: =IF(R116,'Yahoo Index'!F168,"") ->  | X116: 119 | Y116: FALSE | Z116: =IF($F$6,'FRED Indicies'!E129) -> 0 | AB116: =IF($F$6,'FRED Indicies'!D129) -> 0 | AF116: 120 | AG116: FALSE | AH116: =IF(AG116,'Google Index'!E143) -> FALSE | AJ116: =IF(AF116,'Google Index'!F143) -> 0 | AN116: 120 | AO116: FALSE | AP116: =IF(AO116,'Commodity Prices'!C129) -> FALSE | AR116: =IF(AO116,'Commodity Prices'!D129) -> FALSE | AV116: 123 | AW116: FALSE | AX116: =IF(AW116,'Yahoo Stocks'!D143) -> FALSE | AZ116: =IF(AW116,'Yahoo Stocks'!E143) -> FALSE | BD116: 189 | BE116: FALSE | BF116: =IF(BE116,'Google Finance Stocks'!D140) -> FALSE | BH116: =IF(BE116,'Google Finance Stocks'!E140) -> FALSE | BL116: 189 | BM116: FALSE | BN116: ='Exchange Rates'!D134 -> 0 | BP116: =IF(BM116,'Exchange Rates'!E134) -> FALSE
L117: 115 | M117: =S117&AA117&AI117&AQ117&AY117&BG117&BO117 ->  | N117: =T117&AC117&AK117&AS117&BA117&BI117&BQ117 ->  | O117: =U117&AD117&AL117&AT117&BB117&BJ117&BR117 ->  | P117: =V117&AE117&AM117&AU117&BC117&BK117&BS117 ->  | Q117: 115 | R117: =IF(AND($F$3,Q117<=$H$3),Q117) -> FALSE | S117: =IF(R117,'Yahoo Index'!E169,"") ->  | T117: =IF(R117,'Yahoo Index'!F169,"") ->  | U117: =IF(R117,$I$3,"") ->  | V117: =IF(R117,$J$3,"") ->  | X117: 120 | Y117: =IF(AND($F$6,X117<=$H$6),X117) -> FALSE | Z117: =IF($F$6,'FRED Indicies'!E130) -> 0 | AA117: =IFERROR(INDEX(Z:Z,MATCH(L117,Y:Y,0)),"") ->  | AB117: =IF($F$6,'FRED Indicies'!D130) -> 0 | AC117: =IFERROR(INDEX(AB:AB,MATCH(L117,Y:Y,0)),"") ->  | AD117: =IF(AA117<>"",$I$6,"") ->  | AE117: =IF(AA117<>"",$J$6,"") ->  | AF117: 121 | AG117: =IF(AND($F$9,AF117<=$H$9),AF117) -> FALSE | AH117: =IF(AG117,'Google Index'!E144) -> FALSE | AI117: =IFERROR(INDEX(AH:AH,MATCH(Q117,AG:AG,0)),"") ->  | AJ117: =IF(AF117,'Google Index'!F144) -> 0 | AK117: =IFERROR(INDEX(AJ:AJ,MATCH(Q117,AG:AG,0)),"") ->  | AL117: =IF(AI117<>"",$I$6,"") ->  | AM117: =IF(AK117<>"",$J$6,"") ->  | AN117: 121 | AO117: =IF(AND($F$12,AN117<=$H$12),AN117) -> FALSE | AP117: =IF(AO117,'Commodity Prices'!C130) -> FALSE | AQ117: =IFERROR(INDEX(AP:AP,MATCH(L117,AO:AO,0)),"") ->  | AR117: =IF(AO117,'Commodity Prices'!D130) -> FALSE | AS117: =IFERROR(INDEX(AR:AR,MATCH(L117,AO:AO,0)),"") ->  | AT117: =IF(AQ117<>"",$I$12,"") ->  | AU117: =IF(AS117<>"",$J$12,"") ->  | AV117: 124 | AW117: FALSE | AX117: =IF(AW117,'Yahoo Stocks'!D144) -> FALSE | AZ117: =IF(AW117,'Yahoo Stocks'!E144) -> FALSE | BD117: 190 | BE117: =IF(AND($F$18,BD117<=$H$18),BD117) -> FALSE | BF117: =IF(BE117,'Google Finance Stocks'!D141) -> FALSE | BG117: =IFERROR(INDEX(BF:BF,MATCH(Q117,BE:BE,0)),"") ->  | BH117: =IF(BE117,'Google Finance Stocks'!E141) -> FALSE | BI117: =IFERROR(INDEX(BH:BH,MATCH(Q117,BE:BE,0)),"") ->  | BJ117: =IF(BI117<>"",$I$18,"") ->  | BK117: =IF(BI117<>"",$J$18,"") ->  | BL117: 190 | BM117: =IF(AND($F$21,BL117<=$H$21),BL117) -> FALSE | BN117: ='Exchange Rates'!D135 -> 0 | BO117: =IFERROR(INDEX(BN:BN,MATCH(L117,BM:BM,0)),"") ->  | BP117: =IF(BM117,'Exchange Rates'!E135) -> FALSE | BQ117: =IFERROR(INDEX(BP:BP,MATCH(L117,BM:BM,0)),"") ->  | BR117: =IF(BQ117<>"",$I$21,"") ->  | BS117: =IF(BQ117<>"",$J$21,"") -> 
L118: 116 | Q118: 116 | R118: FALSE | S118: =IF(R118,'Yahoo Index'!E170,"") ->  | T118: =IF(R118,'Yahoo Index'!F170,"") ->  | X118: 121 | Y118: FALSE | Z118: =IF($F$6,'FRED Indicies'!E131) -> 0 | AB118: =IF($F$6,'FRED Indicies'!D131) -> 0 | AF118: 122 | AG118: FALSE | AH118: =IF(AG118,'Google Index'!E145) -> FALSE | AJ118: =IF(AF118,'Google Index'!F145) -> 0 | AN118: 122 | AO118: FALSE | AP118: =IF(AO118,'Commodity Prices'!C131) -> FALSE | AR118: =IF(AO118,'Commodity Prices'!D131) -> FALSE | AV118: 125 | AW118: FALSE | AX118: =IF(AW118,'Yahoo Stocks'!D145) -> FALSE | AZ118: =IF(AW118,'Yahoo Stocks'!E145) -> FALSE | BD118: 191 | BE118: FALSE | BF118: =IF(BE118,'Google Finance Stocks'!D142) -> FALSE | BH118: =IF(BE118,'Google Finance Stocks'!E142) -> FALSE | BL118: 191 | BM118: FALSE | BN118: ='Exchange Rates'!D136 -> 0 | BP118: =IF(BM118,'Exchange Rates'!E136) -> FALSE
L119: 117 | Q119: 117 | R119: FALSE | S119: =IF(R119,'Yahoo Index'!E171,"") ->  | T119: =IF(R119,'Yahoo Index'!F171,"") ->  | X119: 122 | Y119: FALSE | Z119: =IF($F$6,'FRED Indicies'!E132) -> 0 | AB119: =IF($F$6,'FRED Indicies'!D132) -> 0 | AF119: 123 | AG119: FALSE | AH119: =IF(AG119,'Google Index'!E146) -> FALSE | AJ119: =IF(AF119,'Google Index'!F146) -> 0 | AN119: 123 | AO119: FALSE | AP119: =IF(AO119,'Commodity Prices'!C132) -> FALSE | AR119: =IF(AO119,'Commodity Prices'!D132) -> FALSE | AV119: 126 | AW119: FALSE | AX119: =IF(AW119,'Yahoo Stocks'!D146) -> FALSE | AZ119: =IF(AW119,'Yahoo Stocks'!E146) -> FALSE | BD119: 192 | BE119: FALSE | BF119: =IF(BE119,'Google Finance Stocks'!D143) -> FALSE | BH119: =IF(BE119,'Google Finance Stocks'!E143) -> FALSE | BL119: 192 | BM119: FALSE | BN119: ='Exchange Rates'!D137 -> 0 | BP119: =IF(BM119,'Exchange Rates'!E137) -> FALSE
L120: 118 | Q120: 118 | R120: FALSE | S120: =IF(R120,'Yahoo Index'!E172,"") ->  | T120: =IF(R120,'Yahoo Index'!F172,"") ->  | X120: 123 | Y120: FALSE | Z120: =IF($F$6,'FRED Indicies'!E133) -> 0 | AB120: =IF($F$6,'FRED Indicies'!D133) -> 0 | AF120: 124 | AG120: FALSE | AH120: =IF(AG120,'Google Index'!E147) -> FALSE | AJ120: =IF(AF120,'Google Index'!F147) -> 0 | AN120: 124 | AO120: FALSE | AP120: =IF(AO120,'Commodity Prices'!C133) -> FALSE | AR120: =IF(AO120,'Commodity Prices'!D133) -> FALSE | AV120: 127 | AW120: FALSE | AX120: =IF(AW120,'Yahoo Stocks'!D147) -> FALSE | AZ120: =IF(AW120,'Yahoo Stocks'!E147) -> FALSE | BD120: 193 | BE120: FALSE | BF120: =IF(BE120,'Google Finance Stocks'!D144) -> FALSE | BH120: =IF(BE120,'Google Finance Stocks'!E144) -> FALSE | BL120: 193 | BM120: FALSE | BN120: ='Exchange Rates'!D138 -> 0 | BP120: =IF(BM120,'Exchange Rates'!E138) -> FALSE
L121: 119 | Q121: 119 | R121: FALSE | S121: =IF(R121,'Yahoo Index'!E173,"") ->  | T121: =IF(R121,'Yahoo Index'!F173,"") ->  | X121: 124 | Y121: FALSE | Z121: =IF($F$6,'FRED Indicies'!E134) -> 0 | AB121: =IF($F$6,'FRED Indicies'!D134) -> 0 | AF121: 125 | AG121: FALSE | AH121: =IF(AG121,'Google Index'!E148) -> FALSE | AJ121: =IF(AF121,'Google Index'!F148) -> 0 | AN121: 125 | AO121: FALSE | AP121: =IF(AO121,'Commodity Prices'!C134) -> FALSE | AR121: =IF(AO121,'Commodity Prices'!D134) -> FALSE | AV121: 128 | AW121: FALSE | AX121: =IF(AW121,'Yahoo Stocks'!D148) -> FALSE | AZ121: =IF(AW121,'Yahoo Stocks'!E148) -> FALSE | BD121: 194 | BE121: FALSE | BF121: =IF(BE121,'Google Finance Stocks'!D145) -> FALSE | BH121: =IF(BE121,'Google Finance Stocks'!E145) -> FALSE | BL121: 194 | BM121: FALSE | BN121: ='Exchange Rates'!D139 -> 0 | BP121: =IF(BM121,'Exchange Rates'!E139) -> FALSE
L122: 120 | Q122: 120 | R122: FALSE | S122: =IF(R122,'Yahoo Index'!E174,"") ->  | T122: =IF(R122,'Yahoo Index'!F174,"") ->  | X122: 125 | Y122: FALSE | Z122: =IF($F$6,'FRED Indicies'!E135) -> 0 | AB122: =IF($F$6,'FRED Indicies'!D135) -> 0 | AF122: 126 | AG122: FALSE | AH122: =IF(AG122,'Google Index'!E149) -> FALSE | AJ122: =IF(AF122,'Google Index'!F149) -> 0 | AN122: 126 | AO122: FALSE | AP122: =IF(AO122,'Commodity Prices'!C135) -> FALSE | AR122: =IF(AO122,'Commodity Prices'!D135) -> FALSE | AV122: 129 | AW122: FALSE | AX122: =IF(AW122,'Yahoo Stocks'!D149) -> FALSE | AZ122: =IF(AW122,'Yahoo Stocks'!E149) -> FALSE | BD122: 195 | BE122: FALSE | BF122: =IF(BE122,'Google Finance Stocks'!D146) -> FALSE | BH122: =IF(BE122,'Google Finance Stocks'!E146) -> FALSE | BL122: 195 | BM122: FALSE | BN122: ='Exchange Rates'!D140 -> 0 | BP122: =IF(BM122,'Exchange Rates'!E140) -> FALSE
L123: 121 | Q123: 121 | R123: FALSE | S123: =IF(R123,'Yahoo Index'!E175,"") ->  | T123: =IF(R123,'Yahoo Index'!F175,"") ->  | X123: 126 | Y123: FALSE | Z123: =IF($F$6,'FRED Indicies'!E136) -> 0 | AB123: =IF($F$6,'FRED Indicies'!D136) -> 0 | AF123: 127 | AG123: FALSE | AH123: =IF(AG123,'Google Index'!E150) -> FALSE | AJ123: =IF(AF123,'Google Index'!F150) -> 0 | AN123: 127 | AO123: FALSE | AP123: =IF(AO123,'Commodity Prices'!C136) -> FALSE | AR123: =IF(AO123,'Commodity Prices'!D136) -> FALSE | AV123: 130 | AW123: FALSE | AX123: =IF(AW123,'Yahoo Stocks'!D150) -> FALSE | AZ123: =IF(AW123,'Yahoo Stocks'!E150) -> FALSE | BD123: 196 | BE123: FALSE | BF123: =IF(BE123,'Google Finance Stocks'!D147) -> FALSE | BH123: =IF(BE123,'Google Finance Stocks'!E147) -> FALSE | BL123: 196 | BM123: FALSE | BN123: ='Exchange Rates'!D141 -> 0 | BP123: =IF(BM123,'Exchange Rates'!E141) -> FALSE
L124: 122 | Q124: 122 | R124: FALSE | S124: =IF(R124,'Yahoo Index'!E176,"") ->  | T124: =IF(R124,'Yahoo Index'!F176,"") ->  | X124: 127 | Y124: FALSE | Z124: =IF($F$6,'FRED Indicies'!E137) -> 0 | AB124: =IF($F$6,'FRED Indicies'!D137) -> 0 | AF124: 128 | AG124: FALSE | AH124: =IF(AG124,'Google Index'!E151) -> FALSE | AJ124: =IF(AF124,'Google Index'!F151) -> 0 | AN124: 128 | AO124: FALSE | AP124: =IF(AO124,'Commodity Prices'!C137) -> FALSE | AR124: =IF(AO124,'Commodity Prices'!D137) -> FALSE | AV124: 131 | AW124: FALSE | AX124: =IF(AW124,'Yahoo Stocks'!D151) -> FALSE | AZ124: =IF(AW124,'Yahoo Stocks'!E151) -> FALSE | BD124: 197 | BE124: FALSE | BF124: =IF(BE124,'Google Finance Stocks'!D148) -> FALSE | BH124: =IF(BE124,'Google Finance Stocks'!E148) -> FALSE | BL124: 197 | BM124: FALSE | BN124: ='Exchange Rates'!D142 -> 0 | BP124: =IF(BM124,'Exchange Rates'!E142) -> FALSE
L125: 123 | Q125: 123 | R125: FALSE | S125: =IF(R125,'Yahoo Index'!E177,"") ->  | T125: =IF(R125,'Yahoo Index'!F177,"") ->  | X125: 128 | Y125: FALSE | Z125: =IF($F$6,'FRED Indicies'!E138) -> 0 | AB125: =IF($F$6,'FRED Indicies'!D138) -> 0 | AF125: 129 | AG125: FALSE | AH125: =IF(AG125,'Google Index'!E152) -> FALSE | AJ125: =IF(AF125,'Google Index'!F152) -> 0 | AN125: 129 | AO125: FALSE | AP125: =IF(AO125,'Commodity Prices'!C138) -> FALSE | AR125: =IF(AO125,'Commodity Prices'!D138) -> FALSE | AV125: 132 | AW125: FALSE | AX125: =IF(AW125,'Yahoo Stocks'!D152) -> FALSE | AZ125: =IF(AW125,'Yahoo Stocks'!E152) -> FALSE | BD125: 198 | BE125: FALSE | BF125: =IF(BE125,'Google Finance Stocks'!D149) -> FALSE | BH125: =IF(BE125,'Google Finance Stocks'!E149) -> FALSE | BL125: 198 | BM125: FALSE | BN125: ='Exchange Rates'!D143 -> 0 | BP125: =IF(BM125,'Exchange Rates'!E143) -> FALSE
L126: 124 | Q126: 124 | R126: FALSE | S126: =IF(R126,'Yahoo Index'!E178,"") ->  | T126: =IF(R126,'Yahoo Index'!F178,"") ->  | X126: 129 | Y126: FALSE | Z126: =IF($F$6,'FRED Indicies'!E139) -> 0 | AB126: =IF($F$6,'FRED Indicies'!D139) -> 0 | AF126: 130 | AG126: FALSE | AH126: =IF(AG126,'Google Index'!E153) -> FALSE | AJ126: =IF(AF126,'Google Index'!F153) -> 0 | AN126: 130 | AO126: FALSE | AP126: =IF(AO126,'Commodity Prices'!C139) -> FALSE | AR126: =IF(AO126,'Commodity Prices'!D139) -> FALSE | AV126: 133 | AW126: FALSE | AX126: =IF(AW126,'Yahoo Stocks'!D153) -> FALSE | AZ126: =IF(AW126,'Yahoo Stocks'!E153) -> FALSE | BD126: 199 | BE126: FALSE | BF126: =IF(BE126,'Google Finance Stocks'!D150) -> FALSE | BH126: =IF(BE126,'Google Finance Stocks'!E150) -> FALSE | BL126: 199 | BM126: FALSE | BN126: ='Exchange Rates'!D144 -> 0 | BO126: =IFERROR(INDEX(BN:BN,MATCH(L126,BM:BM,0)),"") ->  | BP126: =IF(BM126,'Exchange Rates'!E144) -> FALSE
L127: 125 | Q127: 125 | R127: FALSE | S127: =IF(R127,'Yahoo Index'!E179,"") ->  | T127: =IF(R127,'Yahoo Index'!F179,"") ->  | X127: 130 | Y127: FALSE | Z127: =IF($F$6,'FRED Indicies'!E140) -> 0 | AB127: =IF($F$6,'FRED Indicies'!D140) -> 0 | AF127: 131 | AG127: FALSE | AH127: =IF(AG127,'Google Index'!E154) -> FALSE | AJ127: =IF(AF127,'Google Index'!F154) -> 0 | AN127: 131 | AO127: FALSE | AP127: =IF(AO127,'Commodity Prices'!C140) -> FALSE | AR127: =IF(AO127,'Commodity Prices'!D140) -> FALSE | AV127: 134 | AW127: FALSE | AX127: =IF(AW127,'Yahoo Stocks'!D154) -> FALSE | AZ127: =IF(AW127,'Yahoo Stocks'!E154) -> FALSE | BD127: 200 | BE127: FALSE | BF127: =IF(BE127,'Google Finance Stocks'!D151) -> FALSE | BH127: =IF(BE127,'Google Finance Stocks'!E151) -> FALSE | BL127: 200 | BM127: FALSE | BN127: ='Exchange Rates'!D145 -> 0 | BO127: =IFERROR(INDEX(BN:BN,MATCH(L127,BM:BM,0)),"") ->  | BP127: =IF(BM127,'Exchange Rates'!E145) -> FALSE
L128: 126 | M128: =S128&AA128&AI128&AQ128&AY128&BG128&BO128 ->  | N128: =T128&AC128&AK128&AS128&BA128&BI128&BQ128 ->  | O128: =U128&AD128&AL128&AT128&BB128&BJ128&BR128 ->  | P128: =V128&AE128&AM128&AU128&BC128&BK128&BS128 ->  | Q128: 126 | R128: =IF(AND($F$3,Q128<=$H$3),Q128) -> FALSE | X128: 131 | Y128: =IF(AND($F$6,X128<=$H$6),X128) -> FALSE | Z128: =IF($F$6,'FRED Indicies'!E141) -> 0 | AA128: =IFERROR(INDEX(Z:Z,MATCH(L128,Y:Y,0)),"") ->  | AB128: =IF($F$6,'FRED Indicies'!D141) -> 0 | AC128: =IFERROR(INDEX(AB:AB,MATCH(L128,Y:Y,0)),"") ->  | AD128: =IF(AA128<>"",$I$6,"") ->  | AE128: =IF(AA128<>"",$J$6,"") ->  | AF128: 132 | AG128: =IF(AND($F$9,AF128<=$H$9),AF128) -> FALSE | AH128: =IF(AG128,'Google Index'!E155) -> FALSE | AI128: =IFERROR(INDEX(AH:AH,MATCH(Q128,AG:AG,0)),"") ->  | AJ128: =IF(AF128,'Google Index'!F155) -> 0 | AK128: =IFERROR(INDEX(AJ:AJ,MATCH(Q128,AG:AG,0)),"") ->  | AL128: =IF(AI128<>"",$I$6,"") ->  | AM128: =IF(AK128<>"",$J$6,"") ->  | AN128: 132 | AO128: =IF(AND($F$12,AN128<=$H$12),AN128) -> FALSE | AP128: =IF(AO128,'Commodity Prices'!C141) -> FALSE | AQ128: =IFERROR(INDEX(AP:AP,MATCH(L128,AO:AO,0)),"") ->  | AR128: =IF(AO128,'Commodity Prices'!D141) -> FALSE | AS128: =IFERROR(INDEX(AR:AR,MATCH(L128,AO:AO,0)),"") ->  | AT128: =IF(AQ128<>"",$I$12,"") ->  | AU128: =IF(AS128<>"",$J$12,"") ->  | AV128: 135 | AW128: FALSE | AX128: =IF(AW128,'Yahoo Stocks'!D155) -> FALSE | AZ128: =IF(AW128,'Yahoo Stocks'!E155) -> FALSE | BD128: 201 | BE128: =IF(AND($F$18,BD128<=$H$18),BD128) -> FALSE | BF128: =IF(BE128,'Google Finance Stocks'!D152) -> FALSE | BG128: =IFERROR(INDEX(BF:BF,MATCH(Q128,BE:BE,0)),"") ->  | BH128: =IF(BE128,'Google Finance Stocks'!E152) -> FALSE | BI128: =IFERROR(INDEX(BH:BH,MATCH(Q128,BE:BE,0)),"") ->  | BJ128: =IF(BI128<>"",$I$18,"") ->  | BK128: =IF(BI128<>"",$J$18,"") ->  | BL128: 201 | BM128: =IF(AND($F$21,BL128<=$H$21),BL128) -> FALSE | BN128: ='Exchange Rates'!D146 -> 0 | BO128: =IFERROR(INDEX(BN:BN,MATCH(L128,BM:BM,0)),"") ->  | BP128: =IF(BM128,'Exchange Rates'!E146) -> FALSE | BQ128: =IFERROR(INDEX(BP:BP,MATCH(L128,BM:BM,0)),"") ->  | BR128: =IF(BQ128<>"",$I$21,"") ->  | BS128: =IF(BQ128<>"",$J$21,"") -> 
L129: 127 | Q129: 127 | R129: FALSE | X129: 132 | Y129: FALSE | Z129: =IF($F$6,'FRED Indicies'!E142) -> 0 | AB129: =IF($F$6,'FRED Indicies'!D142) -> 0 | AF129: 133 | AG129: FALSE | AH129: =IF(AG129,'Google Index'!E156) -> FALSE | AJ129: =IF(AF129,'Google Index'!F156) -> 0 | AN129: 133 | AO129: FALSE | AP129: =IF(AO129,'Commodity Prices'!C142) -> FALSE | AR129: =IF(AO129,'Commodity Prices'!D142) -> FALSE | AV129: 136 | AW129: FALSE | AX129: =IF(AW129,'Yahoo Stocks'!D156) -> FALSE | AZ129: =IF(AW129,'Yahoo Stocks'!E156) -> FALSE | BD129: 202 | BE129: FALSE | BF129: =IF(BE129,'Google Finance Stocks'!D153) -> FALSE | BH129: =IF(BE129,'Google Finance Stocks'!E153) -> FALSE | BL129: 202 | BM129: FALSE | BN129: ='Exchange Rates'!D147 -> 0 | BO129: =IFERROR(INDEX(BN:BN,MATCH(L129,BM:BM,0)),"") ->  | BP129: =IF(BM129,'Exchange Rates'!E147) -> FALSE
L130: 128 | Q130: 128 | R130: FALSE | X130: 133 | Y130: FALSE | Z130: =IF($F$6,'FRED Indicies'!E143) -> 0 | AB130: =IF($F$6,'FRED Indicies'!D143) -> 0 | AF130: 134 | AG130: FALSE | AH130: =IF(AG130,'Google Index'!E157) -> FALSE | AJ130: =IF(AF130,'Google Index'!F157) -> 0 | AN130: 134 | AO130: FALSE | AP130: =IF(AO130,'Commodity Prices'!C143) -> FALSE | AR130: =IF(AO130,'Commodity Prices'!D143) -> FALSE | AV130: 137 | AW130: FALSE | AX130: =IF(AW130,'Yahoo Stocks'!D157) -> FALSE | AZ130: =IF(AW130,'Yahoo Stocks'!E157) -> FALSE | BD130: 203 | BE130: FALSE | BF130: =IF(BE130,'Google Finance Stocks'!D154) -> FALSE | BH130: =IF(BE130,'Google Finance Stocks'!E154) -> FALSE | BL130: 203 | BM130: FALSE | BN130: ='Exchange Rates'!D148 -> 0 | BP130: =IF(BM130,'Exchange Rates'!E148) -> FALSE
L131: 129 | Q131: 129 | R131: FALSE | X131: 134 | Y131: FALSE | Z131: =IF($F$6,'FRED Indicies'!E144) -> 0 | AB131: =IF($F$6,'FRED Indicies'!D144) -> 0 | AF131: 135 | AG131: FALSE | AH131: =IF(AG131,'Google Index'!E158) -> FALSE | AJ131: =IF(AF131,'Google Index'!F158) -> 0 | AN131: 135 | AO131: FALSE | AP131: =IF(AO131,'Commodity Prices'!C144) -> FALSE | AR131: =IF(AO131,'Commodity Prices'!D144) -> FALSE | AV131: 138 | AW131: FALSE | AX131: =IF(AW131,'Yahoo Stocks'!D158) -> FALSE | AZ131: =IF(AW131,'Yahoo Stocks'!E158) -> FALSE | BD131: 204 | BE131: FALSE | BF131: =IF(BE131,'Google Finance Stocks'!D155) -> FALSE | BH131: =IF(BE131,'Google Finance Stocks'!E155) -> FALSE | BL131: 204 | BM131: FALSE | BN131: ='Exchange Rates'!D149 -> 0 | BP131: =IF(BM131,'Exchange Rates'!E149) -> FALSE
L132: 130 | Q132: 130 | R132: FALSE | X132: 135 | Y132: FALSE | Z132: =IF($F$6,'FRED Indicies'!E145) -> 0 | AB132: =IF($F$6,'FRED Indicies'!D145) -> 0 | AF132: 136 | AG132: FALSE | AH132: =IF(AG132,'Google Index'!E159) -> FALSE | AJ132: =IF(AF132,'Google Index'!F159) -> 0 | AN132: 136 | AO132: FALSE | AP132: =IF(AO132,'Commodity Prices'!C145) -> FALSE | AR132: =IF(AO132,'Commodity Prices'!D145) -> FALSE | AV132: 139 | AW132: FALSE | AX132: =IF(AW132,'Yahoo Stocks'!D159) -> FALSE | AZ132: =IF(AW132,'Yahoo Stocks'!E159) -> FALSE | BC132: =IF(BA132<>"",$J$15,"") ->  | BD132: 205 | BE132: FALSE | BF132: =IF(BE132,'Google Finance Stocks'!D156) -> FALSE | BH132: =IF(BE132,'Google Finance Stocks'!E156) -> FALSE | BL132: 205 | BM132: FALSE | BN132: ='Exchange Rates'!D150 -> 0 | BP132: =IF(BM132,'Exchange Rates'!E150) -> FALSE
L133: 131 | Q133: =Q132+1 -> 131 | R133: FALSE | X133: =X132+1 -> 136 | Y133: FALSE | Z133: =IF($F$6,'FRED Indicies'!E146) -> 0 | AB133: =IF($F$6,'FRED Indicies'!D146) -> 0 | AF133: =AF132+1 -> 137 | AG133: FALSE | AH133: =IF(AG133,'Google Index'!E160) -> FALSE | AJ133: =IF(AF133,'Google Index'!F160) -> 0 | AN133: =AN132+1 -> 137 | AO133: FALSE | AP133: =IF(AO133,'Commodity Prices'!C146) -> FALSE | AR133: =IF(AO133,'Commodity Prices'!D146) -> FALSE | AV133: =AV132+1 -> 140 | AW133: FALSE | AX133: =IF(AW133,'Yahoo Stocks'!D160) -> FALSE | AZ133: =IF(AW133,'Yahoo Stocks'!E160) -> FALSE | BD133: =BD132+1 -> 206 | BE133: FALSE | BF133: =IF(BE133,'Google Finance Stocks'!D157) -> FALSE | BH133: =IF(BE133,'Google Finance Stocks'!E157) -> FALSE | BL133: =BL132+1 -> 206 | BM133: FALSE | BN133: ='Exchange Rates'!D151 -> 0 | BP133: =IF(BM133,'Exchange Rates'!E151) -> FALSE
L134: 132 | Q134: 132 | R134: FALSE | X134: 137 | Y134: FALSE | Z134: =IF($F$6,'FRED Indicies'!E147) -> 0 | AB134: =IF($F$6,'FRED Indicies'!D147) -> 0 | AF134: 138 | AG134: FALSE | AH134: =IF(AG134,'Google Index'!E161) -> FALSE | AJ134: =IF(AF134,'Google Index'!F161) -> 0 | AN134: 138 | AO134: FALSE | AP134: =IF(AO134,'Commodity Prices'!C147) -> FALSE | AR134: =IF(AO134,'Commodity Prices'!D147) -> FALSE | AV134: 141 | AW134: FALSE | AX134: =IF(AW134,'Yahoo Stocks'!D161) -> FALSE | AZ134: =IF(AW134,'Yahoo Stocks'!E161) -> FALSE | BD134: 207 | BE134: FALSE | BF134: =IF(BE134,'Google Finance Stocks'!D158) -> FALSE | BH134: =IF(BE134,'Google Finance Stocks'!E158) -> FALSE | BL134: 207 | BM134: FALSE | BN134: ='Exchange Rates'!D152 -> 0 | BP134: =IF(BM134,'Exchange Rates'!E152) -> FALSE
L135: 133 | M135: =S135&AA135&AI135&AQ135&AY135&BG135&BO135 ->  | N135: =T135&AC135&AK135&AS135&BA135&BI135&BQ135 ->  | O135: =U135&AD135&AL135&AT135&BB135&BJ135&BR135 ->  | P135: =V135&AE135&AM135&AU135&BC135&BK135&BS135 ->  | Q135: 133 | R135: =IF(AND($F$3,Q135<=$H$3),Q135) -> FALSE | X135: 138 | Y135: FALSE | Z135: =IF($F$6,'FRED Indicies'!E148) -> 0 | AB135: =IF($F$6,'FRED Indicies'!D148) -> 0 | AF135: 139 | AG135: FALSE | AH135: =IF(AG135,'Google Index'!E162) -> FALSE | AJ135: =IF(AF135,'Google Index'!F162) -> 0 | AN135: 139 | AO135: FALSE | AP135: =IF(AO135,'Commodity Prices'!C148) -> FALSE | AR135: =IF(AO135,'Commodity Prices'!D148) -> FALSE | AV135: 142 | AW135: FALSE | AX135: =IF(AW135,'Yahoo Stocks'!D162) -> FALSE | AZ135: =IF(AW135,'Yahoo Stocks'!E162) -> FALSE | BD135: 208 | BE135: FALSE | BF135: =IF(BE135,'Google Finance Stocks'!D159) -> FALSE | BH135: =IF(BE135,'Google Finance Stocks'!E159) -> FALSE | BL135: 208 | BM135: FALSE | BN135: ='Exchange Rates'!D153 -> 0 | BP135: =IF(BM135,'Exchange Rates'!E153) -> FALSE
L136: 134 | Q136: 134 | R136: FALSE | X136: 139 | Y136: FALSE | Z136: =IF($F$6,'FRED Indicies'!E149) -> 0 | AB136: =IF($F$6,'FRED Indicies'!D149) -> 0 | AF136: 140 | AG136: FALSE | AH136: =IF(AG136,'Google Index'!E163) -> FALSE | AJ136: =IF(AF136,'Google Index'!F163) -> 0 | AN136: 140 | AO136: FALSE | AP136: =IF(AO136,'Commodity Prices'!C149) -> FALSE | AR136: =IF(AO136,'Commodity Prices'!D149) -> FALSE | AV136: 143 | AW136: FALSE | AX136: =IF(AW136,'Yahoo Stocks'!D163) -> FALSE | AZ136: =IF(AW136,'Yahoo Stocks'!E163) -> FALSE | BD136: 209 | BE136: FALSE | BF136: =IF(BE136,'Google Finance Stocks'!D160) -> FALSE | BH136: =IF(BE136,'Google Finance Stocks'!E160) -> FALSE | BL136: 209 | BM136: FALSE | BN136: ='Exchange Rates'!D154 -> 0 | BP136: =IF(BM136,'Exchange Rates'!E154) -> FALSE
L137: 135 | Q137: 135 | R137: FALSE | X137: 140 | Y137: FALSE | Z137: =IF($F$6,'FRED Indicies'!E150) -> 0 | AB137: =IF($F$6,'FRED Indicies'!D150) -> 0 | AF137: 141 | AG137: FALSE | AH137: =IF(AG137,'Google Index'!E164) -> FALSE | AJ137: =IF(AF137,'Google Index'!F164) -> 0 | AN137: 141 | AO137: FALSE | AP137: =IF(AO137,'Commodity Prices'!C150) -> FALSE | AR137: =IF(AO137,'Commodity Prices'!D150) -> FALSE | AV137: 144 | AW137: FALSE | AX137: =IF(AW137,'Yahoo Stocks'!D164) -> FALSE | AZ137: =IF(AW137,'Yahoo Stocks'!E164) -> FALSE | BD137: 210 | BE137: FALSE | BF137: =IF(BE137,'Google Finance Stocks'!D161) -> FALSE | BH137: =IF(BE137,'Google Finance Stocks'!E161) -> FALSE | BL137: 210 | BM137: FALSE | BN137: ='Exchange Rates'!D155 -> 0 | BP137: =IF(BM137,'Exchange Rates'!E155) -> FALSE
L138: 136 | Q138: 136 | R138: FALSE | X138: 141 | Y138: FALSE | Z138: =IF($F$6,'FRED Indicies'!E151) -> 0 | AB138: =IF($F$6,'FRED Indicies'!D151) -> 0 | AF138: 142 | AG138: FALSE | AH138: =IF(AG138,'Google Index'!E165) -> FALSE | AJ138: =IF(AF138,'Google Index'!F165) -> 0 | AN138: 142 | AO138: FALSE | AP138: =IF(AO138,'Commodity Prices'!C151) -> FALSE | AR138: =IF(AO138,'Commodity Prices'!D151) -> FALSE | AV138: 145 | AW138: FALSE | AX138: =IF(AW138,'Yahoo Stocks'!D165) -> FALSE | AZ138: =IF(AW138,'Yahoo Stocks'!E165) -> FALSE | BD138: 211 | BE138: FALSE | BF138: =IF(BE138,'Google Finance Stocks'!D162) -> FALSE | BH138: =IF(BE138,'Google Finance Stocks'!E162) -> FALSE | BL138: 211 | BM138: FALSE | BN138: ='Exchange Rates'!D156 -> 0 | BP138: =IF(BM138,'Exchange Rates'!E156) -> FALSE
L139: 137 | Q139: 137 | R139: FALSE | X139: 142 | Y139: FALSE | Z139: =IF($F$6,'FRED Indicies'!E152) -> 0 | AB139: =IF($F$6,'FRED Indicies'!D152) -> 0 | AF139: 143 | AG139: FALSE | AH139: =IF(AG139,'Google Index'!E166) -> FALSE | AJ139: =IF(AF139,'Google Index'!F166) -> 0 | AN139: 143 | AO139: FALSE | AP139: =IF(AO139,'Commodity Prices'!C152) -> FALSE | AR139: =IF(AO139,'Commodity Prices'!D152) -> FALSE | AV139: 146 | AW139: FALSE | AX139: =IF(AW139,'Yahoo Stocks'!D166) -> FALSE | AZ139: =IF(AW139,'Yahoo Stocks'!E166) -> FALSE | BD139: 212 | BE139: FALSE | BF139: =IF(BE139,'Google Finance Stocks'!D163) -> FALSE | BH139: =IF(BE139,'Google Finance Stocks'!E163) -> FALSE | BL139: 212 | BM139: FALSE | BN139: ='Exchange Rates'!D157 -> 0 | BP139: =IF(BM139,'Exchange Rates'!E157) -> FALSE
L140: 138 | Q140: 138 | R140: FALSE | X140: 143 | Y140: FALSE | Z140: =IF($F$6,'FRED Indicies'!E153) -> 0 | AB140: =IF($F$6,'FRED Indicies'!D153) -> 0 | AF140: 144 | AG140: FALSE | AH140: =IF(AG140,'Google Index'!E167) -> FALSE | AJ140: =IF(AF140,'Google Index'!F167) -> 0 | AN140: 144 | AO140: FALSE | AP140: =IF(AO140,'Commodity Prices'!C153) -> FALSE | AR140: =IF(AO140,'Commodity Prices'!D153) -> FALSE | AV140: 147 | AW140: FALSE | AX140: =IF(AW140,'Yahoo Stocks'!D167) -> FALSE | AZ140: =IF(AW140,'Yahoo Stocks'!E167) -> FALSE | BD140: 213 | BE140: FALSE | BF140: =IF(BE140,'Google Finance Stocks'!D164) -> FALSE | BH140: =IF(BE140,'Google Finance Stocks'!E164) -> FALSE | BL140: 213 | BM140: FALSE | BN140: ='Exchange Rates'!D158 -> 0 | BP140: =IF(BM140,'Exchange Rates'!E158) -> FALSE
L141: 139 | M141: =S141&AA141&AI141&AQ141&AY141&BG141&BO141 ->  | N141: =T141&AC141&AK141&AS141&BA141&BI141&BQ141 ->  | O141: =U141&AD141&AL141&AT141&BB141&BJ141&BR141 ->  | P141: =V141&AE141&AM141&AU141&BC141&BK141&BS141 ->  | Q141: 139 | R141: FALSE | X141: 144 | Y141: FALSE | Z141: =IF($F$6,'FRED Indicies'!E154) -> 0 | AB141: =IF($F$6,'FRED Indicies'!D154) -> 0 | AF141: 145 | AG141: FALSE | AH141: =IF(AG141,'Google Index'!E168) -> FALSE | AJ141: =IF(AF141,'Google Index'!F168) -> 0 | AN141: 145 | AO141: FALSE | AP141: =IF(AO141,'Commodity Prices'!C154) -> FALSE | AR141: =IF(AO141,'Commodity Prices'!D154) -> FALSE | AV141: 148 | AW141: FALSE | AX141: =IF(AW141,'Yahoo Stocks'!D168) -> FALSE | AZ141: =IF(AW141,'Yahoo Stocks'!E168) -> FALSE | BD141: 214 | BE141: FALSE | BF141: =IF(BE141,'Google Finance Stocks'!D165) -> FALSE | BH141: =IF(BE141,'Google Finance Stocks'!E165) -> FALSE | BL141: 214 | BM141: FALSE | BN141: ='Exchange Rates'!D159 -> 0 | BP141: =IF(BM141,'Exchange Rates'!E159) -> FALSE
L142: 140 | Q142: 140 | R142: FALSE | X142: 145 | Y142: FALSE | Z142: =IF($F$6,'FRED Indicies'!E155) -> 0 | AB142: =IF($F$6,'FRED Indicies'!D155) -> 0 | AF142: 146 | AG142: FALSE | AH142: =IF(AG142,'Google Index'!E169) -> FALSE | AJ142: =IF(AF142,'Google Index'!F169) -> 0 | AN142: 146 | AO142: FALSE | AP142: =IF(AO142,'Commodity Prices'!C155) -> FALSE | AR142: =IF(AO142,'Commodity Prices'!D155) -> FALSE | AV142: 149 | AW142: FALSE | AX142: =IF(AW142,'Yahoo Stocks'!D169) -> FALSE | AZ142: =IF(AW142,'Yahoo Stocks'!E169) -> FALSE | BD142: 215 | BE142: FALSE | BF142: =IF(BE142,'Google Finance Stocks'!D166) -> FALSE | BH142: =IF(BE142,'Google Finance Stocks'!E166) -> FALSE | BL142: 215 | BM142: FALSE | BN142: ='Exchange Rates'!D160 -> 0 | BP142: =IF(BM142,'Exchange Rates'!E160) -> FALSE
L143: 141 | Q143: 141 | R143: FALSE | X143: 146 | Y143: FALSE | Z143: =IF($F$6,'FRED Indicies'!E156) -> 0 | AB143: =IF($F$6,'FRED Indicies'!D156) -> 0 | AF143: 147 | AG143: FALSE | AH143: =IF(AG143,'Google Index'!E170) -> FALSE | AJ143: =IF(AF143,'Google Index'!F170) -> 0 | AN143: 147 | AO143: FALSE | AP143: =IF(AO143,'Commodity Prices'!C156) -> FALSE | AR143: =IF(AO143,'Commodity Prices'!D156) -> FALSE | AV143: 150 | AW143: FALSE | AX143: =IF(AW143,'Yahoo Stocks'!D170) -> FALSE | AZ143: =IF(AW143,'Yahoo Stocks'!E170) -> FALSE | BD143: 216 | BE143: FALSE | BF143: =IF(BE143,'Google Finance Stocks'!D167) -> FALSE | BH143: =IF(BE143,'Google Finance Stocks'!E167) -> FALSE | BL143: 216 | BM143: FALSE | BN143: ='Exchange Rates'!D161 -> 0 | BP143: =IF(BM143,'Exchange Rates'!E161) -> FALSE
L144: 142 | Q144: 142 | R144: FALSE | X144: 147 | Y144: FALSE | Z144: =IF($F$6,'FRED Indicies'!E157) -> 0 | AB144: =IF($F$6,'FRED Indicies'!D157) -> 0 | AF144: 148 | AG144: FALSE | AH144: =IF(AG144,'Google Index'!E171) -> FALSE | AJ144: =IF(AF144,'Google Index'!F171) -> 0 | AN144: 148 | AO144: FALSE | AP144: =IF(AO144,'Commodity Prices'!C157) -> FALSE | AR144: =IF(AO144,'Commodity Prices'!D157) -> FALSE | AV144: 151 | AW144: FALSE | AX144: =IF(AW144,'Yahoo Stocks'!D171) -> FALSE | AZ144: =IF(AW144,'Yahoo Stocks'!E171) -> FALSE | BD144: 217 | BE144: FALSE | BF144: =IF(BE144,'Google Finance Stocks'!D168) -> FALSE | BH144: =IF(BE144,'Google Finance Stocks'!E168) -> FALSE | BL144: 217 | BM144: FALSE | BN144: ='Exchange Rates'!D162 -> 0 | BP144: =IF(BM144,'Exchange Rates'!E162) -> FALSE
L145: 143 | Q145: 143 | R145: FALSE | X145: 148 | Y145: FALSE | Z145: =IF($F$6,'FRED Indicies'!E158) -> 0 | AB145: =IF($F$6,'FRED Indicies'!D158) -> 0 | AF145: 149 | AG145: FALSE | AH145: =IF(AG145,'Google Index'!E172) -> FALSE | AJ145: =IF(AF145,'Google Index'!F172) -> 0 | AN145: 149 | AO145: FALSE | AP145: =IF(AO145,'Commodity Prices'!C158) -> FALSE | AR145: =IF(AO145,'Commodity Prices'!D158) -> FALSE | AV145: 152 | AW145: FALSE | AX145: =IF(AW145,'Yahoo Stocks'!D172) -> FALSE | AZ145: =IF(AW145,'Yahoo Stocks'!E172) -> FALSE | BD145: 218 | BE145: FALSE | BF145: =IF(BE145,'Google Finance Stocks'!D169) -> FALSE | BH145: =IF(BE145,'Google Finance Stocks'!E169) -> FALSE | BL145: 218 | BM145: FALSE | BN145: ='Exchange Rates'!D163 -> 0 | BP145: =IF(BM145,'Exchange Rates'!E163) -> FALSE
L146: 144 | Q146: 144 | R146: FALSE | X146: 149 | Y146: FALSE | Z146: =IF($F$6,'FRED Indicies'!E159) -> 0 | AB146: =IF($F$6,'FRED Indicies'!D159) -> 0 | AF146: 150 | AG146: FALSE | AH146: =IF(AG146,'Google Index'!E173) -> FALSE | AJ146: =IF(AF146,'Google Index'!F173) -> 0 | AN146: 150 | AO146: FALSE | AP146: =IF(AO146,'Commodity Prices'!C159) -> FALSE | AR146: =IF(AO146,'Commodity Prices'!D159) -> FALSE | AV146: 153 | AW146: FALSE | AX146: =IF(AW146,'Yahoo Stocks'!D173) -> FALSE | AZ146: =IF(AW146,'Yahoo Stocks'!E173) -> FALSE | BD146: 219 | BE146: FALSE | BF146: =IF(BE146,'Google Finance Stocks'!D170) -> FALSE | BH146: =IF(BE146,'Google Finance Stocks'!E170) -> FALSE | BL146: 219 | BM146: FALSE | BN146: ='Exchange Rates'!D164 -> 0 | BP146: =IF(BM146,'Exchange Rates'!E164) -> FALSE
L147: 145 | Q147: 145 | R147: FALSE | X147: 150 | Y147: FALSE | Z147: =IF($F$6,'FRED Indicies'!E160) -> 0 | AB147: =IF($F$6,'FRED Indicies'!D160) -> 0 | AF147: 151 | AG147: FALSE | AH147: =IF(AG147,'Google Index'!E174) -> FALSE | AJ147: =IF(AF147,'Google Index'!F174) -> 0 | AN147: 151 | AO147: FALSE | AP147: =IF(AO147,'Commodity Prices'!C160) -> FALSE | AR147: =IF(AO147,'Commodity Prices'!D160) -> FALSE | AV147: 154 | AW147: FALSE | AX147: =IF(AW147,'Yahoo Stocks'!D174) -> FALSE | AZ147: =IF(AW147,'Yahoo Stocks'!E174) -> FALSE | BD147: 220 | BE147: FALSE | BF147: =IF(BE147,'Google Finance Stocks'!D171) -> FALSE | BH147: =IF(BE147,'Google Finance Stocks'!E171) -> FALSE | BL147: 220 | BM147: FALSE | BN147: ='Exchange Rates'!D165 -> 0 | BP147: =IF(BM147,'Exchange Rates'!E165) -> FALSE
L148: 146 | Q148: 146 | R148: FALSE | X148: 151 | Y148: FALSE | Z148: =IF($F$6,'FRED Indicies'!E161) -> 0 | AB148: =IF($F$6,'FRED Indicies'!D161) -> 0 | AF148: 152 | AG148: FALSE | AH148: =IF(AG148,'Google Index'!E175) -> FALSE | AJ148: =IF(AF148,'Google Index'!F175) -> 0 | AN148: 152 | AO148: FALSE | AP148: =IF(AO148,'Commodity Prices'!C161) -> FALSE | AR148: =IF(AO148,'Commodity Prices'!D161) -> FALSE | AV148: 155 | AW148: FALSE | AX148: =IF(AW148,'Yahoo Stocks'!D175) -> FALSE | AZ148: =IF(AW148,'Yahoo Stocks'!E175) -> FALSE | BD148: 221 | BE148: FALSE | BF148: =IF(BE148,'Google Finance Stocks'!D172) -> FALSE | BH148: =IF(BE148,'Google Finance Stocks'!E172) -> FALSE | BL148: 221 | BM148: FALSE | BN148: ='Exchange Rates'!D166 -> 0 | BP148: =IF(BM148,'Exchange Rates'!E166) -> FALSE
L149: 147 | Q149: 147 | R149: FALSE | X149: 152 | Y149: FALSE | Z149: =IF($F$6,'FRED Indicies'!E162) -> 0 | AB149: =IF($F$6,'FRED Indicies'!D162) -> 0 | AF149: 153 | AG149: FALSE | AH149: =IF(AG149,'Google Index'!E176) -> FALSE | AJ149: =IF(AF149,'Google Index'!F176) -> 0 | AN149: 153 | AO149: FALSE | AP149: =IF(AO149,'Commodity Prices'!C162) -> FALSE | AR149: =IF(AO149,'Commodity Prices'!D162) -> FALSE | AV149: 156 | AW149: FALSE | AX149: =IF(AW149,'Yahoo Stocks'!D176) -> FALSE | AZ149: =IF(AW149,'Yahoo Stocks'!E176) -> FALSE | BD149: 222 | BE149: FALSE | BF149: =IF(BE149,'Google Finance Stocks'!D173) -> FALSE | BH149: =IF(BE149,'Google Finance Stocks'!E173) -> FALSE | BL149: 222 | BM149: FALSE | BN149: ='Exchange Rates'!D167 -> 0 | BP149: =IF(BM149,'Exchange Rates'!E167) -> FALSE
L150: 148 | Q150: 148 | R150: FALSE | X150: 153 | Y150: FALSE | Z150: =IF($F$6,'FRED Indicies'!E163) -> 0 | AB150: =IF($F$6,'FRED Indicies'!D163) -> 0 | AF150: 154 | AG150: FALSE | AH150: =IF(AG150,'Google Index'!E177) -> FALSE | AJ150: =IF(AF150,'Google Index'!F177) -> 0 | AN150: 154 | AO150: FALSE | AP150: =IF(AO150,'Commodity Prices'!C163) -> FALSE | AR150: =IF(AO150,'Commodity Prices'!D163) -> FALSE | AV150: 157 | AW150: FALSE | AX150: =IF(AW150,'Yahoo Stocks'!D177) -> FALSE | AZ150: =IF(AW150,'Yahoo Stocks'!E177) -> FALSE | BD150: 223 | BE150: FALSE | BF150: =IF(BE150,'Google Finance Stocks'!D174) -> FALSE | BH150: =IF(BE150,'Google Finance Stocks'!E174) -> FALSE | BL150: 223 | BM150: FALSE | BN150: ='Exchange Rates'!D168 -> 0 | BP150: =IF(BM150,'Exchange Rates'!E168) -> FALSE
L151: 149 | Q151: 149 | R151: FALSE | X151: 154 | Y151: FALSE | Z151: =IF($F$6,'FRED Indicies'!E164) -> 0 | AB151: =IF($F$6,'FRED Indicies'!D164) -> 0 | AF151: 155 | AG151: FALSE | AH151: =IF(AG151,'Google Index'!E178) -> FALSE | AJ151: =IF(AF151,'Google Index'!F178) -> 0 | AN151: 155 | AO151: FALSE | AP151: =IF(AO151,'Commodity Prices'!C164) -> FALSE | AR151: =IF(AO151,'Commodity Prices'!D164) -> FALSE | AV151: 158 | AW151: FALSE | AX151: =IF(AW151,'Yahoo Stocks'!D178) -> FALSE | AZ151: =IF(AW151,'Yahoo Stocks'!E178) -> FALSE | BD151: 224 | BE151: FALSE | BF151: =IF(BE151,'Google Finance Stocks'!D175) -> FALSE | BH151: =IF(BE151,'Google Finance Stocks'!E175) -> FALSE | BL151: 224 | BM151: FALSE | BN151: ='Exchange Rates'!D169 -> 0 | BP151: =IF(BM151,'Exchange Rates'!E169) -> FALSE
L152: 150 | Q152: 150 | R152: FALSE | X152: 155 | Y152: FALSE | Z152: =IF($F$6,'FRED Indicies'!E165) -> 0 | AB152: =IF($F$6,'FRED Indicies'!D165) -> 0 | AF152: 156 | AG152: FALSE | AH152: =IF(AG152,'Google Index'!E179) -> FALSE | AJ152: =IF(AF152,'Google Index'!F179) -> 0 | AN152: 156 | AO152: FALSE | AP152: =IF(AO152,'Commodity Prices'!C165) -> FALSE | AR152: =IF(AO152,'Commodity Prices'!D165) -> FALSE | AV152: 159 | AW152: FALSE | AX152: =IF(AW152,'Yahoo Stocks'!D179) -> FALSE | AZ152: =IF(AW152,'Yahoo Stocks'!E179) -> FALSE | BD152: 225 | BE152: FALSE | BF152: =IF(BE152,'Google Finance Stocks'!D176) -> FALSE | BH152: =IF(BE152,'Google Finance Stocks'!E176) -> FALSE | BL152: 225 | BM152: FALSE | BN152: ='Exchange Rates'!D170 -> 0 | BP152: =IF(BM152,'Exchange Rates'!E170) -> FALSE
L153: 151 | Q153: 151 | R153: FALSE | X153: 156 | Y153: FALSE | Z153: =IF($F$6,'FRED Indicies'!E166) -> 0 | AB153: =IF($F$6,'FRED Indicies'!D166) -> 0 | AF153: 157 | AG153: FALSE | AH153: =IF(AG153,'Google Index'!E180) -> FALSE | AJ153: =IF(AF153,'Google Index'!F180) -> 0 | AN153: 157 | AO153: FALSE | AP153: =IF(AO153,'Commodity Prices'!C166) -> FALSE | AR153: =IF(AO153,'Commodity Prices'!D166) -> FALSE | AV153: 160 | AW153: FALSE | AX153: =IF(AW153,'Yahoo Stocks'!D180) -> FALSE | AZ153: =IF(AW153,'Yahoo Stocks'!E180) -> FALSE | BD153: 226 | BE153: FALSE | BF153: =IF(BE153,'Google Finance Stocks'!D177) -> FALSE | BH153: =IF(BE153,'Google Finance Stocks'!E177) -> FALSE | BL153: 226 | BM153: FALSE | BN153: ='Exchange Rates'!D171 -> 0 | BP153: =IF(BM153,'Exchange Rates'!E171) -> FALSE
L154: 152 | X154: 157 | Y154: FALSE | Z154: =IF($F$6,'FRED Indicies'!E167) -> 0 | AB154: =IF($F$6,'FRED Indicies'!D167) -> 0 | AF154: 158 | AG154: FALSE | AH154: =IF(AG154,'Google Index'!E181) -> FALSE | AJ154: =IF(AF154,'Google Index'!F181) -> 0 | AN154: 158 | AO154: FALSE | AP154: =IF(AO154,'Commodity Prices'!C167) -> FALSE | AR154: =IF(AO154,'Commodity Prices'!D167) -> FALSE | AV154: 161 | AW154: FALSE | AX154: =IF(AW154,'Yahoo Stocks'!D181) -> FALSE | AZ154: =IF(AW154,'Yahoo Stocks'!E181) -> FALSE | BD154: 227 | BE154: FALSE | BF154: =IF(BE154,'Google Finance Stocks'!D178) -> FALSE | BH154: =IF(BE154,'Google Finance Stocks'!E178) -> FALSE | BL154: 227 | BM154: FALSE | BN154: ='Exchange Rates'!D172 -> 0 | BP154: =IF(BM154,'Exchange Rates'!E172) -> FALSE
L155: 153 | X155: 158 | Y155: FALSE | Z155: =IF($F$6,'FRED Indicies'!E168) -> 0 | AB155: =IF($F$6,'FRED Indicies'!D168) -> 0 | AF155: 159 | AG155: FALSE | AH155: =IF(AG155,'Google Index'!E182) -> FALSE | AJ155: =IF(AF155,'Google Index'!F182) -> 0 | AN155: 159 | AO155: FALSE | AP155: =IF(AO155,'Commodity Prices'!C168) -> FALSE | AR155: =IF(AO155,'Commodity Prices'!D168) -> FALSE | AV155: 162 | AW155: =IF(AND($F$15,AV155<=$H$15),AV155) -> FALSE | AX155: =IF(AW155,'Yahoo Stocks'!D182) -> FALSE | AY155: =IFERROR(INDEX(AX:AX,MATCH(L155,AW:AW,0)),"") ->  | AZ155: =IF(AW155,'Yahoo Stocks'!E182) -> FALSE | BA155: =IFERROR(INDEX(AZ:AZ,MATCH(L155,AW:AW,0)),"") ->  | BB155: =IF(AY155<>"",$I$15,"") ->  | BD155: 228 | BE155: FALSE | BF155: =IF(BE155,'Google Finance Stocks'!D179) -> FALSE | BH155: =IF(BE155,'Google Finance Stocks'!E179) -> FALSE | BL155: 228 | BM155: FALSE | BN155: ='Exchange Rates'!D173 -> 0 | BP155: =IF(BM155,'Exchange Rates'!E173) -> FALSE
L156: 154 | X156: 159 | Y156: FALSE | Z156: =IF($F$6,'FRED Indicies'!E169) -> 0 | AB156: =IF($F$6,'FRED Indicies'!D169) -> 0 | AF156: 160 | AG156: FALSE | AH156: =IF(AG156,'Google Index'!E183) -> FALSE | AJ156: =IF(AF156,'Google Index'!F183) -> 0 | AN156: 160 | AO156: FALSE | AP156: =IF(AO156,'Commodity Prices'!C169) -> FALSE | AR156: =IF(AO156,'Commodity Prices'!D169) -> FALSE | AV156: 163 | AW156: FALSE | AX156: =IF(AW156,'Yahoo Stocks'!D183) -> FALSE | AZ156: =IF(AW156,'Yahoo Stocks'!E183) -> FALSE | BD156: 229 | BE156: FALSE | BF156: =IF(BE156,'Google Finance Stocks'!D180) -> FALSE | BH156: =IF(BE156,'Google Finance Stocks'!E180) -> FALSE | BL156: 229 | BM156: FALSE | BN156: ='Exchange Rates'!D174 -> 0 | BP156: =IF(BM156,'Exchange Rates'!E174) -> FALSE
L157: 155 | X157: 160 | Y157: FALSE | Z157: =IF($F$6,'FRED Indicies'!E170) -> 0 | AB157: =IF($F$6,'FRED Indicies'!D170) -> 0 | AF157: 161 | AG157: FALSE | AH157: =IF(AG157,'Google Index'!E184) -> FALSE | AJ157: =IF(AF157,'Google Index'!F184) -> 0 | AN157: 161 | AO157: FALSE | AP157: =IF(AO157,'Commodity Prices'!C170) -> FALSE | AR157: =IF(AO157,'Commodity Prices'!D170) -> FALSE | AV157: 164 | AW157: FALSE | AX157: =IF(AW157,'Yahoo Stocks'!D184) -> FALSE | AZ157: =IF(AW157,'Yahoo Stocks'!E184) -> FALSE | BD157: 230 | BE157: FALSE | BF157: =IF(BE157,'Google Finance Stocks'!D181) -> FALSE | BH157: =IF(BE157,'Google Finance Stocks'!E181) -> FALSE | BL157: 230 | BM157: FALSE | BN157: ='Exchange Rates'!D175 -> 0 | BP157: =IF(BM157,'Exchange Rates'!E175) -> FALSE
L158: 156 | X158: 161 | Y158: FALSE | Z158: =IF($F$6,'FRED Indicies'!E171) -> 0 | AB158: =IF($F$6,'FRED Indicies'!D171) -> 0 | AF158: 162 | AG158: FALSE | AH158: =IF(AG158,'Google Index'!E185) -> FALSE | AJ158: =IF(AF158,'Google Index'!F185) -> 0 | AN158: 162 | AO158: FALSE | AP158: =IF(AO158,'Commodity Prices'!C171) -> FALSE | AR158: =IF(AO158,'Commodity Prices'!D171) -> FALSE | AV158: 165 | AW158: FALSE | AX158: =IF(AW158,'Yahoo Stocks'!D185) -> FALSE | AZ158: =IF(AW158,'Yahoo Stocks'!E185) -> FALSE | BD158: 231 | BE158: FALSE | BF158: =IF(BE158,'Google Finance Stocks'!D182) -> FALSE | BH158: =IF(BE158,'Google Finance Stocks'!E182) -> FALSE | BL158: 231 | BM158: FALSE | BN158: ='Exchange Rates'!D176 -> 0 | BP158: =IF(BM158,'Exchange Rates'!E176) -> FALSE
L159: 157 | X159: 162 | Y159: FALSE | Z159: =IF($F$6,'FRED Indicies'!E172) -> 0 | AB159: =IF($F$6,'FRED Indicies'!D172) -> 0 | AF159: 163 | AG159: FALSE | AH159: =IF(AG159,'Google Index'!E186) -> FALSE | AJ159: =IF(AF159,'Google Index'!F186) -> 0 | AN159: 163 | AO159: FALSE | AP159: =IF(AO159,'Commodity Prices'!C172) -> FALSE | AR159: =IF(AO159,'Commodity Prices'!D172) -> FALSE | AV159: 166 | AW159: FALSE | AX159: =IF(AW159,'Yahoo Stocks'!D186) -> FALSE | AZ159: =IF(AW159,'Yahoo Stocks'!E186) -> FALSE | BD159: 232 | BE159: FALSE | BF159: =IF(BE159,'Google Finance Stocks'!D183) -> FALSE | BH159: =IF(BE159,'Google Finance Stocks'!E183) -> FALSE | BL159: 232 | BM159: FALSE | BN159: ='Exchange Rates'!D177 -> 0 | BP159: =IF(BM159,'Exchange Rates'!E177) -> FALSE
L160: 158 | X160: 163 | Y160: FALSE | Z160: =IF($F$6,'FRED Indicies'!E173) -> 0 | AB160: =IF($F$6,'FRED Indicies'!D173) -> 0 | AF160: 164 | AG160: FALSE | AH160: =IF(AG160,'Google Index'!E187) -> FALSE | AJ160: =IF(AF160,'Google Index'!F187) -> 0 | AN160: 164 | AO160: FALSE | AP160: =IF(AO160,'Commodity Prices'!C173) -> FALSE | AR160: =IF(AO160,'Commodity Prices'!D173) -> FALSE | AV160: 167 | AW160: FALSE | AX160: =IF(AW160,'Yahoo Stocks'!D187) -> FALSE | AZ160: =IF(AW160,'Yahoo Stocks'!E187) -> FALSE | BD160: 233 | BE160: FALSE | BF160: =IF(BE160,'Google Finance Stocks'!D184) -> FALSE | BH160: =IF(BE160,'Google Finance Stocks'!E184) -> FALSE | BL160: 233 | BM160: FALSE | BN160: ='Exchange Rates'!D178 -> 0 | BP160: =IF(BM160,'Exchange Rates'!E178) -> FALSE
L161: 159 | X161: 164 | Y161: FALSE | Z161: =IF($F$6,'FRED Indicies'!E174) -> 0 | AB161: =IF($F$6,'FRED Indicies'!D174) -> 0 | AF161: 165 | AG161: FALSE | AH161: =IF(AG161,'Google Index'!E188) -> FALSE | AJ161: =IF(AF161,'Google Index'!F188) -> 0 | AN161: 165 | AO161: FALSE | AP161: =IF(AO161,'Commodity Prices'!C174) -> FALSE | AR161: =IF(AO161,'Commodity Prices'!D174) -> FALSE | AV161: 168 | AW161: FALSE | AX161: =IF(AW161,'Yahoo Stocks'!D188) -> FALSE | AZ161: =IF(AW161,'Yahoo Stocks'!E188) -> FALSE | BD161: 234 | BE161: FALSE | BF161: =IF(BE161,'Google Finance Stocks'!D185) -> FALSE | BH161: =IF(BE161,'Google Finance Stocks'!E185) -> FALSE | BL161: 234 | BM161: FALSE | BN161: ='Exchange Rates'!D179 -> 0 | BP161: =IF(BM161,'Exchange Rates'!E179) -> FALSE
L162: 160 | X162: 165 | Y162: FALSE | Z162: =IF($F$6,'FRED Indicies'!E175) -> 0 | AB162: =IF($F$6,'FRED Indicies'!D175) -> 0 | AF162: 166 | AG162: FALSE | AH162: =IF(AG162,'Google Index'!E189) -> FALSE | AJ162: =IF(AF162,'Google Index'!F189) -> 0 | AN162: 166 | AO162: FALSE | AP162: =IF(AO162,'Commodity Prices'!C175) -> FALSE | AR162: =IF(AO162,'Commodity Prices'!D175) -> FALSE | AV162: 169 | AW162: FALSE | AX162: =IF(AW162,'Yahoo Stocks'!D189) -> FALSE | AZ162: =IF(AW162,'Yahoo Stocks'!E189) -> FALSE | BD162: 235 | BE162: FALSE | BF162: =IF(BE162,'Google Finance Stocks'!D186) -> FALSE | BH162: =IF(BE162,'Google Finance Stocks'!E186) -> FALSE | BL162: 235 | BM162: FALSE | BN162: ='Exchange Rates'!D180 -> 0 | BP162: =IF(BM162,'Exchange Rates'!E180) -> FALSE
L163: 161 | X163: 166 | Y163: FALSE | Z163: =IF($F$6,'FRED Indicies'!E176) -> 0 | AB163: =IF($F$6,'FRED Indicies'!D176) -> 0 | AF163: 167 | AG163: FALSE | AH163: =IF(AG163,'Google Index'!E190) -> FALSE | AJ163: =IF(AF163,'Google Index'!F190) -> 0 | AN163: 167 | AO163: FALSE | AP163: =IF(AO163,'Commodity Prices'!C176) -> FALSE | AR163: =IF(AO163,'Commodity Prices'!D176) -> FALSE | AV163: 170 | AW163: FALSE | AX163: =IF(AW163,'Yahoo Stocks'!D190) -> FALSE | AZ163: =IF(AW163,'Yahoo Stocks'!E190) -> FALSE | BD163: 236 | BE163: FALSE | BF163: =IF(BE163,'Google Finance Stocks'!D187) -> FALSE | BH163: =IF(BE163,'Google Finance Stocks'!E187) -> FALSE | BL163: 236 | BM163: FALSE | BN163: ='Exchange Rates'!D181 -> 0 | BP163: =IF(BM163,'Exchange Rates'!E181) -> FALSE
L164: 162 | X164: 167 | Y164: FALSE | Z164: =IF($F$6,'FRED Indicies'!E177) -> 0 | AB164: =IF($F$6,'FRED Indicies'!D177) -> 0 | AF164: 168 | AG164: FALSE | AH164: =IF(AG164,'Google Index'!E191) -> FALSE | AJ164: =IF(AF164,'Google Index'!F191) -> 0 | AN164: 168 | AO164: FALSE | AP164: =IF(AO164,'Commodity Prices'!C177) -> FALSE | AR164: =IF(AO164,'Commodity Prices'!D177) -> FALSE | AV164: 171 | AW164: FALSE | AX164: =IF(AW164,'Yahoo Stocks'!D191) -> FALSE | AZ164: =IF(AW164,'Yahoo Stocks'!E191) -> FALSE | BD164: 237 | BE164: FALSE | BF164: =IF(BE164,'Google Finance Stocks'!D188) -> FALSE | BH164: =IF(BE164,'Google Finance Stocks'!E188) -> FALSE | BL164: 237 | BM164: FALSE | BN164: ='Exchange Rates'!D182 -> 0 | BP164: =IF(BM164,'Exchange Rates'!E182) -> FALSE
L165: 163 | X165: 168 | Y165: FALSE | Z165: =IF($F$6,'FRED Indicies'!E178) -> 0 | AB165: =IF($F$6,'FRED Indicies'!D178) -> 0 | AF165: 169 | AG165: FALSE | AH165: =IF(AG165,'Google Index'!E192) -> FALSE | AJ165: =IF(AF165,'Google Index'!F192) -> 0 | AN165: 169 | AO165: FALSE | AP165: =IF(AO165,'Commodity Prices'!C178) -> FALSE | AR165: =IF(AO165,'Commodity Prices'!D178) -> FALSE | AV165: 172 | AW165: FALSE | AX165: =IF(AW165,'Yahoo Stocks'!D192) -> FALSE | AZ165: =IF(AW165,'Yahoo Stocks'!E192) -> FALSE | BD165: 238 | BE165: FALSE | BF165: =IF(BE165,'Google Finance Stocks'!D189) -> FALSE | BH165: =IF(BE165,'Google Finance Stocks'!E189) -> FALSE | BL165: 238 | BM165: FALSE | BN165: ='Exchange Rates'!D183 -> 0 | BP165: =IF(BM165,'Exchange Rates'!E183) -> FALSE
L166: 164 | X166: 169 | Y166: FALSE | Z166: =IF($F$6,'FRED Indicies'!E179) -> 0 | AB166: =IF($F$6,'FRED Indicies'!D179) -> 0 | AF166: 170 | AG166: FALSE | AH166: =IF(AG166,'Google Index'!E193) -> FALSE | AJ166: =IF(AF166,'Google Index'!F193) -> 0 | AN166: 170 | AO166: FALSE | AP166: =IF(AO166,'Commodity Prices'!C179) -> FALSE | AR166: =IF(AO166,'Commodity Prices'!D179) -> FALSE | AV166: 173 | AW166: FALSE | AX166: =IF(AW166,'Yahoo Stocks'!D193) -> FALSE | AZ166: =IF(AW166,'Yahoo Stocks'!E193) -> FALSE | BD166: 239 | BE166: FALSE | BF166: =IF(BE166,'Google Finance Stocks'!D190) -> FALSE | BH166: =IF(BE166,'Google Finance Stocks'!E190) -> FALSE | BL166: 239 | BM166: FALSE | BN166: ='Exchange Rates'!D184 -> 0 | BP166: =IF(BM166,'Exchange Rates'!E184) -> FALSE
L167: 165 | X167: 170 | Y167: FALSE | Z167: =IF($F$6,'FRED Indicies'!E180) -> 0 | AB167: =IF($F$6,'FRED Indicies'!D180) -> 0 | AF167: 171 | AG167: FALSE | AH167: =IF(AG167,'Google Index'!E194) -> FALSE | AJ167: =IF(AF167,'Google Index'!F194) -> 0 | AN167: 171 | AO167: FALSE | AP167: =IF(AO167,'Commodity Prices'!C180) -> FALSE | AR167: =IF(AO167,'Commodity Prices'!D180) -> FALSE | AV167: 174 | AW167: FALSE | AX167: =IF(AW167,'Yahoo Stocks'!D194) -> FALSE | AZ167: =IF(AW167,'Yahoo Stocks'!E194) -> FALSE | BD167: 240 | BE167: FALSE | BF167: =IF(BE167,'Google Finance Stocks'!D191) -> FALSE | BH167: =IF(BE167,'Google Finance Stocks'!E191) -> FALSE | BL167: 240 | BM167: FALSE | BN167: ='Exchange Rates'!D185 -> 0 | BP167: =IF(BM167,'Exchange Rates'!E185) -> FALSE
L168: 166 | X168: 171 | Y168: FALSE | Z168: =IF($F$6,'FRED Indicies'!E181) -> 0 | AB168: =IF($F$6,'FRED Indicies'!D181) -> 0 | AF168: 172 | AG168: FALSE | AH168: =IF(AG168,'Google Index'!E195) -> FALSE | AJ168: =IF(AF168,'Google Index'!F195) -> 0 | AN168: 172 | AO168: FALSE | AP168: =IF(AO168,'Commodity Prices'!C181) -> FALSE | AR168: =IF(AO168,'Commodity Prices'!D181) -> FALSE | AV168: 175 | AW168: FALSE | AX168: =IF(AW168,'Yahoo Stocks'!D195) -> FALSE | AZ168: =IF(AW168,'Yahoo Stocks'!E195) -> FALSE | BD168: 241 | BE168: FALSE | BF168: =IF(BE168,'Google Finance Stocks'!D192) -> FALSE | BH168: =IF(BE168,'Google Finance Stocks'!E192) -> FALSE | BL168: 241 | BM168: FALSE | BN168: ='Exchange Rates'!D186 -> 0 | BP168: =IF(BM168,'Exchange Rates'!E186) -> FALSE
L169: 167 | X169: 172 | Y169: FALSE | Z169: =IF($F$6,'FRED Indicies'!E182) -> 0 | AB169: =IF($F$6,'FRED Indicies'!D182) -> 0 | AF169: 173 | AG169: FALSE | AH169: =IF(AG169,'Google Index'!E196) -> FALSE | AJ169: =IF(AF169,'Google Index'!F196) -> 0 | AN169: 173 | AO169: FALSE | AP169: =IF(AO169,'Commodity Prices'!C182) -> FALSE | AR169: =IF(AO169,'Commodity Prices'!D182) -> FALSE | AV169: 176 | AW169: FALSE | AX169: =IF(AW169,'Yahoo Stocks'!D196) -> FALSE | AZ169: =IF(AW169,'Yahoo Stocks'!E196) -> FALSE | BD169: 242 | BE169: FALSE | BF169: =IF(BE169,'Google Finance Stocks'!D193) -> FALSE | BH169: =IF(BE169,'Google Finance Stocks'!E193) -> FALSE | BL169: 242 | BM169: FALSE | BN169: ='Exchange Rates'!D187 -> 0 | BP169: =IF(BM169,'Exchange Rates'!E187) -> FALSE
L170: 168 | X170: 173 | Y170: FALSE | Z170: =IF($F$6,'FRED Indicies'!E183) -> 0 | AB170: =IF($F$6,'FRED Indicies'!D183) -> 0 | AF170: 174 | AG170: FALSE | AH170: =IF(AG170,'Google Index'!E197) -> FALSE | AJ170: =IF(AF170,'Google Index'!F197) -> 0 | AN170: 174 | AO170: FALSE | AP170: =IF(AO170,'Commodity Prices'!C183) -> FALSE | AR170: =IF(AO170,'Commodity Prices'!D183) -> FALSE | AV170: 177 | AW170: FALSE | AX170: =IF(AW170,'Yahoo Stocks'!D197) -> FALSE | AZ170: =IF(AW170,'Yahoo Stocks'!E197) -> FALSE | BD170: 243 | BE170: FALSE | BF170: =IF(BE170,'Google Finance Stocks'!D194) -> FALSE | BH170: =IF(BE170,'Google Finance Stocks'!E194) -> FALSE | BL170: 243 | BM170: FALSE | BN170: ='Exchange Rates'!D188 -> 0 | BP170: =IF(BM170,'Exchange Rates'!E188) -> FALSE
L171: 169 | X171: 174 | Y171: FALSE | Z171: =IF($F$6,'FRED Indicies'!E184) -> 0 | AB171: =IF($F$6,'FRED Indicies'!D184) -> 0 | AF171: 175 | AG171: FALSE | AH171: =IF(AG171,'Google Index'!E198) -> FALSE | AJ171: =IF(AF171,'Google Index'!F198) -> 0 | AN171: 175 | AO171: FALSE | AP171: =IF(AO171,'Commodity Prices'!C184) -> FALSE | AR171: =IF(AO171,'Commodity Prices'!D184) -> FALSE | AV171: 178 | AW171: FALSE | AX171: =IF(AW171,'Yahoo Stocks'!D198) -> FALSE | AZ171: =IF(AW171,'Yahoo Stocks'!E198) -> FALSE | BD171: 244 | BE171: FALSE | BF171: =IF(BE171,'Google Finance Stocks'!D195) -> FALSE | BH171: =IF(BE171,'Google Finance Stocks'!E195) -> FALSE | BL171: 244 | BM171: FALSE | BN171: ='Exchange Rates'!D189 -> 0 | BP171: =IF(BM171,'Exchange Rates'!E189) -> FALSE
L172: 170 | BD172: 245 | BE172: =IF(AND($F$18,BD172<=$H$18),BD172) -> FALSE | BF172: =IF(BE172,'Google Finance Stocks'!D196) -> FALSE | BG172: =IFERROR(INDEX(BF:BF,MATCH(Q172,BE:BE,0)),"") ->  | BH172: =IF(BE172,'Google Finance Stocks'!E196) -> FALSE | BI172: =IFERROR(INDEX(BH:BH,MATCH(Q172,BE:BE,0)),"") ->  | BJ172: =IF(BI172<>"",$I$18,"") ->  | BK172: =IF(BI172<>"",$J$18,"") ->  | BL172: 245 | BM172: =IF(AND($F$21,BL172<=$H$21),BL172) -> FALSE | BN172: ='Exchange Rates'!D190 -> 0 | BO172: =IFERROR(INDEX(BN:BN,MATCH(L172,BM:BM,0)),"") ->  | BP172: =IF(BM172,'Exchange Rates'!E190) -> FALSE | BQ172: =IFERROR(INDEX(BP:BP,MATCH(L172,BM:BM,0)),"") ->  | BR172: =IF(BQ172<>"",$I$21,"") ->  | BS172: =IF(BQ172<>"",$J$21,"") -> 
L173: 171 | BD173: 246 | BE173: FALSE | BF173: =IF(BE173,'Google Finance Stocks'!D197) -> FALSE | BH173: =IF(BE173,'Google Finance Stocks'!E197) -> FALSE | BL173: 246 | BM173: FALSE | BN173: ='Exchange Rates'!D191 -> 0 | BP173: =IF(BM173,'Exchange Rates'!E191) -> FALSE
L174: 172 | BD174: 247 | BE174: FALSE | BF174: =IF(BE174,'Google Finance Stocks'!D198) -> FALSE | BH174: =IF(BE174,'Google Finance Stocks'!E198) -> FALSE | BL174: 247 | BM174: FALSE | BN174: ='Exchange Rates'!D192 -> 0 | BP174: =IF(BM174,'Exchange Rates'!E192) -> FALSE
L175: 173 | BD175: 248 | BE175: FALSE | BF175: =IF(BE175,'Google Finance Stocks'!D199) -> FALSE | BH175: =IF(BE175,'Google Finance Stocks'!E199) -> FALSE | BL175: 248 | BM175: FALSE | BN175: ='Exchange Rates'!D193 -> 0 | BP175: =IF(BM175,'Exchange Rates'!E193) -> FALSE
L176: 174 | BD176: 249 | BE176: FALSE | BF176: =IF(BE176,'Google Finance Stocks'!D200) -> FALSE | BH176: =IF(BE176,'Google Finance Stocks'!E200) -> FALSE | BL176: 249 | BM176: FALSE | BN176: ='Exchange Rates'!D194 -> 0 | BP176: =IF(BM176,'Exchange Rates'!E194) -> FALSE
BD177: 250 | BE177: FALSE | BF177: =IF(BE177,'Google Finance Stocks'!D201) -> FALSE | BH177: =IF(BE177,'Google Finance Stocks'!E201) -> FALSE | BL177: 250 | BM177: FALSE | BN177: ='Exchange Rates'!D195 -> 0 | BP177: =IF(BM177,'Exchange Rates'!E195) -> FALSE
BD178: 251 | BE178: FALSE | BF178: =IF(BE178,'Google Finance Stocks'!D202) -> FALSE | BH178: =IF(BE178,'Google Finance Stocks'!E202) -> FALSE | BL178: 251 | BM178: FALSE | BN178: ='Exchange Rates'!D196 -> 0 | BP178: =IF(BM178,'Exchange Rates'!E196) -> FALSE
BD179: 252 | BE179: FALSE | BF179: =IF(BE179,'Google Finance Stocks'!D203) -> FALSE | BH179: =IF(BE179,'Google Finance Stocks'!E203) -> FALSE | BL179: 252 | BM179: FALSE | BN179: ='Exchange Rates'!D197 -> 0 | BP179: =IF(BM179,'Exchange Rates'!E197) -> FALSE
BD180: 253 | BE180: FALSE | BF180: =IF(BE180,'Google Finance Stocks'!D204) -> FALSE | BH180: =IF(BE180,'Google Finance Stocks'!E204) -> FALSE | BL180: 253 | BM180: FALSE | BN180: ='Exchange Rates'!D198 -> 0 | BP180: =IF(BM180,'Exchange Rates'!E198) -> FALSE
BD181: 254 | BE181: FALSE | BF181: =IF(BE181,'Google Finance Stocks'!D205) -> FALSE | BH181: =IF(BE181,'Google Finance Stocks'!E205) -> FALSE | BL181: 254 | BM181: FALSE | BN181: ='Exchange Rates'!D199 -> 0 | BP181: =IF(BM181,'Exchange Rates'!E199) -> FALSE
BD182: 255 | BE182: FALSE | BF182: =IF(BE182,'Google Finance Stocks'!D206) -> FALSE | BH182: =IF(BE182,'Google Finance Stocks'!E206) -> FALSE | BL182: 255 | BM182: FALSE | BN182: ='Exchange Rates'!D200 -> 0 | BP182: =IF(BM182,'Exchange Rates'!E200) -> FALSE
BD183: 256 | BE183: FALSE | BF183: =IF(BE183,'Google Finance Stocks'!D207) -> FALSE | BH183: =IF(BE183,'Google Finance Stocks'!E207) -> FALSE | BL183: 256 | BM183: FALSE | BN183: ='Exchange Rates'!D201 -> 0 | BP183: =IF(BM183,'Exchange Rates'!E201) -> FALSE
BD184: 257 | BE184: FALSE | BF184: =IF(BE184,'Google Finance Stocks'!D208) -> FALSE | BH184: =IF(BE184,'Google Finance Stocks'!E208) -> FALSE | BL184: 257 | BM184: FALSE | BN184: ='Exchange Rates'!D202 -> 0 | BP184: =IF(BM184,'Exchange Rates'!E202) -> FALSE
BD185: 258 | BE185: FALSE | BF185: =IF(BE185,'Google Finance Stocks'!D209) -> FALSE | BH185: =IF(BE185,'Google Finance Stocks'!E209) -> FALSE | BL185: 258 | BM185: FALSE | BN185: ='Exchange Rates'!D203 -> 0 | BP185: =IF(BM185,'Exchange Rates'!E203) -> FALSE
BD186: 259 | BE186: FALSE | BF186: =IF(BE186,'Google Finance Stocks'!D210) -> FALSE | BH186: =IF(BE186,'Google Finance Stocks'!E210) -> FALSE | BL186: 259 | BM186: FALSE | BN186: ='Exchange Rates'!D204 -> 0 | BP186: =IF(BM186,'Exchange Rates'!E204) -> FALSE
BD187: 260 | BE187: FALSE | BF187: =IF(BE187,'Google Finance Stocks'!D211) -> FALSE | BH187: =IF(BE187,'Google Finance Stocks'!E211) -> FALSE | BL187: 260 | BM187: FALSE | BN187: ='Exchange Rates'!D205 -> 0 | BP187: =IF(BM187,'Exchange Rates'!E205) -> FALSE
BD188: 261 | BE188: FALSE | BF188: =IF(BE188,'Google Finance Stocks'!D212) -> FALSE | BH188: =IF(BE188,'Google Finance Stocks'!E212) -> FALSE | BL188: 261 | BM188: FALSE | BN188: ='Exchange Rates'!D206 -> 0 | BP188: =IF(BM188,'Exchange Rates'!E206) -> FALSE
BD189: 262 | BE189: FALSE | BF189: =IF(BE189,'Google Finance Stocks'!D213) -> FALSE | BH189: =IF(BE189,'Google Finance Stocks'!E213) -> FALSE | BL189: 262 | BM189: FALSE | BN189: ='Exchange Rates'!D207 -> 0 | BP189: =IF(BM189,'Exchange Rates'!E207) -> FALSE
BD190: 263 | BE190: FALSE | BF190: =IF(BE190,'Google Finance Stocks'!D214) -> FALSE | BH190: =IF(BE190,'Google Finance Stocks'!E214) -> FALSE | BL190: 263 | BM190: FALSE | BN190: ='Exchange Rates'!D208 -> 0 | BP190: =IF(BM190,'Exchange Rates'!E208) -> FALSE
BD191: 264 | BE191: FALSE | BF191: =IF(BE191,'Google Finance Stocks'!D215) -> FALSE | BH191: =IF(BE191,'Google Finance Stocks'!E215) -> FALSE | BL191: 264 | BM191: FALSE | BN191: ='Exchange Rates'!D209 -> 0 | BP191: =IF(BM191,'Exchange Rates'!E209) -> FALSE
BD192: 265 | BE192: FALSE | BF192: =IF(BE192,'Google Finance Stocks'!D216) -> FALSE | BH192: =IF(BE192,'Google Finance Stocks'!E216) -> FALSE | BL192: 265 | BM192: FALSE | BN192: ='Exchange Rates'!D210 -> 0 | BP192: =IF(BM192,'Exchange Rates'!E210) -> FALSE
BD193: 266 | BE193: FALSE | BF193: =IF(BE193,'Google Finance Stocks'!D217) -> FALSE | BH193: =IF(BE193,'Google Finance Stocks'!E217) -> FALSE | BL193: 266 | BM193: FALSE | BN193: ='Exchange Rates'!D211 -> 0 | BP193: =IF(BM193,'Exchange Rates'!E211) -> FALSE
BD194: 267 | BE194: FALSE | BF194: =IF(BE194,'Google Finance Stocks'!D218) -> FALSE | BH194: =IF(BE194,'Google Finance Stocks'!E218) -> FALSE | BL194: 267 | BM194: FALSE | BN194: ='Exchange Rates'!D212 -> 0 | BP194: =IF(BM194,'Exchange Rates'!E212) -> FALSE
BD195: 268 | BE195: FALSE | BF195: =IF(BE195,'Google Finance Stocks'!D219) -> FALSE | BH195: =IF(BE195,'Google Finance Stocks'!E219) -> FALSE | BL195: 268 | BM195: FALSE | BN195: ='Exchange Rates'!D213 -> 0 | BP195: =IF(BM195,'Exchange Rates'!E213) -> FALSE
BD196: 269 | BE196: FALSE | BF196: =IF(BE196,'Google Finance Stocks'!D220) -> FALSE | BH196: =IF(BE196,'Google Finance Stocks'!E220) -> FALSE | BL196: 269 | BM196: FALSE | BN196: ='Exchange Rates'!D214 -> 0 | BP196: =IF(BM196,'Exchange Rates'!E214) -> FALSE
BD197: =BD196+1 -> 270 | BE197: FALSE | BF197: =IF(BE197,'Google Finance Stocks'!D221) -> FALSE | BH197: =IF(BE197,'Google Finance Stocks'!E221) -> FALSE | BL197: =BL196+1 -> 270 | BM197: FALSE | BN197: ='Exchange Rates'!D215 -> 0 | BP197: =IF(BM197,'Exchange Rates'!E215) -> FALSE
BD198: 271 | BE198: FALSE | BF198: =IF(BE198,'Google Finance Stocks'!D222) -> FALSE | BH198: =IF(BE198,'Google Finance Stocks'!E222) -> FALSE | BL198: 271 | BM198: FALSE | BN198: ='Exchange Rates'!D216 -> 0 | BP198: =IF(BM198,'Exchange Rates'!E216) -> FALSE
BD199: 272 | BE199: FALSE | BF199: =IF(BE199,'Google Finance Stocks'!D223) -> FALSE | BH199: =IF(BE199,'Google Finance Stocks'!E223) -> FALSE | BL199: 272 | BM199: FALSE | BN199: ='Exchange Rates'!D217 -> 0 | BP199: =IF(BM199,'Exchange Rates'!E217) -> FALSE
BD200: 273 | BE200: FALSE | BF200: =IF(BE200,'Google Finance Stocks'!D224) -> FALSE | BH200: =IF(BE200,'Google Finance Stocks'!E224) -> FALSE | BL200: 273 | BM200: FALSE | BN200: ='Exchange Rates'!D218 -> 0 | BP200: =IF(BM200,'Exchange Rates'!E218) -> FALSE
... 6 more rows

Sheet Contents
C1: Go to Charts by Pressing Shift and Enter on Menu Item
C3: Sheet Tab | D3: Description | E3: Author
B4: 1 | C4: Introduction
B5: 2 | C5: Read Stocks
B6: 3 | C6: Contents
B7: 4 | C7: Errors
B8: 5 | C8: Multiple Stock Graph
B9: 6 | C9: Summary
B10: 7 | C10: Yahoo Index | J10: Questions: e-mail edwardbodmer@gmail.com
B11: 8 | C11: FRED Indicies
B12: 9 | C12: Exchange Rates | J12: Explanation at:
B13: 10 | C13: Commodity Prices | J13: http://edbodmer.com/comprehensive-stock-price-analysis/
B14: 11 | C14: Yahoo Stocks
B15: 12 | C15: Google Finance Stocks
B16: 13 | C16: Google Index
B17: 14 | C17: International Indicies
B18: 15 | C18: General Points
B19: 16 | C19: Forms
B20: 17 | C20: BREAK
B21: 18 | C21: S&P 500 | J21: Notes: Error and still makes sheets
B22: 19 | C22: DAX
B23: 20 | C23: Nifty Fifty
B24: 21 | C24: BSESN Index
B25: 22 | C25: Nasdaq 100
B26: 23 | C26: NASDAQ100
B27: 24 | C27: DCOILBRENTEU
B28: 25 | C28: PCOPPUSDM
B29: 26 | C29: MHHNGSP
B30: 27 | C30: HTMEDIA.NS
B31: 28 | C31: AAPL
B32: 29 | C32: GOOG
B33: 30 | C33: AMZN
B34: 31 | C34: FB
B35: 32 | C35: DTE.DE
B36: 33 | C36: FTE
B37: 34 | C37: BT
B38: 35 | C38: VOD
B39: 36 | C39: VZ
B40: 37 | C40: S
B41: 38 | C41: PHI
B42: 39 | C42: TKC
B43: 40 | C43: JPM
B44: 41 | C44: MCD
B45: 42 | C45: WMT
B46: 43 | C46: NG.L
B47: 44 | C47: EXC
B48: 45 | C48: ENGI.PA
B49: 46 | C49: EDF.PA
B50: 47 | C50: ED
B51: 48 | C51: 5347.KL
B52: 49 | C52: MAEOY
B53: 50 | C53: VWDRY
B54: 51 | C54: VWS.CO
B55: 52 | C55: GE
B56: 53 | C56: NDX1.DE
B57: 54 | C57: 601558.SS
B58: 55 | C58: SUZLON.NS
B59: 56 | C59: 002202.SZ
B60: 57 | C60: LB
B61: 58 | C61: Sheet157
B62: 59 | C62: FSLR
B63: 60 | C63: Sheet159
B64: 61 | C64: SPWR
B65: 62 | C65: Sheet161
B66: 63 | C66: Sheet162
B67: 64 | C67: RELIANCE.NS
B68: 65 | C68: ICICIBANK.NS
B69: 66 | C69: TATAMOTORS.NS
B70: 67 | C70: WIPRO.NS
B71: 68 | C71: DRREDDY.NS
B72: 69 | C72: WNS
B73: 70 | C73: SIFY
B74: 71 | C74: REDFY
B75: 72 | C75: VEDL.NS
B76: 73 | C76: AZRE
B77: 74 | C77: Sheet175
B78: 75 | C78: MTENY
B79: 76 | C79: MMYT
B80: 77 | C80: YTRA
B81: 78 | C81: TCS.NS
B82: 79 | C82: HDFCBANK.NS
B83: 80 | C83: HINDUNILVR.NS
B84: 81 | C84: ITC.NS
B85: 82 | C85: HDFC.NS
B86: 83 | C86: INFY.NS
B87: 84 | C87: SBIN.NS
B88: 85 | C88: HEINY
B89: 86 | C89: NYT
B90: 87 | C90: BUD
B91: 88 | C91: KOF
B92: 89 | C92: DEO
B93: 90 | C93: ECL
B94: 91 | C94: GDP Inf
B95: 92 | C95: CPI US
B96: 93 | C96: Euro
B97: 94 | C97: INR
B98: 95 | C98: UK
B99: 96 | C99: CFH
B100: 97 | C100: US NOM GNP
B101: 98 | C101: India Disc Rate
B102: 99 | C102: India Gvt Bonds
B103: 100 | C103: India 10 Yr Main
B104: 101 | C104: India Inflation
B105: 102 | C105: 5 yr treasury
B106: 103 | C106: 10 year treasury
B107: 104 | C107: US Med Inc Nom
B108: 105 | C108: Median Income
B109: 106 | C109: Corp Profit
B110: 107 | C110: Corp Nonfin
B111: 108 | C111: Corp Aft Tax
B112: 109 | C112: Corp Inf Adjusted
B113: 110 | C113: GDP Inflation Index
B114: 111 | C114: CPI US Index
B115: 112 | C115: US GDP
B116: 113 | C116: Median Family Income
B117: 114 | C117: GDPDEF
B118: 115 | C118: CPIAUCSL
B119: 116 | C119: EXUSEU
B120: 117 | C120: DEXINUS
B121: 118 | C121: EXUSUK
B122: 119 | C122: DEXSZUS
B123: 120 | C123: GNP
B124: 121 | C124: INTDSRINM193N
B125: 122 | C125: INTGSBINM193N
B126: 123 | C126: INDIRLTLT01STM
B127: 124 | C127: CPALTT01INM659N
B128: 125 | C128: GS5
B129: 126 | C129: GS10
B130: 127 | C130: MEHOINUSA646N
B131: 128 | C131: LES1252881600Q
B132: 129 | C132: CP
B133: 130 | C133: NFCPATAX
B134: 131 | C134: A055RC0A144NBEA
B135: 132 | C135: A445RC1Q027SBEA
B136: 133 | C136: GDPDEF (2)
B137: 134 | C137: CPIAUCSL (2)
B138: 135 | C138: GDP
B139: 136 | C139: MEFAINUSA646N

Sheet Errors
A1: https://query1.finance.yahoo.com/v7/finance/download/MY?period1=-631152000&period2=1555286400&interval=1mo&events=history&crumb=sDpEP32f7lv | E1: https://research.stlouisfed.org/fred2/data/INTDSRINM193N.txt
A2: https://query1.finance.yahoo.com/v7/finance/download/RECSOL.OL?period1=-631152000&period2=1555286400&interval=1mo&events=history&crumb=sDpEP32f7lv | E2: https://research.stlouisfed.org/fred2/data/INTGSBINM193N.txt
A3: https://query1.finance.yahoo.com/v7/finance/download/TSL?period1=-631152000&period2=1555286400&interval=1mo&events=history&crumb=sDpEP32f7lv | E3: https://research.stlouisfed.org/fred2/data/INDIRLTLT01STM.txt
A4: https://query1.finance.yahoo.com/v7/finance/download/SCTY?period1=-631152000&period2=1555286400&interval=1mo&events=history&crumb=sDpEP32f7lv | E4: https://research.stlouisfed.org/fred2/data/CPALTT01INM659N.txt
A5: https://query1.finance.yahoo.com/v7/finance/download/GRSXY?period1=-631152000&period2=1555286400&interval=1mo&events=history&crumb=sDpEP32f7lv | E5: https://research.stlouisfed.org/fred2/data/GS5.txt
E6: https://research.stlouisfed.org/fred2/data/GS10.txt
E7: https://research.stlouisfed.org/fred2/data/GDPDEF.txt
E8: https://research.stlouisfed.org/fred2/data/CPIAUCSL.txt

Sheet Multiple Stock Graph
C1: Index | K1: IRR | L1: Vol | M1: Beta | AA1: Start | AB1: Final | AC1: Years
J2: =O26 -> US S&P 500 | K2: =Summary!K4 -> 0.06874880361 | L2: =Summary!AT5 -> 0.1477648461 | M2: =Summary!AT3 -> 1 | Y2: =J2 -> US S&P 500 | AA2: =Summary!D3 -> 1950-01-01 | AB2: =Summary!K3 -> 42.23431262 | AC2: =Summary!E4 -> 57.29885057
B3: Comparison vs Base | G3: Counter | H3: Match | I3: Selection
A4: 1 | B4: ='Read Stocks'!M3 -> S&P 500 | C4: ='Read Stocks'!N3 -> US S&P 500 | D4: FALSE | F4: =D4*1 -> 0 | G4: 1 | H4: =MATCH(G4,F$1:F$555,0) ->  | I4: =INDEX(B:B,H4) ->  | J4: =INDEX(C:C,H4) ->  | K4: =IFERROR(TRANSPOSE(Summary!BA4:BF4),"") ->  | L4: =IFERROR(TRANSPOSE(Summary!AU5:AZ5),"") -> 0 | M4: =IFERROR(TRANSPOSE(Summary!AU3:AZ3),"") -> 0 | Y4: =J4 ->  | AA4: =IFERROR(TRANSPOSE(Summary!AB2:AG2),"") ->  | AB4: =TRANSPOSE(Summary!BA3:BF3) -> 1
A5: 2 | B5: ='Read Stocks'!M4 -> DAX | C5: ='Read Stocks'!N4 -> DAX in Euro | D5: FALSE | F5: =F4+D5 -> 0 | G5: 2 | H5: =MATCH(G5,F$1:F$555,0) ->  | I5: =INDEX(B:B,H5) ->  | J5: =INDEX(C:C,H5) ->  | L5: 0 | M5: 0 | Y5: =J5 ->  | AB5: 1
A6: 3 | B6: ='Read Stocks'!M5 -> Nifty Fifty | C6: ='Read Stocks'!N5 -> Nifty Fifty | D6: FALSE | F6: 0 | G6: 3 | L6: 0 | M6: 0 | AB6: 1
A7: 4 | B7: ='Read Stocks'!M6 -> BSESN Index | C7: ='Read Stocks'!N6 -> BSESN Index | D7: FALSE | F7: 0 | G7: 4 | L7: 0 | M7: 0 | AB7: 1
A8: 5 | B8: ='Read Stocks'!M7 -> Nasdaq 100 | C8: ='Read Stocks'!N7 -> Nasdaq 100 | D8: FALSE | F8: 0 | G8: 5 | L8: 0 | M8: 0 | AB8: 1
A9: 6 | B9: ='Read Stocks'!M8 -> NASDAQ100 | C9: ='Read Stocks'!N8 -> Nasdaq 100 Index | D9: FALSE | F9: 0 | G9: 6 | L9: 0 | M9: 0 | AB9: 1
A10: 7 | B10: ='Read Stocks'!M9 -> DCOILBRENTEU | C10: ='Read Stocks'!N9 -> Crude Oil Prices: Brent - Europe (DCOILBRENTEU) | D10: FALSE | F10: 0 | G10: 7
A11: 8 | B11: ='Read Stocks'!M10 -> PCOPPUSDM | C11: ='Read Stocks'!N10 -> Global price of Copper© (PCOPPUSDM) | D11: FALSE | F11: 0 | G11: 8
A12: 9 | B12: ='Read Stocks'!M11 -> MHHNGSP | C12: ='Read Stocks'!N11 -> Henry Hub Natural Gas Spot Price (MHHNGSP) | D12: FALSE | F12: 0 | G12: 9
A13: 10 | B13: ='Read Stocks'!M12 -> HTMEDIA.NS | C13: ='Read Stocks'!N12 -> HT Media | D13: FALSE | F13: 0 | G13: 10
A14: 11 | B14: ='Read Stocks'!M13 -> AAPL | C14: ='Read Stocks'!N13 -> Apple | D14: FALSE | F14: 0 | G14: 11
A15: 12 | B15: ='Read Stocks'!M14 -> GOOG | C15: ='Read Stocks'!N14 -> Google | D15: FALSE | F15: 0 | G15: 12 | J15: =J2 -> US S&P 500 | K15: 0 | L15: =IFERROR(INDEX('Read Stocks'!$BN$3:$BN$11,'Multiple Stock Graph'!K15),"USD") -> USD | Y15: Instructions at www.edbodmer.com
A16: 13 | B16: ='Read Stocks'!M15 -> AMZN | C16: ='Read Stocks'!N15 -> Amazon | D16: FALSE | F16: 0 | G16: 13 | J16: =J4 ->  | K16: 0 | L16: =IFERROR(INDEX('Read Stocks'!$BN$3:$BN$11,'Multiple Stock Graph'!K16),"USD") -> USD | Y16: Questions: e-mail edwardbodmer@gmail.com
A17: 14 | B17: ='Read Stocks'!M16 -> FB | C17: ='Read Stocks'!N16 -> Facebook | D17: FALSE | F17: 0 | G17: 14 | J17: =J5 ->  | K17: 0 | L17: =IFERROR(INDEX('Read Stocks'!$BN$3:$BN$11,'Multiple Stock Graph'!K17),"USD") -> USD
A18: 15 | B18: ='Read Stocks'!M17 -> DTE.DE | C18: ='Read Stocks'!N17 -> Deutsche Telekom AG (ADR) | D18: FALSE | F18: 0 | G18: 15 | K18: 0 | L18: =IFERROR(INDEX('Read Stocks'!$BN$3:$BN$11,'Multiple Stock Graph'!K18),"USD") -> USD
A19: 16 | B19: ='Read Stocks'!M18 -> FTE | C19: ='Read Stocks'!N18 -> France Telecom SA (ADR) | D19: FALSE | F19: 0 | G19: 16 | K19: 0 | L19: =IFERROR(INDEX('Read Stocks'!$BN$3:$BN$11,'Multiple Stock Graph'!K19),"USD") -> USD
A20: 17 | B20: ='Read Stocks'!M19 -> BT | C20: ='Read Stocks'!N19 -> BT Group plc (ADR) (BT) | D20: FALSE | F20: 0 | G20: 17 | K20: 0 | L20: =IFERROR(INDEX('Read Stocks'!$BN$3:$BN$11,'Multiple Stock Graph'!K20),"USD") -> USD
A21: 18 | B21: ='Read Stocks'!M20 -> VOD | C21: ='Read Stocks'!N20 -> Vodafone Group plc | D21: FALSE | F21: 0 | G21: 18 | K21: 0 | L21: =IFERROR(INDEX('Read Stocks'!$BN$3:$BN$11,'Multiple Stock Graph'!K21),"USD") -> USD
A22: 19 | B22: ='Read Stocks'!M21 -> VZ | C22: ='Read Stocks'!N21 -> Verizon Communications... | D22: FALSE | F22: 0 | G22: 19
A23: 20 | B23: ='Read Stocks'!M22 -> S | C23: ='Read Stocks'!N22 -> Sprint | D23: FALSE | F23: 0 | G23: 20
A24: 21 | B24: ='Read Stocks'!M23 -> PHI | C24: ='Read Stocks'!N23 -> Philippine Long Distance (PHI) | D24: FALSE | F24: 0 | G24: 21
A25: 22 | B25: ='Read Stocks'!M24 -> TKC | C25: ='Read Stocks'!N24 -> Turkcell Iletisim Hizm... | D25: FALSE | F25: 0 | G25: 22
A26: 23 | B26: ='Read Stocks'!M25 -> JPM | C26: ='Read Stocks'!N25 -> JP Morgan | D26: FALSE | F26: 0 | G26: 23 | L26: Primary Stock | N26: =Forms!J4 -> 1 | O26: =INDEX(C4:C195,Forms!J4) -> US S&P 500
A27: 24 | B27: ='Read Stocks'!M26 -> MCD | C27: ='Read Stocks'!N26 -> McDonalds | D27: FALSE | F27: 0 | G27: 24 | L27: Use the Drop Down Box for Selecting the Stock
A28: 25 | B28: ='Read Stocks'!M27 -> WMT | C28: ='Read Stocks'!N27 -> Wall Mart | D28: FALSE | F28: 0 | G28: 25 | L28: Use the check boxes for comparison
A29: 26 | B29: ='Read Stocks'!M28 -> NG.L | C29: ='Read Stocks'!N28 -> National Grid | D29: FALSE | F29: 0 | G29: 26 | L29: Use the first check box for index in computing beta and other statistics
A30: 27 | B30: ='Read Stocks'!M29 -> EXC | C30: ='Read Stocks'!N29 -> Exelon | D30: FALSE | F30: 0 | G30: 27
A31: 28 | B31: ='Read Stocks'!M30 -> ENGI.PA | C31: ='Read Stocks'!N30 -> GDF Suez | D31: FALSE | F31: 0 | G31: 28
A32: 29 | B32: ='Read Stocks'!M31 -> EDF.PA | C32: ='Read Stocks'!N31 -> EDF | D32: FALSE | F32: 0 | G32: 29 | K32: =TRANSPOSE(Summary!BN6:BT6) -> GDP Inf | L32: Divide
A33: 30 | B33: ='Read Stocks'!M32 -> ED | C33: ='Read Stocks'!N32 -> Consolidated Edison | D33: FALSE | F33: 0 | G33: 30 | K33: CPI US | L33: Divide
A34: 31 | B34: ='Read Stocks'!M33 -> 5347.KL | C34: ='Read Stocks'!N33 -> Tenaga | D34: FALSE | F34: 0 | G34: 31 | K34: Euro | L34: Multiply
A35: 32 | B35: ='Read Stocks'!M34 -> MAEOY | C35: ='Read Stocks'!N34 -> Meralco | D35: FALSE | F35: 0 | G35: 32 | K35: INR | L35: Divide
A36: 33 | B36: ='Read Stocks'!M35 -> VWDRY | C36: ='Read Stocks'!N35 -> Vestas ADR | D36: FALSE | F36: 0 | G36: 33 | K36: UK | L36: Multiply
A37: 34 | B37: ='Read Stocks'!M36 -> VWS.CO | C37: ='Read Stocks'!N36 -> Vestas (Denmark) | D37: FALSE | F37: 0 | G37: 34 | K37: CFH | L37: Divide
A38: 35 | B38: ='Read Stocks'!M37 -> GE | C38: ='Read Stocks'!N37 -> General Electric | D38: FALSE | F38: 0 | G38: 35 | K38: US NOM GNP | L38: Divide
A39: 36 | B39: ='Read Stocks'!M38 -> NDX1.DE | C39: ='Read Stocks'!N38 -> Nordex Wind SE: German On-Shore Wind | D39: FALSE | F39: 0 | G39: 36
A40: 37 | B40: ='Read Stocks'!M39 -> 601558.SS | C40: ='Read Stocks'!N39 -> Sinovel Wind: Chinese Wind Manufactrer | D40: FALSE | F40: 0 | G40: 37
A41: 38 | B41: ='Read Stocks'!M40 -> SUZLON.NS | C41: ='Read Stocks'!N40 -> Suzlon: Indian Wind Manufacturer | D41: FALSE | F41: 0 | G41: 38
A42: 39 | B42: ='Read Stocks'!M41 -> 002202.SZ | C42: ='Read Stocks'!N41 -> Goldwind: Chinese Wind Manufacturer | D42: FALSE | F42: 0 | G42: 39
A43: 40 | B43: ='Read Stocks'!M42 -> LB | C43: ='Read Stocks'!N42 -> Victoria Secret | D43: FALSE | F43: 0 | G43: 40
A44: 41 | B44: ='Read Stocks'!M43 -> MY | C44: ='Read Stocks'!N43 -> Ming Yang: Chinese Wind Manufacturer | D44: FALSE | F44: =F43+D44 -> 0 | G44: 41 | I44: =INDEX(B:B,H44) -> 
A45: 42 | B45: ='Read Stocks'!M44 -> FSLR | C45: ='Read Stocks'!N44 -> First Solar (U.S.) | D45: FALSE | F45: =F44+D45 -> 0 | G45: 42
A46: 43 | B46: ='Read Stocks'!M45 -> RECSOL.OL | C46: ='Read Stocks'!N45 -> REC: Solar Manufacturer Norway | D46: FALSE | F46: 0 | G46: 43
A47: 44 | B47: ='Read Stocks'!M46 -> SPWR | C47: ='Read Stocks'!N46 -> SunPower Corporation (U.S.) | D47: FALSE | F47: 0 | G47: 44
A48: 45 | B48: ='Read Stocks'!M47 -> TSL | C48: ='Read Stocks'!N47 -> Trina Solar Limited (China) | D48: FALSE | F48: 0 | G48: 45
A49: 46 | B49: ='Read Stocks'!M48 -> SCTY | C49: ='Read Stocks'!N48 -> Solar City | D49: FALSE | F49: =F48+D49 -> 0 | G49: 45 | I49: =INDEX(B:B,H49) -> 
A50: 47 | B50: ='Read Stocks'!M49 -> RELIANCE.NS | C50: ='Read Stocks'!N49 -> Reliance | D50: FALSE | F50: 0 | G50: 45
A51: 48 | B51: ='Read Stocks'!M50 -> INFY.NS | C51: ='Read Stocks'!N50 -> Infosys | D51: FALSE | F51: 0 | G51: 45
A52: 49 | B52: ='Read Stocks'!M51 -> HDFC.NS | C52: ='Read Stocks'!N51 -> HDFC | D52: FALSE | F52: 0 | G52: 45
A53: 50 | B53: ='Read Stocks'!M52 -> ICICIBANK.NS | C53: ='Read Stocks'!N52 -> ICIC Bank | D53: FALSE | F53: 0 | G53: 45
A54: 51 | B54: ='Read Stocks'!M53 -> TATAMOTORS.NS | C54: ='Read Stocks'!N53 -> Tata Motors | D54: FALSE | F54: 0 | G54: 45
A55: 52 | B55: ='Read Stocks'!M54 -> WIPRO.NS | C55: ='Read Stocks'!N54 -> Wipro, Ltd. | D55: FALSE | F55: 0 | G55: 45
A56: 53 | B56: ='Read Stocks'!M55 -> DRREDDY.NS | C56: ='Read Stocks'!N55 -> Dr. Reddy's Laboratories | D56: FALSE | F56: 0 | G56: 45
A57: 54 | B57: ='Read Stocks'!M56 -> WNS | C57: ='Read Stocks'!N56 -> WNS Holdings | D57: FALSE | F57: 0 | G57: 45
A58: 55 | B58: ='Read Stocks'!M57 -> SIFY | C58: ='Read Stocks'!N57 -> Sify Technologies | D58: FALSE | F58: 0 | G58: 45
A59: 56 | B59: ='Read Stocks'!M58 -> REDFY | C59: ='Read Stocks'!N58 -> Rediff | D59: FALSE | F59: 0 | G59: 45
A60: 57 | B60: ='Read Stocks'!M59 -> VEDL.NS | C60: ='Read Stocks'!N59 -> Vedanta | D60: FALSE | F60: 0 | G60: 45
A61: 58 | B61: ='Read Stocks'!M60 -> AZRE | C61: ='Read Stocks'!N60 -> Azure | D61: FALSE | F61: 0 | G61: 45
A62: 59 | B62: ='Read Stocks'!M61 -> GRSXY | C62: ='Read Stocks'!N61 -> Grasim | D62: FALSE | F62: 0 | G62: 45
A63: 60 | B63: ='Read Stocks'!M62 -> MTENY | C63: ='Read Stocks'!N62 -> Mahanagar | D63: FALSE | F63: 0 | G63: 45
A64: 61 | B64: ='Read Stocks'!M63 -> MMYT | C64: ='Read Stocks'!N63 -> MakeMyTrip | D64: FALSE | F64: 0 | G64: 45
A65: 62 | B65: ='Read Stocks'!M64 -> YTRA | C65: ='Read Stocks'!N64 -> Yatra | D65: FALSE | F65: 0 | G65: 45
A66: 63 | B66: ='Read Stocks'!M65 -> TCS.NS | C66: ='Read Stocks'!N65 -> TCS | D66: FALSE | F66: 0 | G66: 45
A67: 64 | B67: ='Read Stocks'!M66 -> HDFCBANK.NS | C67: ='Read Stocks'!N66 -> HDFC Bank | D67: FALSE | F67: 0 | G67: 45
A68: 65 | B68: ='Read Stocks'!M67 -> HINDUNILVR.NS | C68: ='Read Stocks'!N67 -> HUL | D68: FALSE | F68: 0 | G68: 45
A69: 66 | B69: ='Read Stocks'!M68 -> ITC.NS | C69: ='Read Stocks'!N68 -> ITC | D69: FALSE | F69: 0 | G69: 45 | H69: =MATCH(G69,F$1:F$555,0) ->  | J69: =INDEX(C:C,H69) -> 
A70: 67 | B70: ='Read Stocks'!M69 -> HDFC.NS | C70: ='Read Stocks'!N69 -> HDFC | D70: FALSE | F70: 0 | G70: 45
A71: 68 | B71: ='Read Stocks'!M70 -> INFY.NS | C71: ='Read Stocks'!N70 -> Infosys | D71: FALSE | F71: 0 | G71: 45
A72: 69 | B72: ='Read Stocks'!M71 -> SBIN.NS | C72: ='Read Stocks'!N71 -> SBI | D72: FALSE | F72: 0 | G72: 45
A73: 70 | B73: ='Read Stocks'!M72 -> HEINY | C73: ='Read Stocks'!N72 -> Heineken | D73: FALSE | F73: 0 | G73: 45
A74: 71 | B74: ='Read Stocks'!M73 -> NYT | C74: ='Read Stocks'!N73 -> New York Times | D74: FALSE | F74: 0 | G74: 45
A75: 72 | B75: ='Read Stocks'!M74 -> BUD | C75: ='Read Stocks'!N74 -> Anheuser-Busch Inbev SA (USD) | D75: FALSE | F75: 0 | G75: 45
A76: 73 | B76: ='Read Stocks'!M75 -> KOF | C76: ='Read Stocks'!N75 -> Coca Cola | D76: FALSE | F76: 0 | G76: 45
A77: 74 | B77: ='Read Stocks'!M76 -> DEO | C77: ='Read Stocks'!N76 -> Diageo | D77: FALSE | F77: 0 | G77: 45
A78: 75 | B78: ='Read Stocks'!M77 -> ECL | C78: ='Read Stocks'!N77 -> Eco Lab | D78: FALSE | F78: 0 | G78: 45
A79: 76 | B79: ='Read Stocks'!M78 -> GDP Inf | C79: ='Read Stocks'!N78 -> Implicit Price Deflator | D79: FALSE | F79: 0 | G79: 45
A80: 77 | B80: ='Read Stocks'!M79 -> CPI US | C80: ='Read Stocks'!N79 -> Consumer Price Inflation | D80: FALSE | F80: 0 | G80: 45
A81: 78 | B81: ='Read Stocks'!M80 -> Euro | C81: ='Read Stocks'!N80 -> U.S. / Euro Foreign Exchange Rate (EXUSEU) | D81: FALSE | F81: 0 | G81: 45
A82: 79 | B82: ='Read Stocks'!M81 -> INR | C82: ='Read Stocks'!N81 -> India / U.S. Foreign Exchange Rate (DEXINUS) | D82: FALSE | F82: 0 | G82: 45
A83: 80 | B83: ='Read Stocks'!M82 -> UK | C83: ='Read Stocks'!N82 -> U.S. / U.K. Foreign Exchange Rate (EXUSUK) | D83: FALSE | F83: 0 | G83: 45
A84: 81 | B84: ='Read Stocks'!M83 -> CFH | C84: ='Read Stocks'!N83 -> Switzerland / U.S. Foreign Exchange Rate (DEXSZUS) | D84: FALSE | F84: 0 | G84: 45
A85: 82 | B85: ='Read Stocks'!M84 -> US NOM GNP | C85: ='Read Stocks'!N84 -> Gross National Product (GNP) | D85: FALSE | F85: 0 | G85: 45
A86: 83 | B86: ='Read Stocks'!M85 -> India Disc Rate | C86: ='Read Stocks'!N85 -> Interest Rates, Discount Rate for India (INTDSRINM193N) | D86: FALSE | F86: 0 | G86: 45
A87: 84 | B87: ='Read Stocks'!M86 -> India Gvt Bonds | C87: ='Read Stocks'!N86 -> Interest Rates, Government Securities, Government Bonds for India (INTGSBINM193N) | D87: FALSE | F87: 0 | G87: 45
A88: 85 | B88: ='Read Stocks'!M87 -> India 10 Yr Main | C88: ='Read Stocks'!N87 -> Interest Rates: Long-term government bond yields: 10-year: Main including benchmark for India (INDIRLTLT01STM) | D88: FALSE | F88: 0 | G88: 45
A89: 86 | B89: ='Read Stocks'!M88 -> India Inflation | C89: ='Read Stocks'!N88 -> Consumer Price Index: Total All Items for India (CPALTT01INM659N) | D89: FALSE | F89: 0 | G89: 45
A90: 87 | B90: ='Read Stocks'!M89 -> 5 yr treasury | C90: ='Read Stocks'!N89 -> 5-Year Treasury Constant Maturity Rate (GS5) | D90: FALSE | F90: 0 | G90: 45
A91: 88 | B91: ='Read Stocks'!M90 -> 10 year treasury | C91: ='Read Stocks'!N90 -> 10-Year Treasury Constant Maturity Rate (GS10) | D91: FALSE | F91: 0 | G91: 45
A92: 89 | B92: ='Read Stocks'!M91 -> US Med Inc Nom | C92: ='Read Stocks'!N91 -> Median Household Income in the United States (MEHOINUSA646N) | D92: FALSE | F92: 0 | G92: 45
A93: 90 | B93: ='Read Stocks'!M92 -> Median Income | C93: ='Read Stocks'!N92 -> Employed full time: Median usual weekly real earnings: d over (LES1252881600Q) | D93: FALSE | F93: 0 | G93: 45
A94: 91 | B94: ='Read Stocks'!M93 -> Corp Profit | C94: ='Read Stocks'!N93 -> Corporate Profits | D94: FALSE | F94: 0 | G94: 45
A95: 92 | B95: ='Read Stocks'!M94 -> Corp Nonfin | C95: ='Read Stocks'!N94 -> Non Financial Corporate Profits | D95: FALSE | F95: 0 | G95: 45
A96: 93 | B96: ='Read Stocks'!M95 -> Corp Aft Tax | C96: ='Read Stocks'!N95 -> Corporate Profits After Tax | D96: FALSE | F96: 0 | G96: 45
A97: 94 | B97: ='Read Stocks'!M96 -> Corp Inf Adjusted | C97: ='Read Stocks'!N96 -> Corporate Profits with Inflation Adj | D97: FALSE | F97: 0 | G97: 45
A98: 95 | B98: ='Read Stocks'!M97 -> GDP Inflation Index | C98: ='Read Stocks'!N97 -> GDP Inflation Index | D98: FALSE | F98: 0 | G98: 45
A99: 96 | B99: ='Read Stocks'!M98 -> CPI US Index | C99: ='Read Stocks'!N98 -> CPI US Index | D99: FALSE | F99: 0 | G99: 45
A100: 97 | B100: ='Read Stocks'!M99 -> US GDP | C100: ='Read Stocks'!N99 -> Gross Domestic Product (GDP) | D100: FALSE | F100: 0 | G100: 45
A101: 98 | B101: ='Read Stocks'!M100 -> Median Family Income | C101: ='Read Stocks'!N100 -> Median Family Income in the United States (MEFAINUSA646N) | D101: FALSE | F101: 0 | G101: 45
A102: 99 | B102: ='Read Stocks'!M101 ->  | C102: ='Read Stocks'!N101 ->  | D102: FALSE | F102: 0 | G102: 45
A103: 100 | B103: ='Read Stocks'!M102 ->  | C103: ='Read Stocks'!N102 ->  | D103: FALSE | F103: 0 | G103: 45
A104: 101 | B104: ='Read Stocks'!M103 ->  | C104: ='Read Stocks'!N103 ->  | D104: FALSE | F104: 0 | G104: 45
A105: 102 | B105: ='Read Stocks'!M104 ->  | C105: ='Read Stocks'!N104 ->  | D105: FALSE | F105: 0 | G105: 45
A106: 103 | B106: ='Read Stocks'!M105 ->  | C106: ='Read Stocks'!N105 ->  | D106: FALSE | F106: 0 | G106: 45
A107: 104 | B107: ='Read Stocks'!M106 ->  | C107: ='Read Stocks'!N106 ->  | D107: FALSE | F107: 0 | G107: 45
A108: 105 | B108: ='Read Stocks'!M107 ->  | C108: ='Read Stocks'!N107 ->  | D108: FALSE | F108: 0 | G108: 45
A109: 106 | B109: ='Read Stocks'!M108 ->  | C109: ='Read Stocks'!N108 ->  | D109: FALSE | F109: 0 | G109: 45
A110: 107 | B110: ='Read Stocks'!M109 ->  | C110: ='Read Stocks'!N109 ->  | D110: FALSE | F110: 0 | G110: 45
A111: 108 | B111: ='Read Stocks'!M110 ->  | C111: ='Read Stocks'!N110 ->  | D111: FALSE | F111: 0 | G111: 45
A112: 109 | B112: ='Read Stocks'!M111 ->  | C112: ='Read Stocks'!N111 ->  | D112: FALSE | F112: 0 | G112: 45
A113: 110 | B113: ='Read Stocks'!M112 ->  | C113: ='Read Stocks'!N112 ->  | D113: FALSE | F113: =F112+D113 -> 0 | G113: 45 | I113: =INDEX(B:B,H113) -> 
A114: 111 | B114: ='Read Stocks'!M113 ->  | C114: ='Read Stocks'!N113 ->  | D114: FALSE | F114: 0 | G114: 45
A115: 112 | B115: ='Read Stocks'!M114 ->  | C115: ='Read Stocks'!N114 ->  | D115: FALSE | F115: 0 | G115: 45
A116: 113 | B116: ='Read Stocks'!M115 ->  | C116: ='Read Stocks'!N115 ->  | D116: FALSE | F116: 0 | G116: 45
A117: 114 | B117: ='Read Stocks'!M116 ->  | C117: ='Read Stocks'!N116 ->  | D117: FALSE | F117: 0 | G117: 45
A118: 115 | B118: ='Read Stocks'!M117 ->  | C118: ='Read Stocks'!N117 ->  | D118: FALSE | F118: 0 | G118: 45
A119: 116 | B119: ='Read Stocks'!M118 ->  | C119: ='Read Stocks'!N118 ->  | D119: FALSE | F119: 0 | G119: 45
A120: 117 | B120: ='Read Stocks'!M119 ->  | C120: ='Read Stocks'!N119 ->  | D120: FALSE | F120: 0 | G120: 45
A121: 118 | B121: ='Read Stocks'!M120 ->  | C121: ='Read Stocks'!N120 ->  | D121: FALSE | F121: 0 | G121: 45
A122: 119 | B122: ='Read Stocks'!M121 ->  | C122: ='Read Stocks'!N121 ->  | D122: FALSE | F122: 0 | G122: 45
A123: 120 | B123: ='Read Stocks'!M122 ->  | C123: ='Read Stocks'!N122 ->  | D123: FALSE | F123: 0 | G123: 45
A124: 121 | B124: ='Read Stocks'!M123 ->  | C124: ='Read Stocks'!N123 ->  | D124: FALSE | F124: 0 | G124: 45
A125: 122 | B125: ='Read Stocks'!M124 ->  | C125: ='Read Stocks'!N124 ->  | D125: FALSE | F125: 0 | G125: 45
A126: 123 | B126: ='Read Stocks'!M125 ->  | C126: ='Read Stocks'!N125 ->  | D126: FALSE | F126: 0 | G126: 45
A127: 124 | B127: ='Read Stocks'!M126 ->  | C127: ='Read Stocks'!N126 ->  | D127: FALSE | F127: 0 | G127: 45
A128: 125 | B128: ='Read Stocks'!M127 ->  | C128: ='Read Stocks'!N127 ->  | D128: FALSE | F128: 0 | G128: 45
A129: 126 | B129: ='Read Stocks'!M128 ->  | C129: ='Read Stocks'!N128 ->  | D129: FALSE | F129: 0 | G129: 45
A130: 127 | B130: ='Read Stocks'!M129 ->  | C130: ='Read Stocks'!N129 ->  | D130: FALSE | F130: 0 | G130: 45
A131: 128 | B131: ='Read Stocks'!M130 ->  | C131: ='Read Stocks'!N130 ->  | D131: FALSE | F131: 0 | G131: 45
A132: 129 | B132: ='Read Stocks'!M131 ->  | C132: ='Read Stocks'!N131 ->  | D132: FALSE | F132: 0 | G132: 45
A133: 130 | B133: ='Read Stocks'!M132 ->  | C133: ='Read Stocks'!N132 ->  | D133: FALSE | F133: 0 | G133: 45 | H133: =MATCH(G133,F$1:F$555,0) ->  | J133: =INDEX(C:C,H133) -> 
A134: 131 | B134: ='Read Stocks'!M133 ->  | C134: ='Read Stocks'!N133 ->  | D134: FALSE | F134: 0 | G134: 45
A135: 132 | B135: ='Read Stocks'!M134 ->  | C135: ='Read Stocks'!N134 ->  | D135: FALSE | F135: 0 | G135: 45
A136: 133 | B136: ='Read Stocks'!M135 ->  | C136: ='Read Stocks'!N135 ->  | D136: FALSE | F136: 0 | G136: 45
A137: 134 | B137: ='Read Stocks'!M136 ->  | C137: ='Read Stocks'!N136 ->  | D137: FALSE | F137: 0 | G137: 45
A138: 135 | B138: ='Read Stocks'!M137 ->  | C138: ='Read Stocks'!N137 ->  | D138: FALSE | F138: 0 | G138: 45
A139: 136 | B139: ='Read Stocks'!M138 ->  | C139: ='Read Stocks'!N138 ->  | D139: FALSE | F139: 0 | G139: 45
A140: 137 | B140: ='Read Stocks'!M139 ->  | C140: ='Read Stocks'!N139 ->  | D140: FALSE | F140: 0 | G140: 45
A141: 138 | B141: ='Read Stocks'!M140 ->  | C141: ='Read Stocks'!N140 ->  | D141: FALSE | F141: 0 | G141: 45
A142: 139 | B142: ='Read Stocks'!M141 ->  | C142: ='Read Stocks'!N141 ->  | D142: FALSE | F142: 0 | G142: 45
A143: 140 | B143: ='Read Stocks'!M142 ->  | C143: ='Read Stocks'!N142 ->  | D143: FALSE | F143: 0 | G143: 45
A144: 141 | B144: ='Read Stocks'!M143 ->  | C144: ='Read Stocks'!N143 ->  | D144: FALSE | F144: 0 | G144: 45
A145: 142 | B145: ='Read Stocks'!M144 ->  | C145: ='Read Stocks'!N144 ->  | D145: FALSE | F145: 0 | G145: 45
A146: 143 | B146: ='Read Stocks'!M145 ->  | C146: ='Read Stocks'!N145 ->  | D146: FALSE | F146: 0 | G146: 45
A147: 144 | B147: ='Read Stocks'!M146 ->  | C147: ='Read Stocks'!N146 ->  | D147: FALSE | F147: 0 | G147: 45
A148: 145 | B148: ='Read Stocks'!M147 ->  | C148: ='Read Stocks'!N147 ->  | D148: FALSE | F148: 0 | G148: 45
A149: 146 | B149: ='Read Stocks'!M148 ->  | C149: ='Read Stocks'!N148 ->  | D149: FALSE | F149: 0 | G149: 45
A150: 147 | B150: ='Read Stocks'!M149 ->  | C150: ='Read Stocks'!N149 ->  | D150: FALSE | F150: 0 | G150: 45
A151: 148 | B151: ='Read Stocks'!M150 ->  | C151: ='Read Stocks'!N150 ->  | D151: FALSE | F151: 0 | G151: 45
A152: 149 | B152: ='Read Stocks'!M151 ->  | C152: ='Read Stocks'!N151 ->  | D152: FALSE | F152: 0 | G152: 45
A153: 150 | B153: ='Read Stocks'!M152 ->  | C153: ='Read Stocks'!N152 ->  | D153: FALSE | F153: 0 | G153: 45
A154: 151 | B154: ='Read Stocks'!M153 ->  | C154: ='Read Stocks'!N153 ->  | D154: FALSE | F154: 0 | G154: 45
A155: 152 | B155: ='Read Stocks'!M154 ->  | C155: ='Read Stocks'!N154 ->  | D155: FALSE | F155: 0 | G155: 45
A156: 153 | B156: ='Read Stocks'!M155 ->  | C156: ='Read Stocks'!N155 ->  | D156: FALSE | F156: 0 | G156: 45
A157: 154 | B157: ='Read Stocks'!M156 ->  | C157: ='Read Stocks'!N156 ->  | D157: FALSE | F157: 0 | G157: 45
A158: 155 | B158: ='Read Stocks'!M157 ->  | C158: ='Read Stocks'!N157 ->  | D158: FALSE | F158: 0 | G158: 45
A159: 156 | B159: ='Read Stocks'!M158 ->  | C159: ='Read Stocks'!N158 ->  | D159: FALSE | F159: 0 | G159: 45
A160: 157 | B160: ='Read Stocks'!M159 ->  | C160: ='Read Stocks'!N159 ->  | D160: FALSE | F160: 0 | G160: 45
A161: 158 | B161: ='Read Stocks'!M160 ->  | C161: ='Read Stocks'!N160 ->  | D161: FALSE | F161: 0 | G161: 45
A162: 159 | B162: ='Read Stocks'!M161 ->  | C162: ='Read Stocks'!N161 ->  | D162: FALSE | F162: 0 | G162: 45
A163: 160 | B163: ='Read Stocks'!M162 ->  | C163: ='Read Stocks'!N162 ->  | D163: FALSE | F163: 0 | G163: 45
A164: 161 | B164: ='Read Stocks'!M163 ->  | C164: ='Read Stocks'!N163 ->  | D164: FALSE | F164: 0 | G164: 45
A165: 162 | B165: ='Read Stocks'!M164 ->  | C165: ='Read Stocks'!N164 ->  | D165: FALSE | F165: 0 | G165: 45
A166: 163 | B166: ='Read Stocks'!M165 ->  | C166: ='Read Stocks'!N165 ->  | D166: FALSE | F166: 0 | G166: 45
A167: 164 | B167: ='Read Stocks'!M166 ->  | C167: ='Read Stocks'!N166 ->  | D167: FALSE | F167: 0 | G167: 45
A168: 165 | B168: ='Read Stocks'!M167 ->  | C168: ='Read Stocks'!N167 ->  | D168: FALSE | F168: 0 | G168: 45
A169: 166 | B169: ='Read Stocks'!M168 ->  | C169: ='Read Stocks'!N168 ->  | D169: FALSE | F169: 0 | G169: 45
A170: 167 | B170: ='Read Stocks'!M169 ->  | C170: ='Read Stocks'!N169 ->  | D170: FALSE | F170: 0 | G170: 45
A171: 168 | B171: ='Read Stocks'!M170 ->  | C171: ='Read Stocks'!N170 ->  | D171: FALSE | F171: 0 | G171: 45
A172: 169 | B172: ='Read Stocks'!M171 ->  | C172: ='Read Stocks'!N171 ->  | D172: FALSE | F172: 0 | G172: 45
A173: 170 | B173: ='Read Stocks'!M172 ->  | C173: ='Read Stocks'!N172 ->  | D173: FALSE | F173: 0 | G173: 45
A174: 171 | B174: ='Read Stocks'!M173 ->  | C174: ='Read Stocks'!N173 ->  | D174: FALSE | F174: 0 | G174: 45
A175: 172 | B175: ='Read Stocks'!M174 ->  | C175: ='Read Stocks'!N174 ->  | D175: FALSE | F175: 0 | G175: 45
A176: 173 | B176: ='Read Stocks'!M175 ->  | C176: ='Read Stocks'!N175 ->  | D176: FALSE | F176: 0 | G176: 45
A177: 174 | B177: ='Read Stocks'!M176 ->  | C177: ='Read Stocks'!N176 ->  | D177: FALSE | F177: =F176+D177 -> 0 | G177: 45 | I177: =INDEX(B:B,H177) -> 
A178: 175 | B178: ='Read Stocks'!M177 -> 0 | C178: ='Read Stocks'!N177 -> 0 | D178: FALSE | F178: 0 | G178: 45
A179: 176 | B179: ='Read Stocks'!M178 -> 0 | C179: ='Read Stocks'!N178 -> 0 | D179: FALSE | F179: 0 | G179: 45
A180: 177 | B180: ='Read Stocks'!M179 -> 0 | C180: ='Read Stocks'!N179 -> 0 | D180: FALSE | F180: 0 | G180: 45
A181: 178 | B181: ='Read Stocks'!M180 -> 0 | C181: ='Read Stocks'!N180 -> 0 | D181: FALSE | F181: 0 | G181: 45
A182: 179 | B182: ='Read Stocks'!M181 -> 0 | C182: ='Read Stocks'!N181 -> 0 | D182: FALSE | F182: 0 | G182: 45
A183: 180 | B183: ='Read Stocks'!M182 -> 0 | C183: ='Read Stocks'!N182 -> 0 | D183: FALSE | F183: 0 | G183: 45
A184: 181 | B184: ='Read Stocks'!M183 -> 0 | C184: ='Read Stocks'!N183 -> 0 | D184: FALSE | F184: 0 | G184: 45
A185: 182 | B185: ='Read Stocks'!M184 -> 0 | C185: ='Read Stocks'!N184 -> 0 | D185: FALSE | F185: 0 | G185: 45
A186: 183 | B186: ='Read Stocks'!M185 -> 0 | C186: ='Read Stocks'!N185 -> 0 | D186: FALSE | F186: 0 | G186: 45
A187: 184 | B187: ='Read Stocks'!M186 -> 0 | C187: ='Read Stocks'!N186 -> 0 | D187: FALSE | F187: 0 | G187: 45
A188: 185 | B188: ='Read Stocks'!M187 -> 0 | C188: ='Read Stocks'!N187 -> 0 | D188: FALSE | F188: 0 | G188: 45
A189: 186 | B189: ='Read Stocks'!M188 -> 0 | C189: ='Read Stocks'!N188 -> 0 | D189: FALSE | F189: 0 | G189: 45
A190: 187 | B190: ='Read Stocks'!M189 -> 0 | C190: ='Read Stocks'!N189 -> 0 | D190: FALSE | F190: 0 | G190: 45
A191: 188 | B191: ='Read Stocks'!M190 -> 0 | C191: ='Read Stocks'!N190 -> 0 | D191: FALSE | F191: 0 | G191: 45
A192: 189 | B192: ='Read Stocks'!M191 -> 0 | C192: ='Read Stocks'!N191 -> 0 | D192: FALSE | F192: 0 | G192: 45
A193: 190 | B193: ='Read Stocks'!M192 -> 0 | C193: ='Read Stocks'!N192 -> 0 | D193: FALSE | F193: 0 | G193: 45
A194: 191 | B194: ='Read Stocks'!M193 -> 0 | C194: ='Read Stocks'!N193 -> 0 | D194: FALSE | F194: 0 | G194: 45
A195: 192 | B195: ='Read Stocks'!M194 -> 0 | C195: ='Read Stocks'!N194 -> 0 | D195: FALSE | F195: 0 | G195: 45
D196: FALSE | F196: 0 | G196: 45
D197: FALSE | F197: 0 | G197: 45 | H197: =MATCH(G197,F$1:F$555,0) ->  | J197: =INDEX(C:C,H197) -> 
D198: FALSE | F198: 0 | G198: 45
D199: FALSE | F199: 0 | G199: 45
D200: FALSE | F200: 0 | G200: 45
... 100 more rows

Sheet Summary
C1: Selected Start | D1: =Forms!G9 -> 1962-01-01 | G1: Index No (Frms) | I1: =Forms!J4 -> 1 | L1: Graph Code | M1: =Forms!P7 -> 1 | N1: Height | O1: =COUNT(D10:D853) -> 689 | P1: Graph Cols | Q1: =COUNTIF('Multiple Stock Graph'!D:D,TRUE)+2 -> 2 | W1: Instructions at www.edbodmer.com | AS1: Periods in Yr | AU1: =IF(D6,52,12) -> 12
C2: End Date | D2: =EOMONTH(MIN(Forms!L9,MAX(A:A)),0) -> 2019-04-30 | G2: Col to Read | I2: =INDEX('Read Stocks'!O3:O202,Summary!I1) -> F | N2: This is the data that is graphed | W2: Questions: e-mail edwardbodmer@gmail.com | AB2: =MIN(INDIRECT("'"&AB5&"'!A:A")) ->  | AC2: =MIN(INDIRECT("'"&AC5&"'!A:A")) ->  | BN2: First two are inflation, next 5 are exchange rates with multiplication
C3: Start of Series | D3: =IFERROR(MIN(INDIRECT("'"&$G$7&"'!A:A")),start_of_date) -> 1950-01-01 | J3: Final Val | K3: =LOOKUP(D2,$D$10:$D$837,K10:K837) -> 42.23431262 | AH3: Exchange Rate Adjustments | AN3: Adjusted Values for Exchange Rate | AS3: Beta | AT3: =IFERROR(SLOPE(AT10:AT837,$AT$10:$AT$837),0) -> 1 | AU3: =IFERROR(SLOPE(AU12:AU837,AT12:AT837),0) -> 0 | AV3: =IFERROR(SLOPE(AV12:AV837,AU12:AU837),0) -> 0 | AW3: 0 | AX3: 0 | AY3: 0 | AZ3: 0 | BA3: =LOOKUP($D$2,$D:$D,BA:BA) -> 1 | BB3: 1 | BC3: 1 | BD3: 1 | BE3: 1 | BF3: 1 | BG3: Raw Retrieval of Inflation and Exchange Indirect
C4: Final Start | D4: =MAX(D3,D1) -> 1962-01-01 | E4: =(D2-D4-1)/365.4 -> 57.29885057 | G4: No Re-calc | J4: IRR | K4: =(K3)^(1/($E$4-1))-1 -> 0.06874880361 | V4: Raw Values without Re-calc | AB4: Re-orded Lookup Value for Raw Value with Adjusted Date | AS4: Std Dev | AT4: =IFERROR(STDEV(AT10:AT837),0) -> 0.04265603684 | AU4: =IFERROR(STDEV(AU10:AU837),0) -> 0 | AV4: 0 | AW4: 0 | AX4: 0 | AY4: 0 | AZ4: 0 | BA4: =IF(BA3<>1,(BA3)^(1/($E$4-1))-1,"") ->  | BB4: =IF(BB3<>1,(BB3)^(1/($E$4-1))-1,"") ->  | BG4: Retrieves first six items | BN4: Exchange Rate with Lookup
D5: Monhly Switch | M5: Single | O5: Main | P5: Comparators from Choose and Data to Right | V5: =TRANSPOSE('Multiple Stock Graph'!I4:I9) ->  | AB5: =V5 ->  | AC5: =W5 ->  | AS5: Volatiltiy | AT5: =AT4*$AU$1^0.5 -> 0.1477648461 | AU5: =AU4*$AU$1^0.5 -> 0 | AV5: 0 | AW5: 0 | AX5: 0 | AY5: 0 | AZ5: 0
A6: Base | D6: FALSE | F6: Base Stock | G6: Base Stock | H6: Exc Rate/Infl | I6: Adj for Inf/Exc | J6: Change | K6: Index | M6: Graph | O6: Item | P6: First Comparator(Stats) | V6: =MATCH(V5,'Read Stocks'!$M:$M,0) ->  | W6: =MATCH(W5,'Read Stocks'!$M:$M,0) ->  | X6: =MATCH(X5,'Read Stocks'!$M:$M,0) ->  | Y6: =MATCH(Y5,'Read Stocks'!$M:$M,0) ->  | Z6: =MATCH(Z5,'Read Stocks'!$M:$M,0) ->  | AA6: =MATCH(AA5,'Read Stocks'!$M:$M,0) ->  | AH6: FALSE | AI6: FALSE | AJ6: FALSE | AK6: FALSE | AL6: FALSE | AM6: FALSE | AT6: Growth Rate | AU6: Growth Rate | BA6: Index | BG6: =BN6 -> GDP Inf | BH6: =BO6 -> CPI US | BI6: Euro | BJ6: INR | BK6: UK | BN6: =TRANSPOSE('Exchange Rates'!D13:D47) -> GDP Inf | BO6: CPI US | BP6: Euro | BQ6: INR | BR6: UK | BS6: CFH | BT6: US NOM GNP
A7: Date | B7: Monthly | C7: Weekely | D7: Month or Day | E7: Date Selected | F7: =Forms!K4 -> 0 | G7: =Forms!L4 -> S&P 500 | H7: Adjustment | I7: =G7 -> S&P 500 | J7: =G7 -> S&P 500 | K7: =J7 -> S&P 500 | L7: X-Axis | M7: =CHOOSE($M$1,G7,J7,K7) -> S&P 500 | N7: x-axis | O7: =INDEX('Read Stocks'!N3:N202,Summary!I1) -> US S&P 500 | P7: =TRANSPOSE('Multiple Stock Graph'!J4:J9) ->  | V7: =INDEX('Read Stocks'!$O:$O,Summary!V6) ->  | W7: =INDEX('Read Stocks'!$O:$O,Summary!W6) ->  | X7: =INDEX('Read Stocks'!$O:$O,Summary!X6) ->  | Y7: =INDEX('Read Stocks'!$O:$O,Summary!Y6) ->  | Z7: =INDEX('Read Stocks'!$O:$O,Summary!Z6) ->  | AA7: =INDEX('Read Stocks'!$O:$O,Summary!AA6) ->  | AH7: =TRANSPOSE('Multiple Stock Graph'!K16:K21) -> 0 | AI7: 0 | AJ7: 0 | AK7: 0 | AL7: 0 | AM7: 0 | AN7: =P7 ->  | AT7: =J7 -> S&P 500 | AU7: =V5 ->  | BA7: =AU7 ->  | BN7: B | BO7: B | BP7: B | BQ7: B | BR7: B | BS7: B | BT7: B
A8: Copied | B8: Date | C8: Date | D8: Date | E8: Switch | F8: Raw Data | G8: Raw Data | H8: ='Multiple Stock Graph'!K15 -> 0 | P8: 1 | Q8: 2 | R8: 3 | S8: 4 | T8: 5 | U8: 6 | V8: 1 | W8: 2 | X8: 3 | Y8: 4 | Z8: 5 | AA8: 6 | AH8: =IFERROR(INDEX($BN$6:$BT$6,AH7),"") ->  | AI8: =IFERROR(INDEX($BN$6:$BT$6,AI7),"") ->  | AN8: 1 | AO8: 2 | AP8: 3 | AQ8: 4 | AR8: 5 | AS8: 6 | BN8: =TRANSPOSE('Multiple Stock Graph'!L32:L38) -> Divide | BO8: Divide | BP8: Multiply | BQ8: Divide | BR8: Multiply | BS8: Divide | BT8: Divide
F9: =I2 -> F | G9: =I2 -> F | K9: 1 | O9: =O7 -> US S&P 500 | P9: =P7 ->  | Q9: =Q7 ->  | BA9: 1 | BB9: 1 | BC9: 1 | BD9: 1 | BE9: 1 | BF9: 1
A10: 1950-01-01 | B10: =MAX(D3,D1) -> 1962-01-01 | C10: =B10 -> 1962-01-01 | D10: =IF($D$6,C10,B10) -> 1962-01-01 | E10: =AND(D10>=$D$4,D10<=$D$2) -> TRUE | F10: =LOOKUP(D10,A:A,G:G) -> 68.839996 | G10: =IFERROR(LOOKUP($A10,INDIRECT("'"&G$7&"'!A:A"),INDIRECT("'"&G$7&"'!"&$G$9&":"&$G$9)),0) -> 17.049999 | H10: =IF(H$8,INDEX($BN10:$BT10,H$8),1) -> 1 | I10: =IF(ISNUMBER(F10),F10,I11)*H10 -> 68.839996 | J10: =IFERROR(LN(G10/G9),FALSE) -> FALSE | K10: =IF($E10,(K9*(1+J10)),1) -> 1 | L10: =IF(E10,D10,NA()) -> 1962-01-01 | M10: =CHOOSE($M$1,I10,J10,K10) -> 68.839996 | N10: =L10 -> 1962-01-01 | O10: =M10 -> 68.839996 | P10: =CHOOSE($M$1,AN10,AU10,BA10) -> 0 | Q10: =CHOOSE($M$1,AO10,AV10,BB10) -> 0 | R10: =CHOOSE($M$1,AP10,AW10,BC10) -> 0 | S10: =CHOOSE($M$1,AQ10,AX10,BD10) -> 0 | T10: =CHOOSE($M$1,AR10,AY10,BE10) -> 0 | U10: =CHOOSE($M$1,AS10,AZ10,BF10) -> 0 | V10: =LOOKUP($A10,INDIRECT("'"&V$5&"'!A:A"),INDIRECT("'"&V$5&"'!"&V$7&":"&V$7)) ->  | W10: =LOOKUP($A10,INDIRECT("'"&W$5&"'!A:A"),INDIRECT("'"&W$5&"'!"&W$7&":"&W$7)) ->  | X10: =LOOKUP($A10,INDIRECT("'"&X$5&"'!A:A"),INDIRECT("'"&X$5&"'!"&X$7&":"&X$7)) ->  | AB10: =IF(ISNUMBER(LOOKUP($D10,$A:$A,V:V)),LOOKUP($D10,$A:$A,V:V),AB9) -> 0 | AC10: =IF(ISNUMBER(LOOKUP($D10,$A:$A,W:W)),LOOKUP($D10,$A:$A,W:W),AC9) -> 0 | AD10: 0 | AE10: 0 | AF10: 0 | AG10: 0 | AH10: =IF(AH$7,INDEX($BN10:$BT10,AH$7),1) -> 1 | AI10: =IF(AI$7,INDEX($BN10:$BT10,AI$7),1) -> 1 | AJ10: 1 | AK10: 1 | AL10: 1 | AM10: 1 | AN10: =IFERROR(IF(ISNUMBER(AB10)>0.1,AB10,AN11)*AH10,AN11) -> 0 | AO10: 0 | AP10: 0 | AQ10: 0 | AR10: 0 | AS10: 0 | AT10: =J10 -> FALSE | AU10: =IF(E10,IFERROR(LN(AN10/AN9),FALSE)) -> FALSE | AV10: =IF(E10,IFERROR(LN(AO10/AO9),FALSE)) -> FALSE | AW10: =IF(E10,IFERROR(LN(AP10/AP9),FALSE)) -> FALSE | AX10: =IF(E10,IFERROR(LN(AQ10/AQ9),FALSE)) -> FALSE | AY10: =IF(E10,IFERROR(LN(AR10/AR9),FALSE)) -> FALSE | AZ10: =IF(E10,IFERROR(LN(AS10/AS9),FALSE)) -> FALSE | BA10: 1 | BB10: 1 | BC10: 1 | BD10: 1 | BE10: 1 | BF10: 1 | BG10: =IFERROR(LOOKUP($A10,INDIRECT("'"&BN$6&"'!A:A"),INDIRECT("'"&BN$6&"'!"&BN$7&":"&BN$7)),0) -> 12.853 | BH10: =IFERROR(LOOKUP($A10,INDIRECT("'"&BO$6&"'!A:A"),INDIRECT("'"&BO$6&"'!"&BO$7&":"&BO$7)),0) -> 23.51 | BI10: 0 | BJ10: 0 | BK10: 0 | BL10: 0 | BM10: 282.056 | BN10: =IFERROR(IF(BN$8="Divide",1/LOOKUP($D10,$A:$A,BG:BG)*1,LOOKUP($D10,$A:$A,BG:BG)*1),BN9) -> 0.05892057506 | BO10: =IFERROR(IF(BO$8="Divide",1/LOOKUP($D10,$A:$A,BH:BH)*1,LOOKUP($D10,$A:$A,BH:BH)*1),BO9) -> 0.03328894807 | BP10: 0 | BQ10: 0 | BR10: 0 | BS10: 0 | BT10: 0.001673320906
A11: 1950-02-01 | B11: =IF(B10<=$D$2,EOMONTH(B10,1)) -> 1962-02-28 | C11: =IF(C10<=$D$2,C10+7) -> 1962-01-08 | D11: =IF($D$6,C11,B11) -> 1962-02-28 | E11: =AND(D11>=$D$4,D10<=$D$2) -> TRUE | F11: =LOOKUP(D11,A:A,G:G) -> 69.959999 | G11: =IFERROR(LOOKUP($A11,INDIRECT("'"&G$7&"'!A:A"),INDIRECT("'"&G$7&"'!"&$G$9&":"&$G$9)),0) -> 17.219999 | H11: =IF(H$8,INDEX($BN11:$BT11,H$8),1) -> 1 | I11: =IF(ISNUMBER(F11),F11,I12)*H11 -> 69.959999 | J11: =IFERROR(LN(I11/I10),FALSE) -> 0.01613872262 | K11: =IF($E11,(K10*I11/I10),1) -> 1.016269655 | L11: =IF(E11,D11,NA()) -> 1962-02-28 | M11: =CHOOSE($M$1,I11,J11,K11) -> 69.959999 | N11: =L11 -> 1962-02-28 | O11: =M11 -> 69.959999 | P11: =IFERROR(CHOOSE($M$1,AN11,AU11,BA11),1) -> 0 | Q11: 0 | R11: 0 | S11: 0 | T11: 0 | U11: 0 | V11: =LOOKUP($A11,INDIRECT("'"&V$5&"'!A:A"),INDIRECT("'"&V$5&"'!"&V$7&":"&V$7)) ->  | Y11: =LOOKUP($A11,INDIRECT("'"&Y$5&"'!A:A"),INDIRECT("'"&Y$5&"'!"&Y$7&":"&Y$7)) ->  | AB11: =IF(ISNUMBER(LOOKUP($D11,$A:$A,V:V)),LOOKUP($D11,$A:$A,V:V),AB10) -> 0 | AC11: =IF(ISNUMBER(LOOKUP($D11,$A:$A,W:W)),LOOKUP($D11,$A:$A,W:W),AC10) -> 0 | AD11: =IF(ISNUMBER(LOOKUP($D11,$A:$A,X:X)),LOOKUP($D11,$A:$A,X:X),AD10) -> 0 | AE11: =IF(ISNUMBER(LOOKUP($D11,$A:$A,Y:Y)),LOOKUP($D11,$A:$A,Y:Y),AE10) -> 0 | AF11: =IF(ISNUMBER(LOOKUP($D11,$A:$A,Z:Z)),LOOKUP($D11,$A:$A,Z:Z),AF10) -> 0 | AG11: =IF(ISNUMBER(LOOKUP($D11,$A:$A,AA:AA)),LOOKUP($D11,$A:$A,AA:AA),AG10) -> 0 | AH11: =IF(AH$7,INDEX($BN11:$BT11,AH$7),1) -> 1 | AI11: 1 | AJ11: 1 | AK11: 1 | AL11: 1 | AM11: 1 | AN11: =IFERROR(IF(ISNUMBER(AB11)>0.1,AB11,AN12)*AH11,AN12) -> 0 | AO11: =IFERROR(IF(ISNUMBER(AC11)>0.1,AC11,AO12)*AI11,AO12) -> 0 | AP11: =IFERROR(IF(ISNUMBER(AD11)>0.1,AD11,AP12)*AJ11,AP12) -> 0 | AQ11: =IFERROR(IF(ISNUMBER(AE11)>0.1,AE11,AQ12)*AK11,AQ12) -> 0 | AR11: =IFERROR(IF(ISNUMBER(AF11)>0.1,AF11,AR12)*AL11,AR12) -> 0 | AS11: =IFERROR(IF(ISNUMBER(AG11)>0.1,AG11,AS12)*AM11,AS12) -> 0 | AT11: =J11 -> 0.01613872262 | AU11: =IF(E11,IFERROR(LN(AN11/AN10),FALSE)) -> FALSE | AV11: =IF(E11,IFERROR(LN(AO11/AO10),FALSE)) -> FALSE | AW11: =IF(E11,IFERROR(LN(AP11/AP10),FALSE)) -> FALSE | AX11: =IF(E11,IFERROR(LN(AQ11/AQ10),FALSE)) -> FALSE | AY11: =IF(E11,IFERROR(LN(AR11/AR10),FALSE)) -> FALSE | AZ11: =IF(E11,IFERROR(LN(AS11/AS10),FALSE)) -> FALSE | BA11: =IFERROR(IF($E11,BA10*AN11/AN10,1),1) -> 1 | BB11: =IFERROR(IF($E11,BB10*AO11/AO10,1),1) -> 1 | BC11: =IFERROR(IF($E11,BC10*AP11/AP10,1),1) -> 1 | BD11: =IFERROR(IF($E11,BD10*AQ11/AQ10,1),1) -> 1 | BE11: 1 | BF11: 1 | BG11: =IFERROR(LOOKUP($A11,INDIRECT("'"&BN$6&"'!A:A"),INDIRECT("'"&BN$6&"'!"&BN$7&":"&BN$7)),0) -> 12.853 | BH11: =IFERROR(LOOKUP($A11,INDIRECT("'"&BO$6&"'!A:A"),INDIRECT("'"&BO$6&"'!"&BO$7&":"&BO$7)),0) -> 23.61 | BI11: =IFERROR(LOOKUP($A11,INDIRECT("'"&BP$6&"'!A:A"),INDIRECT("'"&BP$6&"'!"&BP$7&":"&BP$7)),0) -> 0 | BJ11: =IFERROR(LOOKUP($A11,INDIRECT("'"&BQ$6&"'!A:A"),INDIRECT("'"&BQ$6&"'!"&BQ$7&":"&BQ$7)),0) -> 0 | BK11: =IFERROR(LOOKUP($A11,INDIRECT("'"&BR$6&"'!A:A"),INDIRECT("'"&BR$6&"'!"&BR$7&":"&BR$7)),0) -> 0 | BL11: =IFERROR(LOOKUP($A11,INDIRECT("'"&BS$6&"'!A:A"),INDIRECT("'"&BS$6&"'!"&BS$7&":"&BS$7)),0) -> 0 | BM11: =IFERROR(LOOKUP($A11,INDIRECT("'"&BT$6&"'!A:A"),INDIRECT("'"&BT$6&"'!"&BT$7&":"&BT$7)),0) -> 282.056 | BN11: =IFERROR(IF(BN$8="Divide",1/LOOKUP($D11,$A:$A,BG:BG)*1,LOOKUP($D11,$A:$A,BG:BG)*1),BN10) -> 0.05892057506 | BO11: =IFERROR(IF(BO$8="Divide",1/LOOKUP($D11,$A:$A,BH:BH)*1,LOOKUP($D11,$A:$A,BH:BH)*1),BO10) -> 0.03321155762 | BP11: =IFERROR(IF(BP$8="Divide",1/LOOKUP($D11,$A:$A,BI:BI)*1,LOOKUP($D11,$A:$A,BI:BI)*1),BP10) -> 0 | BQ11: =IFERROR(IF(BQ$8="Divide",1/LOOKUP($D11,$A:$A,BJ:BJ)*1,LOOKUP($D11,$A:$A,BJ:BJ)*1),BQ10) -> 0 | BR11: =IFERROR(IF(BR$8="Divide",1/LOOKUP($D11,$A:$A,BK:BK)*1,LOOKUP($D11,$A:$A,BK:BK)*1),BR10) -> 0 | BS11: =IFERROR(IF(BS$8="Divide",1/LOOKUP($D11,$A:$A,BL:BL)*1,LOOKUP($D11,$A:$A,BL:BL)*1),BS10) -> 0 | BT11: =IFERROR(IF(BT$8="Divide",1/LOOKUP($D11,$A:$A,BM:BM)*1,LOOKUP($D11,$A:$A,BM:BM)*1),BT10) -> 0.001673320906
A12: 1950-03-01 | B12: =IF(B11<=$D$2,EOMONTH(B11,1)) -> 1962-03-31 | C12: =IF(C11<=$D$2,C11+7) -> 1962-01-15 | D12: =IF($D$6,C12,B12) -> 1962-03-31 | E12: =AND(D12>=$D$4,D11<=$D$2) -> TRUE | F12: 69.550003 | G12: 17.290001 | H12: 1 | I12: 69.550003 | J12: =IFERROR(LN(I12/I11),FALSE) -> -0.005877674353 | K12: =IF($E12,(K11*I12/I11),1) -> 1.010313873 | L12: 1962-03-31 | M12: 69.550003 | N12: 1962-03-31 | O12: =M12 -> 69.550003 | P12: =IFERROR(CHOOSE($M$1,AN12,AU12,BA12),1) -> 0 | Q12: =IFERROR(CHOOSE($M$1,AO12,AV12,BB12),1) -> 0 | R12: =IFERROR(CHOOSE($M$1,AP12,AW12,BC12),1) -> 0 | S12: =IFERROR(CHOOSE($M$1,AQ12,AX12,BD12),1) -> 0 | T12: =IFERROR(CHOOSE($M$1,AR12,AY12,BE12),1) -> 0 | U12: =IFERROR(CHOOSE($M$1,AS12,AZ12,BF12),1) -> 0 | AB12: 0 | AC12: 0 | AD12: 0 | AE12: 0 | AF12: 0 | AG12: 0 | AH12: 1 | AI12: 1 | AJ12: 1 | AK12: 1 | AL12: 1 | AM12: 1 | AN12: =IFERROR(IF(ISNUMBER(AB12)>0.1,AB12,AN13)*AH12,AN13) -> 0 | AO12: =IFERROR(IF(ISNUMBER(AC12)>0.1,AC12,AO13)*AI12,AO13) -> 0 | AP12: =IFERROR(IF(ISNUMBER(AD12)>0.1,AD12,AP13)*AJ12,AP13) -> 0 | AQ12: =IFERROR(IF(ISNUMBER(AE12)>0.1,AE12,AQ13)*AK12,AQ13) -> 0 | AR12: =IFERROR(IF(ISNUMBER(AF12)>0.1,AF12,AR13)*AL12,AR13) -> 0 | AS12: =IFERROR(IF(ISNUMBER(AG12)>0.1,AG12,AS13)*AM12,AS13) -> 0 | AT12: =J12 -> -0.005877674353 | AU12: FALSE | AV12: FALSE | AW12: FALSE | AX12: FALSE | AY12: FALSE | AZ12: FALSE | BA12: =IFERROR(IF($E12,BA11*AN12/AN11,1),1) -> 1 | BB12: =IFERROR(IF($E12,BB11*AO12/AO11,1),1) -> 1 | BC12: =IFERROR(IF($E12,BC11*AP12/AP11,1),1) -> 1 | BD12: =IFERROR(IF($E12,BD11*AQ12/AQ11,1),1) -> 1 | BE12: =IFERROR(IF($E12,BE11*AR12/AR11,1),1) -> 1 | BF12: =IFERROR(IF($E12,BF11*AS12/AS11,1),1) -> 1 | BG12: 12.853 | BH12: 23.64 | BI12: 0 | BJ12: 0 | BK12: 0 | BL12: 0 | BM12: 282.056 | BN12: 0.05892057506 | BO12: 0.03314550878 | BP12: 0 | BQ12: 0 | BR12: 0 | BS12: 0 | BT12: 0.001673320906
A13: 1950-04-01 | B13: 1962-04-30 | C13: 1962-01-22 | D13: =IF($D$6,C13,B13) -> 1962-04-30 | E13: TRUE | F13: 65.239998 | G13: 18.07 | H13: 1 | I13: 65.239998 | J13: -0.06397321441 | K13: =IF($E13,(K12*I13/I12),1) -> 0.9477048488 | L13: =IF(E13,D13,NA()) -> 1962-04-30 | M13: =CHOOSE($M$1,I13,J13,K13) -> 65.239998 | N13: =L13 -> 1962-04-30 | O13: =M13 -> 65.239998 | P13: =IFERROR(CHOOSE($M$1,AN13,AU13,BA13),1) -> 0 | Q13: =IFERROR(CHOOSE($M$1,AO13,AV13,BB13),1) -> 0 | R13: =IFERROR(CHOOSE($M$1,AP13,AW13,BC13),1) -> 0 | S13: =IFERROR(CHOOSE($M$1,AQ13,AX13,BD13),1) -> 0 | T13: =IFERROR(CHOOSE($M$1,AR13,AY13,BE13),1) -> 0 | U13: =IFERROR(CHOOSE($M$1,AS13,AZ13,BF13),1) -> 0 | AB13: 0 | AC13: 0 | AD13: 0 | AE13: 0 | AF13: 0 | AG13: 0 | AH13: 1 | AI13: 1 | AJ13: 1 | AK13: 1 | AL13: 1 | AM13: 1 | AN13: 0 | AO13: 0 | AP13: 0 | AQ13: 0 | AR13: 0 | AS13: 0 | AT13: =J13 -> -0.06397321441 | AU13: FALSE | AV13: FALSE | AW13: FALSE | AX13: FALSE | AY13: FALSE | AZ13: FALSE | BA13: 1 | BB13: 1 | BC13: 1 | BD13: 1 | BE13: 1 | BF13: 1 | BG13: 12.897 | BH13: 23.65 | BI13: 0 | BJ13: 0 | BK13: 0 | BL13: 0 | BM13: 291.699 | BN13: 0.05882698982 | BO13: 0.03310162198 | BP13: 0 | BQ13: 0 | BR13: 0 | BS13: 0 | BT13: 0.001654648404
A14: 1950-05-01 | B14: 1962-05-31 | C14: 1962-01-29 | D14: 1962-05-31 | E14: TRUE | F14: 59.630001 | G14: 18.780001 | H14: 1 | I14: 59.630001 | J14: -0.08991392719 | K14: 0.8662115698 | L14: 1962-05-31 | M14: 59.630001 | N14: 1962-05-31 | O14: 59.630001 | P14: 0 | Q14: 0 | R14: 0 | S14: 0 | T14: 0 | U14: 0 | AB14: 0 | AC14: 0 | AD14: 0 | AE14: 0 | AF14: 0 | AG14: 0 | AH14: 1 | AI14: 1 | AJ14: 1 | AK14: 1 | AL14: 1 | AM14: 1 | AN14: 0 | AO14: 0 | AP14: 0 | AQ14: 0 | AR14: 0 | AS14: 0 | AT14: -0.08991392719 | AU14: FALSE | AV14: FALSE | AW14: FALSE | AX14: FALSE | AY14: FALSE | AZ14: FALSE | BA14: 1 | BB14: 1 | BC14: 1 | BD14: 1 | BE14: 1 | BF14: 1 | BG14: 12.897 | BH14: 23.77 | BI14: 0 | BJ14: 0 | BK14: 0 | BL14: 0 | BM14: 291.699 | BN14: 0.05882698982 | BO14: 0.03306878307 | BP14: 0 | BQ14: 0 | BR14: 0 | BS14: 0 | BT14: 0.001654648404
A15: 1950-06-01 | B15: 1962-06-30 | C15: 1962-02-05 | D15: 1962-06-30 | E15: TRUE | F15: 54.75 | G15: 17.690001 | H15: 1 | I15: 54.75 | J15: -0.08538145121 | K15: 0.7953225331 | L15: 1962-06-30 | M15: 54.75 | N15: 1962-06-30 | O15: 54.75 | P15: 0 | Q15: 0 | R15: 0 | S15: 0 | T15: 0 | U15: 0 | AB15: 0 | AC15: 0 | AD15: 0 | AE15: 0 | AF15: 0 | AG15: 0 | AH15: 1 | AI15: 1 | AJ15: 1 | AK15: 1 | AL15: 1 | AM15: 1 | AN15: 0 | AO15: 0 | AP15: 0 | AQ15: 0 | AR15: 0 | AS15: 0 | AT15: -0.08538145121 | AU15: FALSE | AV15: FALSE | AW15: FALSE | AX15: FALSE | AY15: FALSE | AZ15: FALSE | BA15: 1 | BB15: 1 | BC15: 1 | BD15: 1 | BE15: 1 | BF15: 1 | BG15: 12.897 | BH15: 23.88 | BI15: 0 | BJ15: 0 | BK15: 0 | BL15: 0 | BM15: 291.699 | BN15: 0.05882698982 | BO15: 0.03310162198 | BP15: 0 | BQ15: 0 | BR15: 0 | BS15: 0 | BT15: 0.001654648404
A16: 1950-07-01 | B16: 1962-07-31 | C16: 1962-02-12 | D16: 1962-07-31 | E16: TRUE | F16: 58.23 | G16: 17.84 | H16: 1 | I16: 58.23 | J16: 0.06162331715 | K16: 0.8458745407 | L16: 1962-07-31 | M16: 58.23 | N16: 1962-07-31 | O16: 58.23 | P16: 0 | Q16: 0 | R16: 0 | S16: 0 | T16: 0 | U16: 0 | AB16: 0 | AC16: 0 | AD16: 0 | AE16: 0 | AF16: 0 | AG16: 0 | AH16: 1 | AI16: 1 | AJ16: 1 | AK16: 1 | AL16: 1 | AM16: 1 | AN16: 0 | AO16: 0 | AP16: 0 | AQ16: 0 | AR16: 0 | AS16: 0 | AT16: 0.06162331715 | AU16: FALSE | AV16: FALSE | AW16: FALSE | AX16: FALSE | AY16: FALSE | AZ16: FALSE | BA16: 1 | BB16: 1 | BC16: 1 | BD16: 1 | BE16: 1 | BF16: 1 | BG16: 13.177 | BH16: 24.07 | BI16: 0 | BJ16: 0 | BK16: 0 | BL16: 0 | BM16: 309.76 | BN16: 0.05870267097 | BO16: 0.03309066843 | BP16: 0 | BQ16: 0 | BR16: 0 | BS16: 0 | BT16: 0.001631113822
A17: 1950-08-01 | B17: 1962-08-31 | C17: 1962-02-19 | D17: 1962-08-31 | E17: TRUE | F17: 59.119999 | G17: 18.42 | H17: 1 | I17: 59.119999 | J17: 0.01516857388 | K17: 0.8588030569 | L17: 1962-08-31 | M17: 59.119999 | N17: 1962-08-31 | O17: 59.119999 | P17: 0 | Q17: 0 | R17: 0 | S17: 0 | T17: 0 | U17: 0 | AB17: 0 | AC17: 0 | AD17: 0 | AE17: 0 | AF17: 0 | AG17: 0 | AH17: 1 | AI17: 1 | AJ17: 1 | AK17: 1 | AL17: 1 | AM17: 1 | AN17: 0 | AO17: 0 | AP17: 0 | AQ17: 0 | AR17: 0 | AS17: 0 | AT17: 0.01516857388 | AU17: FALSE | AV17: FALSE | AW17: FALSE | AX17: FALSE | AY17: FALSE | AZ17: FALSE | BA17: 1 | BB17: 1 | BC17: 1 | BD17: 1 | BE17: 1 | BF17: 1 | BG17: 13.177 | BH17: 24.2 | BI17: 0 | BJ17: 0 | BK17: 0 | BL17: 0 | BM17: 309.76 | BN17: 0.05870267097 | BO17: 0.03302509908 | BP17: 0 | BQ17: 0 | BR17: 0 | BS17: 0 | BT17: 0.001631113822
A18: 1950-09-01 | B18: 1962-09-30 | C18: 1962-02-26 | D18: 1962-09-30 | E18: TRUE | F18: 56.27 | G18: 19.450001 | H18: 1 | I18: 56.27 | J18: -0.04940772628 | K18: 0.8174027204 | L18: 1962-09-30 | M18: 56.27 | N18: 1962-09-30 | O18: 56.27 | P18: 0 | Q18: 0 | R18: 0 | S18: 0 | T18: 0 | U18: 0 | AB18: 0 | AC18: 0 | AD18: 0 | AE18: 0 | AF18: 0 | AG18: 0 | AH18: 1 | AI18: 1 | AJ18: 1 | AK18: 1 | AL18: 1 | AM18: 1 | AN18: 0 | AO18: 0 | AP18: 0 | AQ18: 0 | AR18: 0 | AS18: 0 | AT18: -0.04940772628 | AU18: FALSE | AV18: FALSE | AW18: FALSE | AX18: FALSE | AY18: FALSE | AZ18: FALSE | BA18: 1 | BB18: 1 | BC18: 1 | BD18: 1 | BE18: 1 | BF18: 1 | BG18: 13.177 | BH18: 24.34 | BI18: 0 | BJ18: 0 | BK18: 0 | BL18: 0 | BM18: 309.76 | BN18: 0.05870267097 | BO18: 0.0328731098 | BP18: 0 | BQ18: 0 | BR18: 0 | BS18: 0 | BT18: 0.001631113822
A19: 1950-10-01 | B19: 1962-10-31 | C19: 1962-03-05 | D19: 1962-10-31 | E19: TRUE | F19: 56.52 | G19: 19.530001 | H19: 1 | I19: 56.52 | J19: 0.004433024371 | K19: 0.8210343301 | L19: 1962-10-31 | M19: 56.52 | N19: 1962-10-31 | O19: 56.52 | P19: 0 | Q19: 0 | R19: 0 | S19: 0 | T19: 0 | U19: 0 | AB19: 0 | AC19: 0 | AD19: 0 | AE19: 0 | AF19: 0 | AG19: 0 | AH19: 1 | AI19: 1 | AJ19: 1 | AK19: 1 | AL19: 1 | AM19: 1 | AN19: 0 | AO19: 0 | AP19: 0 | AQ19: 0 | AR19: 0 | AS19: 0 | AT19: 0.004433024371 | AU19: FALSE | AV19: FALSE | AW19: FALSE | AX19: FALSE | AY19: FALSE | AZ19: FALSE | BA19: 1 | BB19: 1 | BC19: 1 | BD19: 1 | BE19: 1 | BF19: 1 | BG19: 13.425 | BH19: 24.5 | BI19: 0 | BJ19: 0 | BK19: 0 | BL19: 0 | BM19: 321.554 | BN19: 0.05858230814 | BO19: 0.03291639236 | BP19: 0 | BQ19: 0 | BR19: 0 | BS19: 0 | BT19: 0.001620719275
A20: 1950-11-01 | B20: 1962-11-30 | C20: 1962-03-12 | D20: 1962-11-30 | E20: TRUE | F20: 62.259998 | G20: 19.51 | H20: 1 | I20: 62.259998 | J20: 0.09672457507 | K20: 0.9044160607 | L20: 1962-11-30 | M20: 62.259998 | N20: 1962-11-30 | O20: 62.259998 | P20: 0 | Q20: 0 | R20: 0 | S20: 0 | T20: 0 | U20: 0 | AB20: 0 | AC20: 0 | AD20: 0 | AE20: 0 | AF20: 0 | AG20: 0 | AH20: 1 | AI20: 1 | AJ20: 1 | AK20: 1 | AL20: 1 | AM20: 1 | AN20: 0 | AO20: 0 | AP20: 0 | AQ20: 0 | AR20: 0 | AS20: 0 | AT20: 0.09672457507 | AU20: FALSE | AV20: FALSE | AW20: FALSE | AX20: FALSE | AY20: FALSE | AZ20: FALSE | BA20: 1 | BB20: 1 | BC20: 1 | BD20: 1 | BE20: 1 | BF20: 1 | BG20: 13.425 | BH20: 24.6 | BI20: 0 | BJ20: 0 | BK20: 0 | BL20: 0 | BM20: 321.554 | BN20: 0.05858230814 | BO20: 0.03291639236 | BP20: 0 | BQ20: 0 | BR20: 0 | BS20: 0 | BT20: 0.001620719275
A21: 1950-12-01 | B21: 1962-12-31 | C21: 1962-03-19 | D21: 1962-12-31 | E21: TRUE | F21: 63.099998 | G21: 20.41 | H21: 1 | I21: 63.099998 | J21: 0.01340160496 | K21: 0.9166182694 | L21: 1962-12-31 | M21: 63.099998 | N21: 1962-12-31 | O21: 63.099998 | P21: 0 | Q21: 0 | R21: 0 | S21: 0 | T21: 0 | U21: 0 | AB21: 0 | AC21: 0 | AD21: 0 | AE21: 0 | AF21: 0 | AG21: 0 | AH21: 1 | AI21: 1 | AJ21: 1 | AK21: 1 | AL21: 1 | AM21: 1 | AN21: 0 | AO21: 0 | AP21: 0 | AQ21: 0 | AR21: 0 | AS21: 0 | AT21: 0.01340160496 | AU21: FALSE | AV21: FALSE | AW21: FALSE | AX21: FALSE | AY21: FALSE | AZ21: FALSE | BA21: 1 | BB21: 1 | BC21: 1 | BD21: 1 | BE21: 1 | BF21: 1 | BG21: 13.425 | BH21: 24.98 | BI21: 0 | BJ21: 0 | BK21: 0 | BL21: 0 | BM21: 321.554 | BN21: 0.05858230814 | BO21: 0.03291639236 | BP21: 0 | BQ21: 0 | BR21: 0 | BS21: 0 | BT21: 0.001620719275
A22: 1951-01-01 | B22: 1963-01-31 | C22: 1962-03-26 | D22: 1963-01-31 | E22: TRUE | F22: 66.199997 | G22: 21.66 | H22: 1 | I22: 66.199997 | J22: 0.04795967977 | K22: 0.9616502157 | L22: 1963-01-31 | M22: 66.199997 | N22: 1963-01-31 | O22: 66.199997 | P22: 0 | Q22: 0 | R22: 0 | S22: 0 | T22: 0 | U22: 0 | AB22: 0 | AC22: 0 | AD22: 0 | AE22: 0 | AF22: 0 | AG22: 0 | AH22: 1 | AI22: 1 | AJ22: 1 | AK22: 1 | AL22: 1 | AM22: 1 | AN22: 0 | AO22: 0 | AP22: 0 | AQ22: 0 | AR22: 0 | AS22: 0 | AT22: 0.04795967977 | AU22: FALSE | AV22: FALSE | AW22: FALSE | AX22: FALSE | AY22: FALSE | AZ22: FALSE | BA22: 1 | BB22: 1 | BC22: 1 | BD22: 1 | BE22: 1 | BF22: 1 | BG22: 13.909 | BH22: 25.38 | BI22: 0 | BJ22: 0 | BK22: 0 | BL22: 0 | BM22: 337.537 | BN22: 0.05832604258 | BO22: 0.03285151117 | BP22: 0 | BQ22: 0 | BR22: 0 | BS22: 0 | BT22: 0.001596987443
A23: 1951-02-01 | B23: 1963-02-28 | C23: 1962-04-02 | D23: 1963-02-28 | E23: TRUE | F23: 64.290001 | G23: 21.799999 | H23: 1 | I23: 64.290001 | J23: -0.02927630392 | K23: 0.9339047754 | L23: 1963-02-28 | M23: 64.290001 | N23: 1963-02-28 | O23: 64.290001 | P23: 0 | Q23: 0 | R23: 0 | S23: 0 | T23: 0 | U23: 0 | AB23: 0 | AC23: 0 | AD23: 0 | AE23: 0 | AF23: 0 | AG23: 0 | AH23: 1 | AI23: 1 | AJ23: 1 | AK23: 1 | AL23: 1 | AM23: 1 | AN23: 0 | AO23: 0 | AP23: 0 | AQ23: 0 | AR23: 0 | AS23: 0 | AT23: -0.02927630392 | AU23: FALSE | AV23: FALSE | AW23: FALSE | AX23: FALSE | AY23: FALSE | AZ23: FALSE | BA23: 1 | BB23: 1 | BC23: 1 | BD23: 1 | BE23: 1 | BF23: 1 | BG23: 13.909 | BH23: 25.83 | BI23: 0 | BJ23: 0 | BK23: 0 | BL23: 0 | BM23: 337.537 | BN23: 0.05832604258 | BO23: 0.03280839895 | BP23: 0 | BQ23: 0 | BR23: 0 | BS23: 0 | BT23: 0.001596987443
A24: 1951-03-01 | B24: 1963-03-31 | C24: 1962-04-09 | D24: 1963-03-31 | E24: TRUE | F24: 66.57 | G24: 21.4 | H24: 1 | I24: 66.57 | J24: 0.0348499119 | K24: 0.9670250417 | L24: 1963-03-31 | M24: 66.57 | N24: 1963-03-31 | O24: 66.57 | P24: 0 | Q24: 0 | R24: 0 | S24: 0 | T24: 0 | U24: 0 | AB24: 0 | AC24: 0 | AD24: 0 | AE24: 0 | AF24: 0 | AG24: 0 | AH24: 1 | AI24: 1 | AJ24: 1 | AK24: 1 | AL24: 1 | AM24: 1 | AN24: 0 | AO24: 0 | AP24: 0 | AQ24: 0 | AR24: 0 | AS24: 0 | AT24: 0.0348499119 | AU24: FALSE | AV24: FALSE | AW24: FALSE | AX24: FALSE | AY24: FALSE | AZ24: FALSE | BA24: 1 | BB24: 1 | BC24: 1 | BD24: 1 | BE24: 1 | BF24: 1 | BG24: 13.909 | BH24: 25.88 | BI24: 0 | BJ24: 0 | BK24: 0 | BL24: 0 | BM24: 337.537 | BN24: 0.05832604258 | BO24: 0.03277613897 | BP24: 0 | BQ24: 0 | BR24: 0 | BS24: 0 | BT24: 0.001596987443
A25: 1951-04-01 | B25: 1963-04-30 | C25: 1962-04-16 | D25: 1963-04-30 | E25: TRUE | F25: 69.800003 | G25: 22.43 | H25: 1 | I25: 69.800003 | J25: 0.04738002714 | K25: 1.013945483 | L25: 1963-04-30 | M25: 69.800003 | N25: 1963-04-30 | O25: 69.800003 | P25: 0 | Q25: 0 | R25: 0 | S25: 0 | T25: 0 | U25: 0 | AB25: 0 | AC25: 0 | AD25: 0 | AE25: 0 | AF25: 0 | AG25: 0 | AH25: 1 | AI25: 1 | AJ25: 1 | AK25: 1 | AL25: 1 | AM25: 1 | AN25: 0 | AO25: 0 | AP25: 0 | AQ25: 0 | AR25: 0 | AS25: 0 | AT25: 0.04738002714 | AU25: FALSE | AV25: FALSE | AW25: FALSE | AX25: FALSE | AY25: FALSE | AZ25: FALSE | BA25: 1 | BB25: 1 | BC25: 1 | BD25: 1 | BE25: 1 | BF25: 1 | BG25: 14.002 | BH25: 25.92 | BI25: 0 | BJ25: 0 | BK25: 0 | BL25: 0 | BM25: 345.973 | BN25: 0.05822416303 | BO25: 0.03280839895 | BP25: 0 | BQ25: 0 | BR25: 0 | BS25: 0 | BT25: 0.00157706568
A26: 1951-05-01 | B26: 1963-05-31 | C26: 1962-04-23 | D26: 1963-05-31 | E26: TRUE | F26: 70.800003 | G26: 21.52 | H26: 1 | I26: 70.800003 | J26: 0.01422499032 | K26: 1.028471922 | L26: 1963-05-31 | M26: 70.800003 | N26: 1963-05-31 | O26: 70.800003 | P26: 0 | Q26: 0 | R26: 0 | S26: 0 | T26: 0 | U26: 0 | Y26: =LOOKUP($A26,INDIRECT("'"&Y$5&"'!A:A"),INDIRECT("'"&Y$5&"'!"&Y$7&":"&Y$7)) ->  | AB26: 0 | AC26: 0 | AD26: 0 | AE26: 0 | AF26: 0 | AG26: 0 | AH26: 1 | AI26: 1 | AJ26: 1 | AK26: 1 | AL26: 1 | AM26: 1 | AN26: 0 | AO26: 0 | AP26: 0 | AQ26: 0 | AR26: 0 | AS26: 0 | AT26: 0.01422499032 | AU26: FALSE | AV26: FALSE | AW26: FALSE | AX26: FALSE | AY26: FALSE | AZ26: FALSE | BA26: 1 | BB26: 1 | BC26: 1 | BD26: 1 | BE26: 1 | BF26: 1 | BG26: 14.002 | BH26: 25.99 | BI26: 0 | BJ26: 0 | BK26: 0 | BL26: 0 | BM26: 345.973 | BN26: 0.05822416303 | BO26: 0.03277613897 | BP26: 0 | BQ26: 0 | BR26: 0 | BS26: 0 | BT26: 0.00157706568
A27: 1951-06-01 | B27: 1963-06-30 | C27: 1962-04-30 | D27: 1963-06-30 | E27: TRUE | F27: 69.370003 | G27: 20.959999 | H27: 1 | I27: 69.370003 | J27: -0.02040450243 | K27: 1.007699114 | L27: 1963-06-30 | M27: 69.370003 | N27: 1963-06-30 | O27: 69.370003 | P27: 0 | Q27: 0 | R27: 0 | S27: 0 | T27: 0 | U27: 0 | AB27: 0 | AC27: 0 | AD27: 0 | AE27: 0 | AF27: 0 | AG27: 0 | AH27: 1 | AI27: 1 | AJ27: 1 | AK27: 1 | AL27: 1 | AM27: 1 | AN27: 0 | AO27: 0 | AP27: 0 | AQ27: 0 | AR27: 0 | AS27: 0 | AT27: -0.02040450243 | AU27: FALSE | AV27: FALSE | AW27: FALSE | AX27: FALSE | AY27: FALSE | AZ27: FALSE | BA27: 1 | BB27: 1 | BC27: 1 | BD27: 1 | BE27: 1 | BF27: 1 | BG27: 14.002 | BH27: 25.93 | BI27: 0 | BJ27: 0 | BK27: 0 | BL27: 0 | BM27: 345.973 | BN27: 0.05822416303 | BO27: 0.0326690624 | BP27: 0 | BQ27: 0 | BR27: 0 | BS27: 0 | BT27: 0.00157706568
A28: 1951-07-01 | B28: 1963-07-31 | C28: 1962-05-07 | D28: 1963-07-31 | E28: TRUE | F28: 69.129997 | G28: 22.4 | H28: 1 | I28: 69.129997 | J28: -0.003465794083 | K28: 1.004212682 | L28: 1963-07-31 | M28: 69.129997 | N28: 1963-07-31 | O28: 69.129997 | P28: 0 | Q28: 0 | R28: 0 | S28: 0 | T28: 0 | U28: 0 | AB28: 0 | AC28: 0 | AD28: 0 | AE28: 0 | AF28: 0 | AG28: 0 | AH28: 1 | AI28: 1 | AJ28: 1 | AK28: 1 | AL28: 1 | AM28: 1 | AN28: 0 | AO28: 0 | AP28: 0 | AQ28: 0 | AR28: 0 | AS28: 0 | AT28: -0.003465794083 | AU28: FALSE | AV28: FALSE | AW28: FALSE | AX28: FALSE | AY28: FALSE | AZ28: FALSE | BA28: 1 | BB28: 1 | BC28: 1 | BD28: 1 | BE28: 1 | BF28: 1 | BG28: 14.01 | BH28: 25.91 | BI28: 0 | BJ28: 0 | BK28: 0 | BL28: 0 | BM28: 353.381 | BN28: 0.05814629608 | BO28: 0.03258390355 | BP28: 0 | BQ28: 0 | BR28: 0 | BS28: 0 | BT28: 0.001541112252
A29: 1951-08-01 | B29: 1963-08-31 | C29: 1962-05-14 | D29: 1963-08-31 | E29: TRUE | F29: 72.5 | G29: 23.280001 | H29: 1 | I29: 72.5 | J29: 0.0475978153 | K29: 1.053166825 | L29: 1963-08-31 | M29: 72.5 | N29: 1963-08-31 | O29: 72.5 | P29: 0 | Q29: 0 | R29: 0 | S29: 0 | T29: 0 | U29: 0 | AB29: 0 | AC29: 0 | AD29: 0 | AE29: 0 | AF29: 0 | AG29: 0 | AH29: 1 | AI29: 1 | AJ29: 1 | AK29: 1 | AL29: 1 | AM29: 1 | AN29: 0 | AO29: 0 | AP29: 0 | AQ29: 0 | AR29: 0 | AS29: 0 | AT29: 0.0475978153 | AU29: FALSE | AV29: FALSE | AW29: FALSE | AX29: FALSE | AY29: FALSE | AZ29: FALSE | BA29: 1 | BB29: 1 | BC29: 1 | BD29: 1 | BE29: 1 | BF29: 1 | BG29: 14.01 | BH29: 25.86 | BI29: 0 | BJ29: 0 | BK29: 0 | BL29: 0 | BM29: 353.381 | BN29: 0.05814629608 | BO29: 0.0325203252 | BP29: 0 | BQ29: 0 | BR29: 0 | BS29: 0 | BT29: 0.001541112252
A30: 1951-09-01 | B30: 1963-09-30 | C30: 1962-05-21 | D30: 1963-09-30 | E30: TRUE | F30: 71.699997 | G30: 23.26 | H30: 1 | I30: 71.699997 | J30: -0.0110958561 | K30: 1.04154563 | L30: 1963-09-30 | M30: 71.699997 | N30: 1963-09-30 | O30: 71.699997 | P30: 0 | Q30: 0 | R30: 0 | S30: 0 | T30: 0 | U30: 0 | AB30: 0 | AC30: 0 | AD30: 0 | AE30: 0 | AF30: 0 | AG30: 0 | AH30: 1 | AI30: 1 | AJ30: 1 | AK30: 1 | AL30: 1 | AM30: 1 | AN30: 0 | AO30: 0 | AP30: 0 | AQ30: 0 | AR30: 0 | AS30: 0 | AT30: -0.0110958561 | AU30: FALSE | AV30: FALSE | AW30: FALSE | AX30: FALSE | AY30: FALSE | AZ30: FALSE | BA30: 1 | BB30: 1 | BC30: 1 | BD30: 1 | BE30: 1 | BF30: 1 | BG30: 14.01 | BH30: 26.03 | BI30: 0 | BJ30: 0 | BK30: 0 | BL30: 0 | BM30: 353.381 | BN30: 0.05814629608 | BO30: 0.03255208333 | BP30: 0 | BQ30: 0 | BR30: 0 | BS30: 0 | BT30: 0.001541112252
A31: 1951-10-01 | B31: 1963-10-31 | C31: 1962-05-28 | D31: 1963-10-31 | E31: TRUE | F31: 74.010002 | G31: 22.940001 | H31: 1 | I31: 74.010002 | J31: 0.03170954047 | K31: 1.075101777 | L31: 1963-10-31 | M31: 74.010002 | N31: 1963-10-31 | O31: 74.010002 | P31: 0 | Q31: 0 | R31: 0 | S31: 0 | T31: 0 | U31: 0 | AB31: 0 | AC31: 0 | AD31: 0 | AE31: 0 | AF31: 0 | AG31: 0 | AH31: 1 | AI31: 1 | AJ31: 1 | AK31: 1 | AL31: 1 | AM31: 1 | AN31: 0 | AO31: 0 | AP31: 0 | AQ31: 0 | AR31: 0 | AS31: 0 | AT31: 0.03170954047 | AU31: FALSE | AV31: FALSE | AW31: FALSE | AX31: FALSE | AY31: FALSE | AZ31: FALSE | BA31: 1 | BB31: 1 | BC31: 1 | BD31: 1 | BE31: 1 | BF31: 1 | BG31: 14.17 | BH31: 26.16 | BI31: 0 | BJ31: 0 | BK31: 0 | BL31: 0 | BM31: 358.33 | BN31: 0.05768010613 | BO31: 0.0325203252 | BP31: 0 | BQ31: 0 | BR31: 0 | BS31: 0 | BT31: 0.001518457611
A32: 1951-11-01 | B32: 1963-11-30 | C32: 1962-06-04 | D32: 1963-11-30 | E32: TRUE | F32: 73.230003 | G32: 22.879999 | H32: 1 | I32: 73.230003 | J32: -0.01059503219 | K32: 1.063771169 | L32: 1963-11-30 | M32: 73.230003 | N32: 1963-11-30 | O32: 73.230003 | P32: 0 | Q32: 0 | R32: 0 | S32: 0 | T32: 0 | U32: 0 | AB32: 0 | AC32: 0 | AD32: 0 | AE32: 0 | AF32: 0 | AG32: 0 | AH32: 1 | AI32: 1 | AJ32: 1 | AK32: 1 | AL32: 1 | AM32: 1 | AN32: 0 | AO32: 0 | AP32: 0 | AQ32: 0 | AR32: 0 | AS32: 0 | AT32: -0.01059503219 | AU32: FALSE | AV32: FALSE | AW32: FALSE | AX32: FALSE | AY32: FALSE | AZ32: FALSE | BA32: 1 | BB32: 1 | BC32: 1 | BD32: 1 | BE32: 1 | BF32: 1 | BG32: 14.17 | BH32: 26.32 | BI32: 0 | BJ32: 0 | BK32: 0 | BL32: 0 | BM32: 358.33 | BN32: 0.05768010613 | BO32: 0.03248862898 | BP32: 0 | BQ32: 0 | BR32: 0 | BS32: 0 | BT32: 0.001518457611
A33: 1951-12-01 | B33: 1963-12-31 | C33: 1962-06-11 | D33: 1963-12-31 | E33: TRUE | F33: 75.019997 | G33: 23.77 | H33: 1 | I33: 75.019997 | J33: 0.02414949062 | K33: 1.089773407 | L33: 1963-12-31 | M33: 75.019997 | N33: 1963-12-31 | O33: 75.019997 | P33: 0 | Q33: 0 | R33: 0 | S33: 0 | T33: 0 | U33: 0 | AB33: 0 | AC33: 0 | AD33: 0 | AE33: 0 | AF33: 0 | AG33: 0 | AH33: 1 | AI33: 1 | AJ33: 1 | AK33: 1 | AL33: 1 | AM33: 1 | AN33: 0 | AO33: 0 | AP33: 0 | AQ33: 0 | AR33: 0 | AS33: 0 | AT33: 0.02414949062 | AU33: FALSE | AV33: FALSE | AW33: FALSE | AX33: FALSE | AY33: FALSE | AZ33: FALSE | BA33: 1 | BB33: 1 | BC33: 1 | BD33: 1 | BE33: 1 | BF33: 1 | BG33: 14.17 | BH33: 26.47 | BI33: 0 | BJ33: 0 | BK33: 0 | BL33: 0 | BM33: 358.33 | BN33: 0.05768010613 | BO33: 0.03238341969 | BP33: 0 | BQ33: 0 | BR33: 0 | BS33: 0 | BT33: 0.001518457611
A34: 1952-01-01 | B34: 1964-01-31 | C34: 1962-06-18 | D34: 1964-01-31 | E34: TRUE | F34: 77.040001 | G34: 24.139999 | H34: 1 | I34: 77.040001 | J34: 0.02657007581 | K34: 1.119116872 | L34: 1964-01-31 | M34: 77.040001 | N34: 1964-01-31 | O34: 77.040001 | P34: 0 | Q34: 0 | R34: 0 | S34: 0 | T34: 0 | U34: 0 | AB34: 0 | AC34: 0 | AD34: 0 | AE34: 0 | AF34: 0 | AG34: 0 | AH34: 1 | AI34: 1 | AJ34: 1 | AK34: 1 | AL34: 1 | AM34: 1 | AN34: 0 | AO34: 0 | AP34: 0 | AQ34: 0 | AR34: 0 | AS34: 0 | AT34: 0.02657007581 | AU34: FALSE | AV34: FALSE | AW34: FALSE | AX34: FALSE | AY34: FALSE | AZ34: FALSE | BA34: 1 | BB34: 1 | BC34: 1 | BD34: 1 | BE34: 1 | BF34: 1 | BG34: 14.163 | BH34: 26.45 | BI34: 0 | BJ34: 0 | BK34: 0 | BL34: 0 | BM34: 361.821 | BN34: 0.05749770009 | BO34: 0.03232062056 | BP34: 0 | BQ34: 0 | BR34: 0 | BS34: 0 | BT34: 0.001481744903
A35: 1952-02-01 | B35: 1964-02-29 | C35: 1962-06-25 | D35: 1964-02-29 | E35: TRUE | F35: 77.800003 | G35: 23.26 | H35: 1 | I35: 77.800003 | J35: 0.009816689275 | K35: 1.130156995 | L35: 1964-02-29 | M35: 77.800003 | N35: 1964-02-29 | O35: 77.800003 | P35: 0 | Q35: 0 | R35: 0 | S35: 0 | T35: 0 | U35: 0 | AB35: 0 | AC35: 0 | AD35: 0 | AE35: 0 | AF35: 0 | AG35: 0 | AH35: 1 | AI35: 1 | AJ35: 1 | AK35: 1 | AL35: 1 | AM35: 1 | AN35: 0 | AO35: 0 | AP35: 0 | AQ35: 0 | AR35: 0 | AS35: 0 | AT35: 0.009816689275 | AU35: FALSE | AV35: FALSE | AW35: FALSE | AX35: FALSE | AY35: FALSE | AZ35: FALSE | BA35: 1 | BB35: 1 | BC35: 1 | BD35: 1 | BE35: 1 | BF35: 1 | BG35: 14.163 | BH35: 26.41 | BI35: 0 | BJ35: 0 | BK35: 0 | BL35: 0 | BM35: 361.821 | BN35: 0.05749770009 | BO35: 0.03235198965 | BP35: 0 | BQ35: 0 | BR35: 0 | BS35: 0 | BT35: 0.001481744903
A36: 1952-03-01 | B36: 1964-03-31 | C36: 1962-07-02 | D36: 1964-03-31 | E36: TRUE | F36: 78.980003 | G36: 24.370001 | H36: 1 | I36: 78.980003 | J36: 0.0150532241 | K36: 1.147298193 | L36: 1964-03-31 | M36: 78.980003 | N36: 1964-03-31 | O36: 78.980003 | P36: 0 | Q36: 0 | R36: 0 | S36: 0 | T36: 0 | U36: 0 | AB36: 0 | AC36: 0 | AD36: 0 | AE36: 0 | AF36: 0 | AG36: 0 | AH36: 1 | AI36: 1 | AJ36: 1 | AK36: 1 | AL36: 1 | AM36: 1 | AN36: 0 | AO36: 0 | AP36: 0 | AQ36: 0 | AR36: 0 | AS36: 0 | AT36: 0.0150532241 | AU36: FALSE | AV36: FALSE | AW36: FALSE | AX36: FALSE | AY36: FALSE | AZ36: FALSE | BA36: 1 | BB36: 1 | BC36: 1 | BD36: 1 | BE36: 1 | BF36: 1 | BG36: 14.163 | BH36: 26.39 | BI36: 0 | BJ36: 0 | BK36: 0 | BL36: 0 | BM36: 361.821 | BN36: 0.05749770009 | BO36: 0.03232062056 | BP36: 0 | BQ36: 0 | BR36: 0 | BS36: 0 | BT36: 0.001481744903
A37: 1952-04-01 | B37: 1964-04-30 | C37: 1962-07-09 | D37: 1964-04-30 | E37: TRUE | F37: 79.459999 | G37: 23.32 | H37: 1 | I37: 79.459999 | J37: 0.006059043959 | K37: 1.154270825 | L37: 1964-04-30 | M37: 79.459999 | N37: 1964-04-30 | O37: 79.459999 | P37: 0 | Q37: 0 | R37: 0 | S37: 0 | T37: 0 | U37: 0 | AB37: 0 | AC37: 0 | AD37: 0 | AE37: 0 | AF37: 0 | AG37: 0 | AH37: 1 | AI37: 1 | AJ37: 1 | AK37: 1 | AL37: 1 | AM37: 1 | AN37: 0 | AO37: 0 | AP37: 0 | AQ37: 0 | AR37: 0 | AS37: 0 | AT37: 0.006059043959 | AU37: FALSE | AV37: FALSE | AW37: FALSE | AX37: FALSE | AY37: FALSE | AZ37: FALSE | BA37: 1 | BB37: 1 | BC37: 1 | BD37: 1 | BE37: 1 | BF37: 1 | BG37: 14.18 | BH37: 26.46 | BI37: 0 | BJ37: 0 | BK37: 0 | BL37: 0 | BM37: 363.049 | BN37: 0.05736576411 | BO37: 0.03231017771 | BP37: 0 | BQ37: 0 | BR37: 0 | BS37: 0 | BT37: 0.001462952912
A38: 1952-05-01 | B38: 1964-05-31 | C38: 1962-07-16 | D38: 1964-05-31 | E38: TRUE | F38: 80.370003 | G38: 23.860001 | H38: 1 | I38: 80.370003 | J38: 0.01138727175 | K38: 1.167489943 | L38: 1964-05-31 | M38: 80.370003 | N38: 1964-05-31 | O38: 80.370003 | P38: 0 | Q38: 0 | R38: 0 | S38: 0 | T38: 0 | U38: 0 | AB38: 0 | AC38: 0 | AD38: 0 | AE38: 0 | AF38: 0 | AG38: 0 | AH38: 1 | AI38: 1 | AJ38: 1 | AK38: 1 | AL38: 1 | AM38: 1 | AN38: 0 | AO38: 0 | AP38: 0 | AQ38: 0 | AR38: 0 | AS38: 0 | AT38: 0.01138727175 | AU38: FALSE | AV38: FALSE | AW38: FALSE | AX38: FALSE | AY38: FALSE | AZ38: FALSE | BA38: 1 | BB38: 1 | BC38: 1 | BD38: 1 | BE38: 1 | BF38: 1 | BG38: 14.18 | BH38: 26.47 | BI38: 0 | BJ38: 0 | BK38: 0 | BL38: 0 | BM38: 363.049 | BN38: 0.05736576411 | BO38: 0.03227888961 | BP38: 0 | BQ38: 0 | BR38: 0 | BS38: 0 | BT38: 0.001462952912
A39: 1952-06-01 | B39: 1964-06-30 | C39: 1962-07-23 | D39: 1964-06-30 | E39: TRUE | F39: 81.690002 | G39: 24.959999 | H39: 1 | I39: 81.690002 | J39: 0.01629061028 | K39: 1.186664828 | L39: 1964-06-30 | M39: 81.690002 | N39: 1964-06-30 | O39: 81.690002 | P39: 0 | Q39: 0 | R39: 0 | S39: 0 | T39: 0 | U39: 0 | AB39: 0 | AC39: 0 | AD39: 0 | AE39: 0 | AF39: 0 | AG39: 0 | AH39: 1 | AI39: 1 | AJ39: 1 | AK39: 1 | AL39: 1 | AM39: 1 | AN39: 0 | AO39: 0 | AP39: 0 | AQ39: 0 | AR39: 0 | AS39: 0 | AT39: 0.01629061028 | AU39: FALSE | AV39: FALSE | AW39: FALSE | AX39: FALSE | AY39: FALSE | AZ39: FALSE | BA39: 1 | BB39: 1 | BC39: 1 | BD39: 1 | BE39: 1 | BF39: 1 | BG39: 14.18 | BH39: 26.53 | BI39: 0 | BJ39: 0 | BK39: 0 | BL39: 0 | BM39: 363.049 | BN39: 0.05736576411 | BO39: 0.03224766204 | BP39: 0 | BQ39: 0 | BR39: 0 | BS39: 0 | BT39: 0.001462952912
A40: 1952-07-01 | B40: 1964-07-31 | C40: 1962-07-30 | D40: 1964-07-31 | E40: TRUE | F40: 83.18 | G40: 25.4 | H40: 1 | I40: 83.18 | J40: 0.01807531448 | K40: 1.208309193 | L40: 1964-07-31 | M40: 83.18 | N40: 1964-07-31 | O40: 83.18 | P40: 0 | Q40: 0 | R40: 0 | S40: 0 | T40: 0 | U40: 0 | AB40: 0 | AC40: 0 | AD40: 0 | AE40: 0 | AF40: 0 | AG40: 0 | AH40: 1 | AI40: 1 | AJ40: 1 | AK40: 1 | AL40: 1 | AM40: 1 | AN40: 0 | AO40: 0 | AP40: 0 | AQ40: 0 | AR40: 0 | AS40: 0 | AT40: 0.01807531448 | AU40: FALSE | AV40: FALSE | AW40: FALSE | AX40: FALSE | AY40: FALSE | AZ40: FALSE | BA40: 1 | BB40: 1 | BC40: 1 | BD40: 1 | BE40: 1 | BF40: 1 | BG40: 14.339 | BH40: 26.68 | BI40: 0 | BJ40: 0 | BK40: 0 | BL40: 0 | BM40: 369.683 | BN40: 0.05713632728 | BO40: 0.03223726628 | BP40: 0 | BQ40: 0 | BR40: 0 | BS40: 0 | BT40: 0.001434557633
A41: 1952-08-01 | B41: 1964-08-31 | C41: 1962-08-06 | D41: 1964-08-31 | E41: TRUE | F41: 81.830002 | G41: 25.030001 | H41: 1 | I41: 81.830002 | J41: -0.01636298533 | K41: 1.188698529 | L41: 1964-08-31 | M41: 81.830002 | N41: 1964-08-31 | O41: 81.830002 | P41: 0 | Q41: 0 | R41: 0 | S41: 0 | T41: 0 | U41: 0 | AB41: 0 | AC41: 0 | AD41: 0 | AE41: 0 | AF41: 0 | AG41: 0 | AH41: 1 | AI41: 1 | AJ41: 1 | AK41: 1 | AL41: 1 | AM41: 1 | AN41: 0 | AO41: 0 | AP41: 0 | AQ41: 0 | AR41: 0 | AS41: 0 | AT41: -0.01636298533 | AU41: FALSE | AV41: FALSE | AW41: FALSE | AX41: FALSE | AY41: FALSE | AZ41: FALSE | BA41: 1 | BB41: 1 | BC41: 1 | BD41: 1 | BE41: 1 | BF41: 1 | BG41: 14.339 | BH41: 26.69 | BI41: 0 | BJ41: 0 | BK41: 0 | BL41: 0 | BM41: 369.683 | BN41: 0.05713632728 | BO41: 0.03220611916 | BP41: 0 | BQ41: 0 | BR41: 0 | BS41: 0 | BT41: 0.001434557633
A42: 1952-09-01 | B42: 1964-09-30 | C42: 1962-08-13 | D42: 1964-09-30 | E42: TRUE | F42: 84.18 | G42: 24.540001 | H42: 1 | I42: 84.18 | J42: 0.02831341436 | K42: 1.222835632 | L42: 1964-09-30 | M42: 84.18 | N42: 1964-09-30 | O42: 84.18 | P42: 0 | Q42: 0 | R42: 0 | S42: 0 | T42: 0 | U42: 0 | AB42: 0 | AC42: 0 | AD42: 0 | AE42: 0 | AF42: 0 | AG42: 0 | AH42: 1 | AI42: 1 | AJ42: 1 | AK42: 1 | AL42: 1 | AM42: 1 | AN42: 0 | AO42: 0 | AP42: 0 | AQ42: 0 | AR42: 0 | AS42: 0 | AT42: 0.02831341436 | AU42: FALSE | AV42: FALSE | AW42: FALSE | AX42: FALSE | AY42: FALSE | AZ42: FALSE | BA42: 1 | BB42: 1 | BC42: 1 | BD42: 1 | BE42: 1 | BF42: 1 | BG42: 14.339 | BH42: 26.63 | BI42: 0 | BJ42: 0 | BK42: 0 | BL42: 0 | BM42: 369.683 | BN42: 0.05713632728 | BO42: 0.03217503218 | BP42: 0 | BQ42: 0 | BR42: 0 | BS42: 0 | BT42: 0.001434557633
A43: 1952-10-01 | B43: 1964-10-31 | C43: 1962-08-20 | D43: 1964-10-31 | E43: TRUE | F43: 84.860001 | G43: 24.52 | H43: 1 | I43: 84.860001 | J43: 0.008045488216 | K43: 1.232713625 | L43: 1964-10-31 | M43: 84.860001 | N43: 1964-10-31 | O43: 84.860001 | P43: 0 | Q43: 0 | R43: 0 | S43: 0 | T43: 0 | U43: 0 | AB43: 0 | AC43: 0 | AD43: 0 | AE43: 0 | AF43: 0 | AG43: 0 | AH43: 1 | AI43: 1 | AJ43: 1 | AK43: 1 | AL43: 1 | AM43: 1 | AN43: 0 | AO43: 0 | AP43: 0 | AQ43: 0 | AR43: 0 | AS43: 0 | AT43: 0.008045488216 | AU43: FALSE | AV43: FALSE | AW43: FALSE | AX43: FALSE | AY43: FALSE | AZ43: FALSE | BA43: 1 | BB43: 1 | BC43: 1 | BD43: 1 | BE43: 1 | BF43: 1 | BG43: 14.378 | BH43: 26.69 | BI43: 0 | BJ43: 0 | BK43: 0 | BL43: 0 | BM43: 382.751 | BN43: 0.05687958592 | BO43: 0.03213367609 | BP43: 0 | BQ43: 0 | BR43: 0 | BS43: 0 | BT43: 0.001424466929
A44: 1952-11-01 | B44: 1964-11-30 | C44: 1962-08-27 | D44: 1964-11-30 | E44: TRUE | F44: 84.419998 | G44: 25.66 | H44: 1 | I44: 84.419998 | J44: -0.005198534895 | K44: 1.226321948 | L44: 1964-11-30 | M44: 84.419998 | N44: 1964-11-30 | O44: 84.419998 | P44: 0 | Q44: 0 | R44: 0 | S44: 0 | T44: 0 | U44: 0 | AB44: 0 | AC44: 0 | AD44: 0 | AE44: 0 | AF44: 0 | AG44: 0 | AH44: 1 | AI44: 1 | AJ44: 1 | AK44: 1 | AL44: 1 | AM44: 1 | AN44: 0 | AO44: 0 | AP44: 0 | AQ44: 0 | AR44: 0 | AS44: 0 | AT44: -0.005198534895 | AU44: FALSE | AV44: FALSE | AW44: FALSE | AX44: FALSE | AY44: FALSE | AZ44: FALSE | BA44: 1 | BB44: 1 | BC44: 1 | BD44: 1 | BE44: 1 | BF44: 1 | BG44: 14.378 | BH44: 26.69 | BI44: 0 | BJ44: 0 | BK44: 0 | BL44: 0 | BM44: 382.751 | BN44: 0.05687958592 | BO44: 0.0320410125 | BP44: 0 | BQ44: 0 | BR44: 0 | BS44: 0 | BT44: 0.001424466929
A45: 1952-12-01 | B45: 1964-12-31 | C45: 1962-09-03 | D45: 1964-12-31 | E45: TRUE | F45: 84.75 | G45: 26.57 | H45: 1 | I45: 84.75 | J45: 0.003901429597 | K45: 1.231115702 | L45: 1964-12-31 | M45: 84.75 | N45: 1964-12-31 | O45: 84.75 | P45: 0 | Q45: 0 | R45: 0 | S45: 0 | T45: 0 | U45: 0 | AB45: 0 | AC45: 0 | AD45: 0 | AE45: 0 | AF45: 0 | AG45: 0 | AH45: 1 | AI45: 1 | AJ45: 1 | AK45: 1 | AL45: 1 | AM45: 1 | AN45: 0 | AO45: 0 | AP45: 0 | AQ45: 0 | AR45: 0 | AS45: 0 | AT45: 0.003901429597 | AU45: FALSE | AV45: FALSE | AW45: FALSE | AX45: FALSE | AY45: FALSE | AZ45: FALSE | BA45: 1 | BB45: 1 | BC45: 1 | BD45: 1 | BE45: 1 | BF45: 1 | BG45: 14.378 | BH45: 26.71 | BI45: 0 | BJ45: 0 | BK45: 0 | BL45: 0 | BM45: 382.751 | BN45: 0.05687958592 | BO45: 0.032 | BP45: 0 | BQ45: 0 | BR45: 0 | BS45: 0 | BT45: 0.001424466929
A46: 1953-01-01 | B46: 1965-01-31 | C46: 1962-09-10 | D46: 1965-01-31 | E46: TRUE | F46: 87.559998 | G46: 26.379999 | H46: 1 | I46: 87.559998 | J46: 0.03261850355 | K46: 1.271934966 | L46: 1965-01-31 | M46: 87.559998 | N46: 1965-01-31 | O46: 87.559998 | P46: 0 | Q46: 0 | R46: 0 | S46: 0 | T46: 0 | U46: 0 | AB46: 0 | AC46: 0 | AD46: 0 | AE46: 0 | AF46: 0 | AG46: 0 | AH46: 1 | AI46: 1 | AJ46: 1 | AK46: 1 | AL46: 1 | AM46: 1 | AN46: 0 | AO46: 0 | AP46: 0 | AQ46: 0 | AR46: 0 | AS46: 0 | AT46: 0.03261850355 | AU46: FALSE | AV46: FALSE | AW46: FALSE | AX46: FALSE | AY46: FALSE | AZ46: FALSE | BA46: 1 | BB46: 1 | BC46: 1 | BD46: 1 | BE46: 1 | BF46: 1 | BG46: 14.381 | BH46: 26.64 | BI46: 0 | BJ46: 0 | BK46: 0 | BL46: 0 | BM46: 389.888 | BN46: 0.05659309564 | BO46: 0.03196930946 | BP46: 0 | BQ46: 0 | BR46: 0 | BS46: 0 | BT46: 0.001382695565
A47: 1953-02-01 | B47: 1965-02-28 | C47: 1962-09-17 | D47: 1965-02-28 | E47: TRUE | F47: 87.43 | G47: 25.9 | H47: 1 | I47: 87.43 | J47: -0.00148577662 | K47: 1.270046558 | L47: 1965-02-28 | M47: 87.43 | N47: 1965-02-28 | O47: 87.43 | P47: 0 | Q47: 0 | R47: 0 | S47: 0 | T47: 0 | U47: 0 | AB47: 0 | AC47: 0 | AD47: 0 | AE47: 0 | AF47: 0 | AG47: 0 | AH47: 1 | AI47: 1 | AJ47: 1 | AK47: 1 | AL47: 1 | AM47: 1 | AN47: 0 | AO47: 0 | AP47: 0 | AQ47: 0 | AR47: 0 | AS47: 0 | AT47: -0.00148577662 | AU47: FALSE | AV47: FALSE | AW47: FALSE | AX47: FALSE | AY47: FALSE | AZ47: FALSE | BA47: 1 | BB47: 1 | BC47: 1 | BD47: 1 | BE47: 1 | BF47: 1 | BG47: 14.381 | BH47: 26.59 | BI47: 0 | BJ47: 0 | BK47: 0 | BL47: 0 | BM47: 389.888 | BN47: 0.05659309564 | BO47: 0.03196930946 | BP47: 0 | BQ47: 0 | BR47: 0 | BS47: 0 | BT47: 0.001382695565
A48: 1953-03-01 | B48: 1965-03-31 | C48: 1962-09-24 | D48: 1965-03-31 | E48: TRUE | F48: 86.160004 | G48: 25.290001 | H48: 1 | I48: 86.160004 | J48: -0.01463239392 | K48: 1.251598039 | L48: 1965-03-31 | M48: 86.160004 | N48: 1965-03-31 | O48: 86.160004 | P48: 0 | Q48: 0 | R48: 0 | S48: 0 | T48: 0 | U48: 0 | AB48: 0 | AC48: 0 | AD48: 0 | AE48: 0 | AF48: 0 | AG48: 0 | AH48: 1 | AI48: 1 | AJ48: 1 | AK48: 1 | AL48: 1 | AM48: 1 | AN48: 0 | AO48: 0 | AP48: 0 | AQ48: 0 | AR48: 0 | AS48: 0 | AT48: -0.01463239392 | AU48: FALSE | AV48: FALSE | AW48: FALSE | AX48: FALSE | AY48: FALSE | AZ48: FALSE | BA48: 1 | BB48: 1 | BC48: 1 | BD48: 1 | BE48: 1 | BF48: 1 | BG48: 14.381 | BH48: 26.63 | BI48: 0 | BJ48: 0 | BK48: 0 | BL48: 0 | BM48: 389.888 | BN48: 0.05659309564 | BO48: 0.03193867774 | BP48: 0 | BQ48: 0 | BR48: 0 | BS48: 0 | BT48: 0.001382695565
A49: 1953-04-01 | B49: 1965-04-30 | C49: 1962-10-01 | D49: 1965-04-30 | E49: TRUE | F49: 89.110001 | G49: 24.620001 | H49: 1 | I49: 89.110001 | J49: 0.03366549357 | K49: 1.29445099 | L49: 1965-04-30 | M49: 89.110001 | N49: 1965-04-30 | O49: 89.110001 | P49: 0 | Q49: 0 | R49: 0 | S49: 0 | T49: 0 | U49: 0 | AB49: 0 | AC49: 0 | AD49: 0 | AE49: 0 | AF49: 0 | AG49: 0 | AH49: 1 | AI49: 1 | AJ49: 1 | AK49: 1 | AL49: 1 | AM49: 1 | AN49: 0 | AO49: 0 | AP49: 0 | AQ49: 0 | AR49: 0 | AS49: 0 | AT49: 0.03366549357 | AU49: FALSE | AV49: FALSE | AW49: FALSE | AX49: FALSE | AY49: FALSE | AZ49: FALSE | BA49: 1 | BB49: 1 | BC49: 1 | BD49: 1 | BE49: 1 | BF49: 1 | BG49: 14.409 | BH49: 26.69 | BI49: 0 | BJ49: 0 | BK49: 0 | BL49: 0 | BM49: 393.801 | BN49: 0.05633485437 | BO49: 0.03186743149 | BP49: 0 | BQ49: 0 | BR49: 0 | BS49: 0 | BT49: 0.00135900586
A50: 1953-05-01 | B50: 1965-05-31 | C50: 1962-10-08 | D50: 1965-05-31 | E50: TRUE | F50: 88.419998 | G50: 24.540001 | H50: 1 | I50: 88.419998 | J50: -0.007773407068 | K50: 1.284427704 | L50: 1965-05-31 | M50: 88.419998 | N50: 1965-05-31 | O50: 88.419998 | P50: 0 | Q50: 0 | R50: 0 | S50: 0 | T50: 0 | U50: 0 | AB50: 0 | AC50: 0 | AD50: 0 | AE50: 0 | AF50: 0 | AG50: 0 | AH50: 1 | AI50: 1 | AJ50: 1 | AK50: 1 | AL50: 1 | AM50: 1 | AN50: 0 | AO50: 0 | AP50: 0 | AQ50: 0 | AR50: 0 | AS50: 0 | AT50: -0.007773407068 | AU50: FALSE | AV50: FALSE | AW50: FALSE | AX50: FALSE | AY50: FALSE | AZ50: FALSE | BA50: 1 | BB50: 1 | BC50: 1 | BD50: 1 | BE50: 1 | BF50: 1 | BG50: 14.409 | BH50: 26.7 | BI50: 0 | BJ50: 0 | BK50: 0 | BL50: 0 | BM50: 393.801 | BN50: 0.05633485437 | BO50: 0.03176620076 | BP50: 0 | BQ50: 0 | BR50: 0 | BS50: 0 | BT50: 0.00135900586
A51: 1953-06-01 | B51: 1965-06-30 | C51: 1962-10-15 | D51: 1965-06-30 | E51: TRUE | F51: 84.120003 | G51: 24.139999 | H51: 1 | I51: 84.120003 | J51: -0.04985377928 | K51: 1.221964089 | L51: 1965-06-30 | M51: 84.120003 | N51: 1965-06-30 | O51: 84.120003 | P51: 0 | Q51: 0 | R51: 0 | S51: 0 | T51: 0 | U51: 0 | AB51: 0 | AC51: 0 | AD51: 0 | AE51: 0 | AF51: 0 | AG51: 0 | AH51: 1 | AI51: 1 | AJ51: 1 | AK51: 1 | AL51: 1 | AM51: 1 | AN51: 0 | AO51: 0 | AP51: 0 | AQ51: 0 | AR51: 0 | AS51: 0 | AT51: -0.04985377928 | AU51: FALSE | AV51: FALSE | AW51: FALSE | AX51: FALSE | AY51: FALSE | AZ51: FALSE | BA51: 1 | BB51: 1 | BC51: 1 | BD51: 1 | BE51: 1 | BF51: 1 | BG51: 14.409 | BH51: 26.77 | BI51: 0 | BJ51: 0 | BK51: 0 | BL51: 0 | BM51: 393.801 | BN51: 0.05633485437 | BO51: 0.03163555837 | BP51: 0 | BQ51: 0 | BR51: 0 | BS51: 0 | BT51: 0.00135900586
A52: 1953-07-01 | B52: 1965-07-31 | C52: 1962-10-22 | D52: 1965-07-31 | E52: TRUE | F52: 85.25 | G52: 24.75 | H52: 1 | I52: 85.25 | J52: 0.01334372967 | K52: 1.238378921 | L52: 1965-07-31 | M52: 85.25 | N52: 1965-07-31 | O52: 85.25 | P52: 0 | Q52: 0 | R52: 0 | S52: 0 | T52: 0 | U52: 0 | AB52: 0 | AC52: 0 | AD52: 0 | AE52: 0 | AF52: 0 | AG52: 0 | AH52: 1 | AI52: 1 | AJ52: 1 | AK52: 1 | AL52: 1 | AM52: 1 | AN52: 0 | AO52: 0 | AP52: 0 | AQ52: 0 | AR52: 0 | AS52: 0 | AT52: 0.01334372967 | AU52: FALSE | AV52: FALSE | AW52: FALSE | AX52: FALSE | AY52: FALSE | AZ52: FALSE | BA52: 1 | BB52: 1 | BC52: 1 | BD52: 1 | BE52: 1 | BF52: 1 | BG52: 14.47 | BH52: 26.79 | BI52: 0 | BJ52: 0 | BK52: 0 | BL52: 0 | BM52: 392.98 | BN52: 0.05611987205 | BO52: 0.03166561115 | BP52: 0 | BQ52: 0 | BR52: 0 | BS52: 0 | BT52: 0.001325247556
A53: 1953-08-01 | B53: 1965-08-31 | C53: 1962-10-29 | D53: 1965-08-31 | E53: TRUE | F53: 87.169998 | G53: 23.32 | H53: 1 | I53: 87.169998 | J53: 0.02227209592 | K53: 1.266269655 | L53: 1965-08-31 | M53: 87.169998 | N53: 1965-08-31 | O53: 87.169998 | P53: 0 | Q53: 0 | R53: 0 | S53: 0 | T53: 0 | U53: 0 | AB53: 0 | AC53: 0 | AD53: 0 | AE53: 0 | AF53: 0 | AG53: 0 | AH53: 1 | AI53: 1 | AJ53: 1 | AK53: 1 | AL53: 1 | AM53: 1 | AN53: 0 | AO53: 0 | AP53: 0 | AQ53: 0 | AR53: 0 | AS53: 0 | AT53: 0.02227209592 | AU53: FALSE | AV53: FALSE | AW53: FALSE | AX53: FALSE | AY53: FALSE | AZ53: FALSE | BA53: 1 | BB53: 1 | BC53: 1 | BD53: 1 | BE53: 1 | BF53: 1 | BG53: 14.47 | BH53: 26.85 | BI53: 0 | BJ53: 0 | BK53: 0 | BL53: 0 | BM53: 392.98 | BN53: 0.05611987205 | BO53: 0.03169572108 | BP53: 0 | BQ53: 0 | BR53: 0 | BS53: 0 | BT53: 0.001325247556
A54: 1953-09-01 | B54: 1965-09-30 | C54: 1962-11-05 | D54: 1965-09-30 | E54: TRUE | F54: 89.959999 | G54: 23.35 | H54: 1 | I54: 89.959999 | J54: 0.0315049039 | K54: 1.306798434 | L54: 1965-09-30 | M54: 89.959999 | N54: 1965-09-30 | O54: 89.959999 | P54: 0 | Q54: 0 | R54: 0 | S54: 0 | T54: 0 | U54: 0 | AB54: 0 | AC54: 0 | AD54: 0 | AE54: 0 | AF54: 0 | AG54: 0 | AH54: 1 | AI54: 1 | AJ54: 1 | AK54: 1 | AL54: 1 | AM54: 1 | AN54: 0 | AO54: 0 | AP54: 0 | AQ54: 0 | AR54: 0 | AS54: 0 | AT54: 0.0315049039 | AU54: FALSE | AV54: FALSE | AW54: FALSE | AX54: FALSE | AY54: FALSE | AZ54: FALSE | BA54: 1 | BB54: 1 | BC54: 1 | BD54: 1 | BE54: 1 | BF54: 1 | BG54: 14.47 | BH54: 26.89 | BI54: 0 | BJ54: 0 | BK54: 0 | BL54: 0 | BM54: 392.98 | BN54: 0.05611987205 | BO54: 0.03162555345 | BP54: 0 | BQ54: 0 | BR54: 0 | BS54: 0 | BT54: 0.001325247556
A55: 1953-10-01 | B55: 1965-10-31 | C55: 1962-11-12 | D55: 1965-10-31 | E55: TRUE | F55: 92.419998 | G55: 24.540001 | H55: 1 | I55: 92.419998 | J55: 0.02697826783 | K55: 1.34253346 | L55: 1965-10-31 | M55: 92.419998 | N55: 1965-10-31 | O55: 92.419998 | P55: 0 | Q55: 0 | R55: 0 | S55: 0 | T55: 0 | U55: 0 | AB55: 0 | AC55: 0 | AD55: 0 | AE55: 0 | AF55: 0 | AG55: 0 | AH55: 1 | AI55: 1 | AJ55: 1 | AK55: 1 | AL55: 1 | AM55: 1 | AN55: 0 | AO55: 0 | AP55: 0 | AQ55: 0 | AR55: 0 | AS55: 0 | AT55: 0.02697826783 | AU55: FALSE | AV55: FALSE | AW55: FALSE | AX55: FALSE | AY55: FALSE | AZ55: FALSE | BA55: 1 | BB55: 1 | BC55: 1 | BD55: 1 | BE55: 1 | BF55: 1 | BG55: 14.497 | BH55: 26.95 | BI55: 0 | BJ55: 0 | BK55: 0 | BL55: 0 | BM55: 387.798 | BN55: 0.05573514658 | BO55: 0.03159557662 | BP55: 0 | BQ55: 0 | BR55: 0 | BS55: 0 | BT55: 0.001287591226
A56: 1953-11-01 | B56: 1965-11-30 | C56: 1962-11-19 | D56: 1965-11-30 | E56: TRUE | F56: 91.610001 | G56: 24.76 | H56: 1 | I56: 91.610001 | J56: -0.008802936859 | K56: 1.330767088 | L56: 1965-11-30 | M56: 91.610001 | N56: 1965-11-30 | O56: 91.610001 | P56: 0 | Q56: 0 | R56: 0 | S56: 0 | T56: 0 | U56: 0 | AB56: 0 | AC56: 0 | AD56: 0 | AE56: 0 | AF56: 0 | AG56: 0 | AH56: 1 | AI56: 1 | AJ56: 1 | AK56: 1 | AL56: 1 | AM56: 1 | AN56: 0 | AO56: 0 | AP56: 0 | AQ56: 0 | AR56: 0 | AS56: 0 | AT56: -0.008802936859 | AU56: FALSE | AV56: FALSE | AW56: FALSE | AX56: FALSE | AY56: FALSE | AZ56: FALSE | BA56: 1 | BB56: 1 | BC56: 1 | BD56: 1 | BE56: 1 | BF56: 1 | BG56: 14.497 | BH56: 26.85 | BI56: 0 | BJ56: 0 | BK56: 0 | BL56: 0 | BM56: 387.798 | BN56: 0.05573514658 | BO56: 0.03149606299 | BP56: 0 | BQ56: 0 | BR56: 0 | BS56: 0 | BT56: 0.001287591226
A57: 1953-12-01 | B57: 1965-12-31 | C57: 1962-11-26 | D57: 1965-12-31 | E57: TRUE | F57: 92.43 | G57: 24.809999 | H57: 1 | I57: 92.43 | J57: 0.008911154334 | K57: 1.342678753 | L57: 1965-12-31 | M57: 92.43 | N57: 1965-12-31 | O57: 92.43 | P57: 0 | Q57: 0 | R57: 0 | S57: 0 | T57: 0 | U57: 0 | AB57: 0 | AC57: 0 | AD57: 0 | AE57: 0 | AF57: 0 | AG57: 0 | AH57: 1 | AI57: 1 | AJ57: 1 | AK57: 1 | AL57: 1 | AM57: 1 | AN57: 0 | AO57: 0 | AP57: 0 | AQ57: 0 | AR57: 0 | AS57: 0 | AT57: 0.008911154334 | AU57: FALSE | AV57: FALSE | AW57: FALSE | AX57: FALSE | AY57: FALSE | AZ57: FALSE | BA57: 1 | BB57: 1 | BC57: 1 | BD57: 1 | BE57: 1 | BF57: 1 | BG57: 14.497 | BH57: 26.87 | BI57: 0 | BJ57: 0 | BK57: 0 | BL57: 0 | BM57: 387.798 | BN57: 0.05573514658 | BO57: 0.03139717425 | BP57: 0 | BQ57: 0 | BR57: 0 | BS57: 0 | BT57: 0.001287591226
A58: 1954-01-01 | B58: 1966-01-31 | C58: 1962-12-03 | D58: 1966-01-31 | E58: TRUE | F58: 92.879997 | G58: 26.08 | H58: 1 | I58: 92.879997 | J58: 0.004856703813 | K58: 1.349215607 | L58: 1966-01-31 | M58: 92.879997 | N58: 1966-01-31 | O58: 92.879997 | P58: 0 | Q58: 0 | R58: 0 | S58: 0 | T58: 0 | U58: 0 | AB58: 0 | AC58: 0 | AD58: 0 | AE58: 0 | AF58: 0 | AG58: 0 | AH58: 1 | AI58: 1 | AJ58: 1 | AK58: 1 | AL58: 1 | AM58: 1 | AN58: 0 | AO58: 0 | AP58: 0 | AQ58: 0 | AR58: 0 | AS58: 0 | AT58: 0.004856703813 | AU58: FALSE | AV58: FALSE | AW58: FALSE | AX58: FALSE | AY58: FALSE | AZ58: FALSE | BA58: 1 | BB58: 1 | BC58: 1 | BD58: 1 | BE58: 1 | BF58: 1 | BG58: 14.543 | BH58: 26.94 | BI58: 0 | BJ58: 0 | BK58: 0 | BL58: 0 | BM58: 387.345 | BN58: 0.05538018497 | BO58: 0.03136762861 | BP58: 0 | BQ58: 0 | BR58: 0 | BS58: 0 | BT58: 0.001248857296
A59: 1954-02-01 | B59: 1966-02-28 | C59: 1962-12-10 | D59: 1966-02-28 | E59: TRUE | F59: 91.220001 | G59: 26.15 | H59: 1 | I59: 91.220001 | J59: -0.01803412284 | K59: 1.325101777 | L59: 1966-02-28 | M59: 91.220001 | N59: 1966-02-28 | O59: 91.220001 | P59: 0 | Q59: 0 | R59: 0 | S59: 0 | T59: 0 | U59: 0 | AB59: 0 | AC59: 0 | AD59: 0 | AE59: 0 | AF59: 0 | AG59: 0 | AH59: 1 | AI59: 1 | AJ59: 1 | AK59: 1 | AL59: 1 | AM59: 1 | AN59: 0 | AO59: 0 | AP59: 0 | AQ59: 0 | AR59: 0 | AS59: 0 | AT59: -0.01803412284 | AU59: FALSE | AV59: FALSE | AW59: FALSE | AX59: FALSE | AY59: FALSE | AZ59: FALSE | BA59: 1 | BB59: 1 | BC59: 1 | BD59: 1 | BE59: 1 | BF59: 1 | BG59: 14.543 | BH59: 26.99 | BI59: 0 | BJ59: 0 | BK59: 0 | BL59: 0 | BM59: 387.345 | BN59: 0.05538018497 | BO59: 0.03117206983 | BP59: 0 | BQ59: 0 | BR59: 0 | BS59: 0 | BT59: 0.001248857296
A60: 1954-03-01 | B60: 1966-03-31 | C60: 1962-12-17 | D60: 1966-03-31 | E60: TRUE | F60: 89.230003 | G60: 26.940001 | H60: 1 | I60: 89.230003 | J60: -0.02205684271 | K60: 1.296194192 | L60: 1966-03-31 | M60: 89.230003 | N60: 1966-03-31 | O60: 89.230003 | P60: 0 | Q60: 0 | R60: 0 | S60: 0 | T60: 0 | U60: 0 | AB60: 0 | AC60: 0 | AD60: 0 | AE60: 0 | AF60: 0 | AG60: 0 | AH60: 1 | AI60: 1 | AJ60: 1 | AK60: 1 | AL60: 1 | AM60: 1 | AN60: 0 | AO60: 0 | AP60: 0 | AQ60: 0 | AR60: 0 | AS60: 0 | AT60: -0.02205684271 | AU60: FALSE | AV60: FALSE | AW60: FALSE | AX60: FALSE | AY60: FALSE | AZ60: FALSE | BA60: 1 | BB60: 1 | BC60: 1 | BD60: 1 | BE60: 1 | BF60: 1 | BG60: 14.543 | BH60: 26.93 | BI60: 0 | BJ60: 0 | BK60: 0 | BL60: 0 | BM60: 387.345 | BN60: 0.05538018497 | BO60: 0.03107520199 | BP60: 0 | BQ60: 0 | BR60: 0 | BS60: 0 | BT60: 0.001248857296
A61: 1954-04-01 | B61: 1966-04-30 | C61: 1962-12-24 | D61: 1966-04-30 | E61: TRUE | F61: 91.059998 | G61: 28.26 | H61: 1 | I61: 91.059998 | J61: 0.02030126841 | K61: 1.322777503 | L61: 1966-04-30 | M61: 91.059998 | N61: 1966-04-30 | O61: 91.059998 | P61: 0 | Q61: 0 | R61: 0 | S61: 0 | T61: 0 | U61: 0 | AB61: 0 | AC61: 0 | AD61: 0 | AE61: 0 | AF61: 0 | AG61: 0 | AH61: 1 | AI61: 1 | AJ61: 1 | AK61: 1 | AL61: 1 | AM61: 1 | AN61: 0 | AO61: 0 | AP61: 0 | AQ61: 0 | AR61: 0 | AS61: 0 | AT61: 0.02030126841 | AU61: FALSE | AV61: FALSE | AW61: FALSE | AX61: FALSE | AY61: FALSE | AZ61: FALSE | BA61: 1 | BB61: 1 | BC61: 1 | BD61: 1 | BE61: 1 | BF61: 1 | BG61: 14.556 | BH61: 26.86 | BI61: 0 | BJ61: 0 | BK61: 0 | BL61: 0 | BM61: 388.119 | BN61: 0.0549299643 | BO61: 0.03097893432 | BP61: 0 | BQ61: 0 | BR61: 0 | BS61: 0 | BT61: 0.001234517606
A62: 1954-05-01 | B62: 1966-05-31 | C62: 1962-12-31 | D62: 1966-05-31 | E62: TRUE | F62: 86.129997 | G62: 29.190001 | H62: 1 | I62: 86.129997 | J62: -0.05566085997 | K62: 1.251162144 | L62: 1966-05-31 | M62: 86.129997 | N62: 1966-05-31 | O62: 86.129997 | P62: 0 | Q62: 0 | R62: 0 | S62: 0 | T62: 0 | U62: 0 | AB62: 0 | AC62: 0 | AD62: 0 | AE62: 0 | AF62: 0 | AG62: 0 | AH62: 1 | AI62: 1 | AJ62: 1 | AK62: 1 | AL62: 1 | AM62: 1 | AN62: 0 | AO62: 0 | AP62: 0 | AQ62: 0 | AR62: 0 | AS62: 0 | AT62: -0.05566085997 | AU62: FALSE | AV62: FALSE | AW62: FALSE | AX62: FALSE | AY62: FALSE | AZ62: FALSE | BA62: 1 | BB62: 1 | BC62: 1 | BD62: 1 | BE62: 1 | BF62: 1 | BG62: 14.556 | BH62: 26.93 | BI62: 0 | BJ62: 0 | BK62: 0 | BL62: 0 | BM62: 388.119 | BN62: 0.0549299643 | BO62: 0.03091190108 | BP62: 0 | BQ62: 0 | BR62: 0 | BS62: 0 | BT62: 0.001234517606
A63: 1954-06-01 | B63: 1966-06-30 | C63: 1963-01-07 | D63: 1966-06-30 | E63: TRUE | F63: 84.739998 | G63: 29.209999 | H63: 1 | I63: 84.739998 | J63: -0.01627002637 | K63: 1.230970409 | L63: 1966-06-30 | M63: 84.739998 | N63: 1966-06-30 | O63: 84.739998 | P63: 0 | Q63: 0 | R63: 0 | S63: 0 | T63: 0 | U63: 0 | AB63: 0 | AC63: 0 | AD63: 0 | AE63: 0 | AF63: 0 | AG63: 0 | AH63: 1 | AI63: 1 | AJ63: 1 | AK63: 1 | AL63: 1 | AM63: 1 | AN63: 0 | AO63: 0 | AP63: 0 | AQ63: 0 | AR63: 0 | AS63: 0 | AT63: -0.01627002637 | AU63: FALSE | AV63: FALSE | AW63: FALSE | AX63: FALSE | AY63: FALSE | AZ63: FALSE | BA63: 1 | BB63: 1 | BC63: 1 | BD63: 1 | BE63: 1 | BF63: 1 | BG63: 14.556 | BH63: 26.94 | BI63: 0 | BJ63: 0 | BK63: 0 | BL63: 0 | BM63: 388.119 | BN63: 0.0549299643 | BO63: 0.03088326127 | BP63: 0 | BQ63: 0 | BR63: 0 | BS63: 0 | BT63: 0.001234517606
A64: 1954-07-01 | B64: 1966-07-31 | C64: 1963-01-14 | D64: 1966-07-31 | E64: TRUE | F64: 83.599998 | G64: 30.879999 | H64: 1 | I64: 83.599998 | J64: -0.01354422543 | K64: 1.214410268 | L64: 1966-07-31 | M64: 83.599998 | N64: 1966-07-31 | O64: 83.599998 | P64: 0 | Q64: 0 | R64: 0 | S64: 0 | T64: 0 | U64: 0 | AB64: 0 | AC64: 0 | AD64: 0 | AE64: 0 | AF64: 0 | AG64: 0 | AH64: 1 | AI64: 1 | AJ64: 1 | AK64: 1 | AL64: 1 | AM64: 1 | AN64: 0 | AO64: 0 | AP64: 0 | AQ64: 0 | AR64: 0 | AS64: 0 | AT64: -0.01354422543 | AU64: FALSE | AV64: FALSE | AW64: FALSE | AX64: FALSE | AY64: FALSE | AZ64: FALSE | BA64: 1 | BB64: 1 | BC64: 1 | BD64: 1 | BE64: 1 | BF64: 1 | BG64: 14.575 | BH64: 26.86 | BI64: 0 | BJ64: 0 | BK64: 0 | BL64: 0 | BM64: 393.034 | BN64: 0.05440400413 | BO64: 0.03081664099 | BP64: 0 | BQ64: 0 | BR64: 0 | BS64: 0 | BT64: 0.001212701839
A65: 1954-08-01 | B65: 1966-08-31 | C65: 1963-01-21 | D65: 1966-08-31 | E65: TRUE | F65: 77.099998 | G65: 29.83 | H65: 1 | I65: 77.099998 | J65: -0.08094024154 | K65: 1.119988415 | L65: 1966-08-31 | M65: 77.099998 | N65: 1966-08-31 | O65: 77.099998 | P65: 0 | Q65: 0 | R65: 0 | S65: 0 | T65: 0 | U65: 0 | AB65: 0 | AC65: 0 | AD65: 0 | AE65: 0 | AF65: 0 | AG65: 0 | AH65: 1 | AI65: 1 | AJ65: 1 | AK65: 1 | AL65: 1 | AM65: 1 | AN65: 0 | AO65: 0 | AP65: 0 | AQ65: 0 | AR65: 0 | AS65: 0 | AT65: -0.08094024154 | AU65: FALSE | AV65: FALSE | AW65: FALSE | AX65: FALSE | AY65: FALSE | AZ65: FALSE | BA65: 1 | BB65: 1 | BC65: 1 | BD65: 1 | BE65: 1 | BF65: 1 | BG65: 14.575 | BH65: 26.85 | BI65: 0 | BJ65: 0 | BK65: 0 | BL65: 0 | BM65: 393.034 | BN65: 0.05440400413 | BO65: 0.03062787136 | BP65: 0 | BQ65: 0 | BR65: 0 | BS65: 0 | BT65: 0.001212701839
A66: 1954-09-01 | B66: 1966-09-30 | C66: 1963-01-28 | D66: 1966-09-30 | E66: TRUE | F66: 76.559998 | G66: 32.310001 | H66: 1 | I66: 76.559998 | J66: -0.007028533608 | K66: 1.112144138 | L66: 1966-09-30 | M66: 76.559998 | N66: 1966-09-30 | O66: 76.559998 | P66: 0 | Q66: 0 | R66: 0 | S66: 0 | T66: 0 | U66: 0 | Y66: =LOOKUP($A66,INDIRECT("'"&Y$5&"'!A:A"),INDIRECT("'"&Y$5&"'!"&Y$7&":"&Y$7)) ->  | AB66: 0 | AC66: 0 | AD66: 0 | AE66: 0 | AF66: 0 | AG66: 0 | AH66: =IF(AH$7,INDEX($BN66:$BT66,AH$7),1) -> 1 | AI66: 1 | AJ66: 1 | AK66: 1 | AL66: 1 | AM66: 1 | AN66: 0 | AO66: 0 | AP66: 0 | AQ66: 0 | AR66: 0 | AS66: 0 | AT66: -0.007028533608 | AU66: FALSE | AV66: FALSE | AW66: FALSE | AX66: FALSE | AY66: FALSE | AZ66: FALSE | BA66: 1 | BB66: 1 | BC66: 1 | BD66: 1 | BE66: 1 | BF66: 1 | BG66: 14.575 | BH66: 26.81 | BI66: 0 | BJ66: 0 | BK66: 0 | BL66: 0 | BM66: 393.034 | BN66: 0.05440400413 | BO66: 0.03053435115 | BP66: 0 | BQ66: 0 | BR66: 0 | BS66: 0 | BT66: 0.001212701839
A67: 1954-10-01 | B67: 1966-10-31 | C67: 1963-02-04 | D67: 1966-10-31 | E67: TRUE | F67: 80.199997 | G67: 31.68 | H67: 1 | I67: 80.199997 | J67: 0.04644875644 | K67: 1.165020361 | L67: 1966-10-31 | M67: 80.199997 | N67: 1966-10-31 | O67: 80.199997 | P67: 0 | Q67: 0 | R67: 0 | S67: 0 | T67: 0 | U67: 0 | AB67: 0 | AC67: 0 | AD67: 0 | AE67: 0 | AF67: 0 | AG67: 0 | AH67: 1 | AI67: 1 | AJ67: 1 | AK67: 1 | AL67: 1 | AM67: 1 | AN67: 0 | AO67: 0 | AP67: 0 | AQ67: 0 | AR67: 0 | AS67: 0 | AT67: 0.04644875644 | AU67: FALSE | AV67: FALSE | AW67: FALSE | AX67: FALSE | AY67: FALSE | AZ67: FALSE | BA67: 1 | BB67: 1 | BC67: 1 | BD67: 1 | BE67: 1 | BF67: 1 | BG67: 14.615 | BH67: 26.72 | BI67: 0 | BJ67: 0 | BK67: 0 | BL67: 0 | BM67: 402.077 | BN67: 0.05395198274 | BO67: 0.0304414003 | BP67: 0 | BQ67: 0 | BR67: 0 | BS67: 0 | BT67: 0.001192513401
A68: 1954-11-01 | B68: 1966-11-30 | C68: 1963-02-11 | D68: 1966-11-30 | E68: TRUE | F68: 80.449997 | G68: 34.240002 | H68: 1 | I68: 80.449997 | J68: 0.003112358682 | K68: 1.168651971 | L68: 1966-11-30 | M68: 80.449997 | N68: 1966-11-30 | O68: 80.449997 | P68: 0 | Q68: 0 | R68: 0 | S68: 0 | T68: 0 | U68: 0 | AB68: 0 | AC68: 0 | AD68: 0 | AE68: 0 | AF68: 0 | AG68: 0 | AH68: 1 | AI68: 1 | AJ68: 1 | AK68: 1 | AL68: 1 | AM68: 1 | AN68: 0 | AO68: 0 | AP68: 0 | AQ68: 0 | AR68: 0 | AS68: 0 | AT68: 0.003112358682 | AU68: FALSE | AV68: FALSE | AW68: FALSE | AX68: FALSE | AY68: FALSE | AZ68: FALSE | BA68: 1 | BB68: 1 | BC68: 1 | BD68: 1 | BE68: 1 | BF68: 1 | BG68: 14.615 | BH68: 26.78 | BI68: 0 | BJ68: 0 | BK68: 0 | BL68: 0 | BM68: 402.077 | BN68: 0.05395198274 | BO68: 0.0304136253 | BP68: 0 | BQ68: 0 | BR68: 0 | BS68: 0 | BT68: 0.001192513401
A69: 1954-12-01 | B69: 1966-12-31 | C69: 1963-02-18 | D69: 1966-12-31 | E69: TRUE | F69: 80.330002 | G69: 35.98 | H69: 1 | I69: 80.330002 | J69: -0.001492661065 | K69: 1.166908871 | L69: 1966-12-31 | M69: 80.330002 | N69: 1966-12-31 | O69: 80.330002 | P69: 0 | Q69: 0 | R69: 0 | S69: 0 | T69: 0 | U69: 0 | AB69: 0 | AC69: 0 | AD69: 0 | AE69: 0 | AF69: 0 | AG69: 0 | AH69: 1 | AI69: 1 | AJ69: 1 | AK69: 1 | AL69: 1 | AM69: 1 | AN69: 0 | AO69: 0 | AP69: 0 | AQ69: 0 | AR69: 0 | AS69: 0 | AT69: -0.001492661065 | AU69: FALSE | AV69: FALSE | AW69: FALSE | AX69: FALSE | AY69: FALSE | AZ69: FALSE | BA69: 1 | BB69: 1 | BC69: 1 | BD69: 1 | BE69: 1 | BF69: 1 | BG69: 14.615 | BH69: 26.77 | BI69: 0 | BJ69: 0 | BK69: 0 | BL69: 0 | BM69: 402.077 | BN69: 0.05395198274 | BO69: 0.03037667072 | BP69: 0 | BQ69: 0 | BR69: 0 | BS69: 0 | BT69: 0.001192513401
A70: 1955-01-01 | B70: 1967-01-31 | C70: 1963-02-25 | D70: 1967-01-31 | E70: TRUE | F70: 86.610001 | G70: 36.630001 | H70: 1 | I70: 86.610001 | J70: 0.07527211881 | K70: 1.258134893 | L70: 1967-01-31 | M70: 86.610001 | N70: 1967-01-31 | O70: 86.610001 | P70: 0 | Q70: 0 | R70: 0 | S70: 0 | T70: 0 | U70: 0 | AB70: 0 | AC70: 0 | AD70: 0 | AE70: 0 | AF70: 0 | AG70: 0 | AH70: 1 | AI70: 1 | AJ70: 1 | AK70: 1 | AL70: 1 | AM70: 1 | AN70: 0 | AO70: 0 | AP70: 0 | AQ70: 0 | AR70: 0 | AS70: 0 | AT70: 0.07527211881 | AU70: FALSE | AV70: FALSE | AW70: FALSE | AX70: FALSE | AY70: FALSE | AZ70: FALSE | BA70: 1 | BB70: 1 | BC70: 1 | BD70: 1 | BE70: 1 | BF70: 1 | BG70: 14.683 | BH70: 26.77 | BI70: 0 | BJ70: 0 | BK70: 0 | BL70: 0 | BM70: 415.496 | BN70: 0.05372877713 | BO70: 0.03039513678 | BP70: 0 | BQ70: 0 | BR70: 0 | BS70: 0 | BT70: 0.001177314099
A71: 1955-02-01 | B71: 1967-02-28 | C71: 1963-03-04 | D71: 1967-02-28 | E71: TRUE | F71: 86.779999 | G71: 36.759998 | H71: 1 | I71: 86.779999 | J71: 0.001960874958 | K71: 1.260604359 | L71: 1967-02-28 | M71: 86.779999 | N71: 1967-02-28 | O71: 86.779999 | P71: 0 | Q71: 0 | R71: 0 | S71: 0 | T71: 0 | U71: 0 | AB71: 0 | AC71: 0 | AD71: 0 | AE71: 0 | AF71: 0 | AG71: 0 | AH71: 1 | AI71: 1 | AJ71: 1 | AK71: 1 | AL71: 1 | AM71: 1 | AN71: 0 | AO71: 0 | AP71: 0 | AQ71: 0 | AR71: 0 | AS71: 0 | AT71: 0.001960874958 | AU71: FALSE | AV71: FALSE | AW71: FALSE | AX71: FALSE | AY71: FALSE | AZ71: FALSE | BA71: 1 | BB71: 1 | BC71: 1 | BD71: 1 | BE71: 1 | BF71: 1 | BG71: 14.683 | BH71: 26.82 | BI71: 0 | BJ71: 0 | BK71: 0 | BL71: 0 | BM71: 415.496 | BN71: 0.05372877713 | BO71: 0.0303030303 | BP71: 0 | BQ71: 0 | BR71: 0 | BS71: 0 | BT71: 0.001177314099
A72: 1955-03-01 | B72: 1967-03-31 | C72: 1963-03-11 | D72: 1967-03-31 | E72: TRUE | F72: 90.199997 | G72: 36.580002 | H72: 1 | I72: 90.199997 | J72: 0.03865322496 | K72: 1.310284751 | L72: 1967-03-31 | M72: 90.199997 | N72: 1967-03-31 | O72: 90.199997 | P72: 0 | Q72: 0 | R72: 0 | S72: 0 | T72: 0 | U72: 0 | AB72: 0 | AC72: 0 | AD72: 0 | AE72: 0 | AF72: 0 | AG72: 0 | AH72: 1 | AI72: 1 | AJ72: 1 | AK72: 1 | AL72: 1 | AM72: 1 | AN72: 0 | AO72: 0 | AP72: 0 | AQ72: 0 | AR72: 0 | AS72: 0 | AT72: 0.03865322496 | AU72: FALSE | AV72: FALSE | AW72: FALSE | AX72: FALSE | AY72: FALSE | AZ72: FALSE | BA72: 1 | BB72: 1 | BC72: 1 | BD72: 1 | BE72: 1 | BF72: 1 | BG72: 14.683 | BH72: 26.79 | BI72: 0 | BJ72: 0 | BK72: 0 | BL72: 0 | BM72: 415.496 | BN72: 0.05372877713 | BO72: 0.0303030303 | BP72: 0 | BQ72: 0 | BR72: 0 | BS72: 0 | BT72: 0.001177314099
A73: 1955-04-01 | B73: 1967-04-30 | C73: 1963-03-18 | D73: 1967-04-30 | E73: TRUE | F73: 94.010002 | G73: 37.959999 | H73: 1 | I73: 94.010002 | J73: 0.04137178706 | K73: 1.365630556 | L73: 1967-04-30 | M73: 94.010002 | N73: 1967-04-30 | O73: 94.010002 | P73: 0 | Q73: 0 | R73: 0 | S73: 0 | T73: 0 | U73: 0 | AB73: 0 | AC73: 0 | AD73: 0 | AE73: 0 | AF73: 0 | AG73: 0 | AH73: 1 | AI73: 1 | AJ73: 1 | AK73: 1 | AL73: 1 | AM73: 1 | AN73: 0 | AO73: 0 | AP73: 0 | AQ73: 0 | AR73: 0 | AS73: 0 | AT73: 0.04137178706 | AU73: FALSE | AV73: FALSE | AW73: FALSE | AX73: FALSE | AY73: FALSE | AZ73: FALSE | BA73: 1 | BB73: 1 | BC73: 1 | BD73: 1 | BE73: 1 | BF73: 1 | BG73: 14.744 | BH73: 26.79 | BI73: 0 | BJ73: 0 | BK73: 0 | BL73: 0 | BM73: 423.93 | BN73: 0.05345592559 | BO73: 0.03021148036 | BP73: 0 | BQ73: 0 | BR73: 0 | BS73: 0 | BT73: 0.001170873811
A74: 1955-05-01 | B74: 1967-05-31 | C74: 1963-03-25 | D74: 1967-05-31 | E74: TRUE | F74: 89.080002 | G74: 37.91 | H74: 1 | I74: 89.080002 | J74: -0.05386631602 | K74: 1.294015212 | L74: 1967-05-31 | M74: 89.080002 | N74: 1967-05-31 | O74: 89.080002 | P74: 0 | Q74: 0 | R74: 0 | S74: 0 | T74: 0 | U74: 0 | AB74: 0 | AC74: 0 | AD74: 0 | AE74: 0 | AF74: 0 | AG74: 0 | AH74: 1 | AI74: 1 | AJ74: 1 | AK74: 1 | AL74: 1 | AM74: 1 | AN74: 0 | AO74: 0 | AP74: 0 | AQ74: 0 | AR74: 0 | AS74: 0 | AT74: -0.05386631602 | AU74: FALSE | AV74: FALSE | AW74: FALSE | AX74: FALSE | AY74: FALSE | AZ74: FALSE | BA74: 1 | BB74: 1 | BC74: 1 | BD74: 1 | BE74: 1 | BF74: 1 | BG74: 14.744 | BH74: 26.77 | BI74: 0 | BJ74: 0 | BK74: 0 | BL74: 0 | BM74: 423.93 | BN74: 0.05345592559 | BO74: 0.03021148036 | BP74: 0 | BQ74: 0 | BR74: 0 | BS74: 0 | BT74: 0.001170873811
A75: 1955-06-01 | B75: =IF(B74<=$D$2,EOMONTH(B74,1)) -> 1967-06-30 | C75: 1963-04-01 | D75: 1967-06-30 | E75: TRUE | F75: =LOOKUP(D75,A:A,G:G) -> 90.639999 | G75: =IFERROR(LOOKUP($A75,INDIRECT("'"&G$7&"'!A:A"),INDIRECT("'"&G$7&"'!"&$G$9&":"&$G$9)),0) -> 41.029999 | H75: =IF(H$8,INDEX($BN75:$BT75,H$8),1) -> 1 | I75: =IF(ISNUMBER(F75),F75,I76)*H75 -> 90.639999 | J75: 0.01736074085 | K75: 1.316676413 | L75: 1967-06-30 | M75: 90.639999 | N75: 1967-06-30 | O75: 90.639999 | P75: 0 | Q75: 0 | R75: 0 | S75: 0 | T75: 0 | U75: 0 | V75: =LOOKUP($A75,INDIRECT("'"&V$5&"'!A:A"),INDIRECT("'"&V$5&"'!"&V$7&":"&V$7)) ->  | AB75: =IF(ISNUMBER(LOOKUP($D75,$A:$A,V:V)),LOOKUP($D75,$A:$A,V:V),AB74) -> 0 | AC75: =IF(ISNUMBER(LOOKUP($D75,$A:$A,W:W)),LOOKUP($D75,$A:$A,W:W),AC74) -> 0 | AD75: =IF(ISNUMBER(LOOKUP($D75,$A:$A,X:X)),LOOKUP($D75,$A:$A,X:X),AD74) -> 0 | AE75: =IF(ISNUMBER(LOOKUP($D75,$A:$A,Y:Y)),LOOKUP($D75,$A:$A,Y:Y),AE74) -> 0 | AF75: =IF(ISNUMBER(LOOKUP($D75,$A:$A,Z:Z)),LOOKUP($D75,$A:$A,Z:Z),AF74) -> 0 | AG75: =IF(ISNUMBER(LOOKUP($D75,$A:$A,AA:AA)),LOOKUP($D75,$A:$A,AA:AA),AG74) -> 0 | AH75: 1 | AI75: 1 | AJ75: 1 | AK75: 1 | AL75: 1 | AM75: 1 | AN75: 0 | AO75: 0 | AP75: 0 | AQ75: 0 | AR75: 0 | AS75: 0 | AT75: 0.01736074085 | AU75: =IF(E75,IFERROR(LN(AN75/AN74),FALSE)) -> FALSE | AV75: =IF(E75,IFERROR(LN(AO75/AO74),FALSE)) -> FALSE | AW75: =IF(E75,IFERROR(LN(AP75/AP74),FALSE)) -> FALSE | AX75: =IF(E75,IFERROR(LN(AQ75/AQ74),FALSE)) -> FALSE | AY75: =IF(E75,IFERROR(LN(AR75/AR74),FALSE)) -> FALSE | AZ75: =IF(E75,IFERROR(LN(AS75/AS74),FALSE)) -> FALSE | BA75: 1 | BB75: 1 | BC75: 1 | BD75: 1 | BE75: 1 | BF75: 1 | BG75: =IFERROR(LOOKUP($A75,INDIRECT("'"&BN$6&"'!A:A"),INDIRECT("'"&BN$6&"'!"&BN$7&":"&BN$7)),0) -> 14.744 | BH75: =IFERROR(LOOKUP($A75,INDIRECT("'"&BO$6&"'!A:A"),INDIRECT("'"&BO$6&"'!"&BO$7&":"&BO$7)),0) -> 26.71 | BI75: =IFERROR(LOOKUP($A75,INDIRECT("'"&BP$6&"'!A:A"),INDIRECT("'"&BP$6&"'!"&BP$7&":"&BP$7)),0) -> 0 | BJ75: =IFERROR(LOOKUP($A75,INDIRECT("'"&BQ$6&"'!A:A"),INDIRECT("'"&BQ$6&"'!"&BQ$7&":"&BQ$7)),0) -> 0 | BK75: =IFERROR(LOOKUP($A75,INDIRECT("'"&BR$6&"'!A:A"),INDIRECT("'"&BR$6&"'!"&BR$7&":"&BR$7)),0) -> 0 | BL75: =IFERROR(LOOKUP($A75,INDIRECT("'"&BS$6&"'!A:A"),INDIRECT("'"&BS$6&"'!"&BS$7&":"&BS$7)),0) -> 0 | BM75: =IFERROR(LOOKUP($A75,INDIRECT("'"&BT$6&"'!A:A"),INDIRECT("'"&BT$6&"'!"&BT$7&":"&BT$7)),0) -> 423.93 | BN75: =IFERROR(IF(BN$8="Divide",1/LOOKUP($D75,$A:$A,BG:BG)*1,LOOKUP($D75,$A:$A,BG:BG)*1),BN74) -> 0.05345592559 | BO75: =IFERROR(IF(BO$8="Divide",1/LOOKUP($D75,$A:$A,BH:BH)*1,LOOKUP($D75,$A:$A,BH:BH)*1),BO74) -> 0.03003003003 | BP75: =IFERROR(IF(BP$8="Divide",1/LOOKUP($D75,$A:$A,BI:BI)*1,LOOKUP($D75,$A:$A,BI:BI)*1),BP74) -> 0 | BQ75: =IFERROR(IF(BQ$8="Divide",1/LOOKUP($D75,$A:$A,BJ:BJ)*1,LOOKUP($D75,$A:$A,BJ:BJ)*1),BQ74) -> 0 | BR75: =IFERROR(IF(BR$8="Divide",1/LOOKUP($D75,$A:$A,BK:BK)*1,LOOKUP($D75,$A:$A,BK:BK)*1),BR74) -> 0 | BS75: =IFERROR(IF(BS$8="Divide",1/LOOKUP($D75,$A:$A,BL:BL)*1,LOOKUP($D75,$A:$A,BL:BL)*1),BS74) -> 0 | BT75: =IFERROR(IF(BT$8="Divide",1/LOOKUP($D75,$A:$A,BM:BM)*1,LOOKUP($D75,$A:$A,BM:BM)*1),BT74) -> 0.001170873811
A76: 1955-07-01 | B76: 1967-07-31 | C76: =IF(C75<=$D$2,C75+7) -> 1963-04-08 | D76: 1967-07-31 | E76: =AND(D76>=$D$4,D75<=$D$2) -> TRUE | F76: 94.75 | G76: 43.52 | H76: 1 | I76: 94.75 | J76: =IFERROR(LN(I76/I75),FALSE) -> 0.04434623828 | K76: 1.376380092 | L76: 1967-07-31 | M76: 94.75 | N76: 1967-07-31 | O76: 94.75 | P76: 0 | Q76: 0 | R76: 0 | S76: 0 | T76: 0 | U76: 0 | AB76: 0 | AC76: 0 | AD76: 0 | AE76: 0 | AF76: 0 | AG76: 0 | AH76: 1 | AI76: 1 | AJ76: 1 | AK76: 1 | AL76: 1 | AM76: 1 | AN76: =IFERROR(IF(ISNUMBER(AB76)>0.1,AB76,AN77)*AH76,AN77) -> 0 | AO76: =IFERROR(IF(ISNUMBER(AC76)>0.1,AC76,AO77)*AI76,AO77) -> 0 | AP76: =IFERROR(IF(ISNUMBER(AD76)>0.1,AD76,AP77)*AJ76,AP77) -> 0 | AQ76: =IFERROR(IF(ISNUMBER(AE76)>0.1,AE76,AQ77)*AK76,AQ77) -> 0 | AR76: =IFERROR(IF(ISNUMBER(AF76)>0.1,AF76,AR77)*AL76,AR77) -> 0 | AS76: =IFERROR(IF(ISNUMBER(AG76)>0.1,AG76,AS77)*AM76,AS77) -> 0 | AT76: 0.04434623828 | AU76: FALSE | AV76: FALSE | AW76: FALSE | AX76: FALSE | AY76: FALSE | AZ76: FALSE | BA76: =IFERROR(IF($E76,BA75*AN76/AN75,1),1) -> 1 | BB76: =IFERROR(IF($E76,BB75*AO76/AO75,1),1) -> 1 | BC76: =IFERROR(IF($E76,BC75*AP76/AP75,1),1) -> 1 | BD76: =IFERROR(IF($E76,BD75*AQ76/AQ75,1),1) -> 1 | BE76: =IFERROR(IF($E76,BE75*AR76/AR75,1),1) -> 1 | BF76: =IFERROR(IF($E76,BF75*AS76/AS75,1),1) -> 1 | BG76: 14.847 | BH76: 26.76 | BI76: 0 | BJ76: 0 | BK76: 0 | BL76: 0 | BM76: 432.668 | BN76: 0.05294927459 | BO76: 0.02994011976 | BP76: 0 | BQ76: 0 | BR76: 0 | BS76: 0 | BT76: 0.00114820845
A77: 1955-08-01 | B77: 1967-08-31 | C77: 1963-04-15 | D77: =IF($D$6,C77,B77) -> 1967-08-31 | E77: TRUE | F77: 93.639999 | G77: 43.18 | H77: 1 | I77: 93.639999 | J77: -0.01178421202 | K77: =IF($E77,(K76*I77/I76),1) -> 1.36025573 | L77: =IF(E77,D77,NA()) -> 1967-08-31 | M77: =CHOOSE($M$1,I77,J77,K77) -> 93.639999 | N77: =L77 -> 1967-08-31 | O77: =M77 -> 93.639999 | P77: =IFERROR(CHOOSE($M$1,AN77,AU77,BA77),1) -> 0 | Q77: =IFERROR(CHOOSE($M$1,AO77,AV77,BB77),1) -> 0 | R77: =IFERROR(CHOOSE($M$1,AP77,AW77,BC77),1) -> 0 | S77: =IFERROR(CHOOSE($M$1,AQ77,AX77,BD77),1) -> 0 | T77: =IFERROR(CHOOSE($M$1,AR77,AY77,BE77),1) -> 0 | U77: =IFERROR(CHOOSE($M$1,AS77,AZ77,BF77),1) -> 0 | AB77: 0 | AC77: 0 | AD77: 0 | AE77: 0 | AF77: 0 | AG77: 0 | AH77: 1 | AI77: 1 | AJ77: 1 | AK77: 1 | AL77: 1 | AM77: 1 | AN77: 0 | AO77: 0 | AP77: 0 | AQ77: 0 | AR77: 0 | AS77: 0 | AT77: =J77 -> -0.01178421202 | AU77: FALSE | AV77: FALSE | AW77: FALSE | AX77: FALSE | AY77: FALSE | AZ77: FALSE | BA77: 1 | BB77: 1 | BC77: 1 | BD77: 1 | BE77: 1 | BF77: 1 | BG77: 14.847 | BH77: 26.72 | BI77: 0 | BJ77: 0 | BK77: 0 | BL77: 0 | BM77: 432.668 | BN77: 0.05294927459 | BO77: 0.02985074627 | BP77: 0 | BQ77: 0 | BR77: 0 | BS77: 0 | BT77: 0.00114820845
A78: 1955-09-01 | B78: 1967-09-30 | C78: 1963-04-22 | D78: 1967-09-30 | E78: TRUE | F78: 96.709999 | G78: 43.669998 | H78: 1 | I78: 96.709999 | J78: 0.03225916745 | K78: 1.404851897 | L78: 1967-09-30 | M78: 96.709999 | N78: 1967-09-30 | O78: 96.709999 | P78: 0 | Q78: 0 | R78: 0 | S78: 0 | T78: 0 | U78: 0 | AB78: 0 | AC78: 0 | AD78: 0 | AE78: 0 | AF78: 0 | AG78: 0 | AH78: 1 | AI78: 1 | AJ78: 1 | AK78: 1 | AL78: 1 | AM78: 1 | AN78: 0 | AO78: 0 | AP78: 0 | AQ78: 0 | AR78: 0 | AS78: 0 | AT78: 0.03225916745 | AU78: FALSE | AV78: FALSE | AW78: FALSE | AX78: FALSE | AY78: FALSE | AZ78: FALSE | BA78: 1 | BB78: 1 | BC78: 1 | BD78: 1 | BE78: 1 | BF78: 1 | BG78: 14.847 | BH78: 26.85 | BI78: 0 | BJ78: 0 | BK78: 0 | BL78: 0 | BM78: 432.668 | BN78: 0.05294927459 | BO78: 0.02976190476 | BP78: 0 | BQ78: 0 | BR78: 0 | BS78: 0 | BT78: 0.00114820845
A79: 1955-10-01 | B79: 1967-10-31 | C79: 1963-04-29 | D79: 1967-10-31 | E79: TRUE | F79: 93.300003 | G79: 42.34 | H79: 1 | I79: 93.300003 | J79: -0.03589665938 | K79: 1.355316799 | L79: 1967-10-31 | M79: 93.300003 | N79: 1967-10-31 | O79: 93.300003 | P79: 0 | Q79: 0 | R79: 0 | S79: 0 | T79: 0 | U79: 0 | AB79: 0 | AC79: 0 | AD79: 0 | AE79: 0 | AF79: 0 | AG79: 0 | AH79: 1 | AI79: 1 | AJ79: 1 | AK79: 1 | AL79: 1 | AM79: 1 | AN79: 0 | AO79: 0 | AP79: 0 | AQ79: 0 | AR79: 0 | AS79: 0 | AT79: -0.03589665938 | AU79: FALSE | AV79: FALSE | AW79: FALSE | AX79: FALSE | AY79: FALSE | AZ79: FALSE | BA79: 1 | BB79: 1 | BC79: 1 | BD79: 1 | BE79: 1 | BF79: 1 | BG79: 14.995 | BH79: 26.82 | BI79: 0 | BJ79: 0 | BK79: 0 | BL79: 0 | BM79: 439.619 | BN79: 0.05236698785 | BO79: 0.0296735905 | BP79: 0 | BQ79: 0 | BR79: 0 | BS79: 0 | BT79: 0.001127366483
A80: 1955-11-01 | B80: 1967-11-30 | C80: 1963-05-06 | D80: 1967-11-30 | E80: TRUE | F80: 94 | G80: 45.509998 | H80: 1 | I80: 94 | J80: 0.007474642262 | K80: 1.365485262 | L80: 1967-11-30 | M80: 94 | N80: 1967-11-30 | O80: 94 | P80: 0 | Q80: 0 | R80: 0 | S80: 0 | T80: 0 | U80: 0 | AB80: 0 | AC80: 0 | AD80: 0 | AE80: 0 | AF80: 0 | AG80: 0 | AH80: 1 | AI80: 1 | AJ80: 1 | AK80: 1 | AL80: 1 | AM80: 1 | AN80: 0 | AO80: 0 | AP80: 0 | AQ80: 0 | AR80: 0 | AS80: 0 | AT80: 0.007474642262 | AU80: FALSE | AV80: FALSE | AW80: FALSE | AX80: FALSE | AY80: FALSE | AZ80: FALSE | BA80: 1 | BB80: 1 | BC80: 1 | BD80: 1 | BE80: 1 | BF80: 1 | BG80: 14.995 | BH80: 26.88 | BI80: 0 | BJ80: 0 | BK80: 0 | BL80: 0 | BM80: 439.619 | BN80: 0.05236698785 | BO80: 0.02949852507 | BP80: 0 | BQ80: 0 | BR80: 0 | BS80: 0 | BT80: 0.001127366483
A81: 1955-12-01 | B81: 1967-12-31 | C81: 1963-05-13 | D81: 1967-12-31 | E81: TRUE | F81: 96.470001 | G81: 45.48 | H81: 1 | I81: 96.470001 | J81: 0.02593730728 | K81: 1.401365581 | L81: 1967-12-31 | M81: 96.470001 | N81: 1967-12-31 | O81: 96.470001 | P81: 0 | Q81: 0 | R81: 0 | S81: 0 | T81: 0 | U81: 0 | AB81: 0 | AC81: 0 | AD81: 0 | AE81: 0 | AF81: 0 | AG81: 0 | AH81: 1 | AI81: 1 | AJ81: 1 | AK81: 1 | AL81: 1 | AM81: 1 | AN81: 0 | AO81: 0 | AP81: 0 | AQ81: 0 | AR81: 0 | AS81: 0 | AT81: 0.02593730728 | AU81: FALSE | AV81: FALSE | AW81: FALSE | AX81: FALSE | AY81: FALSE | AZ81: FALSE | BA81: 1 | BB81: 1 | BC81: 1 | BD81: 1 | BE81: 1 | BF81: 1 | BG81: 14.995 | BH81: 26.87 | BI81: 0 | BJ81: 0 | BK81: 0 | BL81: 0 | BM81: 439.619 | BN81: 0.05236698785 | BO81: 0.02941176471 | BP81: 0 | BQ81: 0 | BR81: 0 | BS81: 0 | BT81: 0.001127366483
A82: 1956-01-01 | B82: 1968-01-31 | C82: 1963-05-20 | D82: 1968-01-31 | E82: TRUE | F82: 92.239998 | G82: 43.82 | H82: 1 | I82: 92.239998 | J82: -0.04483823527 | K82: 1.339918701 | L82: 1968-01-31 | M82: 92.239998 | N82: 1968-01-31 | O82: 92.239998 | P82: 0 | Q82: 0 | R82: 0 | S82: 0 | T82: 0 | U82: 0 | AB82: 0 | AC82: 0 | AD82: 0 | AE82: 0 | AF82: 0 | AG82: 0 | AH82: 1 | AI82: 1 | AJ82: 1 | AK82: 1 | AL82: 1 | AM82: 1 | AN82: 0 | AO82: 0 | AP82: 0 | AQ82: 0 | AR82: 0 | AS82: 0 | AT82: -0.04483823527 | AU82: FALSE | AV82: FALSE | AW82: FALSE | AX82: FALSE | AY82: FALSE | AZ82: FALSE | BA82: 1 | BB82: 1 | BC82: 1 | BD82: 1 | BE82: 1 | BF82: 1 | BG82: 15.144 | BH82: 26.83 | BI82: 0 | BJ82: 0 | BK82: 0 | BL82: 0 | BM82: 442.597 | BN82: 0.05179200331 | BO82: 0.0293255132 | BP82: 0 | BQ82: 0 | BR82: 0 | BS82: 0 | BT82: 0.001092652567
A83: 1956-02-01 | B83: 1968-02-29 | C83: 1963-05-27 | D83: 1968-02-29 | E83: TRUE | F83: 89.360001 | G83: 45.34 | H83: 1 | I83: 89.360001 | J83: -0.03172068833 | K83: 1.2980826 | L83: 1968-02-29 | M83: 89.360001 | N83: 1968-02-29 | O83: 89.360001 | P83: 0 | Q83: 0 | R83: 0 | S83: 0 | T83: 0 | U83: 0 | AB83: 0 | AC83: 0 | AD83: 0 | AE83: 0 | AF83: 0 | AG83: 0 | AH83: 1 | AI83: 1 | AJ83: 1 | AK83: 1 | AL83: 1 | AM83: 1 | AN83: 0 | AO83: 0 | AP83: 0 | AQ83: 0 | AR83: 0 | AS83: 0 | AT83: -0.03172068833 | AU83: FALSE | AV83: FALSE | AW83: FALSE | AX83: FALSE | AY83: FALSE | AZ83: FALSE | BA83: 1 | BB83: 1 | BC83: 1 | BD83: 1 | BE83: 1 | BF83: 1 | BG83: 15.144 | BH83: 26.86 | BI83: 0 | BJ83: 0 | BK83: 0 | BL83: 0 | BM83: 442.597 | BN83: 0.05179200331 | BO83: 0.02923976608 | BP83: 0 | BQ83: 0 | BR83: 0 | BS83: 0 | BT83: 0.001092652567
A84: 1956-03-01 | B84: 1968-03-31 | C84: 1963-06-03 | D84: 1968-03-31 | E84: TRUE | F84: 90.199997 | G84: 48.48 | H84: 1 | I84: 90.199997 | J84: 0.009356227858 | K84: 1.310284751 | L84: 1968-03-31 | M84: 90.199997 | N84: 1968-03-31 | O84: 90.199997 | P84: 0 | Q84: 0 | R84: 0 | S84: 0 | T84: 0 | U84: 0 | AB84: 0 | AC84: 0 | AD84: 0 | AE84: 0 | AF84: 0 | AG84: 0 | AH84: 1 | AI84: 1 | AJ84: 1 | AK84: 1 | AL84: 1 | AM84: 1 | AN84: 0 | AO84: 0 | AP84: 0 | AQ84: 0 | AR84: 0 | AS84: 0 | AT84: 0.009356227858 | AU84: FALSE | AV84: FALSE | AW84: FALSE | AX84: FALSE | AY84: FALSE | AZ84: FALSE | BA84: 1 | BB84: 1 | BC84: 1 | BD84: 1 | BE84: 1 | BF84: 1 | BG84: 15.144 | BH84: 26.89 | BI84: 0 | BJ84: 0 | BK84: 0 | BL84: 0 | BM84: 442.597 | BN84: 0.05179200331 | BO84: 0.02915451895 | BP84: 0 | BQ84: 0 | BR84: 0 | BS84: 0 | BT84: 0.001092652567
A85: 1956-04-01 | B85: 1968-04-30 | C85: 1963-06-10 | D85: 1968-04-30 | E85: TRUE | F85: 97.459999 | G85: 48.380001 | H85: 1 | I85: 97.459999 | J85: 0.07741263335 | K85: 1.415746727 | L85: 1968-04-30 | M85: 97.459999 | N85: 1968-04-30 | O85: 97.459999 | P85: 0 | Q85: 0 | R85: 0 | S85: 0 | T85: 0 | U85: 0 | AB85: 0 | AC85: 0 | AD85: 0 | AE85: 0 | AF85: 0 | AG85: 0 | AH85: 1 | AI85: 1 | AJ85: 1 | AK85: 1 | AL85: 1 | AM85: 1 | AN85: 0 | AO85: 0 | AP85: 0 | AQ85: 0 | AR85: 0 | AS85: 0 | AT85: 0.07741263335 | AU85: FALSE | AV85: FALSE | AW85: FALSE | AX85: FALSE | AY85: FALSE | AZ85: FALSE | BA85: 1 | BB85: 1 | BC85: 1 | BD85: 1 | BE85: 1 | BF85: 1 | BG85: 15.234 | BH85: 26.93 | BI85: 0 | BJ85: 0 | BK85: 0 | BL85: 0 | BM85: 448.848 | BN85: 0.05125313925 | BO85: 0.02906976744 | BP85: 0 | BQ85: 0 | BR85: 0 | BS85: 0 | BT85: 0.001063440613
A86: 1956-05-01 | B86: 1968-05-31 | C86: 1963-06-17 | D86: 1968-05-31 | E86: TRUE | F86: 98.68 | G86: 45.200001 | H86: 1 | I86: 98.68 | J86: 0.01244026451 | K86: 1.433468997 | L86: 1968-05-31 | M86: 98.68 | N86: 1968-05-31 | O86: 98.68 | P86: 0 | Q86: 0 | R86: 0 | S86: 0 | T86: 0 | U86: 0 | AB86: 0 | AC86: 0 | AD86: 0 | AE86: 0 | AF86: 0 | AG86: 0 | AH86: 1 | AI86: 1 | AJ86: 1 | AK86: 1 | AL86: 1 | AM86: 1 | AN86: 0 | AO86: 0 | AP86: 0 | AQ86: 0 | AR86: 0 | AS86: 0 | AT86: 0.01244026451 | AU86: FALSE | AV86: FALSE | AW86: FALSE | AX86: FALSE | AY86: FALSE | AZ86: FALSE | BA86: 1 | BB86: 1 | BC86: 1 | BD86: 1 | BE86: 1 | BF86: 1 | BG86: 15.234 | BH86: 27.03 | BI86: 0 | BJ86: 0 | BK86: 0 | BL86: 0 | BM86: 448.848 | BN86: 0.05125313925 | BO86: 0.02898550725 | BP86: 0 | BQ86: 0 | BR86: 0 | BS86: 0 | BT86: 0.001063440613
A87: 1956-06-01 | B87: 1968-06-30 | C87: 1963-06-24 | D87: 1968-06-30 | E87: TRUE | F87: 99.580002 | G87: 46.970001 | H87: 1 | I87: 99.580002 | J87: 0.009079069637 | K87: 1.446542821 | L87: 1968-06-30 | M87: 99.580002 | N87: 1968-06-30 | O87: 99.580002 | P87: 0 | Q87: 0 | R87: 0 | S87: 0 | T87: 0 | U87: 0 | AB87: 0 | AC87: 0 | AD87: 0 | AE87: 0 | AF87: 0 | AG87: 0 | AH87: 1 | AI87: 1 | AJ87: 1 | AK87: 1 | AL87: 1 | AM87: 1 | AN87: 0 | AO87: 0 | AP87: 0 | AQ87: 0 | AR87: 0 | AS87: 0 | AT87: 0.009079069637 | AU87: FALSE | AV87: FALSE | AW87: FALSE | AX87: FALSE | AY87: FALSE | AZ87: FALSE | BA87: 1 | BB87: 1 | BC87: 1 | BD87: 1 | BE87: 1 | BF87: 1 | BG87: 15.234 | BH87: 27.15 | BI87: 0 | BJ87: 0 | BK87: 0 | BL87: 0 | BM87: 448.848 | BN87: 0.05125313925 | BO87: 0.0288184438 | BP87: 0 | BQ87: 0 | BR87: 0 | BS87: 0 | BT87: 0.001063440613
A88: 1956-07-01 | B88: 1968-07-31 | C88: 1963-07-01 | D88: 1968-07-31 | E88: TRUE | F88: 97.739998 | G88: 49.389999 | H88: 1 | I88: 97.739998 | J88: -0.01865048992 | K88: 1.419814115 | L88: 1968-07-31 | M88: 97.739998 | N88: 1968-07-31 | O88: 97.739998 | P88: 0 | Q88: 0 | R88: 0 | S88: 0 | T88: 0 | U88: 0 | AB88: 0 | AC88: 0 | AD88: 0 | AE88: 0 | AF88: 0 | AG88: 0 | AH88: 1 | AI88: 1 | AJ88: 1 | AK88: 1 | AL88: 1 | AM88: 1 | AN88: 0 | AO88: 0 | AP88: 0 | AQ88: 0 | AR88: 0 | AS88: 0 | AT88: -0.01865048992 | AU88: FALSE | AV88: FALSE | AW88: FALSE | AX88: FALSE | AY88: FALSE | AZ88: FALSE | BA88: 1 | BB88: 1 | BC88: 1 | BD88: 1 | BE88: 1 | BF88: 1 | BG88: 15.425 | BH88: 27.29 | BI88: 0 | BJ88: 0 | BK88: 0 | BL88: 0 | BM88: 454.125 | BN88: 0.05075369233 | BO88: 0.02865329513 | BP88: 0 | BQ88: 0 | BR88: 0 | BS88: 0 | BT88: 0.001044848011
A89: 1956-08-01 | B89: 1968-08-31 | C89: 1963-07-08 | D89: 1968-08-31 | E89: TRUE | F89: 98.860001 | G89: 47.509998 | H89: 1 | I89: 98.860001 | J89: 0.01139384661 | K89: 1.43608377 | L89: 1968-08-31 | M89: 98.860001 | N89: 1968-08-31 | O89: 98.860001 | P89: 0 | Q89: 0 | R89: 0 | S89: 0 | T89: 0 | U89: 0 | AB89: 0 | AC89: 0 | AD89: 0 | AE89: 0 | AF89: 0 | AG89: 0 | AH89: 1 | AI89: 1 | AJ89: 1 | AK89: 1 | AL89: 1 | AM89: 1 | AN89: 0 | AO89: 0 | AP89: 0 | AQ89: 0 | AR89: 0 | AS89: 0 | AT89: 0.01139384661 | AU89: FALSE | AV89: FALSE | AW89: FALSE | AX89: FALSE | AY89: FALSE | AZ89: FALSE | BA89: 1 | BB89: 1 | BC89: 1 | BD89: 1 | BE89: 1 | BF89: 1 | BG89: 15.425 | BH89: 27.31 | BI89: 0 | BJ89: 0 | BK89: 0 | BL89: 0 | BM89: 454.125 | BN89: 0.05075369233 | BO89: 0.02857142857 | BP89: 0 | BQ89: 0 | BR89: 0 | BS89: 0 | BT89: 0.001044848011
A90: 1956-09-01 | B90: 1968-09-30 | C90: 1963-07-15 | D90: 1968-09-30 | E90: TRUE | F90: 102.669998 | G90: 45.349998 | H90: 1 | I90: 102.669998 | J90: 0.03781522384 | K90: 1.491429459 | L90: 1968-09-30 | M90: 102.669998 | N90: 1968-09-30 | O90: 102.669998 | P90: 0 | Q90: 0 | R90: 0 | S90: 0 | T90: 0 | U90: 0 | AB90: 0 | AC90: 0 | AD90: 0 | AE90: 0 | AF90: 0 | AG90: 0 | AH90: 1 | AI90: 1 | AJ90: 1 | AK90: 1 | AL90: 1 | AM90: 1 | AN90: 0 | AO90: 0 | AP90: 0 | AQ90: 0 | AR90: 0 | AS90: 0 | AT90: 0.03781522384 | AU90: FALSE | AV90: FALSE | AW90: FALSE | AX90: FALSE | AY90: FALSE | AZ90: FALSE | BA90: 1 | BB90: 1 | BC90: 1 | BD90: 1 | BE90: 1 | BF90: 1 | BG90: 15.425 | BH90: 27.35 | BI90: 0 | BJ90: 0 | BK90: 0 | BL90: 0 | BM90: 454.125 | BN90: 0.05075369233 | BO90: 0.02849002849 | BP90: 0 | BQ90: 0 | BR90: 0 | BS90: 0 | BT90: 0.001044848011
A91: 1956-10-01 | B91: 1968-10-31 | C91: 1963-07-22 | D91: 1968-10-31 | E91: TRUE | F91: 103.410004 | G91: 45.580002 | H91: 1 | I91: 103.410004 | J91: 0.007181766047 | K91: 1.502179111 | L91: 1968-10-31 | M91: 103.410004 | N91: 1968-10-31 | O91: 103.410004 | P91: 0 | Q91: 0 | R91: 0 | S91: 0 | T91: 0 | U91: 0 | AB91: 0 | AC91: 0 | AD91: 0 | AE91: 0 | AF91: 0 | AG91: 0 | AH91: 1 | AI91: 1 | AJ91: 1 | AK91: 1 | AL91: 1 | AM91: 1 | AN91: 0 | AO91: 0 | AP91: 0 | AQ91: 0 | AR91: 0 | AS91: 0 | AT91: 0.007181766047 | AU91: FALSE | AV91: FALSE | AW91: FALSE | AX91: FALSE | AY91: FALSE | AZ91: FALSE | BA91: 1 | BB91: 1 | BC91: 1 | BD91: 1 | BE91: 1 | BF91: 1 | BG91: 15.487 | BH91: 27.51 | BI91: 0 | BJ91: 0 | BK91: 0 | BL91: 0 | BM91: 463.023 | BN91: 0.05004754517 | BO91: 0.0283286119 | BP91: 0 | BQ91: 0 | BR91: 0 | BS91: 0 | BT91: 0.001026376859
A92: 1956-11-01 | B92: 1968-11-30 | C92: 1963-07-29 | D92: 1968-11-30 | E92: TRUE | F92: 108.370003 | G92: 45.080002 | H92: 1 | I92: 108.370003 | J92: 0.04684961774 | K92: 1.574230234 | L92: 1968-11-30 | M92: 108.370003 | N92: 1968-11-30 | O92: 108.370003 | P92: 0 | Q92: 0 | R92: 0 | S92: 0 | T92: 0 | U92: 0 | AB92: 0 | AC92: 0 | AD92: 0 | AE92: 0 | AF92: 0 | AG92: 0 | AH92: 1 | AI92: 1 | AJ92: 1 | AK92: 1 | AL92: 1 | AM92: 1 | AN92: 0 | AO92: 0 | AP92: 0 | AQ92: 0 | AR92: 0 | AS92: 0 | AT92: 0.04684961774 | AU92: FALSE | AV92: FALSE | AW92: FALSE | AX92: FALSE | AY92: FALSE | AZ92: FALSE | BA92: 1 | BB92: 1 | BC92: 1 | BD92: 1 | BE92: 1 | BF92: 1 | BG92: 15.487 | BH92: 27.51 | BI92: 0 | BJ92: 0 | BK92: 0 | BL92: 0 | BM92: 463.023 | BN92: 0.05004754517 | BO92: 0.02824858757 | BP92: 0 | BQ92: 0 | BR92: 0 | BS92: 0 | BT92: 0.001026376859
A93: 1956-12-01 | B93: 1968-12-31 | C93: 1963-08-05 | D93: 1968-12-31 | E93: TRUE | F93: 103.860001 | G93: 46.669998 | H93: 1 | I93: 103.860001 | J93: -0.04250747757 | K93: 1.508715965 | L93: 1968-12-31 | M93: 103.860001 | N93: 1968-12-31 | O93: 103.860001 | P93: 0 | Q93: 0 | R93: 0 | S93: 0 | T93: 0 | U93: 0 | AB93: 0 | AC93: 0 | AD93: 0 | AE93: 0 | AF93: 0 | AG93: 0 | AH93: 1 | AI93: 1 | AJ93: 1 | AK93: 1 | AL93: 1 | AM93: 1 | AN93: 0 | AO93: 0 | AP93: 0 | AQ93: 0 | AR93: 0 | AS93: 0 | AT93: -0.04250747757 | AU93: FALSE | AV93: FALSE | AW93: FALSE | AX93: FALSE | AY93: FALSE | AZ93: FALSE | BA93: 1 | BB93: 1 | BC93: 1 | BD93: 1 | BE93: 1 | BF93: 1 | BG93: 15.487 | BH93: 27.63 | BI93: 0 | BJ93: 0 | BK93: 0 | BL93: 0 | BM93: 463.023 | BN93: 0.05004754517 | BO93: 0.02808988764 | BP93: 0 | BQ93: 0 | BR93: 0 | BS93: 0 | BT93: 0.001026376859
A94: 1957-01-01 | B94: 1969-01-31 | C94: 1963-08-12 | D94: 1969-01-31 | E94: TRUE | F94: 103.010002 | G94: 44.720001 | H94: 1 | I94: 103.010002 | J94: -0.008217757733 | K94: 1.496368506 | L94: 1969-01-31 | M94: 103.010002 | N94: 1969-01-31 | O94: 103.010002 | P94: 0 | Q94: 0 | R94: 0 | S94: 0 | T94: 0 | U94: 0 | AB94: 0 | AC94: 0 | AD94: 0 | AE94: 0 | AF94: 0 | AG94: 0 | AH94: 1 | AI94: 1 | AJ94: 1 | AK94: 1 | AL94: 1 | AM94: 1 | AN94: 0 | AO94: 0 | AP94: 0 | AQ94: 0 | AR94: 0 | AS94: 0 | AT94: -0.008217757733 | AU94: FALSE | AV94: FALSE | AW94: FALSE | AX94: FALSE | AY94: FALSE | AZ94: FALSE | BA94: 1 | BB94: 1 | BC94: 1 | BD94: 1 | BE94: 1 | BF94: 1 | BG94: 15.7 | BH94: 27.67 | BI94: 0 | BJ94: 0 | BK94: 0 | BL94: 0 | BM94: 472.864 | BN94: 0.04953683063 | BO94: 0.02801120448 | BP94: 0 | BQ94: 0 | BR94: 0 | BS94: 0 | BT94: 0.001000329108
A95: 1957-02-01 | B95: 1969-02-28 | C95: 1963-08-19 | D95: 1969-02-28 | E95: TRUE | F95: 98.129997 | G95: 43.259998 | H95: 1 | I95: 98.129997 | J95: -0.04853299066 | K95: 1.425479412 | L95: 1969-02-28 | M95: 98.129997 | N95: 1969-02-28 | O95: 98.129997 | P95: 0 | Q95: 0 | R95: 0 | S95: 0 | T95: 0 | U95: 0 | AB95: 0 | AC95: 0 | AD95: 0 | AE95: 0 | AF95: 0 | AG95: 0 | AH95: 1 | AI95: 1 | AJ95: 1 | AK95: 1 | AL95: 1 | AM95: 1 | AN95: 0 | AO95: 0 | AP95: 0 | AQ95: 0 | AR95: 0 | AS95: 0 | AT95: -0.04853299066 | AU95: FALSE | AV95: FALSE | AW95: FALSE | AX95: FALSE | AY95: FALSE | AZ95: FALSE | BA95: 1 | BB95: 1 | BC95: 1 | BD95: 1 | BE95: 1 | BF95: 1 | BG95: 15.7 | BH95: 27.8 | BI95: 0 | BJ95: 0 | BK95: 0 | BL95: 0 | BM95: 472.864 | BN95: 0.04953683063 | BO95: 0.02793296089 | BP95: 0 | BQ95: 0 | BR95: 0 | BS95: 0 | BT95: 0.001000329108
A96: 1957-03-01 | B96: 1969-03-31 | C96: 1963-08-26 | D96: 1969-03-31 | E96: TRUE | F96: 101.510002 | G96: 44.110001 | H96: 1 | I96: 101.510002 | J96: 0.03386423585 | K96: 1.474578848 | L96: 1969-03-31 | M96: 101.510002 | N96: 1969-03-31 | O96: 101.510002 | P96: 0 | Q96: 0 | R96: 0 | S96: 0 | T96: 0 | U96: 0 | AB96: 0 | AC96: 0 | AD96: 0 | AE96: 0 | AF96: 0 | AG96: 0 | AH96: 1 | AI96: 1 | AJ96: 1 | AK96: 1 | AL96: 1 | AM96: 1 | AN96: 0 | AO96: 0 | AP96: 0 | AQ96: 0 | AR96: 0 | AS96: 0 | AT96: 0.03386423585 | AU96: FALSE | AV96: FALSE | AW96: FALSE | AX96: FALSE | AY96: FALSE | AZ96: FALSE | BA96: 1 | BB96: 1 | BC96: 1 | BD96: 1 | BE96: 1 | BF96: 1 | BG96: 15.7 | BH96: 27.86 | BI96: 0 | BJ96: 0 | BK96: 0 | BL96: 0 | BM96: 472.864 | BN96: 0.04953683063 | BO96: 0.02770083102 | BP96: 0 | BQ96: 0 | BR96: 0 | BS96: 0 | BT96: 0.001000329108
A97: 1957-04-01 | B97: 1969-04-30 | C97: 1963-09-02 | D97: 1969-04-30 | E97: TRUE | F97: 103.690002 | G97: 45.740002 | H97: 1 | I97: 103.690002 | J97: 0.02124836236 | K97: 1.506246485 | L97: 1969-04-30 | M97: 103.690002 | N97: 1969-04-30 | O97: 103.690002 | P97: 0 | Q97: 0 | R97: 0 | S97: 0 | T97: 0 | U97: 0 | AB97: 0 | AC97: 0 | AD97: 0 | AE97: 0 | AF97: 0 | AG97: 0 | AH97: 1 | AI97: 1 | AJ97: 1 | AK97: 1 | AL97: 1 | AM97: 1 | AN97: 0 | AO97: 0 | AP97: 0 | AQ97: 0 | AR97: 0 | AS97: 0 | AT97: 0.02124836236 | AU97: FALSE | AV97: FALSE | AW97: FALSE | AX97: FALSE | AY97: FALSE | AZ97: FALSE | BA97: 1 | BB97: 1 | BC97: 1 | BD97: 1 | BE97: 1 | BF97: 1 | BG97: 15.81 | BH97: 27.93 | BI97: 0 | BJ97: 0 | BK97: 0 | BL97: 0 | BM97: 475.392 | BN97: 0.04891410683 | BO97: 0.02754820937 | BP97: 0 | BQ97: 0 | BR97: 0 | BS97: 0 | BT97: 0.0009850460164
A98: 1957-05-01 | B98: 1969-05-31 | C98: 1963-09-09 | D98: 1969-05-31 | E98: TRUE | F98: 103.459999 | G98: 47.43 | H98: 1 | I98: 103.459999 | J98: -0.002220642949 | K98: 1.50290536 | L98: 1969-05-31 | M98: 103.459999 | N98: 1969-05-31 | O98: 103.459999 | P98: 0 | Q98: 0 | R98: 0 | S98: 0 | T98: 0 | U98: 0 | AB98: 0 | AC98: 0 | AD98: 0 | AE98: 0 | AF98: 0 | AG98: 0 | AH98: 1 | AI98: 1 | AJ98: 1 | AK98: 1 | AL98: 1 | AM98: 1 | AN98: 0 | AO98: 0 | AP98: 0 | AQ98: 0 | AR98: 0 | AS98: 0 | AT98: -0.002220642949 | AU98: FALSE | AV98: FALSE | AW98: FALSE | AX98: FALSE | AY98: FALSE | AZ98: FALSE | BA98: 1 | BB98: 1 | BC98: 1 | BD98: 1 | BE98: 1 | BF98: 1 | BG98: 15.81 | BH98: 28 | BI98: 0 | BJ98: 0 | BK98: 0 | BL98: 0 | BM98: 475.392 | BN98: 0.04891410683 | BO98: 0.02747252747 | BP98: 0 | BQ98: 0 | BR98: 0 | BS98: 0 | BT98: 0.0009850460164
A99: 1957-06-01 | B99: 1969-06-30 | C99: 1963-09-16 | D99: 1969-06-30 | E99: TRUE | F99: 97.709999 | G99: 47.369999 | H99: 1 | I99: 97.709999 | J99: -0.05718115719 | K99: 1.419378336 | L99: 1969-06-30 | M99: 97.709999 | N99: 1969-06-30 | O99: 97.709999 | P99: 0 | Q99: 0 | R99: 0 | S99: 0 | T99: 0 | U99: 0 | AB99: 0 | AC99: 0 | AD99: 0 | AE99: 0 | AF99: 0 | AG99: 0 | AH99: 1 | AI99: 1 | AJ99: 1 | AK99: 1 | AL99: 1 | AM99: 1 | AN99: 0 | AO99: 0 | AP99: 0 | AQ99: 0 | AR99: 0 | AS99: 0 | AT99: -0.05718115719 | AU99: FALSE | AV99: FALSE | AW99: FALSE | AX99: FALSE | AY99: FALSE | AZ99: FALSE | BA99: 1 | BB99: 1 | BC99: 1 | BD99: 1 | BE99: 1 | BF99: 1 | BG99: 15.81 | BH99: 28.11 | BI99: 0 | BJ99: 0 | BK99: 0 | BL99: 0 | BM99: 475.392 | BN99: 0.04891410683 | BO99: 0.02732240437 | BP99: 0 | BQ99: 0 | BR99: 0 | BS99: 0 | BT99: 0.0009850460164
A100: 1957-07-01 | B100: 1969-07-31 | C100: 1963-09-23 | D100: 1969-07-31 | E100: TRUE | F100: 91.830002 | G100: 47.91 | H100: 1 | I100: 91.830002 | J100: -0.06206483432 | K100: 1.333962919 | L100: 1969-07-31 | M100: 91.830002 | N100: 1969-07-31 | O100: 91.830002 | P100: 0 | Q100: 0 | R100: 0 | S100: 0 | T100: 0 | U100: 0 | AB100: 0 | AC100: 0 | AD100: 0 | AE100: 0 | AF100: 0 | AG100: 0 | AH100: 1 | AI100: 1 | AJ100: 1 | AK100: 1 | AL100: 1 | AM100: 1 | AN100: 0 | AO100: 0 | AP100: 0 | AQ100: 0 | AR100: 0 | AS100: 0 | AT100: -0.06206483432 | AU100: FALSE | AV100: FALSE | AW100: FALSE | AX100: FALSE | AY100: FALSE | AZ100: FALSE | BA100: 1 | BB100: 1 | BC100: 1 | BD100: 1 | BE100: 1 | BF100: 1 | BG100: 15.904 | BH100: 28.19 | BI100: 0 | BJ100: 0 | BK100: 0 | BL100: 0 | BM100: 482.723 | BN100: 0.04823693985 | BO100: 0.02717391304 | BP100: 0 | BQ100: 0 | BR100: 0 | BS100: 0 | BT100: 0.0009653404176
A101: 1957-08-01 | B101: 1969-08-31 | C101: 1963-09-30 | D101: 1969-08-31 | E101: TRUE | F101: 95.510002 | G101: 45.220001 | H101: 1 | I101: 95.510002 | J101: 0.03929191158 | K101: 1.387420214 | L101: 1969-08-31 | M101: 95.510002 | N101: 1969-08-31 | O101: 95.510002 | P101: 0 | Q101: 0 | R101: 0 | S101: 0 | T101: 0 | U101: 0 | AB101: 0 | AC101: 0 | AD101: 0 | AE101: 0 | AF101: 0 | AG101: 0 | AH101: 1 | AI101: 1 | AJ101: 1 | AK101: 1 | AL101: 1 | AM101: 1 | AN101: 0 | AO101: 0 | AP101: 0 | AQ101: 0 | AR101: 0 | AS101: 0 | AT101: 0.03929191158 | AU101: FALSE | AV101: FALSE | AW101: FALSE | AX101: FALSE | AY101: FALSE | AZ101: FALSE | BA101: 1 | BB101: 1 | BC101: 1 | BD101: 1 | BE101: 1 | BF101: 1 | BG101: 15.904 | BH101: 28.28 | BI101: 0 | BJ101: 0 | BK101: 0 | BL101: 0 | BM101: 482.723 | BN101: 0.04823693985 | BO101: 0.027100271 | BP101: 0 | BQ101: 0 | BR101: 0 | BS101: 0 | BT101: 0.0009653404176
A102: 1957-09-01 | B102: 1969-09-30 | C102: 1963-10-07 | D102: 1969-09-30 | E102: TRUE | F102: 93.120003 | G102: 42.419998 | H102: 1 | I102: 93.120003 | J102: -0.02534195879 | K102: 1.35270204 | L102: 1969-09-30 | M102: 93.120003 | N102: 1969-09-30 | O102: 93.120003 | P102: 0 | Q102: 0 | R102: 0 | S102: 0 | T102: 0 | U102: 0 | AB102: 0 | AC102: 0 | AD102: 0 | AE102: 0 | AF102: 0 | AG102: 0 | AH102: 1 | AI102: 1 | AJ102: 1 | AK102: 1 | AL102: 1 | AM102: 1 | AN102: 0 | AO102: 0 | AP102: 0 | AQ102: 0 | AR102: 0 | AS102: 0 | AT102: -0.02534195879 | AU102: FALSE | AV102: FALSE | AW102: FALSE | AX102: FALSE | AY102: FALSE | AZ102: FALSE | BA102: 1 | BB102: 1 | BC102: 1 | BD102: 1 | BE102: 1 | BF102: 1 | BG102: 15.904 | BH102: 28.32 | BI102: 0 | BJ102: 0 | BK102: 0 | BL102: 0 | BM102: 482.723 | BN102: 0.04823693985 | BO102: 0.0269541779 | BP102: 0 | BQ102: 0 | BR102: 0 | BS102: 0 | BT102: 0.0009653404176
A103: 1957-10-01 | B103: 1969-10-31 | C103: 1963-10-14 | D103: 1969-10-31 | E103: TRUE | F103: 97.120003 | G103: 41.060001 | H103: 1 | I103: 97.120003 | J103: 0.042058342 | K103: 1.410807796 | L103: 1969-10-31 | M103: 97.120003 | N103: 1969-10-31 | O103: 97.120003 | P103: 0 | Q103: 0 | R103: 0 | S103: 0 | T103: 0 | U103: 0 | AB103: 0 | AC103: 0 | AD103: 0 | AE103: 0 | AF103: 0 | AG103: 0 | AH103: 1 | AI103: 1 | AJ103: 1 | AK103: 1 | AL103: 1 | AM103: 1 | AN103: 0 | AO103: 0 | AP103: 0 | AQ103: 0 | AR103: 0 | AS103: 0 | AT103: 0.042058342 | AU103: FALSE | AV103: FALSE | AW103: FALSE | AX103: FALSE | AY103: FALSE | AZ103: FALSE | BA103: 1 | BB103: 1 | BC103: 1 | BD103: 1 | BE103: 1 | BF103: 1 | BG103: 15.915 | BH103: 28.32 | BI103: 0 | BJ103: 0 | BK103: 0 | BL103: 0 | BM103: 477.398 | BN103: 0.0476235832 | BO103: 0.02680965147 | BP103: 0 | BQ103: 0 | BR103: 0 | BS103: 0 | BT103: 0.0009577039622
A104: 1957-11-01 | B104: 1969-11-30 | C104: 1963-10-21 | D104: 1969-11-30 | E104: TRUE | F104: 93.809998 | G104: 41.720001 | H104: 1 | I104: 93.809998 | J104: -0.03467591938 | K104: 1.36272521 | L104: 1969-11-30 | M104: 93.809998 | N104: 1969-11-30 | O104: 93.809998 | P104: 0 | Q104: 0 | R104: 0 | S104: 0 | T104: 0 | U104: 0 | AB104: 0 | AC104: 0 | AD104: 0 | AE104: 0 | AF104: 0 | AG104: 0 | AH104: 1 | AI104: 1 | AJ104: 1 | AK104: 1 | AL104: 1 | AM104: 1 | AN104: 0 | AO104: 0 | AP104: 0 | AQ104: 0 | AR104: 0 | AS104: 0 | AT104: -0.03467591938 | AU104: FALSE | AV104: FALSE | AW104: FALSE | AX104: FALSE | AY104: FALSE | AZ104: FALSE | BA104: 1 | BB104: 1 | BC104: 1 | BD104: 1 | BE104: 1 | BF104: 1 | BG104: 15.915 | BH104: 28.41 | BI104: 0 | BJ104: 0 | BK104: 0 | BL104: 0 | BM104: 477.398 | BN104: 0.0476235832 | BO104: 0.02666666667 | BP104: 0 | BQ104: 0 | BR104: 0 | BS104: 0 | BT104: 0.0009577039622
A105: 1957-12-01 | B105: 1969-12-31 | C105: 1963-10-28 | D105: 1969-12-31 | E105: TRUE | F105: 92.059998 | G105: 39.990002 | H105: 1 | I105: 92.059998 | J105: -0.01883092215 | K105: 1.337303942 | L105: 1969-12-31 | M105: 92.059998 | N105: 1969-12-31 | O105: 92.059998 | P105: 0 | Q105: 0 | R105: 0 | S105: 0 | T105: 0 | U105: 0 | AB105: 0 | AC105: 0 | AD105: 0 | AE105: 0 | AF105: 0 | AG105: 0 | AH105: 1 | AI105: 1 | AJ105: 1 | AK105: 1 | AL105: 1 | AM105: 1 | AN105: 0 | AO105: 0 | AP105: 0 | AQ105: 0 | AR105: 0 | AS105: 0 | AT105: -0.01883092215 | AU105: FALSE | AV105: FALSE | AW105: FALSE | AX105: FALSE | AY105: FALSE | AZ105: FALSE | BA105: 1 | BB105: 1 | BC105: 1 | BD105: 1 | BE105: 1 | BF105: 1 | BG105: 15.915 | BH105: 28.47 | BI105: 0 | BJ105: 0 | BK105: 0 | BL105: 0 | BM105: 477.398 | BN105: 0.0476235832 | BO105: 0.02652519894 | BP105: 0 | BQ105: 0 | BR105: 0 | BS105: 0 | BT105: 0.0009577039622
A106: 1958-01-01 | B106: 1970-01-31 | C106: 1963-11-04 | D106: 1970-01-31 | E106: TRUE | F106: 85.019997 | G106: 41.700001 | H106: 1 | I106: 85.019997 | J106: -0.07955402902 | K106: 1.235037797 | L106: 1970-01-31 | M106: 85.019997 | N106: 1970-01-31 | O106: 85.019997 | P106: 0 | Q106: 0 | R106: 0 | S106: 0 | T106: 0 | U106: 0 | AB106: 0 | AC106: 0 | AD106: 0 | AE106: 0 | AF106: 0 | AG106: 0 | AH106: 1 | AI106: 1 | AJ106: 1 | AK106: 1 | AL106: 1 | AM106: 1 | AN106: 0 | AO106: 0 | AP106: 0 | AQ106: 0 | AR106: 0 | AS106: 0 | AT106: -0.07955402902 | AU106: FALSE | AV106: FALSE | AW106: FALSE | AX106: FALSE | AY106: FALSE | AZ106: FALSE | BA106: 1 | BB106: 1 | BC106: 1 | BD106: 1 | BE106: 1 | BF106: 1 | BG106: 16.087 | BH106: 28.64 | BI106: 0 | BJ106: 0 | BK106: 0 | BL106: 0 | BM106: 470.17 | BN106: 0.04696158542 | BO106: 0.02638522427 | BP106: 0 | BQ106: 0 | BR106: 0 | BS106: 0 | BT106: 0.0009456381024
A107: 1958-02-01 | B107: 1970-02-28 | C107: 1963-11-11 | D107: 1970-02-28 | E107: TRUE | F107: 89.5 | G107: 40.84 | H107: 1 | I107: 89.5 | J107: 0.05135213764 | K107: 1.300116287 | L107: 1970-02-28 | M107: 89.5 | N107: 1970-02-28 | O107: 89.5 | P107: 0 | Q107: 0 | R107: 0 | S107: 0 | T107: 0 | U107: 0 | AB107: 0 | AC107: 0 | AD107: 0 | AE107: 0 | AF107: 0 | AG107: 0 | AH107: 1 | AI107: 1 | AJ107: 1 | AK107: 1 | AL107: 1 | AM107: 1 | AN107: 0 | AO107: 0 | AP107: 0 | AQ107: 0 | AR107: 0 | AS107: 0 | AT107: 0.05135213764 | AU107: FALSE | AV107: FALSE | AW107: FALSE | AX107: FALSE | AY107: FALSE | AZ107: FALSE | BA107: 1 | BB107: 1 | BC107: 1 | BD107: 1 | BE107: 1 | BF107: 1 | BG107: 16.087 | BH107: 28.7 | BI107: 0 | BJ107: 0 | BK107: 0 | BL107: 0 | BM107: 470.17 | BN107: 0.04696158542 | BO107: 0.02624671916 | BP107: 0 | BQ107: 0 | BR107: 0 | BS107: 0 | BT107: 0.0009456381024
